Workbook

Sheet LDC Info
AA3: Algoma Power Inc.
AA4: Atikokan Hydro Inc.
AA5: Attawapiskat Power Corporation
AA6: Bluewater Power Distribution Corp.
AA7: Brant County Power
AA8: Brantford Power Inc.
AA9: Burlington Hydro Inc.
AA10: Cambridge and North Dumfries Hydro
AA11: Canadian Niagara Power Inc. – Eastern Ontario Power/Fort Erie/Port Colborne
AA12: Centre Wellington Hydro Ltd.
AA13: Chapleau Public Utilities Corporation
D14: Utility Name | E14: Renfrew Hydro Inc. | AA14: COLLUS Power Corp.
AA15: Cooperative Hydro Embrun Inc.
D16: Assigned EB Number | E16: EB-2016-0166 | AA16: E.L.K. Energy Inc.
AA17: Enersource Hydro Mississauga Inc.
D18: Name of Contact and Title | E18: Cindy Marshall | AA18: Entegrus Powerlines Inc.
AA19: ENWIN Utilities Ltd.
D20: Phone Number | E20: 613-432-4884 | AA20: Erie Thames Powerlines Corp.
AA21: Espanola Regional Hydro Distribution Corporation
D22: Email Address | E22: cmarshall@renfrewhydro.com | AA22: Essex Powerlines Corporation
AA23: Festival Hydro Inc.
D24: Test Year | E24: 2016 | H24: 2017 | AA24: Fort Albany Power Corporation
AA25: Fort Frances Power Corporation
D26: Bridge Year | E26: 2016 | AA26: Greater Sudbury Hydro Inc.
AA27: Grimsby Power Inc.
D28: Last Rebasing Year | E28: 2010 | AA28: Guelph Hydro Electric Systems Inc.
AA29: Haldimand County Hydro Inc.
A30: Identify the accounting standard used for the test year
E31: MIFRS
A33: Did you update your depreciation and capitalization policies?
E34: Yes
A36: When did you update your depreciation and capitalization policies?
E37: 2001-01-01 | F37: 2013
A39: Identify the year that the applicant has adopted or is expected to adopt IFRS for financial reporting purposes
E40: 2015 or Later
A43: Are you applying for cost recovery for the test and/or future year(s) for Green Energy initiatives?
E44: No
A46: ="Is " & E14 & " an embedded distributor?" -> Is Renfrew Hydro Inc. an embedded distributor? | E46: Yes
B49: Notes | AA49: Guelph Hydro Electric Systems Inc.
AA50: Halton Hills Hydro Inc.
C51: Pale green cells represent input cells. | AA51: Hearst Power Distribution Co. Ltd.
AA52: Horizon Utilities Corporation
C53: Pale blue cells represent drop-down lists. The applicant should select the appropriate item from the drop-down list. | AA53: Hydro 2000 Inc.
AA54: Hydro Hawkesbury Inc.
C55: White cells contain fixed values, automatically generated values or formulae. | AA55: Hydro One Brampton Networks Inc.
AA56: Hydro One Networks Inc.
AA57: Hydro One Remote Communities Inc.
AA58: Hydro Ottawa Limited
AA59: Innisfil Hydro Dist. Systems Limited
AA60: Kashechewan Power Corporation
AA61: Kenora Hydro Electric Corporation Ltd.
AA62: Kingston Hydro Corporation
AA63: Kitchener-Wilmot Hydro Inc.
AA64: Lakefront Utilities Inc.
AA65: Lakeland Power Distribution Ltd.
AA66: London Hydro Inc.
AA67: Midland Power Utility Corporation
AA68: Milton Hydro Distribution Inc.
AA69: Newmarket – Tay Power Distribution Ltd.
AA70: Niagara Peninsula Energy Inc.
AA71: Niagara-on-the-Lake Hydro Inc.
AA72: Norfolk Power Distribution Ltd.
AA73: North Bay Hydro Distribution Limited
AA74: Northern Ontario Wires Inc.
AA75: Oakville Hydro Distribution Inc.
AA76: Orangeville Hydro Limited
AA77: Orillia Power Distribution Corp.
AA78: Oshawa PUC Networks Inc.
AA79: Ottawa River Power Corporation
AA80: Parry Sound Power Corporation
AA81: Peterborough Distribution Inc.
AA82: PowerStream Inc.
AA83: PUC Distribution Inc.
AA84: Renfrew Hydro Inc.
AA85: Rideau St. Lawrence Distribution Inc.
AA86: St. Thomas Energy Inc.
AA87: Sioux Lookout Hydro Inc.
AA88: Thunder Bay Hydro Electricity Distribution
AA89: Tillsonburg Hydro Inc.
AA90: Toronto Hydro-Electric System Limited
AA91: Veridian Connections Inc.
AA92: Wasaga Distribution Inc.
AA93: Waterloo North Hydro Inc.
AA94: Welland Hydro Electric System Corp.
AA95: Wellington North Power Inc.
AA96: West Coast Huron Energy Inc.
AA97: Westario Power Inc.
AA98: Whitby Hydro Electric Corporation
AA99: Woodstock Hydro Services Inc.

Sheet App.2-B_Acct Instructions
A1: General Instructions to MIFRS Appendices
A2: Types of Schedules to File
A4: The purpose of this tab is to provide general instructions. The specific instructions to each appendix are listed in footnotes of each appendix.
A6: The typical applicant is expected to have made capitalization and depreciation policy changes under CGAAP as permitted by the Board on January 1, 2012 or mandated by the Board by January 1, 2013, and adopts IFRS for reporting purposes on January 1, 2015 (transition date January 1, 2014). In general, applicants under the two scenarios should provide the following information in the appendices:
E9: Accounting Policy Changes in 2012 and Adopts IFRS in 2015 | F9: Accounting Policy Changes in 2013 and Adopts IFRS in 2015
E10: (Date of Transition to IFRS 2014)
A11: Information to be filed in 2015 CoS Application | B11: 2015 | C11: Test | E11: MIFRS | F11: MIFRS
B12: 2014 | C12: Bridge | E12: MIFRS and Revised CGAAP* | F12: MIFRS and Revised CGAAP*
B13: 2013 | C13: Historical | E13: Revised CGAAP | F13: CGAAP and Revised CGAAP
B14: 2012 | C14: Historical | E14: CGAAP and Revised CGAAP | F14: CGAAP
B15: 2011 and Prior | C15: Historical | E15: CGAAP | F15: CGAAP
A17: 1) For the year that the applicant implemented changes to its capitalization and depreciation policies (2012 or 2013), the applicant must file two appendices, one before and one after the policy changes.
A20: 2) For the transition year (2014), the applicant may file two appendices, one under Revised CGAAP and one under MIFRS depending, on the materiality of impacts. See the specific instructions under each appendix below for further details.
A25: Appendix 2-BA - Fixed Asset Schedule
A27: Applicants are to provide Appendix 2-BA in accordance with the years and corresponding accounting standards noted in the above table to provide a year over year continuity in fixed assets.
A28: *For the transition year (2014), the applicant should file two appendices, one under Revised CGAAP and one under MIFRS if the change between Revised CGAAP and MIFRS is material. If the change from the accounting standards is not material, the applicant may choose to only provide one appendix under MIFRS. The applicant must also indicate the fixed asset net book value balance under Revised CGAAP, the total dollar value of the change and explain why it is not material.
A32: Regulatory Gross Assets of Property, Plant and Equipment
A34: For an applicant that is adopting IFRS on January 1, 2015 for financial reporting purposes, the applicant must establish the continuity of historic cost by using the December 31, 2013 regulatory gross assets of property, plant and equipment as the opening January 1, 2014 regulatory gross assets. The applicant must provide schedules (including Appendix 2-BA, Fixed Asset Continuity Schedule) which must identify the following details to substantiate the continuity of historic cost for regulatory purposes:
A37: · December 31, 2013 regulatory gross assets of property, plant and equipment, by asset class; and
A38: · January 1, 2014 regulatory gross assets of property, plant and equipment, by asset class.
A40: Accumulated Depreciation
A42: For an applicant that is adopting IFRS on January 1, 2015 for financial reporting purposes, the applicant must establish the continuity of historic cost by using the December 31, 2013 regulatory accumulated depreciation as the opening January 1, 2014 regulatory accumulated depreciation. The applicant must provide schedules (including Appendix 2-BA, Fixed Asset Continuity Schedule) which must identify the following details to substantiate the continuity of historic cost for regulatory purposes:
A45: · December 31, 2013 regulatory accumulated depreciation, by asset class; and
A46: · January 1, 2014 regulatory accumulated depreciation, by asset class.
A48: Appendix 2-C - Depreciation and Amortization
A50: Applicants are to provide Appendix 2-C starting in the year capitalization and depreciation policy changes were implemented in accordance with the years and corresponding accounting standards listed in the above table.
A51: If an applicant changed capitalization and depreciation policies effective January 1, 2012 and will adopt IFRS for reporting purposes effective January 1, 2015, the applicant must complete Appendix 2-CA to 2-CE (inclusive).
A52: If an applicant changed capitalization and depreciation policies effective January 1, 2013 and will adopt IFRS for reporting purposes effective January 1, 2015, the applicant must complete Appendix 2-CF to 2-CI (inclusive).
A53: *Depreciation accounting policy changes were mandated by the Board by January 1, 2013. These accounting changes should be implemented consistent with the Board’s regulatory accounting policies as set out for MIFRS as contained in the Report of the Board, Transition to International Financial Reporting Standards (EB-2008-0408), the Depreciation Study for Use by Electricity Distributors (EB-2010-0178) and the Revised 2012 Accounting Procedures Handbook for Electricity Distributors. In general, no further changes to an applicant's depreciation policy (i.e. assets' service lives) are expected after the Board mandated changes by January 1, 2013. The set of Appendix CA to CI assumes this to be the case. If the applicant has made any changes to its depreciation policy subsequent to the Board mandated changes, applicants must identify the change, explain the nature of the change, the reason for the change, quantify the impact of the change, and quantify the depreciation expense before and after the change.
A56: Appendix 2-E - Account 1575, IFRS-CGAAP Transitional PP&E Amounts (2-EA), Account 1576, Accounting Changes Under CGAAP (2-EB, 2-EC)
A58: If an applicant changed capitalization and depreciation policies effective January 1, 2012 and will adopt IFRS for reporting purposes effective January 1, 2015, the applicant must complete Appendix 2-EA and 2-EB. If the applicant does not make any further PP&E accounting policy changes beyond the capitalization and depreciation policy changes as permitted by the Board on January 1, 2012 (i.e. no further changes made on transition to IFRS), the applicant must indicate this and does not need to complete Appendix 2-EA.
A60: If an applicant changed capitalization and depreciation policies effective January 1, 2013 and will adopt IFRS for reporting purposes effective January 1, 2015, the applicant must complete Appendix 2-EA and 2-EC. If the applicant does not make any further PP&E accounting policy changes beyond the capitalization and depreciation policy changes as mandated by the Board by January 1, 2013 (i.e. no further changes made on transition to IFRS), the applicant must indicate this and does not need to complete Appendix 2-EA.
A62: Please refer to section 2.12.4 and 2.12.5 of the Filing Requirements for further details.
A64: Appendix 2-YA - Summary of Impacts to Revenue Requirement from Transition to MIFRS
A66: For applicants adopting MIFRS, the applicants must provide a summary of the dollar impacts of MIFRS to each component of the revenue requirement (e.g. rate base, operating costs, etc), including the overall impact on the proposed revenue requirement. Accordingly, the applicants must identify financial differences and resulting revenue requirement impacts arising from the adoption of MIFRS as compared to CGAAP prior to capitalization and depreciation policy changes.

Sheet Reconciliation Sheet
C1: OLD CGAAP
C3: Year | F3: 2010Old | H3: 2011Old | J3: 2012Old | L3: 2013Old | N3: 2014Old | P3: 2015 Old | R3: 2016 Old | T3: 2017 Old
C4: Add Smart Meters (added to open balance) | T4: 558932 | U4: 1
T5: -557745.9 | U5: 2
C6: Gross Assets | D6: Opening | F6: ='App.2-BA_FA Cont 2010 OldCGAAP'!E60 -> 12178305.51 | H6: ='App.2-BA_FA Cont 2011 OldCGAAP'!E60 -> 12711556.47 | J6: ='App.2-BA_FA Cont 2012 OldCGAAP'!E60 -> 13229840.12 | L6: ='App.2-BA_FA Cont 2013_OldCGAAP'!E62 -> 13669416.91 | N6: ='App.2-BA_FA Cont 2014_OldCGAAP'!E62 -> 14002342.18 | P6: ='App.2-BA_FA Cont 2015_Old CGAAP'!E62 -> 14359978.04 | R6: ='App.2-BA_FA Cont 2016_Old CGAAP'!E62 -> 14852702.44 | T6: ='App.2-BA_FA Cont 2017_Old CGAAP'!E63 -> 15243851
D7: Add | F7: ='App.2-BA_FA Cont 2010 OldCGAAP'!F60 -> 533250.96 | H7: ='App.2-BA_FA Cont 2011 OldCGAAP'!F60 -> 518283.65 | J7: ='App.2-BA_FA Cont 2012 OldCGAAP'!F60 -> 439576.79 | L7: ='App.2-BA_FA Cont 2013_OldCGAAP'!F62 -> 332925.27 | N7: ='App.2-BA_FA Cont 2014_OldCGAAP'!F62 -> 357635.86 | P7: ='App.2-BA_FA Cont 2015_Old CGAAP'!F62 -> 492724.4 | R7: ='App.2-BA_FA Cont 2016_Old CGAAP'!F62 -> 547500 | T7: ='App.2-BA_FA Cont 2017_Old CGAAP'!F63 -> 740500
D8: Ret | F8: ='App.2-BA_FA Cont 2010 OldCGAAP'!G57 -> 0 | H8: ='App.2-BA_FA Cont 2011 OldCGAAP'!G60 -> 0 | J8: ='App.2-BA_FA Cont 2012 OldCGAAP'!G60 -> 0 | L8: ='App.2-BA_FA Cont 2013_OldCGAAP'!G62 -> 0 | N8: ='App.2-BA_FA Cont 2014_OldCGAAP'!G62 -> 0 | P8: ='App.2-BA_FA Cont 2015_Old CGAAP'!G62 -> 0 | R8: ='App.2-BA_FA Cont 2016_Old CGAAP'!G62 -> -157537.54 | T8: ='App.2-BA_FA Cont 2017_Old CGAAP'!G63 -> 0
D9: Closing | F9: =SUM(F6:F8) -> 12711556.47 | H9: 13229840.12 | J9: 13669416.91 | L9: 14002342.18 | N9: 14359978.04 | P9: 14852702.44 | R9: 15242664.9 | T9: 15984351
C11: Year | F11: =F3 -> 2010Old | H11: 2011Old | J11: 2012Old | L11: 2013Old | N11: 2014Old | P11: 2015 Old | R11: 2016 Old | T11: 2017 Old
C12: Add Smart Meters (added to open balance) | T12: -243916 | U12: 3
T13: 502791.53 | U13: 4
C14: Accumulated Depreciation | D14: Opening | F14: ='App.2-BA_FA Cont 2010 OldCGAAP'!J60 -> -7819389.4 | H14: ='App.2-BA_FA Cont 2011 OldCGAAP'!J60 -> -8216879.83 | J14: ='App.2-BA_FA Cont 2012 OldCGAAP'!J60 -> -8613344.97 | L14: ='App.2-BA_FA Cont 2013_OldCGAAP'!J62 -> -8999571.94 | N14: ='App.2-BA_FA Cont 2014_OldCGAAP'!J62 -> -9380381.66 | P14: ='App.2-BA_FA Cont 2015_Old CGAAP'!J62 -> -9770596.31 | R14: ='App.2-BA_FA Cont 2016_Old CGAAP'!J62 -> -10174170.21 | T14: ='App.2-BA_FA Cont 2017_Old CGAAP'!J63 -> -10246622.08
C15: Adjust. | L15: ='App.2-BA_FA Cont 2013_OldCGAAP'!M62 -> 13479.49 | M15: 9
D16: Add | F16: ='App.2-BA_FA Cont 2010 OldCGAAP'!K60 -> -397490.43 | H16: ='App.2-BA_FA Cont 2011 OldCGAAP'!K60 -> -396465.14 | J16: ='App.2-BA_FA Cont 2012 OldCGAAP'!K60 -> -386226.97 | L16: ='App.2-BA_FA Cont 2013_OldCGAAP'!K62 -> -394289.21 | N16: ='App.2-BA_FA Cont 2014_OldCGAAP'!K62 -> -390214.65 | P16: ='App.2-BA_FA Cont 2015_Old CGAAP'!K62 -> -403573.9 | R16: ='App.2-BA_FA Cont 2016_Old CGAAP'!K62 -> -416915.21 | T16: ='App.2-BA_FA Cont 2017_Old CGAAP'!K63 -> -419983.56
D17: Ret | F17: ='App.2-BA_FA Cont 2010 OldCGAAP'!L60 -> 0 | H17: ='App.2-BA_FA Cont 2011 OldCGAAP'!L60 -> 0 | J17: ='App.2-BA_FA Cont 2012 OldCGAAP'!L60 -> 0 | L17: ='App.2-BA_FA Cont 2013_OldCGAAP'!L62 -> 0 | N17: ='App.2-BA_FA Cont 2014_OldCGAAP'!L62 -> 0 | P17: ='App.2-BA_FA Cont 2015_Old CGAAP'!L62 -> 0 | R17: ='App.2-BA_FA Cont 2016_Old CGAAP'!L62 -> 85587.81 | T17: ='App.2-BA_FA Cont 2017_Old CGAAP'!L63 -> 0
D18: Closing | F18: =SUM(F14:F17) -> -8216879.83 | H18: -8613344.97 | J18: -8999571.94 | L18: -9380381.66 | N18: -9770596.31 | P18: -10174170.21 | R18: -10505497.61 | T18: -10666605.64
F20: =F9+F18 -> 4494676.64 | H20: 4616495.15 | J20: 4669844.97 | L20: 4621960.52 | N20: 4589381.73 | P20: 4678532.23 | R20: 4737167.29 | T20: 5317745.36
C22: Net Book Value Integrity Check | F22: ='App.2-BA_FA Cont 2010 OldCGAAP'!N60 -> 4494676.64 | H22: ='App.2-BA_FA Cont 2011 OldCGAAP'!N60 -> 4616495.15 | J22: ='App.2-BA_FA Cont 2012 OldCGAAP'!N60 -> 4669844.97 | L22: ='App.2-BA_FA Cont 2013_OldCGAAP'!O62 -> 4621960.52 | N22: ='App.2-BA_FA Cont 2014_OldCGAAP'!N62 -> 4589381.73 | P22: ='App.2-BA_FA Cont 2015_Old CGAAP'!N62 -> 4678532.23 | R22: ='App.2-BA_FA Cont 2016_Old CGAAP'!N62 -> 4737167.29 | T22: ='App.2-BA_FA Cont 2017_Old CGAAP'!N63 -> 5317745.36
C23: Net Book Value Integrity Check - diff | F23: =F20-F22 -> 0 | H23: 0 | J23: 0 | L23: 0 | N23: 0 | P23: 0 | R23: 0 | T23: 0
C25: Depreciation Exp Integrity Check | F25: ='App.2-CA_OldCGAAP_DepExp_2010'!J75 -> 397644.4883 | H25: ='App.2-CA_OldCGAAP_DepExp_2011'!J76 -> 396630.6314 | J25: ='App.2-CA_OldCGAAP_DepExp_2012'!J79 -> 386404.6859 | L25: ='App.2-CA_OldCGAAP_DepExp_2013'!J81 -> 392780.4257 | N25: ='App.2-CA_OldCGAAP_DepExp_2014'!J75 -> 390214.3718 | P25: ='App.2-CA_OldCGAAP_DepExp_2015'!J76 -> 403573.6288 | R25: ='App.2-CA_OldCGAAP_DepExp_2016'!J77 -> 416914.9339 | T25: ='App.2-CA_OldCGAAP_DepExp_2017'!J78 -> 419983.8902
C26: Depreciation Exp Integrity Check - diff | F26: =F16+F25 -> 154.0582833 | G26: 5 | H26: 165.4913833 | I26: 6 | J26: 177.7158833 | K26: 7 | L26: -1508.784267 | M26: 8 | N26: -0.2782 | P26: -0.2712 | R26: -0.276111111 | T26: 0.3302444444
A28: Notes | B28: 1 | C28: Additions of Smart Meters to opening balances
B29: 2 | C29: Removal of Stranded Meters from opening balance
B30: 3 | C30: Addition of depreciation related to smart meters
B31: 4 | C31: Removal of depreciaiton related to Stranded Meters
B32: 5 | C32: Small building was not properly depreciated in 2010
B33: 6 | C33: Small building was not properly depreciated in 2011
B34: 7 | C34: Small building was not properly depreciated in 2012
B35: 8 | C35: Correction for the depreciation missed in previous years (small building)
B36: 9 | C36: $13,479 correction for prior year's over depreciated assets (reduced depreciation expense)
C39: New CGAAP
C41: Year | L41: 2013 New | N41: 2014 New
C43: Gross Assets | D43: Opening | L43: ='App.2-BA_FA Cont 2013 NewCGAAP'!E86 -> 13669416.91 | N43: ='App.2-BA_FA Cont 2014 NewCGAAP'!E86 -> 13955349.67
D44: Add | L44: ='App.2-BA_FA Cont 2013 NewCGAAP'!F86 -> 332925.27 | N44: ='App.2-BA_FA Cont 2014 NewCGAAP'!F86 -> 357635.86
D45: Ret | L45: ='App.2-BA_FA Cont 2013 NewCGAAP'!G86 -> -46992.51 | N45: ='App.2-BA_FA Cont 2014 NewCGAAP'!G86 -> -59793.31
D46: Closing | L46: =SUM(L43:L45) -> 13955349.67 | N46: =SUM(N43:N45) -> 14253192.22
C48: Year | L48: =L41 -> 2013 New | N48: =N41 -> 2014 New
C49: Accumulated Depreciation | D49: Opening | L49: ='App.2-BA_FA Cont 2013 NewCGAAP'!J86 -> -8999571.94 | N49: ='App.2-BA_FA Cont 2014 NewCGAAP'!J86 -> -9149451.11
C50: Adjust. | L50: ='App.2-BA_FA Cont 2013 NewCGAAP'!K86 -> 13479.49 | M50: 9
D51: Add | L51: ='App.2-BA_FA Cont 2013 NewCGAAP'!L86 -> -203896.66 | N51: ='App.2-BA_FA Cont 2014 NewCGAAP'!K86 -> -210849.52
D52: Ret | L52: ='App.2-BA_FA Cont 2013 NewCGAAP'!M86 -> 40538 | N52: ='App.2-BA_FA Cont 2014 NewCGAAP'!L86 -> 43955.15
D53: Closing | L53: =SUM(L49:L52) -> -9149451.11 | N53: =SUM(N49:N52) -> -9316345.48
L55: =L46+L53 -> 4805898.56 | N55: =N46+N53 -> 4936846.74
C57: Net Book Value Integrity Check | L57: ='App.2-BA_FA Cont 2013 NewCGAAP'!O86 -> 4805898.56 | N57: ='App.2-BA_FA Cont 2014 NewCGAAP'!N86 -> 4936846.74
C58: Net Book Value Integrity Check - diff | L58: =L55-L57 -> 0 | N58: =N55-N57 -> 0
C60: Depreciation Exp Integrity Check | L60: ='App.2-CC_NewCGAAP_DepExp_2013'!J82 -> 203897.8646 | N60: ='App.2-CD_NewCGAAP_DepExp_2014'!F84 -> 210848.1598
C61: Depreciation Exp Integrity Check - diff | L61: =L51+L60 -> 1.20456874 | N61: =N51+N60 -> -1.360236816
A63: Notes | B63: 9 | C63: $13,479 correction for prior year's over depreciated assets (reduced depreciation expense)
C66: MIFRS
C68: Year | N68: 2014 MIFRS | P68: 2015 MIFRS | R68: 2016 MIFRS | T68: 2017 MIFRS
C69: Add Smart Meters (added to open balance) | T69: 558932 | U69: 1
T70: -557745.9 | U70: 2
C71: Gross Assets | D71: Opening | N71: ='App.2-BA_FA Cont 2014 MIFRS-'!E86 -> 13955349.67 | P71: ='App.2-BA_FA Cont 2015 MIFRS'!E87 -> 14253192.22 | R71: ='App.2-BA_FA Cont 2016 MIFRS'!E87 -> 14734310.42 | T71: ='App.2-BA_FA Cont 2017 MIFRS'!E88 -> 15125458.98
D72: Add | N72: ='App.2-BA_FA Cont 2014 MIFRS-'!F86 -> 357635.86 | P72: ='App.2-BA_FA Cont 2015 MIFRS'!F87 -> 492724.4 | R72: ='App.2-BA_FA Cont 2016 MIFRS'!F87 -> 547500 | T72: ='App.2-BA_FA Cont 2017 MIFRS'!F88 -> 740500
D73: Ret | N73: ='App.2-BA_FA Cont 2014 MIFRS-'!G86 -> -59793.31 | P73: ='App.2-BA_FA Cont 2015 MIFRS'!G87 -> -11606.2 | R73: ='App.2-BA_FA Cont 2016 MIFRS'!G87 -> -157537.54 | T73: ='App.2-BA_FA Cont 2017 MIFRS'!G88 -> 0
D74: Closing | N74: =SUM(N71:N73) -> 14253192.22 | P74: =SUM(P71:P73) -> 14734310.42 | R74: =SUM(R71:R73) -> 15124272.88 | T74: =SUM(T71:T73) -> 15865958.98
C76: Year | N76: =N68 -> 2014 MIFRS | P76: =P68 -> 2015 MIFRS | R76: =R68 -> 2016 MIFRS | T76: =T68 -> 2017 MIFRS
C77: Add Smart Meters (added to open balance) | T77: -243916 | U77: 3
T78: 502791.53 | U78: 4
C79: Accumulated Depreciation | D79: Opening | N79: ='App.2-BA_FA Cont 2014 MIFRS-'!J86 -> -9149451.11 | P79: ='App.2-BA_FA Cont 2015 MIFRS'!J87 -> -9316345.48 | R79: ='App.2-BA_FA Cont 2016 MIFRS'!J87 -> -9535925.38 | T79: ='App.2-BA_FA Cont 2017 MIFRS'!J88 -> -9432604.35
C80: Adjust. | P80: ='App.2-BA_FA Cont 2015 MIFRS'!M87 -> 4694.94 | Q80: 10
D81: Add | N81: ='App.2-BA_FA Cont 2014 MIFRS-'!K86 -> -210849.52 | P81: ='App.2-BA_FA Cont 2015 MIFRS'!K87 -> -224774.46 | R81: ='App.2-BA_FA Cont 2016 MIFRS'!K87 -> -241142.31 | T81: ='App.2-BA_FA Cont 2017 MIFRS'!K88 -> -247980.96
D82: Ret | N82: ='App.2-BA_FA Cont 2014 MIFRS-'!L86 -> 43955.15 | P82: ='App.2-BA_FA Cont 2015 MIFRS'!L87 -> 499.62 | R82: ='App.2-BA_FA Cont 2016 MIFRS'!L87 -> 85587.81 | T82: ='App.2-BA_FA Cont 2017 MIFRS'!L88 -> 0
D83: Closing | N83: =SUM(N79:N82) -> -9316345.48 | P83: =SUM(P79:P82) -> -9535925.38 | R83: =SUM(R79:R82) -> -9691479.88 | T83: =SUM(T79:T82) -> -9680585.31
N85: =N74+N83 -> 4936846.74 | P85: =P74+P83 -> 5198385.04 | R85: =R74+R83 -> 5432793 | T85: =T74+T83 -> 6185373.67
C87: Net Book Value Integrity Check | N87: ='App.2-BA_FA Cont 2014 MIFRS-'!N86 -> 4936846.74 | P87: ='App.2-BA_FA Cont 2015 MIFRS'!O87 -> 5198385.04 | R87: ='App.2-BA_FA Cont 2016 MIFRS'!N87 -> 5432793 | T87: ='App.2-BA_FA Cont 2017 MIFRS'!N88 -> 6185373.67
C88: Net Book Value Integrity Check - diff | N88: =N85-N87 -> 0 | P88: =P85-P87 -> 0 | R88: =R85-R87 -> 0 | T88: =T85-T87 -> 0
C90: Depreciation Exp Integrity Check | N90: ='App.2-CD_MIFRS_DepExp_2014'!F84 -> 210848.1598 | P90: ='App.2-CD_MIFRS_DepExp_2015'!F84 -> 229470.2398 | R90: ='App.2-CD_MIFRS_DepExp_2016'!F84 -> 241174.8611 | T90: ='App.2-CE_MIFRS_DepExp_2017'!F90 -> 210752.4456
C91: Depreciation Exp Integrity Check - diff | N91: =N81+N90 -> -1.360236816 | P91: =P81+P90 -> 4695.779774 | Q91: 10 | R91: =R81+R90 -> 32.55110763 | T91: =T81+T90 -> -37228.51445 | U91: 11
A93: Notes | B93: 1 | C93: Additions of Smart Meters to opening balances
B94: 2 | C94: Removal of Stranded Meters from opening balance
B95: 3 | C95: Addition of depreciation related to smart meters
B96: 4 | C96: Removal of depreciaiton related to Stranded Meters
B97: 10 | C97: Too much depreciation was taken on several accounts over 2013 and 2014 (errors found in new continuity schedules for IFRS)-corrected for 2015
B98: 11 | C98: Depreciation calculated on smart meters (not additions, added to opening balance), yet model does not calculate on change to opening.
C102: FINAL CONTINUITY SCHEDULE
C104: Year | F104: 2010Old | H104: 2011Old | J104: 2012Old | L104: 2013 New | N104: 2014 New | P104: 2015 MIFRS | R104: 2016 MIFRS | T104: 2017 MIFRS
C105: Add Smart Meters | T105: 558932 | U105: 1
C106: Removal of Stranded Meters | T106: -557745.9 | U106: 2
C107: Gross Assets | D107: Opening | F107: ='App.2-BA_FA Cont 2010 OldCGAAP'!E60 -> 12178305.51 | H107: ='App.2-BA_FA Cont 2011 OldCGAAP'!E60 -> 12711556.47 | J107: ='App.2-BA_FA Cont 2012 OldCGAAP'!E60 -> 13229840.12 | L107: ='App.2-BA_FA Cont 2013 NewCGAAP'!E86 -> 13669416.91 | N107: ='App.2-BA_FA Cont 2014 NewCGAAP'!E86 -> 13955349.67 | P107: ='App.2-BA_FA Cont 2015 MIFRS'!E87 -> 14253192.22 | R107: ='App.2-BA_FA Cont 2016 MIFRS'!E87 -> 14734310.42 | T107: ='App.2-BA_FA Cont 2017 MIFRS'!E88 -> 15125458.98
D108: Add | F108: ='App.2-BA_FA Cont 2010 OldCGAAP'!F60 -> 533250.96 | H108: ='App.2-BA_FA Cont 2011 OldCGAAP'!F60 -> 518283.65 | J108: ='App.2-BA_FA Cont 2012 OldCGAAP'!F60 -> 439576.79 | L108: ='App.2-BA_FA Cont 2013 NewCGAAP'!F86 -> 332925.27 | N108: ='App.2-BA_FA Cont 2014 NewCGAAP'!F86 -> 357635.86 | P108: ='App.2-BA_FA Cont 2015 MIFRS'!F87 -> 492724.4 | R108: ='App.2-BA_FA Cont 2016 MIFRS'!F87 -> 547500 | T108: ='App.2-BA_FA Cont 2017 MIFRS'!F88 -> 740500
D109: Ret | F109: ='App.2-BA_FA Cont 2010 OldCGAAP'!G57 -> 0 | H109: ='App.2-BA_FA Cont 2011 OldCGAAP'!G60 -> 0 | J109: ='App.2-BA_FA Cont 2012 OldCGAAP'!G60 -> 0 | L109: ='App.2-BA_FA Cont 2013 NewCGAAP'!G86 -> -46992.51 | N109: ='App.2-BA_FA Cont 2014 NewCGAAP'!G86 -> -59793.31 | P109: ='App.2-BA_FA Cont 2015 MIFRS'!G87 -> -11606.2 | R109: ='App.2-BA_FA Cont 2016 MIFRS'!G87 -> -157537.54 | T109: ='App.2-BA_FA Cont 2017 MIFRS'!G88 -> 0
D110: Closing | F110: =SUM(F107:F109) -> 12711556.47 | H110: 13229840.12 | J110: 13669416.91 | L110: 13955349.67 | N110: 14253192.22 | P110: 14734310.42 | R110: 15124272.88 | T110: 15865958.98
C112: Year | F112: =F104 -> 2010Old | H112: 2011Old | J112: 2012Old | L112: 2013 New | N112: 2014 New | P112: 2015 MIFRS | R112: 2016 MIFRS | T112: 2017 MIFRS
C113: Add Smart Meters | T113: -243916 | U113: 3
C114: Removal of Stranded Meters | T114: 502791.53 | U114: 4
C115: Accumulated Depreciation | D115: Opening | F115: ='App.2-BA_FA Cont 2010 OldCGAAP'!J60 -> -7819389.4 | H115: ='App.2-BA_FA Cont 2011 OldCGAAP'!J60 -> -8216879.83 | J115: ='App.2-BA_FA Cont 2012 OldCGAAP'!J60 -> -8613344.97 | L115: ='App.2-BA_FA Cont 2013 NewCGAAP'!J86 -> -8999571.94 | N115: ='App.2-BA_FA Cont 2014 NewCGAAP'!J86 -> -9149451.11 | P115: ='App.2-BA_FA Cont 2015 MIFRS'!J87 -> -9316345.48 | R115: ='App.2-BA_FA Cont 2016 MIFRS'!J87 -> -9535925.38 | T115: ='App.2-BA_FA Cont 2017 MIFRS'!J88 -> -9432604.35
C116: Adjust. | L116: ='App.2-BA_FA Cont 2013 NewCGAAP'!K86 -> 13479.49 | M116: 9 | P116: ='App.2-BA_FA Cont 2015 MIFRS'!M87 -> 4694.94 | Q116: 10
D117: Add | F117: ='App.2-BA_FA Cont 2010 OldCGAAP'!K60 -> -397490.43 | H117: ='App.2-BA_FA Cont 2011 OldCGAAP'!K60 -> -396465.14 | J117: ='App.2-BA_FA Cont 2012 OldCGAAP'!K60 -> -386226.97 | L117: ='App.2-BA_FA Cont 2013 NewCGAAP'!L86 -> -203896.66 | N117: ='App.2-BA_FA Cont 2014 NewCGAAP'!K86 -> -210849.52 | P117: ='App.2-BA_FA Cont 2015 MIFRS'!K87 -> -224774.46 | R117: ='App.2-BA_FA Cont 2016 MIFRS'!K87 -> -241142.31 | T117: ='App.2-BA_FA Cont 2017 MIFRS'!K88 -> -247980.96
D118: Ret | F118: ='App.2-BA_FA Cont 2010 OldCGAAP'!L60 -> 0 | H118: ='App.2-BA_FA Cont 2011 OldCGAAP'!L60 -> 0 | J118: ='App.2-BA_FA Cont 2012 OldCGAAP'!L60 -> 0 | L118: ='App.2-BA_FA Cont 2013 NewCGAAP'!M86 -> 40538 | N118: ='App.2-BA_FA Cont 2014 NewCGAAP'!L86 -> 43955.15 | P118: ='App.2-BA_FA Cont 2015 MIFRS'!L87 -> 499.62 | R118: ='App.2-BA_FA Cont 2016 MIFRS'!L87 -> 85587.81 | T118: ='App.2-BA_FA Cont 2017 MIFRS'!L88 -> 0
D119: Closing | F119: =SUM(F115:F118) -> -8216879.83 | H119: -8613344.97 | J119: -8999571.94 | L119: -9149451.11 | N119: -9316345.48 | P119: -9535925.38 | R119: -9691479.88 | T119: -9680585.31
F121: =F110+F119 -> 4494676.64 | H121: 4616495.15 | J121: 4669844.97 | L121: 4805898.56 | N121: 4936846.74 | P121: 5198385.04 | R121: 5432793 | T121: 6185373.67
C123: Net Book Value Integrity Check | F123: ='App.2-BA_FA Cont 2010 OldCGAAP'!N60 -> 4494676.64 | H123: ='App.2-BA_FA Cont 2011 OldCGAAP'!N60 -> 4616495.15 | J123: ='App.2-BA_FA Cont 2012 OldCGAAP'!N60 -> 4669844.97 | L123: ='App.2-BA_FA Cont 2013 NewCGAAP'!O86 -> 4805898.56 | N123: ='App.2-BA_FA Cont 2014 NewCGAAP'!N86 -> 4936846.74 | P123: ='App.2-BA_FA Cont 2015 MIFRS'!O87 -> 5198385.04 | R123: ='App.2-BA_FA Cont 2016 MIFRS'!N87 -> 5432793 | T123: ='App.2-BA_FA Cont 2017 MIFRS'!N88 -> 6185373.67
C124: Net Book Value Integrity Check - diff | F124: =F121-F123 -> 0 | H124: 0 | J124: 0 | L124: 0 | N124: 0 | P124: 0 | R124: 0 | T124: 0
C126: Depreciation Exp Integrity Check | F126: =F25 -> 397644.4883 | H126: =H25 -> 396630.6314 | J126: =J25 -> 386404.6859 | L126: =L60 -> 203897.8646 | N126: =N60 -> 210848.1598 | P126: =P90 -> 229470.2398 | R126: =R90 -> 241174.8611 | T126: =T90 -> 210752.4456
C127: Depreciation Exp Integrity Check - diff | F127: =F117+F126 -> 154.0582833 | G127: 5 | H127: 165.4913833 | I127: 6 | J127: 177.7158833 | K127: 7 | L127: 1.20456874 | M127: 8 | N127: -1.360236816 | P127: 4695.779774 | Q127: 10 | R127: 32.55110763 | T127: -37228.51445 | U127: 11
A130: Notes | B130: 1 | C130: Additions of Smart Meters to opening balances
B131: 2 | C131: Removal of Stranded Meters from opening balance
B132: 3 | C132: Addition of depreciation related to smart meters
B133: 4 | C133: Removal of depreciaiton related to Stranded Meters
B134: 5 | C134: Small building was not properly depreciated in 2010
B135: 6 | C135: Small building was not properly depreciated in 2011
B136: 7 | C136: Small building was not properly depreciated in 2012
B137: 8 | C137: Correction for the depreciation missed in previous years (small building)
B138: 9 | C138: $13,479 correction for prior year's over depreciated assets (reduced depreciation expense)
B139: 10 | C139: Too much depreciation was taken on several accounts over 2013 and 2014 (errors found in new continuity schedules for IFRS)-corrected for 2015
B140: 11 | C140: Depreciation calculated on smart meters (not additions, added to opening balance), yet model does not calculate on change to opening.

Sheet App.2-BA_FA Cont 2010 OldCGAAP
M1: File Number: | N1: =EBNUMBER -> EB-2016-0166
M2: Exhibit:
M3: Tab:
M4: Schedule:
M5: Page:
M7: Date:
B9: Appendix 2-BA
B10: Fixed Asset Continuity Schedule
F12: Accounting Standard | G12: CGAAP | H12: Old CGAAP
F13: Year | G13: 2010
A15: RHI | B15: OEB | E15: Cost | K15: Accumulated Depreciation
A16: CCA Class | B16: CCA Class | C16: OEB | D16: Description | E16: Opening Balance | F16: Additions | G16: Disposals | H16: Closing Balance | J16: Opening Balance | K16: Additions | L16: Disposals | M16: Closing Balance | N16: Net Book Value
A17: 12 | B17: 12 | C17: 1611 | D17: Computer Software (Formally known as Account 1925) | E17: 114259.76 | F17: 6445 | H17: =E17+F17+G17 -> 120704.76 | J17: -69895.06 | K17: -22826.85 | M17: =J17+K17+L17 -> -92721.91 | N17: =H17+M17 -> 27982.85
A18: CEC | B18: CEC | C18: 1612 | D18: Land Rights (Formally known as Account 1906) | E18: 17374.17 | F18: 6606.5 | H18: =E18+F18+G18 -> 23980.67 | J18: -16711.9 | K18: -340.17 | M18: =J18+K18+L18 -> -17052.07 | N18: =H18+M18 -> 6928.6
A19: N/A | B19: N/A | C19: 1805 | D19: Land | E19: 22895.33 | H19: =E19+F19+G19 -> 22895.33 | J19: 0 | K19: 0 | M19: =J19+K19+L19 -> 0 | N19: =H19+M19 -> 22895.33
A20: 1 | B20: 47 | C20: 1808 | D20: Buildings | E20: 154128.6 | F20: 11168.46 | H20: =E20+F20+G20 -> 165297.06 | J20: -81477.48 | K20: -2834.84 | M20: =J20+K20+L20 -> -84312.32 | N20: =H20+M20 -> 80984.74
B21: 13 | C21: 1810 | D21: Leasehold Improvements | E21: 0 | H21: 0 | M21: 0 | N21: 0
B22: 47 | C22: 1815 | D22: Transformer Station Equipment >50 kV | E22: 0 | H22: 0 | M22: 0 | N22: 0
A23: 1/47 | B23: 47 | C23: 1820 | D23: Distribution Station Equipment <50 kV | E23: 1146264 | F23: 141933.03 | H23: 1288197.03 | J23: -619534.91 | K23: -33852.73 | M23: -653387.64 | N23: 634809.39
B24: 47 | C24: 1825 | D24: Storage Battery Equipment | H24: 0 | M24: 0 | N24: 0
A25: 1/47 | B25: 47 | C25: 1830 | D25: Poles, Towers & Fixtures | E25: 2023797.87 | F25: 130865.46 | H25: 2154663.33 | J25: -1067112.84 | K25: -65800.44 | M25: -1132913.28 | N25: 1021750.05
A26: 1/47 | B26: 47 | C26: 1835 | D26: Overhead Conductors & Devices | E26: 3501362.36 | F26: 139070.4 | H26: 3640432.76 | J26: -2265887.75 | K26: -104516.12 | M26: -2370403.87 | N26: 1270028.89
A27: 1/47 | B27: 47 | C27: 1840 | D27: Underground Conduit | E27: 45129.43 | F27: 7458.74 | H27: 52588.17 | J27: -15875.79 | K27: -1955.57 | M27: -17831.36 | N27: 34756.81
A28: 1/47 | B28: 47 | C28: 1845 | D28: Underground Conductors & Devices | E28: 345188.74 | F28: 42022.55 | H28: 387211.29 | J28: -126315.08 | K28: -14578.51 | M28: -140893.59 | N28: 246317.7
A29: 1/47 | B29: 47 | C29: 1850 | D29: Line Transformers | E29: 1530498.49 | F29: 15439.89 | H29: 1545938.38 | J29: -1083236.22 | K29: -44001.06 | M29: -1127237.28 | N29: 418701.1
A30: 1/47 | B30: 47 | C30: 1855 | D30: Services (Overhead & Underground) | E30: 1474563.55 | F30: =12700.18+8475.66 -> 21175.84 | H30: 1495739.39 | J30: =-1031870.85-42709.07 -> -1074579.92 | K30: =-38140.93-4175.45 -> -42316.38 | M30: -1116896.3 | N30: 378843.09
A31: 1/47 | B31: 47 | C31: 1860 | D31: Meters | E31: 587712.5 | F31: 6616.89 | H31: 594329.39 | J31: -421736.74 | K31: -17319.6 | M31: -439056.34 | N31: 155273.05
A32: 47 | B32: 47 | C32: 1860 | D32: Meters (Smart Meters) | H32: 0 | M32: 0 | N32: 0
A33: N/A | B33: N/A | C33: 1905 | D33: Land | H33: 0 | M33: 0 | N33: 0
B34: 47 | C34: 1908 | D34: Buildings & Fixtures | H34: 0 | M34: 0 | N34: 0
A35: 13 | B35: 13 | C35: 1910 | D35: Leasehold Improvements | H35: 0 | M35: 0 | N35: 0
A36: 8 | B36: 8 | C36: 1915 | D36: Office Furniture & Equipment (10 years) | E36: 30841.31 | H36: 30841.31 | J36: -31033.79 | K36: -10.8 | M36: -31044.59 | N36: -203.28
A37: 8 | B37: 8 | C37: 1915 | D37: Office Furniture & Equipment (5 years) | E37: 0 | H37: 0 | M37: 0 | N37: 0
A38: 10 | B38: 10 | C38: 1920 | D38: Computer Equipment - Hardware | E38: 84470.7 | F38: 4448.2 | H38: 88918.9 | J38: -83193.46 | K38: -4469.66 | M38: -87663.12 | N38: 1255.78
B39: 45 | C39: 1920 | D39: Computer Equip.-Hardware(Post Mar. 22/04) | H39: 0 | M39: 0 | N39: 0
B40: 45.1 | C40: 1920 | D40: Computer Equip.-Hardware(Post Mar. 19/07) | H40: 0 | M40: 0 | N40: 0
A41: 10 | B41: 10 | C41: 1930 | D41: Transportation Equipment | E41: 909405.93 | H41: 909405.93 | J41: -674634.54 | K41: -39435.06 | M41: -714069.6 | N41: 195336.33
A42: 8 | B42: 8 | C42: 1935 | D42: Stores Equipment | E42: 3559.1 | H42: 3559.1 | J42: -3559.1 | M42: -3559.1 | N42: 0
A43: 8 | B43: 8 | C43: 1940 | D43: Tools, Shop & Garage Equipment | E43: 186853.67 | H43: 186853.67 | J43: -184604.82 | K43: -3232.64 | M43: -187837.46 | N43: -983.79
A44: 8 | B44: 8 | C44: 1945 | D44: Measurement & Testing Equipment | H44: 0 | M44: 0 | N44: 0
A45: 8 | B45: 8 | C45: 1950 | D45: Power Operated Equipment | H45: 0 | M45: 0 | N45: 0
A46: 8 | B46: 8 | C46: 1955 | D46: Communications Equipment | H46: 0 | M46: 0 | N46: 0
A47: 8 | B47: 8 | C47: 1955 | D47: Communication Equipment (Smart Meters) | H47: 0 | M47: 0 | N47: 0
A48: 8 | B48: 8 | C48: 1960 | D48: Miscellaneous Equipment | H48: 0 | M48: 0 | N48: 0
A49: 47 | B49: 47 | C49: 1970 | D49: Load Management Controls Customer Premises | H49: 0 | M49: 0 | N49: 0
A50: 47 | B50: 47 | C50: 1975 | D50: Load Management Controls Utility Premises | H50: 0 | M50: 0 | N50: 0
A51: 47 | B51: 47 | C51: 1980 | D51: System Supervisor Equipment | H51: 0 | M51: 0 | N51: 0
A52: 47 | B52: 47 | C52: 1985 | D52: Miscellaneous Fixed Assets | H52: 0 | M52: 0 | N52: 0
A53: 47 | B53: 47 | C53: 1990 | D53: Other Tangible Property | H53: 0 | M53: 0 | N53: 0
A54: 47 | B54: 47 | C54: 1995 | D54: Contributions & Grants | H54: 0 | M54: 0 | N54: 0
C55: 2440 | D55: Deferred Revenue5
H56: 0 | M56: 0 | N56: 0
D57: Sub-Total | E57: =SUM(E17:E56) -> 12178305.51 | F57: =SUM(F17:F56) -> 533250.96 | G57: =SUM(G17:G56) -> 0 | H57: =SUM(H17:H56) -> 12711556.47 | J57: =SUM(J17:J56) -> -7819389.4 | K57: =SUM(K17:K56) -> -397490.43 | L57: =SUM(L17:L56) -> 0 | M57: =SUM(M17:M56) -> -8216879.83 | N57: =SUM(N17:N56) -> 4494676.64
D58: Less Socialized Renewable Energy Generation Investments (input as negative) | H58: =E58+F58+G58 -> 0 | M58: =J58+K58+L58 -> 0 | N58: =H58+M58 -> 0
D59: Less Other Non Rate-Regulated Utility Assets (input as negative) | H59: 0 | M59: 0 | N59: 0
D60: Total PP&E | E60: =SUM(E57:E59) -> 12178305.51 | F60: =SUM(F57:F59) -> 533250.96 | G60: 0 | H60: 12711556.47 | J60: =SUM(J57:J59) -> -7819389.4 | K60: -397490.43 | L60: 0 | M60: -8216879.83 | N60: 4494676.64
D61: Depreciation Expense adj. from gain or loss on the retirement of assets (pool of like assets), if applicable6
D62: Total | K62: =K60+K61 -> -397490.43
J64: Less: Fully Allocated Depreciation
B65: 10 | D65: Transportation | J65: Transportation
B66: 8 | D66: Stores Equipment | J66: Stores Equipment
J67: Net Depreciation | L67: =K62-L65-L66 -> -397490.43
B69: Originally hydro distribution assets were added to Class 1 for tax purposes. This was changed a few years ago and all new additions are now in Class 47.
B71: Notes:
B73: 1 | C73: Tables in the format outlined above covering all fixed asset accounts should be submitted for the Test Year, Bridge Year and all relevant historical years. At a minimum , the applicant must provide data for the earlier of: 1) all historical years back to its last rebasing; or 2) at least three years of historical actuals, in addition to Bridge Year and Test Year forecasts.
B76: 2 | C76: The "CCA Class" for fixed assets should agree with the CCA Class used for tax purposes in Tax Returns. Fixed Assets sub-components may be used where the underlying asset components are classified under multiple CCA Classes for tax purposes. If an applicant uses any different classes from those shown in the table, an explanation should be provided. (also see note 3 below).
B79: 3 | C79: The table may need to be customized for a utility's asset categories or for any new asset accounts announced or authorized by the Board.
B81: 4 | C81: The additions column (E) must not include construction work in progress (CWIP).
B83: 5 | C83: Effective on the date of IFRS adoption, customer contributions will no longer be recorded in Account 1995 Contributions & Grants, but will be recorded in Account 2440, Deferred Revenues.
B85: 6 | C85: Where a distributor for general financial reporting purposes under IFRS has accounted for the amount of gain or loss on the retirement of assets in a pool of like assets as a charge or credit to income, for reporting and rate application filings the distributor shall reclassify such gains and losses as depreciation expense, and disclose the amount separately.

Sheet App.2-BA_FA Cont 2011 OldCGAAP
M1: File Number: | N1: =EBNUMBER -> EB-2016-0166
M2: Exhibit:
M3: Tab:
M4: Schedule:
M5: Page:
M7: Date:
B9: Appendix 2-BA
B10: Fixed Asset Continuity Schedule
F12: Accounting Standard | G12: CGAAP | H12: Old CGAAP
F13: Year | G13: 2011
A15: RHI | B15: OEB | E15: Cost | K15: Accumulated Depreciation
A16: CCA Class | B16: CCA Class | C16: OEB | D16: Description | E16: Opening Balance | F16: Additions | G16: Disposals | H16: Closing Balance | J16: Opening Balance | K16: Additions | L16: Disposals | M16: Closing Balance | N16: Net Book Value
A17: 12 | B17: 12 | C17: 1611 | D17: Computer Software (Formally known as Account 1925) | E17: ='App.2-BA_FA Cont 2010 OldCGAAP'!H17 -> 120704.76 | H17: =E17+F17+G17 -> 120704.76 | J17: ='App.2-BA_FA Cont 2010 OldCGAAP'!M17 -> -92721.91 | K17: -23471.35 | M17: =J17+K17+L17 -> -116193.26 | N17: =H17+M17 -> 4511.5
A18: CEC | B18: CEC | C18: 1612 | D18: Land Rights (Formally known as Account 1906) | E18: ='App.2-BA_FA Cont 2010 OldCGAAP'!H18 -> 23980.67 | H18: =E18+F18+G18 -> 23980.67 | J18: ='App.2-BA_FA Cont 2010 OldCGAAP'!M18 -> -17052.07 | K18: -505.33 | M18: =J18+K18+L18 -> -17557.4 | N18: =H18+M18 -> 6423.27
A19: N/A | B19: N/A | C19: 1805 | D19: Land | E19: ='App.2-BA_FA Cont 2010 OldCGAAP'!H19 -> 22895.33 | H19: =E19+F19+G19 -> 22895.33 | J19: ='App.2-BA_FA Cont 2010 OldCGAAP'!M19 -> 0 | K19: 0 | M19: =J19+K19+L19 -> 0 | N19: =H19+M19 -> 22895.33
A20: 1 | B20: 47 | C20: 1808 | D20: Buildings | E20: ='App.2-BA_FA Cont 2010 OldCGAAP'!H20 -> 165297.06 | F20: 36537.27 | H20: =E20+F20+G20 -> 201834.33 | J20: ='App.2-BA_FA Cont 2010 OldCGAAP'!M20 -> -84312.32 | K20: -3311.89 | M20: =J20+K20+L20 -> -87624.21 | N20: =H20+M20 -> 114210.12
B21: 13 | C21: 1810 | D21: Leasehold Improvements | E21: ='App.2-BA_FA Cont 2010 OldCGAAP'!H21 -> 0 | H21: 0 | J21: ='App.2-BA_FA Cont 2010 OldCGAAP'!M21 -> 0 | M21: 0 | N21: 0
B22: 47 | C22: 1815 | D22: Transformer Station Equipment >50 kV | E22: ='App.2-BA_FA Cont 2010 OldCGAAP'!H22 -> 0 | H22: 0 | J22: ='App.2-BA_FA Cont 2010 OldCGAAP'!M22 -> 0 | M22: 0 | N22: 0
A23: 1/47 | B23: 47 | C23: 1820 | D23: Distribution Station Equipment <50 kV | E23: ='App.2-BA_FA Cont 2010 OldCGAAP'!H23 -> 1288197.03 | H23: 1288197.03 | J23: ='App.2-BA_FA Cont 2010 OldCGAAP'!M23 -> -653387.64 | K23: -36218.28 | M23: -689605.92 | N23: 598591.11
B24: 47 | C24: 1825 | D24: Storage Battery Equipment | E24: ='App.2-BA_FA Cont 2010 OldCGAAP'!H24 -> 0 | H24: 0 | J24: ='App.2-BA_FA Cont 2010 OldCGAAP'!M24 -> 0 | M24: 0 | N24: 0
A25: 1/47 | B25: 47 | C25: 1830 | D25: Poles, Towers & Fixtures | E25: ='App.2-BA_FA Cont 2010 OldCGAAP'!H25 -> 2154663.33 | F25: 167919.46 | H25: 2322582.79 | J25: ='App.2-BA_FA Cont 2010 OldCGAAP'!M25 -> -1132913.28 | K25: -70264.96 | M25: -1203178.24 | N25: 1119404.55
A26: 1/47 | B26: 47 | C26: 1835 | D26: Overhead Conductors & Devices | E26: ='App.2-BA_FA Cont 2010 OldCGAAP'!H26 -> 3640432.76 | F26: 185957.61 | H26: 3826390.37 | J26: ='App.2-BA_FA Cont 2010 OldCGAAP'!M26 -> -2370403.87 | K26: -107490.59 | M26: -2477894.46 | N26: 1348495.91
A27: 1/47 | B27: 47 | C27: 1840 | D27: Underground Conduit | E27: ='App.2-BA_FA Cont 2010 OldCGAAP'!H27 -> 52588.17 | F27: 1982.23 | H27: 54570.4 | J27: ='App.2-BA_FA Cont 2010 OldCGAAP'!M27 -> -17831.36 | K27: -2131.04 | M27: -19962.4 | N27: 34608
A28: 1/47 | B28: 47 | C28: 1845 | D28: Underground Conductors & Devices | E28: ='App.2-BA_FA Cont 2010 OldCGAAP'!H28 -> 387211.29 | F28: 2302.89 | H28: 389514.18 | J28: ='App.2-BA_FA Cont 2010 OldCGAAP'!M28 -> -140893.59 | K28: -15344.94 | M28: -156238.53 | N28: 233275.65
A29: 1/47 | B29: 47 | C29: 1850 | D29: Line Transformers | E29: ='App.2-BA_FA Cont 2010 OldCGAAP'!H29 -> 1545938.38 | F29: 59277 | H29: 1605215.38 | J29: ='App.2-BA_FA Cont 2010 OldCGAAP'!M29 -> -1127237.28 | K29: -40860.47 | M29: -1168097.75 | N29: 437117.63
A30: 1/47 | B30: 47 | C30: 1855 | D30: Services (Overhead & Underground) | E30: ='App.2-BA_FA Cont 2010 OldCGAAP'!H30 -> 1495739.39 | F30: =15551.44+8551.75 -> 24103.19 | H30: 1519842.58 | J30: ='App.2-BA_FA Cont 2010 OldCGAAP'!M30 -> -1116896.3 | K30: =-37026.88-4471.52 -> -41498.4 | M30: -1158394.7 | N30: 361447.88
A31: 1/47 | B31: 47 | C31: 1860 | D31: Meters | E31: ='App.2-BA_FA Cont 2010 OldCGAAP'!H31 -> 594329.39 | H31: 594329.39 | J31: ='App.2-BA_FA Cont 2010 OldCGAAP'!M31 -> -439056.34 | K31: -15919.68 | M31: -454976.02 | N31: 139353.37
A32: 47 | B32: 47 | C32: 1860 | D32: Meters (Smart Meters) | E32: ='App.2-BA_FA Cont 2010 OldCGAAP'!H32 -> 0 | H32: 0 | J32: ='App.2-BA_FA Cont 2010 OldCGAAP'!M32 -> 0 | M32: 0 | N32: 0
A33: N/A | B33: N/A | C33: 1905 | D33: Land | E33: ='App.2-BA_FA Cont 2010 OldCGAAP'!H33 -> 0 | H33: 0 | J33: ='App.2-BA_FA Cont 2010 OldCGAAP'!M33 -> 0 | M33: 0 | N33: 0
B34: 47 | C34: 1908 | D34: Buildings & Fixtures | E34: ='App.2-BA_FA Cont 2010 OldCGAAP'!H34 -> 0 | H34: 0 | J34: ='App.2-BA_FA Cont 2010 OldCGAAP'!M34 -> 0 | M34: 0 | N34: 0
A35: 13 | B35: 13 | C35: 1910 | D35: Leasehold Improvements | E35: ='App.2-BA_FA Cont 2010 OldCGAAP'!H35 -> 0 | H35: 0 | J35: ='App.2-BA_FA Cont 2010 OldCGAAP'!M35 -> 0 | M35: 0 | N35: 0
A36: 8 | B36: 8 | C36: 1915 | D36: Office Furniture & Equipment (10 years) | E36: ='App.2-BA_FA Cont 2010 OldCGAAP'!H36 -> 30841.31 | H36: 30841.31 | J36: ='App.2-BA_FA Cont 2010 OldCGAAP'!M36 -> -31044.59 | K36: 0 | M36: -31044.59 | N36: -203.28
A37: 8 | B37: 8 | C37: 1915 | D37: Office Furniture & Equipment (5 years) | E37: ='App.2-BA_FA Cont 2010 OldCGAAP'!H37 -> 0 | H37: 0 | J37: ='App.2-BA_FA Cont 2010 OldCGAAP'!M37 -> 0 | M37: 0 | N37: 0
A38: 10 | B38: 10 | C38: 1920 | D38: Computer Equipment - Hardware | E38: ='App.2-BA_FA Cont 2010 OldCGAAP'!H38 -> 88918.9 | H38: 88918.9 | J38: ='App.2-BA_FA Cont 2010 OldCGAAP'!M38 -> -87663.12 | K38: -2056.58 | M38: -89719.7 | N38: -800.8
B39: 45 | C39: 1920 | D39: Computer Equip.-Hardware(Post Mar. 22/04) | E39: ='App.2-BA_FA Cont 2010 OldCGAAP'!H39 -> 0 | H39: 0 | J39: ='App.2-BA_FA Cont 2010 OldCGAAP'!M39 -> 0 | M39: 0 | N39: 0
B40: 45.1 | C40: 1920 | D40: Computer Equip.-Hardware(Post Mar. 19/07) | E40: ='App.2-BA_FA Cont 2010 OldCGAAP'!H40 -> 0 | H40: 0 | J40: ='App.2-BA_FA Cont 2010 OldCGAAP'!M40 -> 0 | M40: 0 | N40: 0
A41: 10 | B41: 10 | C41: 1930 | D41: Transportation Equipment | E41: ='App.2-BA_FA Cont 2010 OldCGAAP'!H41 -> 909405.93 | F41: 40204 | H41: 949609.93 | J41: ='App.2-BA_FA Cont 2010 OldCGAAP'!M41 -> -714069.6 | K41: -35407.69 | M41: -749477.29 | N41: 200132.64
A42: 8 | B42: 8 | C42: 1935 | D42: Stores Equipment | E42: ='App.2-BA_FA Cont 2010 OldCGAAP'!H42 -> 3559.1 | H42: 3559.1 | J42: ='App.2-BA_FA Cont 2010 OldCGAAP'!M42 -> -3559.1 | M42: -3559.1 | N42: 0
A43: 8 | B43: 8 | C43: 1940 | D43: Tools, Shop & Garage Equipment | E43: ='App.2-BA_FA Cont 2010 OldCGAAP'!H43 -> 186853.67 | H43: 186853.67 | J43: ='App.2-BA_FA Cont 2010 OldCGAAP'!M43 -> -187837.46 | K43: -1983.94 | M43: -189821.4 | N43: -2967.73
A44: 8 | B44: 8 | C44: 1945 | D44: Measurement & Testing Equipment | E44: ='App.2-BA_FA Cont 2010 OldCGAAP'!H44 -> 0 | H44: 0 | J44: ='App.2-BA_FA Cont 2010 OldCGAAP'!M44 -> 0 | M44: 0 | N44: 0
A45: 8 | B45: 8 | C45: 1950 | D45: Power Operated Equipment | E45: ='App.2-BA_FA Cont 2010 OldCGAAP'!H45 -> 0 | H45: 0 | J45: ='App.2-BA_FA Cont 2010 OldCGAAP'!M45 -> 0 | M45: 0 | N45: 0
A46: 8 | B46: 8 | C46: 1955 | D46: Communications Equipment | E46: ='App.2-BA_FA Cont 2010 OldCGAAP'!H46 -> 0 | H46: 0 | J46: ='App.2-BA_FA Cont 2010 OldCGAAP'!M46 -> 0 | M46: 0 | N46: 0
A47: 8 | B47: 8 | C47: 1955 | D47: Communication Equipment (Smart Meters) | E47: ='App.2-BA_FA Cont 2010 OldCGAAP'!H47 -> 0 | H47: 0 | J47: ='App.2-BA_FA Cont 2010 OldCGAAP'!M47 -> 0 | M47: 0 | N47: 0
A48: 8 | B48: 8 | C48: 1960 | D48: Miscellaneous Equipment | E48: ='App.2-BA_FA Cont 2010 OldCGAAP'!H48 -> 0 | H48: 0 | J48: ='App.2-BA_FA Cont 2010 OldCGAAP'!M48 -> 0 | M48: 0 | N48: 0
A49: 47 | B49: 47 | C49: 1970 | D49: Load Management Controls Customer Premises | E49: ='App.2-BA_FA Cont 2010 OldCGAAP'!H49 -> 0 | H49: 0 | J49: ='App.2-BA_FA Cont 2010 OldCGAAP'!M49 -> 0 | M49: 0 | N49: 0
A50: 47 | B50: 47 | C50: 1975 | D50: Load Management Controls Utility Premises | E50: ='App.2-BA_FA Cont 2010 OldCGAAP'!H50 -> 0 | H50: 0 | J50: ='App.2-BA_FA Cont 2010 OldCGAAP'!M50 -> 0 | M50: 0 | N50: 0
A51: 47 | B51: 47 | C51: 1980 | D51: System Supervisor Equipment | E51: ='App.2-BA_FA Cont 2010 OldCGAAP'!H51 -> 0 | H51: 0 | J51: ='App.2-BA_FA Cont 2010 OldCGAAP'!M51 -> 0 | M51: 0 | N51: 0
A52: 47 | B52: 47 | C52: 1985 | D52: Miscellaneous Fixed Assets | E52: ='App.2-BA_FA Cont 2010 OldCGAAP'!H52 -> 0 | H52: 0 | J52: ='App.2-BA_FA Cont 2010 OldCGAAP'!M52 -> 0 | M52: 0 | N52: 0
A53: 47 | B53: 47 | C53: 1990 | D53: Other Tangible Property | E53: ='App.2-BA_FA Cont 2010 OldCGAAP'!H53 -> 0 | H53: 0 | J53: ='App.2-BA_FA Cont 2010 OldCGAAP'!M53 -> 0 | M53: 0 | N53: 0
C54: 1995 | D54: Contributions & Grants | E54: ='App.2-BA_FA Cont 2010 OldCGAAP'!H54 -> 0 | H54: 0 | J54: ='App.2-BA_FA Cont 2010 OldCGAAP'!M54 -> 0 | M54: 0 | N54: 0
C55: 2440 | D55: Deferred Revenue5 | E55: ='App.2-BA_FA Cont 2010 OldCGAAP'!H55 -> 0 | J55: ='App.2-BA_FA Cont 2010 OldCGAAP'!M55 -> 0
E56: ='App.2-BA_FA Cont 2010 OldCGAAP'!H56 -> 0 | H56: 0 | M56: 0 | N56: 0
D57: Sub-Total | E57: =SUM(E17:E56) -> 12711556.47 | F57: =SUM(F17:F56) -> 518283.65 | G57: =SUM(G17:G56) -> 0 | H57: =SUM(H17:H56) -> 13229840.12 | J57: =SUM(J17:J56) -> -8216879.83 | K57: =SUM(K17:K56) -> -396465.14 | L57: =SUM(L17:L56) -> 0 | M57: =SUM(M17:M56) -> -8613344.97 | N57: =SUM(N17:N56) -> 4616495.15
D58: Less Socialized Renewable Energy Generation Investments (input as negative) | H58: =E58+F58+G58 -> 0 | M58: =J58+K58+L58 -> 0 | N58: =H58+M58 -> 0
D59: Less Other Non Rate-Regulated Utility Assets (input as negative) | H59: 0 | M59: 0 | N59: 0
D60: Total PP&E | E60: =SUM(E57:E59) -> 12711556.47 | F60: =SUM(F57:F59) -> 518283.65 | G60: 0 | H60: 13229840.12 | J60: =SUM(J57:J59) -> -8216879.83 | K60: -396465.14 | L60: 0 | M60: -8613344.97 | N60: 4616495.15
D61: Depreciation Expense adj. from gain or loss on the retirement of assets (pool of like assets), if applicable6
D62: Total | K62: =K60+K61 -> -396465.14
J64: Less: Fully Allocated Depreciation
B65: 10 | D65: Transportation | J65: Transportation
B66: 8 | D66: Stores Equipment | J66: Stores Equipment
J67: Net Depreciation | L67: =K62-L65-L66 -> -396465.14
B69: Originally hydro distribution assets were added to Class 1 for tax purposes. This was changed a few years ago and all new additions are now in Class 47.
B70: Notes:
B72: 1 | C72: Tables in the format outlined above covering all fixed asset accounts should be submitted for the Test Year, Bridge Year and all relevant historical years. At a minimum , the applicant must provide data for the earlier of: 1) all historical years back to its last rebasing; or 2) at least three years of historical actuals, in addition to Bridge Year and Test Year forecasts.
B75: 2 | C75: The "CCA Class" for fixed assets should agree with the CCA Class used for tax purposes in Tax Returns. Fixed Assets sub-components may be used where the underlying asset components are classified under multiple CCA Classes for tax purposes. If an applicant uses any different classes from those shown in the table, an explanation should be provided. (also see note 3 below).
B78: 3 | C78: The table may need to be customized for a utility's asset categories or for any new asset accounts announced or authorized by the Board.
B80: 4 | C80: The additions column (E) must not include construction work in progress (CWIP).
B82: 5 | C82: Effective on the date of IFRS adoption, customer contributions will no longer be recorded in Account 1995 Contributions & Grants, but will be recorded in Account 2440, Deferred Revenues.
B84: 6 | C84: Where a distributor for general financial reporting purposes under IFRS has accounted for the amount of gain or loss on the retirement of assets in a pool of like assets as a charge or credit to income, for reporting and rate application filings the distributor shall reclassify such gains and losses as depreciation expense, and disclose the amount separately.

Sheet App.2-BA_FA Cont 2012 OldCGAAP
M1: File Number: | N1: =EBNUMBER -> EB-2016-0166
M2: Exhibit:
M3: Tab:
M4: Schedule:
M5: Page:
M7: Date:
B9: Appendix 2-BA
B10: Fixed Asset Continuity Schedule
F12: Accounting Standard | G12: CGAAP | H12: Old CGAAP
F13: Year | G13: 2012
A15: RHI | B15: OEB | E15: Cost | K15: Accumulated Depreciation
A16: CCA Class | B16: CCA Class | C16: OEB | D16: Description | E16: Opening Balance | F16: Additions | G16: Disposals | H16: Closing Balance | J16: Opening Balance | K16: Additions | L16: Disposals | M16: Closing Balance | N16: Net Book Value
A17: 12 | B17: 12 | C17: 1611 | D17: Computer Software (Formally known as Account 1925) | E17: ='App.2-BA_FA Cont 2011 OldCGAAP'!H17 -> 120704.76 | H17: =E17+F17+G17 -> 120704.76 | J17: ='App.2-BA_FA Cont 2011 OldCGAAP'!M17 -> -116193.26 | K17: -1289 | M17: =J17+K17+L17 -> -117482.26 | N17: =H17+M17 -> 3222.5
A18: CEC | B18: CEC | C18: 1612 | D18: Land Rights (Formally known as Account 1906) | E18: ='App.2-BA_FA Cont 2011 OldCGAAP'!H18 -> 23980.67 | H18: =E18+F18+G18 -> 23980.67 | J18: ='App.2-BA_FA Cont 2011 OldCGAAP'!M18 -> -17557.4 | K18: -405.6 | M18: =J18+K18+L18 -> -17963 | N18: =H18+M18 -> 6017.67
A19: N/A | B19: N/A | C19: 1805 | D19: Land | E19: ='App.2-BA_FA Cont 2011 OldCGAAP'!H19 -> 22895.33 | H19: =E19+F19+G19 -> 22895.33 | J19: ='App.2-BA_FA Cont 2011 OldCGAAP'!M19 -> 0 | M19: =J19+K19+L19 -> 0 | N19: =H19+M19 -> 22895.33
A20: 1 | B20: 47 | C20: 1808 | D20: Buildings | E20: ='App.2-BA_FA Cont 2011 OldCGAAP'!H20 -> 201834.33 | H20: =E20+F20+G20 -> 201834.33 | J20: ='App.2-BA_FA Cont 2011 OldCGAAP'!M20 -> -87624.21 | K20: -3677.27 | M20: =J20+K20+L20 -> -91301.48 | N20: =H20+M20 -> 110532.85
B21: 13 | C21: 1810 | D21: Leasehold Improvements | E21: ='App.2-BA_FA Cont 2011 OldCGAAP'!H21 -> 0 | H21: 0 | J21: ='App.2-BA_FA Cont 2011 OldCGAAP'!M21 -> 0 | M21: 0 | N21: 0
B22: 47 | C22: 1815 | D22: Transformer Station Equipment >50 kV | E22: ='App.2-BA_FA Cont 2011 OldCGAAP'!H22 -> 0 | H22: 0 | J22: ='App.2-BA_FA Cont 2011 OldCGAAP'!M22 -> 0 | M22: 0 | N22: 0
A23: 1/47 | B23: 47 | C23: 1820 | D23: Distribution Station Equipment <50 kV | E23: ='App.2-BA_FA Cont 2011 OldCGAAP'!H23 -> 1288197.03 | H23: 1288197.03 | J23: ='App.2-BA_FA Cont 2011 OldCGAAP'!M23 -> -689605.92 | K23: -36218.28 | M23: -725824.2 | N23: 562372.83
B24: 47 | C24: 1825 | D24: Storage Battery Equipment | E24: ='App.2-BA_FA Cont 2011 OldCGAAP'!H24 -> 0 | H24: 0 | J24: ='App.2-BA_FA Cont 2011 OldCGAAP'!M24 -> 0 | M24: 0 | N24: 0
A25: 1/47 | B25: 47 | C25: 1830 | D25: Poles, Towers & Fixtures | E25: ='App.2-BA_FA Cont 2011 OldCGAAP'!H25 -> 2322582.79 | F25: 161976.09 | H25: 2484558.88 | J25: ='App.2-BA_FA Cont 2011 OldCGAAP'!M25 -> -1203178.24 | K25: -75360.24 | M25: -1278538.48 | N25: 1206020.4
A26: 1/47 | B26: 47 | C26: 1835 | D26: Overhead Conductors & Devices | E26: ='App.2-BA_FA Cont 2011 OldCGAAP'!H26 -> 3826390.37 | F26: 145097.59 | H26: 3971487.96 | J26: ='App.2-BA_FA Cont 2011 OldCGAAP'!M26 -> -2477894.46 | K26: -110605.55 | M26: -2588500.01 | N26: 1382987.95
A27: 1/47 | B27: 47 | C27: 1840 | D27: Underground Conduit | E27: ='App.2-BA_FA Cont 2011 OldCGAAP'!H27 -> 54570.4 | F27: 8500.42 | H27: 63070.82 | J27: ='App.2-BA_FA Cont 2011 OldCGAAP'!M27 -> -19962.4 | K27: -2302.53 | M27: -22264.93 | N27: 40805.89
A28: 1/47 | B28: 47 | C28: 1845 | D28: Underground Conductors & Devices | E28: ='App.2-BA_FA Cont 2011 OldCGAAP'!H28 -> 389514.18 | F28: 23628.42 | H28: 413142.6 | J28: ='App.2-BA_FA Cont 2011 OldCGAAP'!M28 -> -156238.53 | K28: -15520.13 | M28: -171758.66 | N28: 241383.94
A29: 1/47 | B29: 47 | C29: 1850 | D29: Line Transformers | E29: ='App.2-BA_FA Cont 2011 OldCGAAP'!H29 -> 1605215.38 | F29: 23827.94 | H29: 1629043.32 | J29: ='App.2-BA_FA Cont 2011 OldCGAAP'!M29 -> -1168097.75 | K29: -39244.84 | M29: -1207342.59 | N29: 421700.73
A30: 1/47 | B30: 47 | C30: 1855 | D30: Services (Overhead & Underground) | E30: ='App.2-BA_FA Cont 2011 OldCGAAP'!H30 -> 1519842.58 | F30: =15681.89+6895.26 -> 22577.15 | H30: 1542419.73 | J30: ='App.2-BA_FA Cont 2011 OldCGAAP'!M30 -> -1158394.7 | K30: =-35981.95-4653.26 -> -40635.21 | M30: -1199029.91 | N30: 343389.82
A31: 1/47 | B31: 47 | C31: 1860 | D31: Meters | E31: ='App.2-BA_FA Cont 2011 OldCGAAP'!H31 -> 594329.39 | H31: 594329.39 | J31: ='App.2-BA_FA Cont 2011 OldCGAAP'!M31 -> -454976.02 | K31: -15185.62 | M31: -470161.64 | N31: 124167.75
A32: 47 | B32: 47 | C32: 1860 | D32: Meters (Smart Meters) | E32: ='App.2-BA_FA Cont 2011 OldCGAAP'!H32 -> 0 | H32: 0 | J32: ='App.2-BA_FA Cont 2011 OldCGAAP'!M32 -> 0 | M32: 0 | N32: 0
A33: N/A | B33: N/A | C33: 1905 | D33: Land | E33: ='App.2-BA_FA Cont 2011 OldCGAAP'!H33 -> 0 | H33: 0 | J33: ='App.2-BA_FA Cont 2011 OldCGAAP'!M33 -> 0 | M33: 0 | N33: 0
B34: 47 | C34: 1908 | D34: Buildings & Fixtures | E34: ='App.2-BA_FA Cont 2011 OldCGAAP'!H34 -> 0 | H34: 0 | J34: ='App.2-BA_FA Cont 2011 OldCGAAP'!M34 -> 0 | M34: 0 | N34: 0
A35: 13 | B35: 13 | C35: 1910 | D35: Leasehold Improvements | E35: ='App.2-BA_FA Cont 2011 OldCGAAP'!H35 -> 0 | H35: 0 | J35: ='App.2-BA_FA Cont 2011 OldCGAAP'!M35 -> 0 | M35: 0 | N35: 0
A36: 8 | B36: 8 | C36: 1915 | D36: Office Furniture & Equipment (10 years) | E36: ='App.2-BA_FA Cont 2011 OldCGAAP'!H36 -> 30841.31 | H36: 30841.31 | J36: ='App.2-BA_FA Cont 2011 OldCGAAP'!M36 -> -31044.59 | K36: 0 | M36: -31044.59 | N36: -203.28
A37: 8 | B37: 8 | C37: 1915 | D37: Office Furniture & Equipment (5 years) | E37: ='App.2-BA_FA Cont 2011 OldCGAAP'!H37 -> 0 | H37: 0 | J37: ='App.2-BA_FA Cont 2011 OldCGAAP'!M37 -> 0 | M37: 0 | N37: 0
A38: 10 | B38: 10 | C38: 1920 | D38: Computer Equipment - Hardware | E38: ='App.2-BA_FA Cont 2011 OldCGAAP'!H38 -> 88918.9 | F38: 6705 | H38: 95623.9 | J38: ='App.2-BA_FA Cont 2011 OldCGAAP'!M38 -> -89719.7 | K38: -1560.14 | M38: -91279.84 | N38: 4344.06
B39: 45 | C39: 1920 | D39: Computer Equip.-Hardware(Post Mar. 22/04) | E39: ='App.2-BA_FA Cont 2011 OldCGAAP'!H39 -> 0 | H39: 0 | J39: ='App.2-BA_FA Cont 2011 OldCGAAP'!M39 -> 0 | M39: 0 | N39: 0
B40: 45.1 | C40: 1920 | D40: Computer Equip.-Hardware(Post Mar. 19/07) | E40: ='App.2-BA_FA Cont 2011 OldCGAAP'!H40 -> 0 | H40: 0 | J40: ='App.2-BA_FA Cont 2011 OldCGAAP'!M40 -> 0 | M40: 0 | N40: 0
A41: 10 | B41: 10 | C41: 1930 | D41: Transportation Equipment | E41: ='App.2-BA_FA Cont 2011 OldCGAAP'!H41 -> 949609.93 | F41: 47264.18 | H41: 996874.11 | J41: ='App.2-BA_FA Cont 2011 OldCGAAP'!M41 -> -749477.29 | K41: -42238.62 | M41: -791715.91 | N41: 205158.2
A42: 8 | B42: 8 | C42: 1935 | D42: Stores Equipment | E42: ='App.2-BA_FA Cont 2011 OldCGAAP'!H42 -> 3559.1 | H42: 3559.1 | J42: ='App.2-BA_FA Cont 2011 OldCGAAP'!M42 -> -3559.1 | K42: 0 | M42: -3559.1 | N42: 0
A43: 8 | B43: 8 | C43: 1940 | D43: Tools, Shop & Garage Equipment | E43: ='App.2-BA_FA Cont 2011 OldCGAAP'!H43 -> 186853.67 | H43: 186853.67 | J43: ='App.2-BA_FA Cont 2011 OldCGAAP'!M43 -> -189821.4 | K43: -1983.94 | M43: -191805.34 | N43: -4951.67
A44: 8 | B44: 8 | C44: 1945 | D44: Measurement & Testing Equipment | E44: ='App.2-BA_FA Cont 2011 OldCGAAP'!H44 -> 0 | H44: 0 | J44: ='App.2-BA_FA Cont 2011 OldCGAAP'!M44 -> 0 | M44: 0 | N44: 0
A45: 8 | B45: 8 | C45: 1950 | D45: Power Operated Equipment | E45: ='App.2-BA_FA Cont 2011 OldCGAAP'!H45 -> 0 | H45: 0 | J45: ='App.2-BA_FA Cont 2011 OldCGAAP'!M45 -> 0 | M45: 0 | N45: 0
A46: 8 | B46: 8 | C46: 1955 | D46: Communications Equipment | E46: ='App.2-BA_FA Cont 2011 OldCGAAP'!H46 -> 0 | H46: 0 | J46: ='App.2-BA_FA Cont 2011 OldCGAAP'!M46 -> 0 | M46: 0 | N46: 0
A47: 8 | B47: 8 | C47: 1955 | D47: Communication Equipment (Smart Meters) | E47: ='App.2-BA_FA Cont 2011 OldCGAAP'!H47 -> 0 | H47: 0 | J47: ='App.2-BA_FA Cont 2011 OldCGAAP'!M47 -> 0 | M47: 0 | N47: 0
A48: 8 | B48: 8 | C48: 1960 | D48: Miscellaneous Equipment | E48: ='App.2-BA_FA Cont 2011 OldCGAAP'!H48 -> 0 | H48: 0 | J48: ='App.2-BA_FA Cont 2011 OldCGAAP'!M48 -> 0 | M48: 0 | N48: 0
A49: 47 | B49: 47 | C49: 1970 | D49: Load Management Controls Customer Premises | E49: ='App.2-BA_FA Cont 2011 OldCGAAP'!H49 -> 0 | H49: 0 | J49: ='App.2-BA_FA Cont 2011 OldCGAAP'!M49 -> 0 | M49: 0 | N49: 0
A50: 47 | B50: 47 | C50: 1975 | D50: Load Management Controls Utility Premises | E50: ='App.2-BA_FA Cont 2011 OldCGAAP'!H50 -> 0 | H50: 0 | J50: ='App.2-BA_FA Cont 2011 OldCGAAP'!M50 -> 0 | M50: 0 | N50: 0
A51: 47 | B51: 47 | C51: 1980 | D51: System Supervisor Equipment | E51: ='App.2-BA_FA Cont 2011 OldCGAAP'!H51 -> 0 | H51: 0 | J51: ='App.2-BA_FA Cont 2011 OldCGAAP'!M51 -> 0 | M51: 0 | N51: 0
A52: 47 | B52: 47 | C52: 1985 | D52: Miscellaneous Fixed Assets | E52: ='App.2-BA_FA Cont 2011 OldCGAAP'!H52 -> 0 | H52: 0 | J52: ='App.2-BA_FA Cont 2011 OldCGAAP'!M52 -> 0 | M52: 0 | N52: 0
A53: 47 | B53: 47 | C53: 1990 | D53: Other Tangible Property | E53: ='App.2-BA_FA Cont 2011 OldCGAAP'!H53 -> 0 | H53: 0 | J53: ='App.2-BA_FA Cont 2011 OldCGAAP'!M53 -> 0 | M53: 0 | N53: 0
C54: 1995 | D54: Contributions & Grants | E54: ='App.2-BA_FA Cont 2011 OldCGAAP'!H54 -> 0 | H54: 0 | J54: ='App.2-BA_FA Cont 2011 OldCGAAP'!M54 -> 0 | M54: 0 | N54: 0
C55: 2440 | D55: Deferred Revenue5 | E55: ='App.2-BA_FA Cont 2011 OldCGAAP'!H55 -> 0 | J55: ='App.2-BA_FA Cont 2011 OldCGAAP'!M55 -> 0
H56: 0 | M56: 0 | N56: 0
D57: Sub-Total | E57: =SUM(E17:E56) -> 13229840.12 | F57: =SUM(F17:F56) -> 439576.79 | G57: =SUM(G17:G56) -> 0 | H57: =SUM(H17:H56) -> 13669416.91 | J57: =SUM(J17:J56) -> -8613344.97 | K57: =SUM(K17:K56) -> -386226.97 | L57: =SUM(L17:L56) -> 0 | M57: =SUM(M17:M56) -> -8999571.94 | N57: =SUM(N17:N56) -> 4669844.97
D58: Less Socialized Renewable Energy Generation Investments (input as negative) | H58: =E58+F58+G58 -> 0 | M58: =J58+K58+L58 -> 0 | N58: =H58+M58 -> 0
D59: Less Other Non Rate-Regulated Utility Assets (input as negative) | H59: 0 | M59: 0 | N59: 0
D60: Total PP&E | E60: =SUM(E57:E59) -> 13229840.12 | F60: =SUM(F57:F59) -> 439576.79 | G60: 0 | H60: 13669416.91 | J60: =SUM(J57:J59) -> -8613344.97 | K60: -386226.97 | L60: 0 | M60: -8999571.94 | N60: 4669844.97
D61: Depreciation Expense adj. from gain or loss on the retirement of assets (pool of like assets), if applicable6
D62: Total | K62: =K60+K61 -> -386226.97
J64: Less: Fully Allocated Depreciation
B65: 10 | D65: Transportation | J65: Transportation
B66: 8 | D66: Stores Equipment | J66: Stores Equipment
J67: Net Depreciation | L67: =K62-L65-L66 -> -386226.97
B69: Originally hydro distribution assets were added to Class 1 for tax purposes. This was changed a few years ago and all new additions are now in Class 47.
B71: Notes:
B73: 1 | C73: Tables in the format outlined above covering all fixed asset accounts should be submitted for the Test Year, Bridge Year and all relevant historical years. At a minimum , the applicant must provide data for the earlier of: 1) all historical years back to its last rebasing; or 2) at least three years of historical actuals, in addition to Bridge Year and Test Year forecasts.
B76: 2 | C76: The "CCA Class" for fixed assets should agree with the CCA Class used for tax purposes in Tax Returns. Fixed Assets sub-components may be used where the underlying asset components are classified under multiple CCA Classes for tax purposes. If an applicant uses any different classes from those shown in the table, an explanation should be provided. (also see note 3 below).
B79: 3 | C79: The table may need to be customized for a utility's asset categories or for any new asset accounts announced or authorized by the Board.
B81: 4 | C81: The additions column (E) must not include construction work in progress (CWIP).
B83: 5 | C83: Effective on the date of IFRS adoption, customer contributions will no longer be recorded in Account 1995 Contributions & Grants, but will be recorded in Account 2440, Deferred Revenues.
B85: 6 | C85: Where a distributor for general financial reporting purposes under IFRS has accounted for the amount of gain or loss on the retirement of assets in a pool of like assets as a charge or credit to income, for reporting and rate application filings the distributor shall reclassify such gains and losses as depreciation expense, and disclose the amount separately.

Sheet App.2-BA_FA Cont 2013 OldCGAAP (hidden)
L1: File Number: | M1: =EBNUMBER -> EB-2016-0166
L2: Exhibit:
L3: Tab:
L4: Schedule:
L5: Page:
L7: Date:
A9: Appendix 2-BA
A10: Fixed Asset Continuity Schedule
E12: Accounting Standard | F12: CGAAP | G12: Old CGAAP
E13: Year | F13: 2013
D15: Cost | J15: Accumulated Depreciation
A16: CCA Class | B16: OEB | C16: Description | D16: Opening Balance | E16: Additions | F16: Disposals | G16: Closing Balance | I16: Opening Balance | J16: Additions | K16: Disposals | L16: Closing Balance | M16: Net Book Value
A17: 12 | B17: 1611 | C17: Computer Software (Formally known as Account 1925) | D17: =+'App.2-BA_FA Cont 2012 OldCGAAP'!H17 -> 120704.76 | E17: 46620 | F17: 0 | G17: =D17+E17+F17 -> 167324.76 | I17: ='App.2-BA_FA Cont 2012 OldCGAAP'!M17 -> -117482.26 | J17: -12684.96 | K17: 0 | L17: =I17+J17+K17 -> -130167.22 | M17: =G17+L17 -> 37157.54
A18: CEC | B18: 1612 | C18: Land Rights (Formally known as Account 1906) | D18: =+'App.2-BA_FA Cont 2012 OldCGAAP'!H18 -> 23980.67 | F18: 0 | G18: =D18+E18+F18 -> 23980.67 | I18: ='App.2-BA_FA Cont 2012 OldCGAAP'!M18 -> -17963 | J18: -335 | K18: 0 | L18: =I18+J18+K18 -> -18298 | M18: =G18+L18 -> 5682.67
A19: N/A | B19: 1805 | C19: Land | D19: =+'App.2-BA_FA Cont 2012 OldCGAAP'!H19 -> 22895.33 | F19: 0 | G19: =D19+E19+F19 -> 22895.33 | I19: ='App.2-BA_FA Cont 2012 OldCGAAP'!M19 -> 0 | K19: 0 | L19: =I19+J19+K19 -> 0 | M19: =G19+L19 -> 22895.33
A20: 47 | B20: 1808 | C20: Buildings | D20: =+'App.2-BA_FA Cont 2012 OldCGAAP'!H20 -> 201834.33 | E20: 93745 | G20: =D20+E20+F20 -> 295579.33 | I20: ='App.2-BA_FA Cont 2012 OldCGAAP'!M20 -> -91301.48 | J20: -13163.54 | L20: =I20+J20+K20 -> -104465.02 | M20: =G20+L20 -> 191114.31
A21: 13 | B21: 1810 | C21: Leasehold Improvements | D21: =+'App.2-BA_FA Cont 2012 OldCGAAP'!H21 -> 0 | G21: 0 | I21: ='App.2-BA_FA Cont 2012 OldCGAAP'!M21 -> 0 | L21: 0 | M21: 0
A22: 47 | B22: 1815 | C22: Transformer Station Equipment >50 kV | D22: =+'App.2-BA_FA Cont 2012 OldCGAAP'!H22 -> 0 | G22: 0 | I22: ='App.2-BA_FA Cont 2012 OldCGAAP'!M22 -> 0 | L22: 0 | M22: 0
A23: 47 | B23: 1820 | C23: Distribution Station Equipment <50 kV | D23: =+'App.2-BA_FA Cont 2012 OldCGAAP'!H23 -> 1288197.03 | E23: 40093 | G23: 1328290.03 | I23: ='App.2-BA_FA Cont 2012 OldCGAAP'!M23 -> -725824.2 | J23: -60502.47 | L23: -786326.67 | M23: 541963.36
A25: 47 | B25: 1825 | C25: Storage Battery Equipment | D25: =+'App.2-BA_FA Cont 2012 OldCGAAP'!H24 -> 0 | G25: 0 | I25: ='App.2-BA_FA Cont 2012 OldCGAAP'!M24 -> 0 | L25: 0 | M25: 0
A26: 47 | B26: 1830 | C26: Poles, Towers & Fixtures | D26: =+'App.2-BA_FA Cont 2012 OldCGAAP'!H25 -> 2484558.88 | E26: 161461 | G26: 2646019.88 | I26: ='App.2-BA_FA Cont 2012 OldCGAAP'!M25 -> -1278538.48 | J26: -197547 | L26: -1476085.48 | M26: 1169934.4
A27: 47 | B27: 1835 | C27: Overhead Conductors & Devices | D27: =+'App.2-BA_FA Cont 2012 OldCGAAP'!H26 -> 3971487.96 | E27: 224632 | G27: 4196119.96 | I27: ='App.2-BA_FA Cont 2012 OldCGAAP'!M26 -> -2588500.01 | J27: -121673 | L27: -2710173.01 | M27: 1485946.95
A28: 47 | B28: 1840 | C28: Underground Conduit | D28: =+'App.2-BA_FA Cont 2012 OldCGAAP'!H27 -> 63070.82 | E28: 2064 | G28: 65134.82 | I28: ='App.2-BA_FA Cont 2012 OldCGAAP'!M27 -> -22264.93 | J28: =-97006.25-3073.88 -> -100080.13 | L28: -122345.06 | M28: -57210.24
A29: 47 | B29: 1845 | C29: Underground Conductors & Devices | D29: =+'App.2-BA_FA Cont 2012 OldCGAAP'!H28 -> 413142.6 | E29: 33860 | G29: 447002.6 | I29: ='App.2-BA_FA Cont 2012 OldCGAAP'!M28 -> -171758.66 | J29: -22228 | L29: -193986.66 | M29: 253015.94
A30: 47 | B30: 1850 | C30: Line Transformers | D30: =+'App.2-BA_FA Cont 2012 OldCGAAP'!H29 -> 1629043.32 | E30: 119766.48 | G30: 1748809.8 | I30: ='App.2-BA_FA Cont 2012 OldCGAAP'!M29 -> -1207342.59 | J30: =-102650.99-6564.48-2572.13 -> -111787.6 | L30: -1319130.19 | M30: 429679.61
A31: 47 | B31: 1855 | C31: Services (Overhead & Underground) | D31: =+'App.2-BA_FA Cont 2012 OldCGAAP'!H30 -> 1542419.73 | E31: 118992 | G31: 1661411.73 | I31: ='App.2-BA_FA Cont 2012 OldCGAAP'!M30 -> -1199029.91 | J31: -47342.96 | L31: -1246372.87 | M31: 415038.86
A32: 47 | B32: 1860 | C32: Meters | D32: =+'App.2-BA_FA Cont 2012 OldCGAAP'!H31 -> 594329.39 | E32: =17449-8171 -> 9278 | G32: 603607.39 | I32: ='App.2-BA_FA Cont 2012 OldCGAAP'!M31 -> -470161.64 | J32: -3555 | L32: -473716.64 | M32: 129890.75
A33: 47 | B33: 1860 | C33: Meters (Smart Meters) | D33: =+'App.2-BA_FA Cont 2012 OldCGAAP'!H32 -> 0 | G33: 0 | I33: ='App.2-BA_FA Cont 2012 OldCGAAP'!M32 -> 0 | L33: 0 | M33: 0
A34: N/A | B34: 1905 | C34: Land | D34: =+'App.2-BA_FA Cont 2012 OldCGAAP'!H33 -> 0 | G34: 0 | I34: ='App.2-BA_FA Cont 2012 OldCGAAP'!M33 -> 0 | L34: 0 | M34: 0
A35: 47 | B35: 1908 | C35: Buildings & Fixtures | D35: =+'App.2-BA_FA Cont 2012 OldCGAAP'!H34 -> 0 | G35: 0 | I35: ='App.2-BA_FA Cont 2012 OldCGAAP'!M34 -> 0 | L35: 0 | M35: 0
A36: 13 | B36: 1910 | C36: Leasehold Improvements | D36: =+'App.2-BA_FA Cont 2012 OldCGAAP'!H35 -> 0 | G36: 0 | I36: ='App.2-BA_FA Cont 2012 OldCGAAP'!M35 -> 0 | L36: 0 | M36: 0
A37: 8 | B37: 1915 | C37: Office Furniture & Equipment (10 years) | D37: =+'App.2-BA_FA Cont 2012 OldCGAAP'!H36 -> 30841.31 | E37: 1388 | G37: 32229.31 | I37: ='App.2-BA_FA Cont 2012 OldCGAAP'!M36 -> -31044.59 | J37: -1409.66 | L37: -32454.25 | M37: -224.94
A38: 8 | B38: 1915 | C38: Office Furniture & Equipment (5 years) | D38: =+'App.2-BA_FA Cont 2012 OldCGAAP'!H37 -> 0 | G38: 0 | I38: ='App.2-BA_FA Cont 2012 OldCGAAP'!M37 -> 0 | L38: 0 | M38: 0
A39: 10 | B39: 1920 | C39: Computer Equipment - Hardware | D39: =+'App.2-BA_FA Cont 2012 OldCGAAP'!H38 -> 95623.9 | G39: 95623.9 | I39: ='App.2-BA_FA Cont 2012 OldCGAAP'!M38 -> -91279.84 | L39: -91279.84 | M39: 4344.06
A40: 45 | B40: 1920 | C40: Computer Equip.-Hardware(Post Mar. 22/04) | D40: =+'App.2-BA_FA Cont 2012 OldCGAAP'!H39 -> 0 | G40: 0 | I40: ='App.2-BA_FA Cont 2012 OldCGAAP'!M39 -> 0 | L40: 0 | M40: 0
A41: 45.1 | B41: 1920 | C41: Computer Equip.-Hardware(Post Mar. 19/07) | D41: =+'App.2-BA_FA Cont 2012 OldCGAAP'!H40 -> 0 | E41: 28127 | G41: 28127 | I41: ='App.2-BA_FA Cont 2012 OldCGAAP'!M40 -> 0 | J41: -9618.64 | L41: -9618.64 | M41: 18508.36
A42: 10 | B42: 1930 | C42: Transportation Equipment | D42: =+'App.2-BA_FA Cont 2012 OldCGAAP'!H41 -> 996874.11 | E42: 457242 | F42: -51998.71 | G42: 1402117.4 | I42: ='App.2-BA_FA Cont 2012 OldCGAAP'!M41 -> -791715.91 | J42: -125582.76 | K42: 51998.71 | L42: -865299.96 | M42: 536817.44
A43: 8 | B43: 1935 | C43: Stores Equipment | D43: =+'App.2-BA_FA Cont 2012 OldCGAAP'!H42 -> 3559.1 | G43: 3559.1 | I43: ='App.2-BA_FA Cont 2012 OldCGAAP'!M42 -> -3559.1 | L43: -3559.1 | M43: 0
A44: 8 | B44: 1940 | C44: Tools, Shop & Garage Equipment | D44: =+'App.2-BA_FA Cont 2012 OldCGAAP'!H43 -> 186853.67 | E44: 6273 | G44: 193126.67 | I44: ='App.2-BA_FA Cont 2012 OldCGAAP'!M43 -> -191805.34 | J44: -6673.37 | L44: -198478.71 | M44: -5352.04
A45: 8 | B45: 1945 | C45: Measurement & Testing Equipment | D45: =+'App.2-BA_FA Cont 2012 OldCGAAP'!H44 -> 0 | E45: 18090 | G45: 18090 | I45: ='App.2-BA_FA Cont 2012 OldCGAAP'!M44 -> 0 | J45: -904.5 | L45: -904.5 | M45: 17185.5
A46: 8 | B46: 1950 | C46: Power Operated Equipment | D46: =+'App.2-BA_FA Cont 2012 OldCGAAP'!H45 -> 0 | G46: 0 | I46: ='App.2-BA_FA Cont 2012 OldCGAAP'!M45 -> 0 | L46: 0 | M46: 0
A47: 8 | B47: 1955 | C47: Communications Equipment | D47: =+'App.2-BA_FA Cont 2012 OldCGAAP'!H46 -> 0 | G47: 0 | I47: ='App.2-BA_FA Cont 2012 OldCGAAP'!M46 -> 0 | J47: -1446.49 | L47: -1446.49 | M47: -1446.49
A48: 8 | B48: 1955 | C48: Communication Equipment (Smart Meters) | D48: =+'App.2-BA_FA Cont 2012 OldCGAAP'!H47 -> 0 | G48: 0 | I48: ='App.2-BA_FA Cont 2012 OldCGAAP'!M47 -> 0 | L48: 0 | M48: 0
A49: 8 | B49: 1960 | C49: Miscellaneous Equipment | D49: =+'App.2-BA_FA Cont 2012 OldCGAAP'!H48 -> 0 | E49: 12104 | G49: 12104 | I49: ='App.2-BA_FA Cont 2012 OldCGAAP'!M48 -> 0 | J49: -605.2 | L49: -605.2 | M49: 11498.8
A50: 47 | B50: 1970 | C50: Load Management Controls Customer Premises | D50: =+'App.2-BA_FA Cont 2012 OldCGAAP'!H49 -> 0 | G50: 0 | I50: ='App.2-BA_FA Cont 2012 OldCGAAP'!M49 -> 0 | J50: -801 | L50: -801 | M50: -801
A51: 47 | B51: 1975 | C51: Load Management Controls Utility Premises | D51: =+'App.2-BA_FA Cont 2012 OldCGAAP'!H50 -> 0 | G51: 0 | I51: ='App.2-BA_FA Cont 2012 OldCGAAP'!M50 -> 0 | L51: 0 | M51: 0
A52: 47 | B52: 1980 | C52: System Supervisor Equipment | D52: =+'App.2-BA_FA Cont 2012 OldCGAAP'!H51 -> 0 | E52: 503 | G52: 503 | I52: ='App.2-BA_FA Cont 2012 OldCGAAP'!M51 -> 0 | J52: -13678.56 | L52: -13678.56 | M52: -13175.56
A53: 47 | B53: 1985 | C53: Miscellaneous Fixed Assets | D53: =+'App.2-BA_FA Cont 2012 OldCGAAP'!H52 -> 0 | G53: 0 | I53: ='App.2-BA_FA Cont 2012 OldCGAAP'!M52 -> 0 | L53: 0 | M53: 0
A54: 47 | B54: 1990 | C54: Other Tangible Property | D54: =+'App.2-BA_FA Cont 2012 OldCGAAP'!H53 -> 0 | G54: 0 | I54: ='App.2-BA_FA Cont 2012 OldCGAAP'!M53 -> 0 | L54: 0 | M54: 0
A55: 47 | B55: 1995 | C55: Contributions & Grants | D55: =+'App.2-BA_FA Cont 2012 OldCGAAP'!H54 -> 0 | E55: -35216.9 | G55: -35216.9 | I55: ='App.2-BA_FA Cont 2012 OldCGAAP'!M54 -> 0 | J55: 69166 | L55: 69166 | M55: 33949.1
A56: 47 | B56: 2440 | C56: Deferred Revenue5 | D56: =+'App.2-BA_FA Cont 2012 OldCGAAP'!H55 -> 0 | I56: ='App.2-BA_FA Cont 2012 OldCGAAP'!M55 -> 0
G57: 0 | I57: ='App.2-BA_FA Cont 2011 OldCGAAP'!M56 -> 0 | L57: 0 | M57: 0
C58: Sub-Total | D58: =SUM(D17:D57) -> 13669416.91 | E58: =SUM(E17:E57) -> 1339021.58 | F58: =SUM(F17:F57) -> -51998.71 | G58: =SUM(G17:G57) -> 14956439.78 | I58: =SUM(I17:I57) -> -8999571.94 | J58: =SUM(J17:J57) -> -782453.84 | K58: =SUM(K17:K57) -> 51998.71 | L58: =SUM(L17:L57) -> -9730027.07 | M58: =SUM(M17:M57) -> 5226412.71
C59: Less Socialized Renewable Energy Generation Investments (input as negative) | G59: =D59+E59+F59 -> 0 | L59: =I59+J59+K59 -> 0 | M59: =G59+L59 -> 0
C60: Less Other Non Rate-Regulated Utility Assets (input as negative) | G60: 0 | L60: 0 | M60: 0
C61: Total PP&E | D61: =SUM(D58:D60) -> 13669416.91 | E61: =SUM(E58:E60) -> 1339021.58 | F61: -51998.71 | G61: 14956439.78 | I61: =SUM(I58:I60) -> -8999571.94 | J61: -782453.84 | K61: 51998.71 | L61: -9730027.07 | M61: 5226412.71
C62: Depreciation Expense adj. from gain or loss on the retirement of assets (pool of like assets), if applicable6
C63: Total | J63: =J61+J62 -> -782453.84
I65: Less: Fully Allocated Depreciation
A66: 10 | C66: Transportation | I66: Transportation | K66: -125583
A67: 8 | C67: Stores Equipment | I67: Stores Equipment | K67: -6673
I68: Net Depreciation | K68: =J63-K66-K67 -> -650197.84
A70: Notes:
A72: 1 | B72: Tables in the format outlined above covering all fixed asset accounts should be submitted for the Test Year, Bridge Year and all relevant historical years. At a minimum , the applicant must provide data for the earlier of: 1) all historical years back to its last rebasing; or 2) at least three years of historical actuals, in addition to Bridge Year and Test Year forecasts.
A75: 2 | B75: The "CCA Class" for fixed assets should agree with the CCA Class used for tax purposes in Tax Returns. Fixed Assets sub-components may be used where the underlying asset components are classified under multiple CCA Classes for tax purposes. If an applicant uses any different classes from those shown in the table, an explanation should be provided. (also see note 3 below).
A78: 3 | B78: The table may need to be customized for a utility's asset categories or for any new asset accounts announced or authorized by the Board.
A80: 4 | B80: The additions column (E) must not include construction work in progress (CWIP).
A82: 5 | B82: Effective on the date of IFRS adoption, customer contributions will no longer be recorded in Account 1995 Contributions & Grants, but will be recorded in Account 2440, Deferred Revenues.
A84: 6 | B84: Where a distributor for general financial reporting purposes under IFRS has accounted for the amount of gain or loss on the retirement of assets in a pool of like assets as a charge or credit to income, for reporting and rate application filings the distributor shall reclassify such gains and losses as depreciation expense, and disclose the amount separately.

Sheet App.2-BA_FA Cont 2013_OldCGAAP
N1: File Number: | O1: =EBNUMBER -> EB-2016-0166
N2: Exhibit:
N3: Tab:
N4: Schedule:
N5: Page:
N7: Date:
B9: Appendix 2-BA
B10: Fixed Asset Continuity Schedule
F12: Accounting Standard | G12: CGAAP | H12: Old CGAAP
F13: Year | G13: 2013
A15: RHI | B15: OEB | E15: Cost | K15: Accumulated Depreciation
A16: CCA Class | B16: CCA Class | C16: OEB | D16: Description | E16: Opening Balance | F16: Additions | G16: Disposals | H16: Closing Balance | J16: Opening Balance | K16: Additions | L16: Disposals | M16: Adj to Opening | N16: Closing Balance | O16: Net Book Value
A17: 12 | B17: 12 | C17: 1611 | D17: Computer Software (Formally known as Account 1925) | E17: =+'App.2-BA_FA Cont 2012 OldCGAAP'!H17 -> 120704.76 | H17: =E17+F17+G17 -> 120704.76 | J17: =+'App.2-BA_FA Cont 2012 OldCGAAP'!M17 -> -117482.26 | K17: -1289 | N17: =J17+K17+L17+M17 -> -118771.26 | O17: =H17+N17 -> 1933.5
A18: CEC | B18: CEC | C18: 1612 | D18: Land Rights (Formally known as Account 1906) | E18: =+'App.2-BA_FA Cont 2012 OldCGAAP'!H18 -> 23980.67 | H18: =E18+F18+G18 -> 23980.67 | J18: =+'App.2-BA_FA Cont 2012 OldCGAAP'!M18 -> -17963 | K18: -390.33 | N18: =J18+K18+L18+M18 -> -18353.33 | O18: =H18+N18 -> 5627.34
A19: N/A | B19: N/A | C19: 1805 | D19: Land | E19: =+'App.2-BA_FA Cont 2012 OldCGAAP'!H19 -> 22895.33 | H19: =E19+F19+G19 -> 22895.33 | J19: ='App.2-BA_FA Cont 2013 OldCGAAP'!L19 -> 0 | N19: 0 | O19: =H19+N19 -> 22895.33
A20: 1 | B20: 47 | C20: 1808 | D20: Buildings | E20: =+'App.2-BA_FA Cont 2012 OldCGAAP'!H20 -> 201834.33 | H20: =E20+F20+G20 -> 201834.33 | J20: =+'App.2-BA_FA Cont 2012 OldCGAAP'!M20 -> -91301.48 | K20: -5352.04 | N20: -96653.52 | O20: =H20+N20 -> 105180.81
B21: 13 | C21: 1810 | D21: Leasehold Improvements | E21: =+'App.2-BA_FA Cont 2012 OldCGAAP'!H21 -> 0 | H21: 0 | J21: ='App.2-BA_FA Cont 2013 OldCGAAP'!L21 -> 0 | N21: 0 | O21: 0
B22: 47 | C22: 1815 | D22: Transformer Station Equipment >50 kV | E22: =+'App.2-BA_FA Cont 2012 OldCGAAP'!H22 -> 0 | H22: 0 | J22: ='App.2-BA_FA Cont 2013 OldCGAAP'!L22 -> 0 | N22: 0 | O22: 0
A23: 1/47 | B23: 47 | C23: 1820 | D23: Distribution Station Equipment <50 kV | E23: =+'App.2-BA_FA Cont 2012 OldCGAAP'!H23 -> 1288197.03 | H23: 1288197.03 | J23: =+'App.2-BA_FA Cont 2012 OldCGAAP'!M23 -> -725824.2 | K23: -36218.28 | N23: -762042.48 | O23: 526154.55
B24: 47 | C24: 1825 | D24: Storage Battery Equipment | E24: =+'App.2-BA_FA Cont 2012 OldCGAAP'!H24 -> 0 | H24: 0 | J24: ='App.2-BA_FA Cont 2013 OldCGAAP'!L25 -> 0 | N24: 0 | O24: 0
A25: 1/47 | B25: 47 | C25: 1830 | D25: Poles, Towers & Fixtures | E25: =+'App.2-BA_FA Cont 2012 OldCGAAP'!H25 -> 2484558.88 | F25: 109812.52 | H25: 2594371.4 | J25: =+'App.2-BA_FA Cont 2012 OldCGAAP'!M25 -> -1278538.48 | K25: -78934.05 | M25: -34510.5 | N25: -1391983.03 | O25: 1202388.37
A26: 1/47 | B26: 47 | C26: 1835 | D26: Overhead Conductors & Devices | E26: =+'App.2-BA_FA Cont 2012 OldCGAAP'!H26 -> 3971487.96 | F26: 64843.03 | H26: 4036330.99 | J26: =+'App.2-BA_FA Cont 2012 OldCGAAP'!M26 -> -2588500.01 | K26: -110459.76 | M26: -2013.58 | N26: -2700973.35 | O26: 1335357.64
A27: 1/47 | B27: 47 | C27: 1840 | D27: Underground Conduit | E27: =+'App.2-BA_FA Cont 2012 OldCGAAP'!H27 -> 63070.82 | F27: 4520.01 | H27: 67590.83 | J27: =+'App.2-BA_FA Cont 2012 OldCGAAP'!M27 -> -22264.93 | K27: -2540.64 | M27: 571.39 | N27: -24234.18 | O27: 43356.65
A28: 1/47 | B28: 47 | C28: 1845 | D28: Underground Conductors & Devices | E28: =+'App.2-BA_FA Cont 2012 OldCGAAP'!H28 -> 413142.6 | F28: 85037 | H28: 498179.6 | J28: =+'App.2-BA_FA Cont 2012 OldCGAAP'!M28 -> -171758.66 | K28: -17492.66 | M28: 3156.83 | N28: -186094.49 | O28: 312085.11
A29: 1/47 | B29: 47 | C29: 1850 | D29: Line Transformers | E29: =+'App.2-BA_FA Cont 2012 OldCGAAP'!H29 -> 1629043.32 | F29: 41355.93 | H29: 1670399.25 | J29: =+'App.2-BA_FA Cont 2012 OldCGAAP'!M29 -> -1207342.59 | K29: -36568.48 | N29: -1243911.07 | O29: 426488.18
A30: 1/47 | B30: 47 | C30: 1855 | D30: Services (Overhead & Underground) | E30: =+'App.2-BA_FA Cont 2012 OldCGAAP'!H30 -> 1542419.73 | F30: =19345.57+15620.61 -> 34966.18 | H30: 1577385.91 | J30: =+'App.2-BA_FA Cont 2012 OldCGAAP'!M30 -> -1199029.91 | K30: -39642.85 | M30: =33519.93-3727.91 -> 29792.02 | N30: -1208880.74 | O30: 368505.17
A31: 1/47 | B31: 47 | C31: 1860 | D31: Meters | E31: =+'App.2-BA_FA Cont 2012 OldCGAAP'!H31 -> 594329.39 | H31: 594329.39 | J31: =+'App.2-BA_FA Cont 2012 OldCGAAP'!M31 -> -470161.64 | K31: -14139.78 | M31: 406.92 | N31: -483894.5 | O31: 110434.89
A32: 47 | B32: 47 | C32: 1860 | D32: Meters (Smart Meters) | E32: =+'App.2-BA_FA Cont 2012 OldCGAAP'!H32 -> 0 | F32: 14490.6 | H32: 14490.6 | J32: ='App.2-BA_FA Cont 2013 OldCGAAP'!L33 -> 0 | K32: -483.02 | N32: -483.02 | O32: 14007.58
A33: N/A | B33: N/A | C33: 1905 | D33: Land | E33: =+'App.2-BA_FA Cont 2012 OldCGAAP'!H33 -> 0 | H33: 0 | J33: ='App.2-BA_FA Cont 2013 OldCGAAP'!L34 -> 0 | N33: 0 | O33: 0
B34: 47 | C34: 1908 | D34: Buildings & Fixtures | E34: =+'App.2-BA_FA Cont 2012 OldCGAAP'!H34 -> 0 | H34: 0 | J34: ='App.2-BA_FA Cont 2013 OldCGAAP'!L35 -> 0 | N34: 0 | O34: 0
A35: 13 | B35: 13 | C35: 1910 | D35: Leasehold Improvements | E35: =+'App.2-BA_FA Cont 2012 OldCGAAP'!H35 -> 0 | H35: 0 | J35: ='App.2-BA_FA Cont 2013 OldCGAAP'!L36 -> 0 | N35: 0 | O35: 0
A36: 8 | B36: 8 | C36: 1915 | D36: Office Furniture & Equipment (10 years) | E36: =+'App.2-BA_FA Cont 2012 OldCGAAP'!H36 -> 30841.31 | H36: 30841.31 | J36: =+'App.2-BA_FA Cont 2012 OldCGAAP'!M36 -> -31044.59 | M36: 203.28 | N36: -30841.31 | O36: 0
A37: 8 | B37: 8 | C37: 1915 | D37: Office Furniture & Equipment (5 years) | E37: =+'App.2-BA_FA Cont 2012 OldCGAAP'!H37 -> 0 | H37: 0 | J37: ='App.2-BA_FA Cont 2013 OldCGAAP'!L38 -> 0 | N37: 0 | O37: 0
A38: 10 | B38: 10 | C38: 1920 | D38: Computer Equipment - Hardware | E38: =+'App.2-BA_FA Cont 2012 OldCGAAP'!H38 -> 95623.9 | H38: 95623.9 | J38: ='App.2-BA_FA Cont 2013 OldCGAAP'!L39 -> -91279.84 | K38: -2230.64 | M38: 3914.54 | N38: -89595.94 | O38: 6027.96
B39: 45 | C39: 1920 | D39: Computer Equip.-Hardware(Post Mar. 22/04) | E39: =+'App.2-BA_FA Cont 2012 OldCGAAP'!H39 -> 0 | H39: 0 | J39: ='App.2-BA_FA Cont 2013 OldCGAAP'!L40 -> 0 | N39: 0 | O39: 0
B40: 45.1 | C40: 1920 | D40: Computer Equip.-Hardware(Post Mar. 19/07) | E40: =+'App.2-BA_FA Cont 2012 OldCGAAP'!H40 -> 0 | H40: 0 | J40: =+'App.2-BA_FA Cont 2012 OldCGAAP'!M40 -> 0 | N40: 0 | O40: 0
A41: 10 | B41: 10 | C41: 1930 | D41: Transportation Equipment | E41: =+'App.2-BA_FA Cont 2012 OldCGAAP'!H41 -> 996874.11 | F41: 2500 | H41: 999374.11 | J41: =+'App.2-BA_FA Cont 2012 OldCGAAP'!M41 -> -791715.91 | K41: -47215.04 | M41: -7.93 | N41: -838938.88 | O41: 160435.23
A42: 8 | B42: 8 | C42: 1935 | D42: Stores Equipment | E42: =+'App.2-BA_FA Cont 2012 OldCGAAP'!H42 -> 3559.1 | H42: 3559.1 | J42: =+'App.2-BA_FA Cont 2012 OldCGAAP'!M42 -> -3559.1 | N42: -3559.1 | O42: 0
A43: 8 | B43: 8 | C43: 1940 | D43: Tools, Shop & Garage Equipment | E43: =+'App.2-BA_FA Cont 2012 OldCGAAP'!H43 -> 186853.67 | H43: 186853.67 | J43: =+'App.2-BA_FA Cont 2012 OldCGAAP'!M43 -> -191805.34 | K43: -1824.64 | M43: 11966.52 | N43: -181663.46 | O43: 5190.21
A44: 8 | B44: 8 | C44: 1945 | D44: Measurement & Testing Equipment | E44: =+'App.2-BA_FA Cont 2012 OldCGAAP'!H44 -> 0 | H44: 0 | J44: =+'App.2-BA_FA Cont 2012 OldCGAAP'!M44 -> 0 | N44: 0 | O44: 0
A45: 8 | B45: 8 | C45: 1950 | D45: Power Operated Equipment | E45: =+'App.2-BA_FA Cont 2012 OldCGAAP'!H45 -> 0 | H45: 0 | J45: ='App.2-BA_FA Cont 2013 OldCGAAP'!L46 -> 0 | N45: 0 | O45: 0
A46: 8 | B46: 8 | C46: 1955 | D46: Communications Equipment | E46: =+'App.2-BA_FA Cont 2012 OldCGAAP'!H46 -> 0 | H46: 0 | J46: =+'App.2-BA_FA Cont 2012 OldCGAAP'!M46 -> 0 | N46: 0 | O46: 0
A47: 8 | B47: 8 | C47: 1955 | D47: Communication Equipment (Smart Meters) | E47: =+'App.2-BA_FA Cont 2012 OldCGAAP'!H47 -> 0 | H47: 0 | J47: ='App.2-BA_FA Cont 2013 OldCGAAP'!L48 -> 0 | N47: 0 | O47: 0
A48: 8 | B48: 8 | C48: 1960 | D48: Miscellaneous Equipment | E48: =+'App.2-BA_FA Cont 2012 OldCGAAP'!H48 -> 0 | H48: 0 | J48: =+'App.2-BA_FA Cont 2012 OldCGAAP'!M48 -> 0 | N48: 0 | O48: 0
A49: 47 | B49: 47 | C49: 1970 | D49: Load Management Controls Customer Premises | E49: =+'App.2-BA_FA Cont 2012 OldCGAAP'!H49 -> 0 | H49: 0 | J49: =+'App.2-BA_FA Cont 2012 OldCGAAP'!M49 -> 0 | N49: 0 | O49: 0
A50: 47 | B50: 47 | C50: 1975 | D50: Load Management Controls Utility Premises | E50: =+'App.2-BA_FA Cont 2012 OldCGAAP'!H50 -> 0 | H50: 0 | J50: =+'App.2-BA_FA Cont 2012 OldCGAAP'!M50 -> 0 | N50: 0 | O50: 0
A51: 47 | B51: 47 | C51: 1980 | D51: System Supervisor Equipment | E51: =+'App.2-BA_FA Cont 2012 OldCGAAP'!H51 -> 0 | H51: 0 | J51: =+'App.2-BA_FA Cont 2012 OldCGAAP'!M51 -> 0 | N51: 0 | O51: 0
A52: 47 | B52: 47 | C52: 1985 | D52: Miscellaneous Fixed Assets | E52: =+'App.2-BA_FA Cont 2012 OldCGAAP'!H52 -> 0 | H52: 0 | J52: =+'App.2-BA_FA Cont 2012 OldCGAAP'!M52 -> 0 | N52: 0 | O52: 0
A53: 47 | B53: 47 | C53: 1990 | D53: Other Tangible Property | E53: =+'App.2-BA_FA Cont 2012 OldCGAAP'!H53 -> 0 | H53: 0 | J53: =+'App.2-BA_FA Cont 2012 OldCGAAP'!M53 -> 0 | N53: 0 | O53: 0
C54: 1995 | D54: Contributions & Grants - O/H Conductor | E54: =+'App.2-BA_FA Cont 2012 OldCGAAP'!H54 -> 0 | F54: -2000 | H54: -2000 | J54: =+'App.2-BA_FA Cont 2012 OldCGAAP'!M54 -> 0 | K54: 40 | N54: =J54+K54+L54+M54 -> 40 | O54: -1960
C55: 1995 | D55: Contributions & Grants - Poles | E55: =+'App.2-BA_FA Cont 2012 OldCGAAP'!H55 -> 0 | F55: -15100 | H55: -15100 | J55: =+'App.2-BA_FA Cont 2012 OldCGAAP'!M55 -> 0 | K55: 302 | N55: 302 | O55: -14798
C56: 1995 | D56: Contributions & Grants - Transformers | E56: =+'App.2-BA_FA Cont 2012 OldCGAAP'!H56 -> 0 | F56: -7500 | H56: -7500 | J56: =+'App.2-BA_FA Cont 2012 OldCGAAP'!M56 -> 0 | K56: 150 | N56: 150 | O56: -7350
C57: 2440 | D57: Deferred Revenue5 | E57: =+'App.2-BA_FA Cont 2012 OldCGAAP'!H55 -> 0 | J57: =+'App.2-BA_FA Cont 2012 OldCGAAP'!M55 -> 0 | N57: 0
H58: 0 | N58: 0 | O58: 0
D59: Sub-Total | E59: =SUM(E17:E58) -> 13669416.91 | F59: =SUM(F17:F58) -> 332925.27 | G59: =SUM(G17:G58) -> 0 | H59: =SUM(H17:H58) -> 14002342.18 | J59: =SUM(J17:J58) -> -8999571.94 | K59: -394289.21 | L59: 0 | M59: 13479.49 | N59: =SUM(N17:N58) -> -9380381.66 | O59: 4621960.52
D60: Less Socialized Renewable Energy Generation Investments (input as negative) | H60: =E60+F60+G60 -> 0 | N60: =J60+K60+L60 -> 0 | O60: =H60+N60 -> 0
D61: Less Other Non Rate-Regulated Utility Assets (input as negative) | H61: 0 | N61: 0 | O61: 0
D62: Total PP&E | E62: =SUM(E59:E61) -> 13669416.91 | F62: =SUM(F59:F61) -> 332925.27 | G62: 0 | H62: 14002342.18 | J62: =SUM(J59:J61) -> -8999571.94 | K62: =SUM(K59:K61) -> -394289.21 | L62: 0 | M62: 13479.49 | N62: =SUM(N59:N61) -> -9380381.66 | O62: 4621960.52
D63: Depreciation Expense adj. from gain or loss on the retirement of assets (pool of like assets), if applicable6
D64: Total | K64: =K62+K63+M62 -> -380809.72
J66: Less: Fully Allocated Depreciation
B67: 10 | D67: Transportation | J67: Transportation
B68: 8 | D68: Stores Equipment | J68: Stores Equipment
J69: Net Depreciation | L69: =K64-L67-L68 -> -380809.72
B71: Notes: | J71: 13479 | K71: Errors found on old Fixed Asset Continuity Schedules (Over depreciated)
K72: Adjusted Opening A/D for errors in past years.
C74: Originally hydro distribution assets were added to Class 1 for tax purposes. This was changed a few years ago and all new additions are now in Class 47.
B76: 1 | C76: Tables in the format outlined above covering all fixed asset accounts should be submitted for the Test Year, Bridge Year and all relevant historical years. At a minimum , the applicant must provide data for the earlier of: 1) all historical years back to its last rebasing; or 2) at least three years of historical actuals, in addition to Bridge Year and Test Year forecasts.
B79: 2 | C79: The "CCA Class" for fixed assets should agree with the CCA Class used for tax purposes in Tax Returns. Fixed Assets sub-components may be used where the underlying asset components are classified under multiple CCA Classes for tax purposes. If an applicant uses any different classes from those shown in the table, an explanation should be provided. (also see note 3 below).
B82: 3 | C82: The table may need to be customized for a utility's asset categories or for any new asset accounts announced or authorized by the Board.
B84: 4 | C84: The additions column (E) must not include construction work in progress (CWIP).
B86: 5 | C86: Effective on the date of IFRS adoption, customer contributions will no longer be recorded in Account 1995 Contributions & Grants, but will be recorded in Account 2440, Deferred Revenues.
B88: 6 | C88: Where a distributor for general financial reporting purposes under IFRS has accounted for the amount of gain or loss on the retirement of assets in a pool of like assets as a charge or credit to income, for reporting and rate application filings the distributor shall reclassify such gains and losses as depreciation expense, and disclose the amount separately.

Sheet App.2-BA_FA Cont 2014_OldCGAAP
M1: File Number: | N1: =EBNUMBER -> EB-2016-0166
M2: Exhibit:
M3: Tab:
M4: Schedule:
M5: Page:
M7: Date:
B9: Appendix 2-BA
B10: Fixed Asset Continuity Schedule
F12: Accounting Standard | G12: CGAAP | H12: Old CGAAP
F13: Year | G13: 2014
A15: RHI | B15: OEB | E15: Cost | K15: Accumulated Depreciation
A16: CCA Class | B16: CCA Class | C16: OEB | D16: Description | E16: Opening Balance | F16: Additions | G16: Disposals | H16: Closing Balance | J16: Opening Balance | K16: Additions | L16: Disposals | M16: Closing Balance | N16: Net Book Value
A17: 12 | B17: 12 | C17: 1611 | D17: Computer Software (Formally known as Account 1925) | E17: =+'App.2-BA_FA Cont 2013_OldCGAAP'!H17 -> 120704.76 | H17: =E17+F17+G17 -> 120704.76 | J17: =+'App.2-BA_FA Cont 2013_OldCGAAP'!N17 -> -118771.26 | K17: -1289 | M17: =J17+K17+L17 -> -120060.26 | N17: =H17+M17 -> 644.5
A18: CEC | B18: CEC | C18: 1612 | D18: Land Rights (Formally known as Account 1906) | E18: =+'App.2-BA_FA Cont 2013_OldCGAAP'!H18 -> 23980.67 | H18: =E18+F18+G18 -> 23980.67 | J18: =+'App.2-BA_FA Cont 2013_OldCGAAP'!N18 -> -18353.33 | K18: -390.33 | M18: =J18+K18+L18 -> -18743.66 | N18: 5237.01
A19: N/A | B19: N/A | C19: 1805 | D19: Land | E19: =+'App.2-BA_FA Cont 2013_OldCGAAP'!H19 -> 22895.33 | H19: =E19+F19+G19 -> 22895.33 | J19: =+'App.2-BA_FA Cont 2013_OldCGAAP'!N19 -> 0 | M19: 0 | N19: 22895.33
A20: 1 | B20: 47 | C20: 1808 | D20: Buildings | E20: =+'App.2-BA_FA Cont 2013_OldCGAAP'!H20 -> 201834.33 | H20: =E20+F20+G20 -> 201834.33 | J20: =+'App.2-BA_FA Cont 2013_OldCGAAP'!N20 -> -96653.52 | K20: =-2895.83-781.44 -> -3677.27 | M20: -100330.79 | N20: 101503.54
B21: 13 | C21: 1810 | D21: Leasehold Improvements | E21: =+'App.2-BA_FA Cont 2013_OldCGAAP'!H21 -> 0 | H21: 0 | J21: =+'App.2-BA_FA Cont 2013_OldCGAAP'!N21 -> 0 | M21: 0 | N21: 0
B22: 47 | C22: 1815 | D22: Transformer Station Equipment >50 kV | E22: =+'App.2-BA_FA Cont 2013_OldCGAAP'!H22 -> 0 | H22: 0 | J22: =+'App.2-BA_FA Cont 2013_OldCGAAP'!N22 -> 0 | M22: 0 | N22: 0
A23: 1/47 | B23: 47 | C23: 1820 | D23: Distribution Station Equipment <50 kV | E23: =+'App.2-BA_FA Cont 2013_OldCGAAP'!H23 -> 1288197.03 | H23: 1288197.03 | J23: =+'App.2-BA_FA Cont 2013_OldCGAAP'!N23 -> -762042.48 | K23: =-8732-4763.94-9830.1-10060.24 -> -33386.28 | M23: -795428.76 | N23: 492768.27
B24: 47 | C24: 1825 | D24: Storage Battery Equipment | E24: =+'App.2-BA_FA Cont 2013_OldCGAAP'!H24 -> 0 | H24: 0 | J24: =+'App.2-BA_FA Cont 2013_OldCGAAP'!N24 -> 0 | M24: 0 | N24: 0
A25: 1/47 | B25: 47 | C25: 1830 | D25: Poles, Towers & Fixtures | E25: =+'App.2-BA_FA Cont 2013_OldCGAAP'!H25 -> 2594371.4 | F25: 127369.87 | H25: 2721741.27 | J25: =+'App.2-BA_FA Cont 2013_OldCGAAP'!N25 -> -1391983.03 | K25: -81401.88 | M25: -1473384.91 | N25: 1248356.36
A26: 1/47 | B26: 47 | C26: 1835 | D26: Overhead Conductors & Devices | E26: =+'App.2-BA_FA Cont 2013_OldCGAAP'!H26 -> 4036330.99 | F26: 114905.11 | H26: 4151236.1 | J26: =+'App.2-BA_FA Cont 2013_OldCGAAP'!N26 -> -2700973.35 | K26: -108744.5 | M26: -2809717.85 | N26: 1341518.25
A27: 1/47 | B27: 47 | C27: 1840 | D27: Underground Conduit | E27: =+'App.2-BA_FA Cont 2013_OldCGAAP'!H27 -> 67590.83 | F27: 10114.08 | H27: 77704.91 | J27: =+'App.2-BA_FA Cont 2013_OldCGAAP'!N27 -> -24234.18 | K27: -2763.96 | M27: -26998.14 | N27: 50706.77
A28: 1/47 | B28: 47 | C28: 1845 | D28: Underground Conductors & Devices | E28: =+'App.2-BA_FA Cont 2013_OldCGAAP'!H28 -> 498179.6 | F28: 24716.71 | H28: 522896.31 | J28: =+'App.2-BA_FA Cont 2013_OldCGAAP'!N28 -> -186094.49 | K28: -19063.55 | M28: -205158.04 | N28: 317738.27
A29: 1/47 | B29: 47 | C29: 1850 | D29: Line Transformers | E29: =+'App.2-BA_FA Cont 2013_OldCGAAP'!H29 -> 1670399.25 | F29: 28522.73 | H29: 1698921.98 | J29: =+'App.2-BA_FA Cont 2013_OldCGAAP'!N29 -> -1243911.07 | K29: -33948.03 | M29: -1277859.1 | N29: 421062.88
A30: 1/47 | B30: 47 | C30: 1855 | D30: Services (Overhead & Underground) | E30: =+'App.2-BA_FA Cont 2013_OldCGAAP'!H30 -> 1577385.91 | F30: =9808.34+4739.37 -> 14547.71 | H30: 1591933.62 | J30: =+'App.2-BA_FA Cont 2013_OldCGAAP'!N30 -> -1208880.74 | K30: =-32668.05-5205.23 -> -37873.28 | M30: -1246754.02 | N30: 345179.6
A31: 1/47 | B31: 47 | C31: 1860 | D31: Meters | E31: =+'App.2-BA_FA Cont 2013_OldCGAAP'!H31 -> 594329.39 | H31: 594329.39 | J31: =+'App.2-BA_FA Cont 2013_OldCGAAP'!N31 -> -483894.5 | K31: -13367.78 | M31: -497262.28 | N31: 97067.11
A32: 47 | B32: 47 | C32: 1860 | D32: Meters (Smart Meters) | E32: =+'App.2-BA_FA Cont 2013_OldCGAAP'!H32 -> 14490.6 | F32: 10278.4 | H32: 24769 | J32: =+'App.2-BA_FA Cont 2013_OldCGAAP'!N32 -> -483.02 | K32: -1308.66 | M32: -1791.68 | N32: 22977.32
A33: N/A | B33: N/A | C33: 1905 | D33: Land | E33: =+'App.2-BA_FA Cont 2013_OldCGAAP'!H33 -> 0 | H33: 0 | J33: =+'App.2-BA_FA Cont 2013_OldCGAAP'!N33 -> 0 | M33: 0 | N33: 0
B34: 47 | C34: 1908 | D34: Buildings & Fixtures | E34: =+'App.2-BA_FA Cont 2013_OldCGAAP'!H34 -> 0 | H34: 0 | J34: =+'App.2-BA_FA Cont 2013_OldCGAAP'!N34 -> 0 | M34: 0 | N34: 0
A35: 13 | B35: 13 | C35: 1910 | D35: Leasehold Improvements | E35: =+'App.2-BA_FA Cont 2013_OldCGAAP'!H35 -> 0 | H35: 0 | J35: =+'App.2-BA_FA Cont 2013_OldCGAAP'!N35 -> 0 | M35: 0 | N35: 0
A36: 8 | B36: 8 | C36: 1915 | D36: Office Furniture & Equipment (10 years) | E36: =+'App.2-BA_FA Cont 2013_OldCGAAP'!H36 -> 30841.31 | H36: 30841.31 | J36: =+'App.2-BA_FA Cont 2013_OldCGAAP'!N36 -> -30841.31 | K36: 0 | M36: -30841.31 | N36: 0
A37: 8 | B37: 8 | C37: 1915 | D37: Office Furniture & Equipment (5 years) | E37: =+'App.2-BA_FA Cont 2013_OldCGAAP'!H37 -> 0 | H37: 0 | J37: =+'App.2-BA_FA Cont 2013_OldCGAAP'!N37 -> 0 | M37: 0 | N37: 0
A38: 10 | B38: 10 | C38: 1920 | D38: Computer Equipment - Hardware | E38: =+'App.2-BA_FA Cont 2013_OldCGAAP'!H38 -> 95623.9 | F38: 5437.25 | H38: 101061.15 | J38: =+'App.2-BA_FA Cont 2013_OldCGAAP'!N38 -> -89595.94 | K38: -2774.37 | M38: -92370.31 | N38: 8690.84
B39: 45 | C39: 1920 | D39: Computer Equip.-Hardware(Post Mar. 22/04) | E39: =+'App.2-BA_FA Cont 2013_OldCGAAP'!H39 -> 0 | H39: 0 | J39: =+'App.2-BA_FA Cont 2013_OldCGAAP'!N39 -> 0 | M39: 0 | N39: 0
B40: 45.1 | C40: 1920 | D40: Computer Equip.-Hardware(Post Mar. 19/07) | E40: =+'App.2-BA_FA Cont 2013_OldCGAAP'!H40 -> 0 | H40: 0 | J40: =+'App.2-BA_FA Cont 2013_OldCGAAP'!N40 -> 0 | M40: 0 | N40: 0
A41: 10 | B41: 10 | C41: 1930 | D41: Transportation Equipment | E41: =+'App.2-BA_FA Cont 2013_OldCGAAP'!H41 -> 999374.11 | F41: 21744 | H41: 1021118.11 | J41: =+'App.2-BA_FA Cont 2013_OldCGAAP'!N41 -> -838938.88 | K41: -49639.44 | M41: -888578.32 | N41: 132539.79
A42: 8 | B42: 8 | C42: 1935 | D42: Stores Equipment | E42: =+'App.2-BA_FA Cont 2013_OldCGAAP'!H42 -> 3559.1 | H42: 3559.1 | J42: =+'App.2-BA_FA Cont 2013_OldCGAAP'!N42 -> -3559.1 | M42: -3559.1 | N42: 0
A43: 8 | B43: 8 | C43: 1940 | D43: Tools, Shop & Garage Equipment | E43: =+'App.2-BA_FA Cont 2013_OldCGAAP'!H43 -> 186853.67 | H43: 186853.67 | J43: =+'App.2-BA_FA Cont 2013_OldCGAAP'!N43 -> -181663.46 | K43: -1570.32 | M43: -183233.78 | N43: 3619.89
A44: 8 | B44: 8 | C44: 1945 | D44: Measurement & Testing Equipment | E44: =+'App.2-BA_FA Cont 2013_OldCGAAP'!H44 -> 0 | H44: 0 | J44: =+'App.2-BA_FA Cont 2013_OldCGAAP'!N44 -> 0 | M44: 0 | N44: 0
A45: 8 | B45: 8 | C45: 1950 | D45: Power Operated Equipment | E45: =+'App.2-BA_FA Cont 2013_OldCGAAP'!H45 -> 0 | H45: 0 | J45: =+'App.2-BA_FA Cont 2013_OldCGAAP'!N45 -> 0 | M45: 0 | N45: 0
A46: 8 | B46: 8 | C46: 1955 | D46: Communications Equipment | E46: =+'App.2-BA_FA Cont 2013_OldCGAAP'!H46 -> 0 | H46: 0 | J46: =+'App.2-BA_FA Cont 2013_OldCGAAP'!N46 -> 0 | M46: 0 | N46: 0
A47: 8 | B47: 8 | C47: 1955 | D47: Communication Equipment (Smart Meters) | E47: =+'App.2-BA_FA Cont 2013_OldCGAAP'!H47 -> 0 | H47: 0 | J47: =+'App.2-BA_FA Cont 2013_OldCGAAP'!N47 -> 0 | M47: 0 | N47: 0
A48: 8 | B48: 8 | C48: 1960 | D48: Miscellaneous Equipment | E48: =+'App.2-BA_FA Cont 2013_OldCGAAP'!H48 -> 0 | H48: 0 | J48: =+'App.2-BA_FA Cont 2013_OldCGAAP'!N48 -> 0 | M48: 0 | N48: 0
A49: 47 | B49: 47 | C49: 1970 | D49: Load Management Controls Customer Premises | E49: =+'App.2-BA_FA Cont 2013_OldCGAAP'!H49 -> 0 | H49: 0 | J49: =+'App.2-BA_FA Cont 2013_OldCGAAP'!N49 -> 0 | M49: 0 | N49: 0
A50: 47 | B50: 47 | C50: 1975 | D50: Load Management Controls Utility Premises | E50: =+'App.2-BA_FA Cont 2013_OldCGAAP'!H50 -> 0 | H50: 0 | J50: =+'App.2-BA_FA Cont 2013_OldCGAAP'!N50 -> 0 | M50: 0 | N50: 0
A51: 47 | B51: 47 | C51: 1980 | D51: System Supervisor Equipment | E51: =+'App.2-BA_FA Cont 2013_OldCGAAP'!H51 -> 0 | H51: 0 | J51: =+'App.2-BA_FA Cont 2013_OldCGAAP'!N51 -> 0 | M51: 0 | N51: 0
A52: 47 | B52: 47 | C52: 1985 | D52: Miscellaneous Fixed Assets | E52: =+'App.2-BA_FA Cont 2013_OldCGAAP'!H52 -> 0 | H52: 0 | J52: =+'App.2-BA_FA Cont 2013_OldCGAAP'!N52 -> 0 | M52: 0 | N52: 0
A53: 47 | B53: 47 | C53: 1990 | D53: Other Tangible Property | E53: =+'App.2-BA_FA Cont 2013_OldCGAAP'!H53 -> 0 | H53: 0 | J53: =+'App.2-BA_FA Cont 2013_OldCGAAP'!N53 -> 0 | M53: 0 | N53: 0
C54: 1995 | D54: Contributions & Grants - O/H Conductor | E54: =+'App.2-BA_FA Cont 2013_OldCGAAP'!H54 -> -2000 | H54: -2000 | J54: =+'App.2-BA_FA Cont 2013_OldCGAAP'!N54 -> 40 | K54: 80 | M54: 120 | N54: -1880
C55: 1995 | D55: Contributions & Grants - Poles | E55: =+'App.2-BA_FA Cont 2013_OldCGAAP'!H55 -> -15100 | H55: -15100 | J55: =+'App.2-BA_FA Cont 2013_OldCGAAP'!N55 -> 302 | K55: 604 | M55: 906 | N55: -14194
C56: 1995 | D56: Contributions & Grants - Transformers | E56: =+'App.2-BA_FA Cont 2013_OldCGAAP'!H56 -> -7500 | H56: -7500 | J56: =+'App.2-BA_FA Cont 2013_OldCGAAP'!N56 -> 150 | K56: 300 | M56: 450 | N56: -7050
C57: 2440 | D57: Deferred Revenue5 | E57: =+'App.2-BA_FA Cont 2013_OldCGAAP'!H57 -> 0 | J57: =+'App.2-BA_FA Cont 2013_OldCGAAP'!N57 -> 0 | M57: 0
H58: 0 | M58: 0 | N58: =H58+M58 -> 0
D59: Sub-Total | E59: =SUM(E17:E58) -> 14002342.18 | F59: =SUM(F17:F58) -> 357635.86 | G59: =SUM(G17:G58) -> 0 | H59: =SUM(H17:H58) -> 14359978.04 | J59: =SUM(J17:J58) -> -9380381.66 | K59: -390214.65 | L59: 0 | M59: -9770596.31 | N59: 4589381.73
D60: Less Socialized Renewable Energy Generation Investments (input as negative) | H60: =E60+F60+G60 -> 0 | M60: 0 | N60: =H60+M60 -> 0
D61: Less Other Non Rate-Regulated Utility Assets (input as negative) | H61: 0 | M61: 0 | N61: =H61+M61 -> 0
D62: Total PP&E | E62: =SUM(E59:E61) -> 14002342.18 | F62: =SUM(F59:F61) -> 357635.86 | G62: 0 | H62: 14359978.04 | J62: =SUM(J59:J61) -> -9380381.66 | K62: -390214.65 | L62: 0 | M62: -9770596.31 | N62: 4589381.73
D63: Depreciation Expense adj. from gain or loss on the retirement of assets (pool of like assets), if applicable6
D64: Total | K64: =K62+K63 -> -390214.65
J66: Less: Fully Allocated Depreciation
B67: 10 | D67: Transportation | J67: Transportation
B68: 8 | D68: Stores Equipment | J68: Stores Equipment
J69: Net Depreciation | L69: =K64-L67-L68 -> -390214.65
B71: Originally hydro distribution assets were added to Class 1 for tax purposes. This was changed a few years ago and all new additions are now in Class 47.
B73: Notes:
B75: 1 | C75: Tables in the format outlined above covering all fixed asset accounts should be submitted for the Test Year, Bridge Year and all relevant historical years. At a minimum , the applicant must provide data for the earlier of: 1) all historical years back to its last rebasing; or 2) at least three years of historical actuals, in addition to Bridge Year and Test Year forecasts.
B78: 2 | C78: The "CCA Class" for fixed assets should agree with the CCA Class used for tax purposes in Tax Returns. Fixed Assets sub-components may be used where the underlying asset components are classified under multiple CCA Classes for tax purposes. If an applicant uses any different classes from those shown in the table, an explanation should be provided. (also see note 3 below).
B81: 3 | C81: The table may need to be customized for a utility's asset categories or for any new asset accounts announced or authorized by the Board.
B83: 4 | C83: The additions column (E) must not include construction work in progress (CWIP).
B85: 5 | C85: Effective on the date of IFRS adoption, customer contributions will no longer be recorded in Account 1995 Contributions & Grants, but will be recorded in Account 2440, Deferred Revenues.
B87: 6 | C87: Where a distributor for general financial reporting purposes under IFRS has accounted for the amount of gain or loss on the retirement of assets in a pool of like assets as a charge or credit to income, for reporting and rate application filings the distributor shall reclassify such gains and losses as depreciation expense, and disclose the amount separately.

Sheet App.2-BA_FA Cont 2015_Old CGAAP
M1: File Number: | N1: =EBNUMBER -> EB-2016-0166
M2: Exhibit:
M3: Tab:
M4: Schedule:
M5: Page:
M7: Date:
B9: Appendix 2-BA
B10: Fixed Asset Continuity Schedule
F12: Accounting Standard | G12: CGAAP | H12: Old CGAAP
F13: Year | G13: 2015
A15: RHI | B15: OEB | E15: Cost | K15: Accumulated Depreciation
A16: CCA Class | B16: CCA Class | C16: OEB | D16: Description | E16: Opening Balance | F16: Additions | G16: Disposals | H16: Closing Balance | J16: Opening Balance | K16: Additions | L16: Disposals | M16: Closing Balance | N16: Net Book Value
A17: 12 | B17: 12 | C17: 1611 | D17: Computer Software (Formally known as Account 1925) | E17: =+'App.2-BA_FA Cont 2014_OldCGAAP'!H17 -> 120704.76 | F17: 39416.67 | H17: =E17+F17+G17 -> 160121.43 | J17: =+'App.2-BA_FA Cont 2014_OldCGAAP'!M17 -> -120060.26 | K17: -4586.17 | M17: =J17+K17+L17 -> -124646.43 | N17: =H17+M17 -> 35475
A18: CEC | B18: CEC | C18: 1612 | D18: Land Rights (Formally known as Account 1906) | E18: =+'App.2-BA_FA Cont 2014_OldCGAAP'!H18 -> 23980.67 | F18: 4320.68 | H18: =E18+F18+G18 -> 28301.35 | J18: =+'App.2-BA_FA Cont 2014_OldCGAAP'!M18 -> -18743.66 | K18: -498.35 | M18: =J18+K18+L18 -> -19242.01 | N18: =H18+M18 -> 9059.34
A19: N/A | B19: N/A | C19: 1805 | D19: Land | E19: =+'App.2-BA_FA Cont 2014_OldCGAAP'!H19 -> 22895.33 | H19: =E19+F19+G19 -> 22895.33 | J19: =+'App.2-BA_FA Cont 2014_OldCGAAP'!M19 -> 0 | M19: 0 | N19: 22895.33
A20: 1 | B20: 47 | C20: 1808 | D20: Buildings | E20: =+'App.2-BA_FA Cont 2014_OldCGAAP'!H20 -> 201834.33 | H20: =E20+F20+G20 -> 201834.33 | J20: =+'App.2-BA_FA Cont 2014_OldCGAAP'!M20 -> -100330.79 | K20: =-2895.83-781.44 -> -3677.27 | M20: -104008.06 | N20: 97826.27
B21: 13 | C21: 1810 | D21: Leasehold Improvements | E21: =+'App.2-BA_FA Cont 2014_OldCGAAP'!H21 -> 0 | H21: 0 | J21: =+'App.2-BA_FA Cont 2014_OldCGAAP'!M21 -> 0 | M21: 0 | N21: 0
B22: 47 | C22: 1815 | D22: Transformer Station Equipment >50 kV | E22: =+'App.2-BA_FA Cont 2014_OldCGAAP'!H22 -> 0 | H22: 0 | J22: =+'App.2-BA_FA Cont 2014_OldCGAAP'!M22 -> 0 | M22: 0 | N22: 0
A23: 1/47 | B23: 47 | C23: 1820 | D23: Distribution Station Equipment <50 kV | E23: =+'App.2-BA_FA Cont 2014_OldCGAAP'!H23 -> 1288197.03 | H23: 1288197.03 | J23: =+'App.2-BA_FA Cont 2014_OldCGAAP'!M23 -> -795428.76 | K23: =-8732-4763.94-9830.1-10060.24 -> -33386.28 | M23: -828815.04 | N23: 459381.99
B24: 47 | C24: 1825 | D24: Storage Battery Equipment | E24: =+'App.2-BA_FA Cont 2014_OldCGAAP'!H24 -> 0 | H24: 0 | J24: =+'App.2-BA_FA Cont 2014_OldCGAAP'!M24 -> 0 | M24: 0 | N24: 0
A25: 1/47 | B25: 47 | C25: 1830 | D25: Poles, Towers & Fixtures | E25: =+'App.2-BA_FA Cont 2014_OldCGAAP'!H25 -> 2721741.27 | F25: 182603.16 | H25: 2904344.43 | J25: =+'App.2-BA_FA Cont 2014_OldCGAAP'!M25 -> -1473384.91 | K25: -85500.45 | M25: -1558885.36 | N25: 1345459.07
A26: 1/47 | B26: 47 | C26: 1835 | D26: Overhead Conductors & Devices | E26: =+'App.2-BA_FA Cont 2014_OldCGAAP'!H26 -> 4151236.1 | F26: 68145.86 | H26: 4219381.96 | J26: =+'App.2-BA_FA Cont 2014_OldCGAAP'!M26 -> -2809717.85 | K26: -107503.44 | M26: -2917221.29 | N26: 1302160.67
A27: 1/47 | B27: 47 | C27: 1840 | D27: Underground Conduit | E27: =+'App.2-BA_FA Cont 2014_OldCGAAP'!H27 -> 77704.91 | H27: 77704.91 | J27: =+'App.2-BA_FA Cont 2014_OldCGAAP'!M27 -> -26998.14 | K27: -2956.51 | M27: -29954.65 | N27: 47750.26
A28: 1/47 | B28: 47 | C28: 1845 | D28: Underground Conductors & Devices | E28: =+'App.2-BA_FA Cont 2014_OldCGAAP'!H28 -> 522896.31 | H28: 522896.31 | J28: =+'App.2-BA_FA Cont 2014_OldCGAAP'!M28 -> -205158.04 | K28: -19470.32 | M28: -224628.36 | N28: 298267.95
A29: 1/47 | B29: 47 | C29: 1850 | D29: Line Transformers | E29: =+'App.2-BA_FA Cont 2014_OldCGAAP'!H29 -> 1698921.98 | F29: 62246.07 | H29: 1761168.05 | J29: =+'App.2-BA_FA Cont 2014_OldCGAAP'!M29 -> -1277859.1 | K29: -33587.11 | M29: -1311446.21 | N29: 449721.84
A30: 1/47 | B30: 47 | C30: 1855 | D30: Services (Overhead & Underground) | E30: =+'App.2-BA_FA Cont 2014_OldCGAAP'!H30 -> 1591933.62 | F30: =3838.97+6567.96 -> 10406.93 | H30: 1602340.55 | J30: =+'App.2-BA_FA Cont 2014_OldCGAAP'!M30 -> -1246754.02 | K30: =-30606.65-5398.94 -> -36005.59 | M30: -1282759.61 | N30: 319580.94
A31: 1/47 | B31: 47 | C31: 1860 | D31: Meters | E31: =+'App.2-BA_FA Cont 2014_OldCGAAP'!H31 -> 594329.39 | H31: 594329.39 | J31: =+'App.2-BA_FA Cont 2014_OldCGAAP'!M31 -> -497262.28 | K31: -12796.98 | M31: -510059.26 | N31: 84270.13
A32: 47 | B32: 47 | C32: 1860 | D32: Meters (Smart Meters) | E32: =+'App.2-BA_FA Cont 2014_OldCGAAP'!H32 -> 24769 | F32: 1884.18 | H32: 26653.18 | J32: =+'App.2-BA_FA Cont 2014_OldCGAAP'!M32 -> -1791.68 | K32: -1714.08 | M32: -3505.76 | N32: 23147.42
A33: N/A | B33: N/A | C33: 1905 | D33: Land | E33: =+'App.2-BA_FA Cont 2014_OldCGAAP'!H33 -> 0 | H33: 0 | J33: =+'App.2-BA_FA Cont 2014_OldCGAAP'!M33 -> 0 | M33: 0 | N33: 0
B34: 47 | C34: 1908 | D34: Buildings & Fixtures | E34: =+'App.2-BA_FA Cont 2014_OldCGAAP'!H34 -> 0 | H34: 0 | J34: =+'App.2-BA_FA Cont 2014_OldCGAAP'!M34 -> 0 | M34: 0 | N34: 0
A35: 13 | B35: 13 | C35: 1910 | D35: Leasehold Improvements | E35: =+'App.2-BA_FA Cont 2014_OldCGAAP'!H35 -> 0 | F35: 116088.07 | H35: 116088.07 | J35: =+'App.2-BA_FA Cont 2014_OldCGAAP'!M35 -> 0 | K35: -5804.41 | M35: -5804.41 | N35: 110283.66
A36: 8 | B36: 8 | C36: 1915 | D36: Office Furniture & Equipment (10 years) | E36: =+'App.2-BA_FA Cont 2014_OldCGAAP'!H36 -> 30841.31 | F36: 21604.43 | H36: 52445.74 | J36: =+'App.2-BA_FA Cont 2014_OldCGAAP'!M36 -> -30841.31 | K36: -1080.22 | M36: -31921.53 | N36: 20524.21
A37: 8 | B37: 8 | C37: 1915 | D37: Office Furniture & Equipment (5 years) | E37: =+'App.2-BA_FA Cont 2014_OldCGAAP'!H37 -> 0 | H37: 0 | J37: =+'App.2-BA_FA Cont 2014_OldCGAAP'!M37 -> 0 | M37: 0 | N37: 0
A38: 10 | B38: 10 | C38: 1920 | D38: Computer Equipment - Hardware | E38: =+'App.2-BA_FA Cont 2014_OldCGAAP'!H38 -> 101061.15 | F38: 1917.99 | H38: 102979.14 | J38: =+'App.2-BA_FA Cont 2014_OldCGAAP'!M38 -> -92370.31 | K38: -3065.07 | M38: -95435.38 | N38: 7543.76
B39: 45 | C39: 1920 | D39: Computer Equip.-Hardware(Post Mar. 22/04) | E39: =+'App.2-BA_FA Cont 2014_OldCGAAP'!H39 -> 0 | H39: 0 | J39: =+'App.2-BA_FA Cont 2014_OldCGAAP'!M39 -> 0 | M39: 0 | N39: 0
B40: 45.1 | C40: 1920 | D40: Computer Equip.-Hardware(Post Mar. 19/07) | E40: =+'App.2-BA_FA Cont 2014_OldCGAAP'!H40 -> 0 | H40: 0 | J40: =+'App.2-BA_FA Cont 2014_OldCGAAP'!M40 -> 0 | M40: 0 | N40: 0
A41: 10 | B41: 10 | C41: 1930 | D41: Transportation Equipment | E41: =+'App.2-BA_FA Cont 2014_OldCGAAP'!H41 -> 1021118.11 | H41: 1021118.11 | J41: =+'App.2-BA_FA Cont 2014_OldCGAAP'!M41 -> -888578.32 | K41: -51813.84 | M41: -940392.16 | N41: 80725.95
A42: 8 | B42: 8 | C42: 1935 | D42: Stores Equipment | E42: =+'App.2-BA_FA Cont 2014_OldCGAAP'!H42 -> 3559.1 | F42: 1731.25 | H42: 5290.35 | J42: =+'App.2-BA_FA Cont 2014_OldCGAAP'!M42 -> -3559.1 | K42: -86.57 | M42: -3645.67 | N42: 1644.68
A43: 8 | B43: 8 | C43: 1940 | D43: Tools, Shop & Garage Equipment | E43: =+'App.2-BA_FA Cont 2014_OldCGAAP'!H43 -> 186853.67 | F43: 625.08 | H43: 187478.75 | J43: =+'App.2-BA_FA Cont 2014_OldCGAAP'!M43 -> -183233.78 | K43: -1415.69 | M43: -184649.47 | N43: 2829.28
A44: 8 | B44: 8 | C44: 1945 | D44: Measurement & Testing Equipment | E44: =+'App.2-BA_FA Cont 2014_OldCGAAP'!H44 -> 0 | H44: 0 | J44: =+'App.2-BA_FA Cont 2014_OldCGAAP'!M44 -> 0 | M44: 0 | N44: 0
A45: 8 | B45: 8 | C45: 1950 | D45: Power Operated Equipment | E45: =+'App.2-BA_FA Cont 2014_OldCGAAP'!H45 -> 0 | H45: 0 | J45: =+'App.2-BA_FA Cont 2014_OldCGAAP'!M45 -> 0 | M45: 0 | N45: 0
A46: 8 | B46: 8 | C46: 1955 | D46: Communications Equipment | E46: =+'App.2-BA_FA Cont 2014_OldCGAAP'!H46 -> 0 | H46: 0 | J46: =+'App.2-BA_FA Cont 2014_OldCGAAP'!M46 -> 0 | M46: 0 | N46: 0
A47: 8 | B47: 8 | C47: 1955 | D47: Communication Equipment (Smart Meters) | E47: =+'App.2-BA_FA Cont 2014_OldCGAAP'!H47 -> 0 | H47: 0 | J47: =+'App.2-BA_FA Cont 2014_OldCGAAP'!M47 -> 0 | M47: 0 | N47: 0
A48: 8 | B48: 8 | C48: 1960 | D48: Miscellaneous Equipment | E48: =+'App.2-BA_FA Cont 2014_OldCGAAP'!H48 -> 0 | H48: 0 | J48: =+'App.2-BA_FA Cont 2014_OldCGAAP'!M48 -> 0 | M48: 0 | N48: 0
A49: 47 | B49: 47 | C49: 1970 | D49: Load Management Controls Customer Premises | E49: =+'App.2-BA_FA Cont 2014_OldCGAAP'!H49 -> 0 | H49: 0 | J49: =+'App.2-BA_FA Cont 2014_OldCGAAP'!M49 -> 0 | M49: 0 | N49: 0
A50: 47 | B50: 47 | C50: 1975 | D50: Load Management Controls Utility Premises | E50: =+'App.2-BA_FA Cont 2014_OldCGAAP'!H50 -> 0 | H50: 0 | J50: =+'App.2-BA_FA Cont 2014_OldCGAAP'!M50 -> 0 | M50: 0 | N50: 0
A51: 47 | B51: 47 | C51: 1980 | D51: System Supervisor Equipment | E51: =+'App.2-BA_FA Cont 2014_OldCGAAP'!H51 -> 0 | H51: 0 | J51: =+'App.2-BA_FA Cont 2014_OldCGAAP'!M51 -> 0 | M51: 0 | N51: 0
A52: 47 | B52: 47 | C52: 1985 | D52: Miscellaneous Fixed Assets | E52: =+'App.2-BA_FA Cont 2014_OldCGAAP'!H52 -> 0 | H52: 0 | J52: =+'App.2-BA_FA Cont 2014_OldCGAAP'!M52 -> 0 | M52: 0 | N52: 0
A53: 47 | B53: 47 | C53: 1990 | D53: Other Tangible Property | E53: =+'App.2-BA_FA Cont 2014_OldCGAAP'!H53 -> 0 | H53: 0 | J53: =+'App.2-BA_FA Cont 2014_OldCGAAP'!M53 -> 0 | M53: 0 | N53: 0
C54: 1995 | D54: Contributions & Grants - O/H Conductor | H54: 0 | M54: 0 | N54: 0
C55: 1995 | D55: Contributions & Grants - Poles | H55: 0 | M55: 0 | N55: 0
C56: 1995 | D56: Contributions & Grants - Transformers | H56: 0 | M56: 0 | N56: 0
C57: 2440 | D57: Deferred Revenue5 | E57: =-2000-15100-7500 -> -24600 | F57: -18265.97 | H57: -42865.97 | J57: 1476 | K57: 1374.45 | M57: 2850.45 | N57: -40015.52
H58: 0 | M58: 0 | N58: =H58+M58 -> 0
D59: Sub-Total | E59: =SUM(E17:E58) -> 14359978.04 | F59: =SUM(F17:F58) -> 492724.4 | G59: =SUM(G17:G58) -> 0 | H59: =SUM(H17:H58) -> 14852702.44 | J59: =SUM(J17:J58) -> -9770596.31 | K59: -403573.9 | L59: 0 | M59: -10174170.21 | N59: 4678532.23
D60: Less Socialized Renewable Energy Generation Investments (input as negative) | H60: =E60+F60+G60 -> 0 | M60: 0 | N60: =H60+M60 -> 0
D61: Less Other Non Rate-Regulated Utility Assets (input as negative) | H61: 0 | M61: 0 | N61: =H61+M61 -> 0
D62: Total PP&E | E62: =SUM(E59:E61) -> 14359978.04 | F62: =SUM(F59:F61) -> 492724.4 | G62: 0 | H62: 14852702.44 | J62: =SUM(J59:J61) -> -9770596.31 | K62: -403573.9 | L62: 0 | M62: -10174170.21 | N62: 4678532.23
D63: Depreciation Expense adj. from gain or loss on the retirement of assets (pool of like assets), if applicable6
D64: Total | K64: =K62+K63 -> -403573.9
J66: Less: Fully Allocated Depreciation
B67: 10 | D67: Transportation | J67: Transportation
B68: 8 | D68: Stores Equipment | J68: Stores Equipment
J69: Net Depreciation | L69: =K64-L67-L68 -> -403573.9
B71: Originally hydro distribution assets were added to Class 1 for tax purposes. This was changed a few years ago and all new additions are now in Class 47.
B73: Notes:
B75: 1 | C75: Tables in the format outlined above covering all fixed asset accounts should be submitted for the Test Year, Bridge Year and all relevant historical years. At a minimum , the applicant must provide data for the earlier of: 1) all historical years back to its last rebasing; or 2) at least three years of historical actuals, in addition to Bridge Year and Test Year forecasts.
B78: 2 | C78: The "CCA Class" for fixed assets should agree with the CCA Class used for tax purposes in Tax Returns. Fixed Assets sub-components may be used where the underlying asset components are classified under multiple CCA Classes for tax purposes. If an applicant uses any different classes from those shown in the table, an explanation should be provided. (also see note 3 below).
B81: 3 | C81: The table may need to be customized for a utility's asset categories or for any new asset accounts announced or authorized by the Board.
B83: 4 | C83: The additions column (E) must not include construction work in progress (CWIP).
B85: 5 | C85: Effective on the date of IFRS adoption, customer contributions will no longer be recorded in Account 1995 Contributions & Grants, but will be recorded in Account 2440, Deferred Revenues.
B87: 6 | C87: Where a distributor for general financial reporting purposes under IFRS has accounted for the amount of gain or loss on the retirement of assets in a pool of like assets as a charge or credit to income, for reporting and rate application filings the distributor shall reclassify such gains and losses as depreciation expense, and disclose the amount separately.

Sheet App.2-BA_FA Cont 2016_Old CGAAP
M1: File Number: | N1: =EBNUMBER -> EB-2016-0166
M2: Exhibit:
M3: Tab:
M4: Schedule:
M5: Page:
M7: Date:
B9: Appendix 2-BA
B10: Fixed Asset Continuity Schedule
F12: Accounting Standard | G12: CGAAP | H12: Old CGAAP
F13: Year | G13: 2016
A15: RHI | B15: OEB | E15: Cost | K15: Accumulated Depreciation
A16: CCA Class | B16: CCA Class | C16: OEB | D16: Description | E16: Opening Balance | F16: Additions | G16: Disposals | H16: Closing Balance | J16: Opening Balance | K16: Additions | L16: Disposals | M16: Closing Balance | N16: Net Book Value
A17: 12 | B17: 12 | C17: 1611 | D17: Computer Software (Formally known as Account 1925) | E17: =+'App.2-BA_FA Cont 2015_Old CGAAP'!H17 -> 160121.43 | H17: =E17+F17+G17 -> 160121.43 | J17: =+'App.2-BA_FA Cont 2015_Old CGAAP'!M17 -> -124646.43 | K17: -7883.33 | M17: =J17+K17+L17 -> -132529.76 | N17: =H17+M17 -> 27591.67
A18: CEC | B18: CEC | C18: 1612 | D18: Land Rights (Formally known as Account 1906) | E18: =+'App.2-BA_FA Cont 2015_Old CGAAP'!H18 -> 28301.35 | F18: 3000 | H18: =E18+F18+G18 -> 31301.35 | J18: =+'App.2-BA_FA Cont 2015_Old CGAAP'!M18 -> -19242.01 | K18: -681.36 | M18: =J18+K18+L18 -> -19923.37 | N18: =H18+M18 -> 11377.98
A19: N/A | B19: N/A | C19: 1805 | D19: Land | E19: =+'App.2-BA_FA Cont 2015_Old CGAAP'!H19 -> 22895.33 | H19: =E19+F19+G19 -> 22895.33 | J19: =+'App.2-BA_FA Cont 2015_Old CGAAP'!M19 -> 0 | M19: 0 | N19: 22895.33
A20: 1 | B20: 47 | C20: 1808 | D20: Buildings | E20: =+'App.2-BA_FA Cont 2015_Old CGAAP'!H20 -> 201834.33 | G20: -157537.54 | H20: =E20+F20+G20 -> 44296.79 | J20: =+'App.2-BA_FA Cont 2015_Old CGAAP'!M20 -> -104008.06 | K20: -781.44 | L20: 85587.81 | M20: -19201.69 | N20: 25095.1
B21: 13 | C21: 1810 | D21: Leasehold Improvements | E21: =+'App.2-BA_FA Cont 2015_Old CGAAP'!H21 -> 0 | H21: 0 | J21: =+'App.2-BA_FA Cont 2015_Old CGAAP'!M21 -> 0 | M21: 0 | N21: 0
B22: 47 | C22: 1815 | D22: Transformer Station Equipment >50 kV | E22: =+'App.2-BA_FA Cont 2015_Old CGAAP'!H22 -> 0 | H22: 0 | J22: =+'App.2-BA_FA Cont 2015_Old CGAAP'!M22 -> 0 | M22: 0 | N22: 0
A23: 1/47 | B23: 47 | C23: 1820 | D23: Distribution Station Equipment <50 kV | E23: =+'App.2-BA_FA Cont 2015_Old CGAAP'!H23 -> 1288197.03 | H23: 1288197.03 | J23: =+'App.2-BA_FA Cont 2015_Old CGAAP'!M23 -> -828815.04 | K23: -33386.28 | M23: -862201.32 | N23: 425995.71
B24: 47 | C24: 1825 | D24: Storage Battery Equipment | E24: =+'App.2-BA_FA Cont 2015_Old CGAAP'!H24 -> 0 | H24: 0 | J24: =+'App.2-BA_FA Cont 2015_Old CGAAP'!M24 -> 0 | M24: 0 | N24: 0
A25: 1/47 | B25: 47 | C25: 1830 | D25: Poles, Towers & Fixtures | E25: =+'App.2-BA_FA Cont 2015_Old CGAAP'!H25 -> 2904344.43 | F25: 172000 | H25: 3076344.43 | J25: =+'App.2-BA_FA Cont 2015_Old CGAAP'!M25 -> -1558885.36 | K25: -90501.15 | M25: -1649386.51 | N25: 1426957.92
A26: 1/47 | B26: 47 | C26: 1835 | D26: Overhead Conductors & Devices | E26: =+'App.2-BA_FA Cont 2015_Old CGAAP'!H26 -> 4219381.96 | F26: 83000 | H26: 4302381.96 | J26: =+'App.2-BA_FA Cont 2015_Old CGAAP'!M26 -> -2917221.29 | K26: -105646.49 | M26: -3022867.78 | N26: 1279514.18
A27: 1/47 | B27: 47 | C27: 1840 | D27: Underground Conduit | E27: =+'App.2-BA_FA Cont 2015_Old CGAAP'!H27 -> 77704.91 | F27: 7400 | H27: 85104.91 | J27: =+'App.2-BA_FA Cont 2015_Old CGAAP'!M27 -> -29954.65 | K27: -3084.35 | M27: -33039 | N27: 52065.91
A28: 1/47 | B28: 47 | C28: 1845 | D28: Underground Conductors & Devices | E28: =+'App.2-BA_FA Cont 2015_Old CGAAP'!H28 -> 522896.31 | F28: 92600 | H28: 615496.31 | J28: =+'App.2-BA_FA Cont 2015_Old CGAAP'!M28 -> -224628.36 | K28: -21140.86 | M28: -245769.22 | N28: 369727.09
A29: 1/47 | B29: 47 | C29: 1850 | D29: Line Transformers | E29: =+'App.2-BA_FA Cont 2015_Old CGAAP'!H29 -> 1761168.05 | F29: 163000 | H29: 1924168.05 | J29: =+'App.2-BA_FA Cont 2015_Old CGAAP'!M29 -> -1311446.21 | K29: -37044.19 | M29: -1348490.4 | N29: 575677.65
A30: 1/47 | B30: 47 | C30: 1855 | D30: Services (Overhead & Underground) | E30: =+'App.2-BA_FA Cont 2015_Old CGAAP'!H30 -> 1602340.55 | F30: 16000 | H30: 1618340.55 | J30: =+'App.2-BA_FA Cont 2015_Old CGAAP'!M30 -> -1282759.61 | K30: -34142.78 | M30: -1316902.39 | N30: 301438.16
A31: 1/47 | B31: 47 | C31: 1860 | D31: Meters | E31: =+'App.2-BA_FA Cont 2015_Old CGAAP'!H31 -> 594329.39 | H31: 594329.39 | J31: =+'App.2-BA_FA Cont 2015_Old CGAAP'!M31 -> -510059.26 | K31: -11698.61 | M31: -521757.87 | N31: 72571.52
A32: 47 | B32: 47 | C32: 1860 | D32: Meters (Smart Meters) | E32: =+'App.2-BA_FA Cont 2015_Old CGAAP'!H32 -> 26653.18 | F32: 10000 | H32: 36653.18 | J32: =+'App.2-BA_FA Cont 2015_Old CGAAP'!M32 -> -3505.76 | K32: -2110.22 | M32: -5615.98 | N32: 31037.2
A33: N/A | B33: N/A | C33: 1905 | D33: Land | E33: =+'App.2-BA_FA Cont 2015_Old CGAAP'!H33 -> 0 | H33: 0 | J33: =+'App.2-BA_FA Cont 2015_Old CGAAP'!M33 -> 0 | M33: 0 | N33: 0
B34: 47 | C34: 1908 | D34: Buildings & Fixtures | E34: =+'App.2-BA_FA Cont 2015_Old CGAAP'!H34 -> 0 | H34: 0 | J34: =+'App.2-BA_FA Cont 2015_Old CGAAP'!M34 -> 0 | M34: 0 | N34: 0
A35: 13 | B35: 13 | C35: 1910 | D35: Leasehold Improvements | E35: =+'App.2-BA_FA Cont 2015_Old CGAAP'!H35 -> 116088.07 | F35: 10000 | H35: 126088.07 | J35: =+'App.2-BA_FA Cont 2015_Old CGAAP'!M35 -> -5804.41 | K35: -12164.37 | M35: -17968.78 | N35: 108119.29
A36: 8 | B36: 8 | C36: 1915 | D36: Office Furniture & Equipment (10 years) | E36: =+'App.2-BA_FA Cont 2015_Old CGAAP'!H36 -> 52445.74 | H36: 52445.74 | J36: =+'App.2-BA_FA Cont 2015_Old CGAAP'!M36 -> -31921.53 | K36: -2160.44 | M36: -34081.97 | N36: 18363.77
A37: 8 | B37: 8 | C37: 1915 | D37: Office Furniture & Equipment (5 years) | E37: =+'App.2-BA_FA Cont 2015_Old CGAAP'!H37 -> 0 | H37: 0 | J37: =+'App.2-BA_FA Cont 2015_Old CGAAP'!M37 -> 0 | M37: 0 | N37: 0
A38: 10 | B38: 10 | C38: 1920 | D38: Computer Equipment - Hardware | E38: =+'App.2-BA_FA Cont 2015_Old CGAAP'!H38 -> 102979.14 | F38: 3000 | H38: 105979.14 | J38: =+'App.2-BA_FA Cont 2015_Old CGAAP'!M38 -> -95435.38 | K38: -3112.05 | M38: -98547.43 | N38: 7431.71
B39: 45 | C39: 1920 | D39: Computer Equip.-Hardware(Post Mar. 22/04) | E39: =+'App.2-BA_FA Cont 2015_Old CGAAP'!H39 -> 0 | H39: 0 | J39: =+'App.2-BA_FA Cont 2015_Old CGAAP'!M39 -> 0 | M39: 0 | N39: 0
B40: 45.1 | C40: 1920 | D40: Computer Equip.-Hardware(Post Mar. 19/07) | E40: =+'App.2-BA_FA Cont 2015_Old CGAAP'!H40 -> 0 | H40: 0 | J40: =+'App.2-BA_FA Cont 2015_Old CGAAP'!M40 -> 0 | M40: 0 | N40: 0
A41: 10 | B41: 10 | C41: 1930 | D41: Transportation Equipment | E41: =+'App.2-BA_FA Cont 2015_Old CGAAP'!H41 -> 1021118.11 | H41: 1021118.11 | J41: =+'App.2-BA_FA Cont 2015_Old CGAAP'!M41 -> -940392.16 | K41: -51813.8 | M41: =J41+K41+L41 -> -992205.96 | N41: =H41+M41 -> 28912.15
A42: 8 | B42: 8 | C42: 1935 | D42: Stores Equipment | E42: =+'App.2-BA_FA Cont 2015_Old CGAAP'!H42 -> 5290.35 | H42: 5290.35 | J42: =+'App.2-BA_FA Cont 2015_Old CGAAP'!M42 -> -3645.67 | K42: -173.13 | M42: -3818.8 | N42: 1471.55
A43: 8 | B43: 8 | C43: 1940 | D43: Tools, Shop & Garage Equipment | E43: =+'App.2-BA_FA Cont 2015_Old CGAAP'!H43 -> 187478.75 | F43: 7500 | H43: 194978.75 | J43: =+'App.2-BA_FA Cont 2015_Old CGAAP'!M43 -> -184649.47 | K43: -1555.24 | M43: -186204.71 | N43: 8774.04
A44: 8 | B44: 8 | C44: 1945 | D44: Measurement & Testing Equipment | E44: =+'App.2-BA_FA Cont 2015_Old CGAAP'!H44 -> 0 | H44: 0 | J44: =+'App.2-BA_FA Cont 2015_Old CGAAP'!M44 -> 0 | M44: 0 | N44: 0
A45: 8 | B45: 8 | C45: 1950 | D45: Power Operated Equipment | E45: =+'App.2-BA_FA Cont 2015_Old CGAAP'!H45 -> 0 | H45: 0 | J45: =+'App.2-BA_FA Cont 2015_Old CGAAP'!M45 -> 0 | M45: 0 | N45: 0
A46: 8 | B46: 8 | C46: 1955 | D46: Communications Equipment | E46: =+'App.2-BA_FA Cont 2015_Old CGAAP'!H46 -> 0 | H46: 0 | J46: =+'App.2-BA_FA Cont 2015_Old CGAAP'!M46 -> 0 | M46: 0 | N46: 0
A47: 8 | B47: 8 | C47: 1955 | D47: Communication Equipment (Smart Meters) | E47: =+'App.2-BA_FA Cont 2015_Old CGAAP'!H47 -> 0 | H47: 0 | J47: =+'App.2-BA_FA Cont 2015_Old CGAAP'!M47 -> 0 | M47: 0 | N47: 0
A48: 8 | B48: 8 | C48: 1960 | D48: Miscellaneous Equipment | E48: =+'App.2-BA_FA Cont 2015_Old CGAAP'!H48 -> 0 | H48: 0 | J48: =+'App.2-BA_FA Cont 2015_Old CGAAP'!M48 -> 0 | M48: 0 | N48: 0
A49: 47 | B49: 47 | C49: 1970 | D49: Load Management Controls Customer Premises | E49: =+'App.2-BA_FA Cont 2015_Old CGAAP'!H49 -> 0 | H49: 0 | J49: =+'App.2-BA_FA Cont 2015_Old CGAAP'!M49 -> 0 | M49: 0 | N49: 0
A50: 47 | B50: 47 | C50: 1975 | D50: Load Management Controls Utility Premises | E50: =+'App.2-BA_FA Cont 2015_Old CGAAP'!H50 -> 0 | H50: 0 | J50: =+'App.2-BA_FA Cont 2015_Old CGAAP'!M50 -> 0 | M50: 0 | N50: 0
A51: 47 | B51: 47 | C51: 1980 | D51: System Supervisor Equipment | E51: =+'App.2-BA_FA Cont 2015_Old CGAAP'!H51 -> 0 | H51: 0 | J51: =+'App.2-BA_FA Cont 2015_Old CGAAP'!M51 -> 0 | M51: 0 | N51: 0
A52: 47 | B52: 47 | C52: 1985 | D52: Miscellaneous Fixed Assets | E52: =+'App.2-BA_FA Cont 2015_Old CGAAP'!H52 -> 0 | H52: 0 | J52: =+'App.2-BA_FA Cont 2015_Old CGAAP'!M52 -> 0 | M52: 0 | N52: 0
A53: 47 | B53: 47 | C53: 1990 | D53: Other Tangible Property | E53: =+'App.2-BA_FA Cont 2015_Old CGAAP'!H53 -> 0 | H53: 0 | J53: =+'App.2-BA_FA Cont 2015_Old CGAAP'!M53 -> 0 | M53: 0 | N53: 0
C54: 1995 | D54: Contributions & Grants - O/H Conductor | E54: =+'App.2-BA_FA Cont 2015_Old CGAAP'!H54 -> 0 | H54: 0 | J54: =+'App.2-BA_FA Cont 2015_Old CGAAP'!M54 -> 0 | M54: 0 | N54: 0
C55: 1995 | D55: Contributions & Grants - Poles | E55: =+'App.2-BA_FA Cont 2015_Old CGAAP'!H55 -> 0 | H55: 0 | J55: =+'App.2-BA_FA Cont 2015_Old CGAAP'!M55 -> 0 | M55: 0 | N55: 0
C56: 1995 | D56: Contributions & Grants - Transformers | E56: =+'App.2-BA_FA Cont 2015_Old CGAAP'!H56 -> 0 | H56: 0 | J56: =+'App.2-BA_FA Cont 2015_Old CGAAP'!M56 -> 0 | M56: 0 | N56: 0
C57: 2440 | D57: Deferred Revenue5 | E57: =+'App.2-BA_FA Cont 2015_Old CGAAP'!H57 -> -42865.97 | F57: -20000 | H57: -62865.97 | J57: =+'App.2-BA_FA Cont 2015_Old CGAAP'!M57 -> 2850.45 | K57: 2164.88 | M57: 5015.33 | N57: -57850.64
H58: 0 | M58: 0 | N58: =H58+M58 -> 0
D59: Sub-Total | E59: =SUM(E17:E58) -> 14852702.44 | F59: =SUM(F17:F58) -> 547500 | G59: =SUM(G17:G58) -> -157537.54 | H59: =SUM(H17:H58) -> 15242664.9 | J59: =SUM(J17:J58) -> -10174170.21 | K59: -416915.21 | L59: 85587.81 | M59: -10505497.61 | N59: 4737167.29
D60: Less Socialized Renewable Energy Generation Investments (input as negative) | H60: =E60+F60+G60 -> 0 | M60: 0 | N60: =H60+M60 -> 0
D61: Less Other Non Rate-Regulated Utility Assets (input as negative) | H61: 0 | M61: 0 | N61: =H61+M61 -> 0
D62: Total PP&E | E62: =SUM(E59:E61) -> 14852702.44 | F62: =SUM(F59:F61) -> 547500 | G62: -157537.54 | H62: 15242664.9 | J62: =SUM(J59:J61) -> -10174170.21 | K62: -416915.21 | L62: 85587.81 | M62: -10505497.61 | N62: 4737167.29
D63: Depreciation Expense adj. from gain or loss on the retirement of assets (pool of like assets), if applicable6
D64: Total | K64: =K62+K63 -> -416915.21
J66: Less: Fully Allocated Depreciation
B67: 10 | D67: Transportation | J67: Transportation
B68: 8 | D68: Stores Equipment | J68: Stores Equipment
J69: Net Depreciation | L69: =K64-L67-L68 -> -416915.21
B71: Originally hydro distribution assets were added to Class 1 for tax purposes. This was changed a few years ago and all new additions are now in Class 47.
B73: Notes:
B75: 1 | C75: Tables in the format outlined above covering all fixed asset accounts should be submitted for the Test Year, Bridge Year and all relevant historical years. At a minimum , the applicant must provide data for the earlier of: 1) all historical years back to its last rebasing; or 2) at least three years of historical actuals, in addition to Bridge Year and Test Year forecasts.
B78: 2 | C78: The "CCA Class" for fixed assets should agree with the CCA Class used for tax purposes in Tax Returns. Fixed Assets sub-components may be used where the underlying asset components are classified under multiple CCA Classes for tax purposes. If an applicant uses any different classes from those shown in the table, an explanation should be provided. (also see note 3 below).
B81: 3 | C81: The table may need to be customized for a utility's asset categories or for any new asset accounts announced or authorized by the Board.
B83: 4 | C83: The additions column (E) must not include construction work in progress (CWIP).
B85: 5 | C85: Effective on the date of IFRS adoption, customer contributions will no longer be recorded in Account 1995 Contributions & Grants, but will be recorded in Account 2440, Deferred Revenues.
B87: 6 | C87: Where a distributor for general financial reporting purposes under IFRS has accounted for the amount of gain or loss on the retirement of assets in a pool of like assets as a charge or credit to income, for reporting and rate application filings the distributor shall reclassify such gains and losses as depreciation expense, and disclose the amount separately.

Sheet App.2-BA_FA Cont 2017_Old CGAAP
M1: File Number: | N1: =EBNUMBER -> EB-2016-0166
M2: Exhibit:
M3: Tab:
M4: Schedule:
M5: Page:
M7: Date:
B9: Appendix 2-BA
B10: Fixed Asset Continuity Schedule
F12: Accounting Standard | G12: CGAAP | H12: Old CGAAP
F13: Year | G13: 2017
A15: RHI | E15: Cost | K15: Accumulated Depreciation
A16: CCA Class | B16: CCA Class | C16: OEB | D16: Description | E16: Opening Balance | F16: Additions | G16: Disposals | H16: Closing Balance | J16: Opening Balance | K16: Additions | L16: Disposals | M16: Closing Balance | N16: Net Book Value
A17: 12 | B17: 12 | C17: 1611 | D17: Computer Software (Formally known as Account 1925) | E17: =+'App.2-BA_FA Cont 2016_Old CGAAP'!H17 -> 160121.43 | H17: =E17+F17+G17 -> 160121.43 | J17: =+'App.2-BA_FA Cont 2016_Old CGAAP'!M17 -> -132529.76 | K17: -7883.33 | M17: =J17+K17+L17 -> -140413.09 | N17: =H17+M17 -> 19708.34
A18: CEC | B18: CEC | C18: 1612 | D18: Land Rights (Formally known as Account 1906) | E18: =+'App.2-BA_FA Cont 2016_Old CGAAP'!H18 -> 31301.35 | H18: =E18+F18+G18 -> 31301.35 | J18: =+'App.2-BA_FA Cont 2016_Old CGAAP'!M18 -> -19923.37 | K18: -696.36 | M18: =J18+K18+L18 -> -20619.73 | N18: =H18+M18 -> 10681.62
A19: N/A | B19: N/A | C19: 1805 | D19: Land | E19: =+'App.2-BA_FA Cont 2016_Old CGAAP'!H19 -> 22895.33 | H19: =E19+F19+G19 -> 22895.33 | J19: =+'App.2-BA_FA Cont 2016_Old CGAAP'!M19 -> 0 | M19: 0 | N19: 22895.33
A20: 1 | B20: 47 | C20: 1808 | D20: Buildings | E20: =+'App.2-BA_FA Cont 2016_Old CGAAP'!H20 -> 44296.79 | H20: =E20+F20+G20 -> 44296.79 | J20: =+'App.2-BA_FA Cont 2016_Old CGAAP'!M20 -> -19201.69 | K20: -781.44 | M20: -19983.13 | N20: 24313.66
B21: 13 | C21: 1810 | D21: Leasehold Improvements | E21: =+'App.2-BA_FA Cont 2016_Old CGAAP'!H21 -> 0 | H21: 0 | J21: =+'App.2-BA_FA Cont 2016_Old CGAAP'!M21 -> 0 | M21: 0 | N21: 0
B22: 47 | C22: 1815 | D22: Transformer Station Equipment >50 kV | E22: =+'App.2-BA_FA Cont 2016_Old CGAAP'!H22 -> 0 | H22: 0 | J22: =+'App.2-BA_FA Cont 2016_Old CGAAP'!M22 -> 0 | M22: 0 | N22: 0
A23: 1/47 | B23: 47 | C23: 1820 | D23: Distribution Station Equipment <50 kV | E23: =+'App.2-BA_FA Cont 2016_Old CGAAP'!H23 -> 1288197.03 | F23: 300000 | H23: 1588197.03 | J23: =+'App.2-BA_FA Cont 2016_Old CGAAP'!M23 -> -862201.32 | K23: -38386.28 | M23: -900587.6 | N23: 687609.43
B24: 47 | C24: 1825 | D24: Storage Battery Equipment | E24: =+'App.2-BA_FA Cont 2016_Old CGAAP'!H24 -> 0 | H24: 0 | J24: =+'App.2-BA_FA Cont 2016_Old CGAAP'!M24 -> 0 | M24: 0 | N24: 0
A25: 1/47 | B25: 47 | C25: 1830 | D25: Poles, Towers & Fixtures | E25: =+'App.2-BA_FA Cont 2016_Old CGAAP'!H25 -> 3076344.43 | F25: 190000 | H25: 3266344.43 | J25: =+'App.2-BA_FA Cont 2016_Old CGAAP'!M25 -> -1649386.51 | K25: -95300.06 | M25: -1744686.57 | N25: 1521657.86
A26: 1/47 | B26: 47 | C26: 1835 | D26: Overhead Conductors & Devices | E26: =+'App.2-BA_FA Cont 2016_Old CGAAP'!H26 -> 4302381.96 | F26: 85000 | H26: 4387381.96 | J26: =+'App.2-BA_FA Cont 2016_Old CGAAP'!M26 -> -3022867.78 | K26: -103310.62 | M26: -3126178.4 | N26: 1261203.56
A27: 1/47 | B27: 47 | C27: 1840 | D27: Underground Conduit | E27: =+'App.2-BA_FA Cont 2016_Old CGAAP'!H27 -> 85104.91 | H27: 85104.91 | J27: =+'App.2-BA_FA Cont 2016_Old CGAAP'!M27 -> -33039 | K27: -3194.57 | M27: -36233.57 | N27: 48871.34
A28: 1/47 | B28: 47 | C28: 1845 | D28: Underground Conductors & Devices | E28: =+'App.2-BA_FA Cont 2016_Old CGAAP'!H28 -> 615496.31 | F28: 10000 | H28: 625496.31 | J28: =+'App.2-BA_FA Cont 2016_Old CGAAP'!M28 -> -245769.22 | K28: -22852.85 | M28: -268622.07 | N28: 356874.24
A29: 1/47 | B29: 47 | C29: 1850 | D29: Line Transformers | E29: =+'App.2-BA_FA Cont 2016_Old CGAAP'!H29 -> 1924168.05 | F29: 40000 | H29: 1964168.05 | J29: =+'App.2-BA_FA Cont 2016_Old CGAAP'!M29 -> -1348490.4 | K29: -39615.5 | M29: -1388105.9 | N29: 576062.15
A30: 1/47 | B30: 47 | C30: 1855 | D30: Services (Overhead & Underground) | E30: =+'App.2-BA_FA Cont 2016_Old CGAAP'!H30 -> 1618340.55 | F30: 15000 | H30: 1633340.55 | J30: =+'App.2-BA_FA Cont 2016_Old CGAAP'!M30 -> -1316902.39 | K30: =-26287.37-5637.16 -> -31924.53 | M30: -1348826.92 | N30: 284513.63
A31: 1/47 | B31: 47 | C31: 1860 | D31: Meters | E31: =+'App.2-BA_FA Cont 2016_Old CGAAP'!H31-557745.9 -> 36583.49 | H31: 36583.49 | J31: =+'App.2-BA_FA Cont 2016_Old CGAAP'!M31+502791.53 -> -18966.34 | K31: -1462.9 | M31: -20429.24 | N31: 16154.25
A32: 47 | B32: 47 | C32: 1860 | D32: Meters (Smart Meters) | E32: =+'App.2-BA_FA Cont 2016_Old CGAAP'!H32 -> 36653.18 | F32: 10000 | H32: 46653.18 | J32: =+'App.2-BA_FA Cont 2016_Old CGAAP'!M32 -> -5615.98 | K32: -2776.89 | M32: -8392.87 | N32: 38260.31
A33: 47 | B33: 47 | C33: 1860 | D33: Smart Meter - Additions | E33: 558932 | H33: 558932 | J33: -243916 | K33: -37262.13 | M33: -281178.13 | N33: 277753.87
A34: N/A | B34: N/A | C34: 1905 | D34: Land | E34: =+'App.2-BA_FA Cont 2016_Old CGAAP'!H33 -> 0 | H34: 0 | J34: =+'App.2-BA_FA Cont 2016_Old CGAAP'!M33 -> 0 | M34: 0 | N34: 0
B35: 47 | C35: 1908 | D35: Buildings & Fixtures | E35: =+'App.2-BA_FA Cont 2016_Old CGAAP'!H34 -> 0 | H35: 0 | J35: =+'App.2-BA_FA Cont 2016_Old CGAAP'!M34 -> 0 | M35: 0 | N35: 0
A36: 13 | B36: 13 | C36: 1910 | D36: Leasehold Improvements | E36: =+'App.2-BA_FA Cont 2016_Old CGAAP'!H35 -> 126088.07 | H36: 126088.07 | J36: =+'App.2-BA_FA Cont 2016_Old CGAAP'!M35 -> -17968.78 | K36: -12719.92 | M36: -30688.7 | N36: 95399.37
A37: 8 | B37: 8 | C37: 1915 | D37: Office Furniture & Equipment (10 years) | E37: =+'App.2-BA_FA Cont 2016_Old CGAAP'!H36 -> 52445.74 | H37: 52445.74 | J37: =+'App.2-BA_FA Cont 2016_Old CGAAP'!M36 -> -34081.97 | K37: -2160.44 | M37: -36242.41 | N37: 16203.33
A38: 8 | B38: 8 | C38: 1915 | D38: Office Furniture & Equipment (5 years) | E38: =+'App.2-BA_FA Cont 2016_Old CGAAP'!H37 -> 0 | H38: 0 | J38: =+'App.2-BA_FA Cont 2016_Old CGAAP'!M37 -> 0 | M38: 0 | N38: 0
A39: 10 | B39: 10 | C39: 1920 | D39: Computer Equipment - Hardware | E39: =+'App.2-BA_FA Cont 2016_Old CGAAP'!H38 -> 105979.14 | F39: 3000 | H39: 108979.14 | J39: =+'App.2-BA_FA Cont 2016_Old CGAAP'!M38 -> -98547.43 | K39: -3041.55 | M39: -101588.98 | N39: 7390.16
B40: 45 | C40: 1920 | D40: Computer Equip.-Hardware(Post Mar. 22/04) | E40: =+'App.2-BA_FA Cont 2016_Old CGAAP'!H39 -> 0 | H40: 0 | J40: =+'App.2-BA_FA Cont 2016_Old CGAAP'!M39 -> 0 | M40: 0 | N40: 0
B41: 45.1 | C41: 1920 | D41: Computer Equip.-Hardware(Post Mar. 19/07) | E41: =+'App.2-BA_FA Cont 2016_Old CGAAP'!H40 -> 0 | H41: 0 | J41: =+'App.2-BA_FA Cont 2016_Old CGAAP'!M40 -> 0 | M41: 0 | N41: 0
A42: 10 | B42: 10 | C42: 1930 | D42: Transportation Equipment | E42: =+'App.2-BA_FA Cont 2016_Old CGAAP'!H41 -> 1021118.11 | H42: 1021118.11 | J42: =+'App.2-BA_FA Cont 2016_Old CGAAP'!M41 -> -992205.96 | K42: -14600.7 | M42: =J42+K42+L42 -> -1006806.66 | N42: =H42+M42 -> 14311.45
A43: 8 | B43: 8 | C43: 1935 | D43: Stores Equipment | E43: =+'App.2-BA_FA Cont 2016_Old CGAAP'!H42 -> 5290.35 | H43: 5290.35 | J43: =+'App.2-BA_FA Cont 2016_Old CGAAP'!M42 -> -3818.8 | K43: -173.13 | M43: -3991.93 | N43: 1298.42
A44: 8 | B44: 8 | C44: 1940 | D44: Tools, Shop & Garage Equipment | E44: =+'App.2-BA_FA Cont 2016_Old CGAAP'!H43 -> 194978.75 | F44: 7500 | H44: 202478.75 | J44: =+'App.2-BA_FA Cont 2016_Old CGAAP'!M43 -> -186204.71 | K44: -2305.24 | M44: -188509.95 | N44: 13968.8
A45: 8 | B45: 8 | C45: 1945 | D45: Measurement & Testing Equipment | E45: =+'App.2-BA_FA Cont 2016_Old CGAAP'!H44 -> 0 | H45: 0 | J45: =+'App.2-BA_FA Cont 2016_Old CGAAP'!M44 -> 0 | M45: 0 | N45: 0
A46: 8 | B46: 8 | C46: 1950 | D46: Power Operated Equipment | E46: =+'App.2-BA_FA Cont 2016_Old CGAAP'!H45 -> 0 | H46: 0 | J46: =+'App.2-BA_FA Cont 2016_Old CGAAP'!M45 -> 0 | M46: 0 | N46: 0
A47: 8 | B47: 8 | C47: 1955 | D47: Communications Equipment | E47: =+'App.2-BA_FA Cont 2016_Old CGAAP'!H46 -> 0 | H47: 0 | J47: =+'App.2-BA_FA Cont 2016_Old CGAAP'!M46 -> 0 | M47: 0 | N47: 0
A48: 8 | B48: 8 | C48: 1955 | D48: Communication Equipment (Smart Meters) | E48: =+'App.2-BA_FA Cont 2016_Old CGAAP'!H47 -> 0 | H48: 0 | J48: =+'App.2-BA_FA Cont 2016_Old CGAAP'!M47 -> 0 | M48: 0 | N48: 0
A49: 8 | B49: 8 | C49: 1960 | D49: Miscellaneous Equipment | E49: =+'App.2-BA_FA Cont 2016_Old CGAAP'!H48 -> 0 | H49: 0 | J49: =+'App.2-BA_FA Cont 2016_Old CGAAP'!M48 -> 0 | M49: 0 | N49: 0
A50: 47 | B50: 47 | C50: 1970 | D50: Load Management Controls Customer Premises | E50: =+'App.2-BA_FA Cont 2016_Old CGAAP'!H49 -> 0 | H50: 0 | J50: =+'App.2-BA_FA Cont 2016_Old CGAAP'!M49 -> 0 | M50: 0 | N50: 0
A51: 47 | B51: 47 | C51: 1975 | D51: Load Management Controls Utility Premises | E51: =+'App.2-BA_FA Cont 2016_Old CGAAP'!H50 -> 0 | H51: 0 | J51: =+'App.2-BA_FA Cont 2016_Old CGAAP'!M50 -> 0 | M51: 0 | N51: 0
A52: 47 | B52: 47 | C52: 1980 | D52: System Supervisor Equipment | E52: =+'App.2-BA_FA Cont 2016_Old CGAAP'!H51 -> 0 | F52: 100000 | H52: 100000 | J52: =+'App.2-BA_FA Cont 2016_Old CGAAP'!M51 -> 0 | K52: -2500 | M52: -2500 | N52: 97500
A53: 47 | B53: 47 | C53: 1985 | D53: Miscellaneous Fixed Assets | E53: =+'App.2-BA_FA Cont 2016_Old CGAAP'!H52 -> 0 | H53: 0 | J53: =+'App.2-BA_FA Cont 2016_Old CGAAP'!M52 -> 0 | M53: 0 | N53: 0
A54: 47 | B54: 47 | C54: 1990 | D54: Other Tangible Property | E54: =+'App.2-BA_FA Cont 2016_Old CGAAP'!H53 -> 0 | H54: 0 | J54: =+'App.2-BA_FA Cont 2016_Old CGAAP'!M53 -> 0 | M54: 0 | N54: 0
C55: 1995 | D55: Contributions & Grants - O/H Conductor | E55: =+'App.2-BA_FA Cont 2016_Old CGAAP'!H54 -> 0 | H55: 0 | J55: =+'App.2-BA_FA Cont 2016_Old CGAAP'!M54 -> 0 | M55: 0 | N55: 0
C56: 1995 | D56: Contributions & Grants - Poles | E56: =+'App.2-BA_FA Cont 2016_Old CGAAP'!H55 -> 0 | H56: 0 | J56: =+'App.2-BA_FA Cont 2016_Old CGAAP'!M55 -> 0 | M56: 0 | N56: 0
C57: 1995 | D57: Contributions & Grants - Transformers | E57: =+'App.2-BA_FA Cont 2016_Old CGAAP'!H56 -> 0 | H57: 0 | J57: =+'App.2-BA_FA Cont 2016_Old CGAAP'!M56 -> 0 | M57: 0 | N57: 0
C58: 2440 | D58: Deferred Revenue5 | E58: =+'App.2-BA_FA Cont 2016_Old CGAAP'!H57 -> -62865.97 | F58: -20000 | H58: -82865.97 | J58: =+'App.2-BA_FA Cont 2016_Old CGAAP'!M57 -> 5015.33 | K58: 2964.88 | M58: 7980.21 | N58: -74885.76
H59: 0 | M59: 0 | N59: =H59+M59 -> 0
D60: Sub-Total | E60: =SUM(E17:E59) -> 15243851 | F60: =SUM(F17:F59) -> 740500 | G60: =SUM(G17:G59) -> 0 | H60: =SUM(H17:H59) -> 15984351 | J60: =SUM(J17:J59) -> -10246622.08 | K60: -419983.56 | L60: 0 | M60: -10666605.64 | N60: 5317745.36
D61: Less Socialized Renewable Energy Generation Investments (input as negative) | H61: =E61+F61+G61 -> 0 | M61: 0 | N61: =H61+M61 -> 0
D62: Less Other Non Rate-Regulated Utility Assets (input as negative) | H62: 0 | M62: 0 | N62: =H62+M62 -> 0
D63: Total PP&E | E63: =SUM(E60:E62) -> 15243851 | F63: =SUM(F60:F62) -> 740500 | G63: 0 | H63: 15984351 | J63: =SUM(J60:J62) -> -10246622.08 | K63: -419983.56 | L63: 0 | M63: -10666605.64 | N63: 5317745.36
D64: Depreciation Expense adj. from gain or loss on the retirement of assets (pool of like assets), if applicable6
D65: Total | K65: =K63+K64 -> -419983.56
J67: Less: Fully Allocated Depreciation
B68: 10 | D68: Transportation | J68: Transportation
B69: 8 | D69: Stores Equipment | J69: Stores Equipment
J70: Net Depreciation | L70: =K65-L68-L69 -> -419983.56
B72: Originally hydro distribution assets were added to Class 1 for tax purposes. This was changed a few years ago and all new additions are now in Class 47.
B74: Notes:
B76: 1 | C76: Tables in the format outlined above covering all fixed asset accounts should be submitted for the Test Year, Bridge Year and all relevant historical years. At a minimum , the applicant must provide data for the earlier of: 1) all historical years back to its last rebasing; or 2) at least three years of historical actuals, in addition to Bridge Year and Test Year forecasts.
B79: 2 | C79: The "CCA Class" for fixed assets should agree with the CCA Class used for tax purposes in Tax Returns. Fixed Assets sub-components may be used where the underlying asset components are classified under multiple CCA Classes for tax purposes. If an applicant uses any different classes from those shown in the table, an explanation should be provided. (also see note 3 below).
B82: 3 | C82: The table may need to be customized for a utility's asset categories or for any new asset accounts announced or authorized by the Board.
B84: 4 | C84: The additions column (E) must not include construction work in progress (CWIP).
B86: 5 | C86: Effective on the date of IFRS adoption, customer contributions will no longer be recorded in Account 1995 Contributions & Grants, but will be recorded in Account 2440, Deferred Revenues.
B88: 6 | C88: Where a distributor for general financial reporting purposes under IFRS has accounted for the amount of gain or loss on the retirement of assets in a pool of like assets as a charge or credit to income, for reporting and rate application filings the distributor shall reclassify such gains and losses as depreciation expense, and disclose the amount separately.

Sheet App.2-CA_OldCGAAP_DepExp_2010
K1: File Number: | L1: =EBNUMBER -> EB-2016-0166
K2: Exhibit:
K3: Tab:
K4: Schedule:
K5: Page:
K7: Date:
A9: Appendix 2-CA
A10: Depreciation and Amortization Expense
B11: Assumes the applicant made capitalization and depreciation expense accounting policy changes under CGAAP effective January 1, 2013 and will adopt IFRS for financial reporting purposes effective January 1, 2015.
C13: Year | D13: 2010 | E13: Former CGAAP
A14: Account | B14: Description | C14: Opening Regulatory Gross PP&E as at Jan 1, 2010 | D14: Less Fully Depreciated | E14: Net for Depreciation | F14: Additions | G14: Total for Depreciation | H14: Years | I14: Depreciation Rate | J14: 2010 Depreciation Expense | K14: 2010 Depreciation Expense per Appendix 2-B Fixed Assets, Column K (l) | L14: Variance 2
C15: (a) | D15: (b) | E15: (c) | F15: (d) | G15: (e) = (c) + ½ x (d) 1 | H15: (f) | I15: (g) = 1 / (f) | J15: (h) = (e) / (f) | L15: (m) = (h) - (l)
A16: 1611 | B16: Computer Software (Formally known as Account 1925) | C16: 114259.76 | D16: 3348 | E16: =C16-D16 -> 110911.76 | F16: 6445 | G16: =E16+0.5*F16 -> 114134.26 | H16: 5 | I16: =IF(H16=0,"",1/H16) -> 0.2 | J16: =IF(H16=0,0,G16/H16) -> 22826.852 | K16: =-'App.2-BA_FA Cont 2010 OldCGAAP'!K17 -> 22826.85 | L16: =IF(ISERROR(+J16-K16), "", +J16-K16) -> 0.002
A17: 1612 | B17: Land Rights (Formally known as Account 1906) | C17: 17374.17 | D17: 13885.9 | E17: =C17-D17 -> 3488.27 | F17: 6606.5 | G17: =E17+0.5*F17 -> 6791.52 | H17: 20 | I17: 0.05 | J17: =IF(H17=0,0,G17/H17) -> 339.576 | K17: =-'App.2-BA_FA Cont 2010 OldCGAAP'!K18 -> 340.17 | L17: =IF(ISERROR(+J17-K17), "", +J17-K17) -> -0.594
A18: 1612 | B18: Land Rights (Formally known as Account 1906) | E18: 0 | G18: =E18+0.5*F18 -> 0 | H18: 25 | I18: 0.04 | J18: =IF(H18=0,0,G18/H18) -> 0 | L18: 0
A19: 1805 | B19: Land | C19: 22895.33 | E19: 22895.33 | G19: 22895.33 | H19: 0 | J19: 0 | L19: 0
A20: 1808 | B20: Buildings - Equipment | E20: 0 | G20: 0 | H20: 10 | I20: 0.1 | J20: 0 | L20: 0
A21: 1808 | B21: Buildings - Equipment | E21: 0 | G21: 0 | H21: 20 | I21: 0.05 | J21: 0
A22: 1808 | B22: Buildings - Major Repairs | E22: 0 | G22: 0 | H22: 25 | I22: 0.04 | J22: 0 | L22: 0
A23: 1808 | B23: Buildings - Major Repairs | E23: 0 | G23: 0 | H23: 30 | I23: 0.03333333333 | J23: 0 | L23: 0
A24: 1808 | B24: Buildings - Brick, Stone, Concrete and Steel | C24: =154128.6-4151.77 -> 149976.83 | D24: =10218.12+3601 -> 13819.12 | E24: 136157.71 | F24: 11168.46 | G24: 141741.94 | H24: 50 | I24: 0.02 | J24: 2834.8388 | K24: =-'App.2-BA_FA Cont 2010 OldCGAAP'!K20 -> 2834.84 | L24: -0.0012
A25: 1808 | B25: Buildings - Other | C25: 4151.77 | E25: 4151.77 | F25: 0 | G25: 4151.77 | H25: 25 | I25: 0.04 | J25: 166.0708 | K25: 0 | L25: 166.0708
A26: 1810 | B26: Leasehold Improvements | E26: 0 | G26: 0 | J26: 0 | L26: 0
A27: 1815 | B27: Transformer Station Equipment >50 kV | E27: 0 | G27: 0 | J27: 0 | L27: 0
A28: 1820 | B28: Distribution Station Equipment <50 kV | C28: 1146264 | D28: =205509.34-3860.75 -> 201648.59 | E28: 944615.41 | F28: 141933.03 | G28: 1015581.925 | H28: 30 | I28: 0.03333333333 | J28: 33852.73083 | K28: =-'App.2-BA_FA Cont 2010 OldCGAAP'!K23 -> 33852.73 | L28: 0.0008333333317
A29: 1825 | B29: Storage Battery Equipment | E29: 0 | G29: 0 | J29: 0 | L29: 0
A30: 1830 | B30: Poles, Towers & Fixtures | C30: 2023797.87 | D30: =444222-2.5 -> 444219.5 | E30: 1579578.37 | F30: 130865.46 | G30: 1645011.1 | H30: 25 | I30: 0.04 | J30: 65800.444 | K30: =-'App.2-BA_FA Cont 2010 OldCGAAP'!K25 -> 65800.44 | L30: 0.004000000001
A31: 1835 | B31: Overhead Conductors & Devices | C31: 3501362.36 | D31: =1000000-42005.5 -> 957994.5 | E31: 2543367.86 | F31: 139070.4 | G31: 2612903.06 | H31: 25 | I31: 0.04 | J31: 104516.1224 | K31: =-'App.2-BA_FA Cont 2010 OldCGAAP'!K26 -> 104516.12 | L31: 0.002400000012
A32: 1840 | B32: Underground Conduit | C32: 45129.43 | E32: 45129.43 | F32: 7458.74 | G32: 48858.8 | H32: 25 | I32: 0.04 | J32: 1954.352 | K32: =-'App.2-BA_FA Cont 2010 OldCGAAP'!K27 -> 1955.57 | L32: -1.218
A33: 1845 | B33: Underground Conductors & Devices | C33: 345188.74 | D33: 1737.25 | E33: 343451.49 | F33: 42022.55 | G33: 364462.765 | H33: 25 | I33: 0.04 | J33: 14578.5106 | K33: =-'App.2-BA_FA Cont 2010 OldCGAAP'!K28 -> 14578.51 | L33: 0.0006000000012
A34: 1850 | B34: Line Transformers | C34: 1530498.49 | D34: =500000-61807.95 -> 438192.05 | E34: 1092306.44 | F34: 15439.89 | G34: 1100026.385 | H34: 25 | I34: 0.04 | J34: 44001.0554 | K34: =-'App.2-BA_FA Cont 2010 OldCGAAP'!K29 -> 44001.06 | L34: -0.0046
A35: 1855 | B35: Services (Overhead & Underground) | C35: =1368874.01+105689.54 -> 1474563.55 | D35: =430000-2758.1 -> 427241.9 | E35: 1047321.65 | F35: =12700.18+8475.66 -> 21175.84 | G35: 1057909.57 | H35: 25 | I35: 0.04 | J35: 42316.3828 | K35: =-'App.2-BA_FA Cont 2010 OldCGAAP'!K30 -> 42316.38 | L35: 0.002800000002
A36: 1860 | B36: Meters | C36: 587712.5 | D36: =126638.56+31642.3 -> 158280.86 | E36: 429431.64 | F36: 6616.89 | G36: 432740.085 | H36: 25 | I36: 0.04 | J36: 17309.6034 | K36: =-'App.2-BA_FA Cont 2010 OldCGAAP'!K31 -> 17319.6 | L36: -9.9966
A37: 1860 | B37: Meters (Smart Meters) | E37: 0 | G37: 0 | J37: 0 | L37: 0
A38: 1905 | B38: Land | E38: 0 | G38: 0 | H38: 0 | J38: 0 | L38: 0
A39: 1908 | B39: Buildings & Fixtures - Equipment | E39: 0 | G39: 0 | H39: 10 | I39: 0.1 | J39: 0 | L39: 0
A40: 1908 | B40: Buildings & Fixtures - Driveways | E40: 0 | G40: 0 | H40: 20 | I40: 0.05 | J40: 0 | L40: 0
A41: 1908 | B41: Buildings & Fixtures - Major Repairs | E41: 0 | G41: 0 | H41: 25 | I41: 0.04 | J41: 0 | L41: 0
A42: 1908 | B42: Buildings & Fixtures - Brick Store etc | E42: 0 | G42: 0 | H42: 50 | I42: 0.02 | J42: 0 | L42: 0
A43: 1910 | B43: Leasehold Improvements | E43: 0 | G43: 0 | J43: 0 | L43: 0
A44: 1915 | B44: Office Furniture & Equipment (10 years) | C44: 30841.31 | D44: 30733.33 | E44: 107.98 | G44: 107.98 | H44: 10 | I44: 0.1 | J44: 10.798 | K44: =-'App.2-BA_FA Cont 2010 OldCGAAP'!K36 -> 10.8 | L44: -0.002
A45: 1915 | B45: Office Furniture & Equipment (5 years) | E45: 0 | G45: 0 | J45: 0 | L45: 0
A46: 1920 | B46: Computer Equipment - Hardware | C46: 84470.7 | D46: 64346.48 | E46: 20124.22 | F46: 4448.2 | G46: 22348.32 | H46: 5 | I46: 0.2 | J46: 4469.664 | K46: =-'App.2-BA_FA Cont 2010 OldCGAAP'!K38 -> 4469.66 | L46: 0.003999999999
A47: 1920 | B47: Computer Equip.-Hardware(Post Mar. 22/04) | E47: 0 | G47: 0 | J47: 0 | L47: 0
A48: 1920 | B48: Computer Equip.-Hardware(Post Mar. 19/07) | E48: 0 | G48: 0 | J48: 0 | L48: 0
A49: 1930 | B49: Transportation Equipment - under 3 Tons | C49: 100904.77 | D49: 66163.05 | E49: 34741.72 | G49: 34741.72 | H49: 5 | I49: 0.2 | J49: 6948.344 | K49: 6948.36 | L49: -0.016
A50: 1930 | B50: Transportation Equipment - 3 Tons & Over | C50: 808501.16 | D50: 548607.59 | E50: =C50-D50 -> 259893.57 | G50: 259893.57 | H50: 8 | I50: 0.125 | J50: =IF(H50=0,0,G50/H50) -> 32486.69625 | K50: 32486.7 | L50: -0.003749999993
A51: 1935 | B51: Stores Equipment | C51: 3559.1 | D51: 3559.1 | E51: 0 | G51: 0 | H51: 10 | I51: 0.1 | J51: 0 | K51: =-'App.2-BA_FA Cont 2010 OldCGAAP'!K42 -> 0 | L51: 0
A52: 1940 | B52: Tools, Shop & Garage Equipment | C52: 186853.67 | D52: 154529.2 | E52: 32324.47 | G52: 32324.47 | H52: 10 | I52: 0.1 | J52: 3232.447 | K52: =-'App.2-BA_FA Cont 2010 OldCGAAP'!K43 -> 3232.64 | L52: -0.193
A53: 1945 | B53: Measurement & Testing Equipment | E53: 0 | G53: 0 | H53: 10 | I53: 0.1 | J53: 0 | L53: 0
A54: 1950 | B54: Power Operated Equipment | E54: 0 | G54: 0 | J54: 0 | L54: 0
A55: 1955 | B55: Communications Equipment | E55: 0 | G55: 0 | H55: 5 | I55: 0.2 | J55: 0 | L55: 0
A56: 1955 | B56: Communication Equipment (Smart Meters) | E56: 0 | G56: 0 | J56: 0 | L56: 0
A57: 1960 | B57: Miscellaneous Equipment | E57: 0 | G57: 0 | J57: 0 | L57: 0
A58: 1970 | B58: Load Management Controls Customer Premises | E58: =C58-D58 -> 0 | G58: =E58+0.5*F58 -> 0 | H58: 10 | I58: =IF(H58=0,"",1/H58) -> 0.1 | J58: =IF(H58=0,0,G58/H58) -> 0 | L58: =IF(ISERROR(+J58-K58), "", +J58-K58) -> 0
A59: 1975 | B59: Load Management Controls Utility Premises | E59: 0 | G59: =E59+0.5*F59 -> 0 | H59: 10 | I59: 0.1 | J59: 0 | L59: 0
A60: 1980 | B60: System Supervisor Equipment | E60: 0 | G60: =E60+0.5*F60 -> 0 | H60: 15 | I60: 0.06666666667 | J60: 0 | L60: 0
A61: 1985 | B61: Miscellaneous Fixed Assets | E61: 0 | G61: 0 | J61: 0 | L61: 0
A62: 1990 | B62: Other Tangible Property | E62: =C62-D62 -> 0 | G62: =E62+0.5*F62 -> 0 | I62: =IF(H62=0,"",1/H62) ->  | J62: =IF(H62=0,0,G62/H62) -> 0 | L62: =IF(ISERROR(+J62-K62), "", +J62-K62) -> 0
A63: 1995 | B63: Contributions & Grants | E63: 0 | G63: 0 | J63: 0 | L63: 0
B75: Total | C75: =SUM(C16:C74) -> 12178305.51 | D75: =SUM(D16:D74) -> 3528306.42 | E75: =SUM(E16:E74) -> 8649999.09 | F75: =SUM(F16:F74) -> 533250.96 | G75: =SUM(G16:G74) -> 8916624.57 | J75: =SUM(J16:J74) -> 397644.4883 | K75: =SUM(K16:K74) -> 397490.43 | L75: =SUM(L16:L74) -> 154.0582833
C77: =+'App.2-BA_FA Cont 2010 OldCGAAP'!E60 -> 12178305.51 | F77: =+'App.2-BA_FA Cont 2010 OldCGAAP'!F60 -> 533250.96 | K77: =-'App.2-BA_FA Cont 2010 OldCGAAP'!K62 -> 397490.43
C78: =+C75-C77 -> 0 | F78: =+F75-F77 -> 0 | K78: =+K75-K77 -> 0

Sheet App.2-CA_OldCGAAP_DepExp_2011
K1: File Number: | L1: =EBNUMBER -> EB-2016-0166
K2: Exhibit:
K3: Tab:
K4: Schedule:
K5: Page:
K7: Date:
A9: Appendix 2-CA
A10: Depreciation and Amortization Expense
B11: Assumes the applicant made capitalization and depreciation expense accounting policy changes under CGAAP effective January 1, 2013 and will adopt IFRS for financial reporting purposes effective January 1, 2015.
C13: Year | D13: 2011 | E13: Former CGAAP
A14: Account | B14: Description | C14: Opening Regulatory Gross PP&E as at Jan 1, 2011 | D14: Less Fully Depreciated | E14: Net for Depreciation | F14: Additions | G14: Total for Depreciation | H14: Years | I14: Depreciation Rate | J14: 2011 Depreciation Expense | K14: 2011 Depreciation Expense per Appendix 2-B Fixed Assets, Column K (l) | L14: Variance 2
C15: (a) | D15: (b) | E15: (c) | F15: (d) | G15: (e) = (c) + ½ x (d) 1 | H15: (f) | I15: (g) = 1 / (f) | J15: (h) = (e) / (f) | L15: (m) = (h) - (l)
A16: 1611 | B16: Computer Software (Formally known as Account 1925) | C16: =+'App.2-CA_OldCGAAP_DepExp_2010'!C16+'App.2-CA_OldCGAAP_DepExp_2010'!F16 -> 120704.76 | D16: 3348 | E16: =C16-D16 -> 117356.76 | G16: =E16+0.5*F16 -> 117356.76 | H16: 5 | I16: =IF(H16=0,"",1/H16) -> 0.2 | J16: =IF(H16=0,0,G16/H16) -> 23471.352 | K16: =-'App.2-BA_FA Cont 2011 OldCGAAP'!K17 -> 23471.35 | L16: =IF(ISERROR(+J16-K16), "", +J16-K16) -> 0.002
A17: 1612 | B17: Land Rights (Formally known as Account 1906) | C17: =+'App.2-CA_OldCGAAP_DepExp_2010'!C17+'App.2-CA_OldCGAAP_DepExp_2010'!F17 -> 23980.67 | D17: 13885.9 | E17: =C17-D17 -> 10094.77 | G17: =E17+0.5*F17 -> 10094.77 | H17: 20 | I17: 0.05 | J17: 504.7385 | K17: =-'App.2-BA_FA Cont 2011 OldCGAAP'!K18 -> 505.33 | L17: =IF(ISERROR(+J17-K17), "", +J17-K17) -> -0.5915
A18: 1612 | B18: Land Rights (Formally known as Account 1906) | E18: 0 | G18: 0 | H18: 25 | I18: 0.04 | J18: 0 | L18: 0
A19: 1805 | B19: Land | C19: =+'App.2-CA_OldCGAAP_DepExp_2010'!C19+'App.2-CA_OldCGAAP_DepExp_2010'!F19 -> 22895.33 | E19: 22895.33 | G19: 22895.33 | H19: 0 | J19: 0 | L19: 0
A20: 1808 | B20: Buildings - Equipment | E20: 0 | G20: 0 | J20: 0 | L20: 0
A21: 1808 | B21: Buildings - Equipment | E21: 0 | G21: 0 | J21: 0
A22: 1808 | B22: Buildings - Major Repairs | E22: 0 | G22: 0 | J22: 0 | L22: 0
A23: 1808 | B23: Buildings - Major Repairs | E23: 0 | G23: 0 | J23: 0
A24: 1808 | B24: Buildings - Brick, Stone, Concrete and Steel | C24: =+'App.2-CA_OldCGAAP_DepExp_2010'!C24+'App.2-CA_OldCGAAP_DepExp_2010'!F24 -> 161145.29 | D24: 13819.12 | E24: 147326.17 | F24: =21172+15365.27 -> 36537.27 | G24: =E24+0.5*F24 -> 165594.805 | H24: 50 | I24: 0.02 | J24: 3311.8961 | K24: =-'App.2-BA_FA Cont 2011 OldCGAAP'!K20 -> 3311.89 | L24: 0.006100000001
A25: 1808 | B25: Buildings - Other | C25: =+'App.2-CA_OldCGAAP_DepExp_2010'!C25+'App.2-CA_OldCGAAP_DepExp_2010'!F25 -> 4151.77 | E25: 4151.77 | F25: 0 | G25: 4151.77 | H25: 25 | I25: 0.04 | J25: 166.0708 | K25: 0 | L25: 166.0708
A26: 1810 | B26: Leasehold Improvements | E26: 0 | G26: 0 | J26: 0 | L26: 0
A27: 1815 | B27: Transformer Station Equipment >50 kV | E27: 0 | G27: 0 | J27: 0 | L27: 0
A28: 1820 | B28: Distribution Station Equipment <50 kV | C28: =+'App.2-CA_OldCGAAP_DepExp_2010'!C28+'App.2-CA_OldCGAAP_DepExp_2010'!F28 -> 1288197.03 | D28: 201648.59 | E28: 1086548.44 | G28: 1086548.44 | H28: 30 | I28: 0.03333333333 | J28: 36218.28133 | K28: =-'App.2-BA_FA Cont 2011 OldCGAAP'!K23 -> 36218.28 | L28: 0.001333333334
A29: 1825 | B29: Storage Battery Equipment | E29: 0 | G29: 0 | J29: 0 | L29: 0
A30: 1830 | B30: Poles, Towers & Fixtures | C30: =+'App.2-CA_OldCGAAP_DepExp_2010'!C30+'App.2-CA_OldCGAAP_DepExp_2010'!F30 -> 2154663.33 | D30: =444219.5+37779.5 -> 481999 | E30: 1672664.33 | F30: 167919.46 | G30: 1756624.06 | H30: 25 | I30: 0.04 | J30: 70264.9624 | K30: =-'App.2-BA_FA Cont 2011 OldCGAAP'!K25 -> 70264.96 | L30: 0.002399999998
A31: 1835 | B31: Overhead Conductors & Devices | C31: =+'App.2-CA_OldCGAAP_DepExp_2010'!C31+'App.2-CA_OldCGAAP_DepExp_2010'!F31 -> 3640432.76 | D31: =957994.5+88152.2 -> 1046146.7 | E31: 2594286.06 | F31: 185957.61 | G31: 2687264.865 | H31: 25 | I31: 0.04 | J31: 107490.5946 | K31: =-'App.2-BA_FA Cont 2011 OldCGAAP'!K26 -> 107490.59 | L31: 0.0046
A32: 1840 | B32: Underground Conduit | C32: =+'App.2-CA_OldCGAAP_DepExp_2010'!C32+'App.2-CA_OldCGAAP_DepExp_2010'!F32 -> 52588.17 | D32: 303.2 | E32: 52284.97 | F32: 1982.23 | G32: 53276.085 | H32: 25 | I32: 0.04 | J32: 2131.0434 | K32: =-'App.2-BA_FA Cont 2011 OldCGAAP'!K27 -> 2131.04 | L32: 0.0034
A33: 1845 | B33: Underground Conductors & Devices | C33: =+'App.2-CA_OldCGAAP_DepExp_2010'!C33+'App.2-CA_OldCGAAP_DepExp_2010'!F33 -> 387211.29 | D33: =1737.25+3002.1 -> 4739.35 | E33: 382471.94 | F33: 2302.89 | G33: 383623.385 | H33: 25 | I33: 0.04 | J33: 15344.9354 | K33: =-'App.2-BA_FA Cont 2011 OldCGAAP'!K28 -> 15344.94 | L33: -0.0046
A34: 1850 | B34: Line Transformers | C34: =+'App.2-CA_OldCGAAP_DepExp_2010'!C34+'App.2-CA_OldCGAAP_DepExp_2010'!F34 -> 1545938.38 | D34: =438192.05+115873 -> 554065.05 | E34: 991873.33 | F34: 59277 | G34: 1021511.83 | H34: 25 | I34: 0.04 | J34: 40860.4732 | K34: =-'App.2-BA_FA Cont 2011 OldCGAAP'!K29 -> 40860.47 | L34: 0.003199999992
A35: 1855 | B35: Services (Overhead & Underground) | C35: =+'App.2-CA_OldCGAAP_DepExp_2010'!C35+'App.2-CA_OldCGAAP_DepExp_2010'!F35 -> 1495739.39 | D35: =427241.9+43089 -> 470330.9 | E35: 1025408.49 | F35: 24103.19 | G35: 1037460.085 | H35: 25 | I35: 0.04 | J35: 41498.4034 | K35: =-'App.2-BA_FA Cont 2011 OldCGAAP'!K30 -> 41498.4 | L35: 0.003400000009
A36: 1860 | B36: Meters | C36: =+'App.2-CA_OldCGAAP_DepExp_2010'!C36+'App.2-CA_OldCGAAP_DepExp_2010'!F36 -> 594329.39 | D36: 196337.39 | E36: 397992 | G36: 397992 | H36: 25 | I36: 0.04 | J36: 15919.68 | K36: =-'App.2-BA_FA Cont 2011 OldCGAAP'!K31 -> 15919.68 | L36: 0
A37: 1860 | B37: Meters (Smart Meters) | E37: 0 | G37: 0 | J37: 0 | L37: 0
A38: 1905 | B38: Land | E38: 0 | G38: 0 | H38: 0 | J38: 0 | L38: 0
A39: 1908 | B39: Buildings & Fixtures - Equipment | E39: 0 | G39: 0 | J39: 0 | L39: 0
A40: 1908 | B40: Buildings & Fixtures - Driveways | E40: 0 | G40: 0 | J40: 0 | L40: 0
A41: 1908 | B41: Buildings & Fixtures - Major Repairs | E41: 0 | G41: 0 | J41: 0 | L41: 0
A42: 1908 | B42: Buildings & Fixtures - Brick Store etc | E42: 0 | G42: 0 | J42: 0 | L42: 0
A43: 1910 | B43: Leasehold Improvements | E43: 0 | G43: 0 | J43: 0 | L43: 0
A44: 1915 | B44: Office Furniture & Equipment (10 years) | C44: =+'App.2-CA_OldCGAAP_DepExp_2010'!C44+'App.2-CA_OldCGAAP_DepExp_2010'!F44 -> 30841.31 | D44: =30733.33+107.98 -> 30841.31 | E44: 0 | G44: 0 | J44: 0 | K44: =-'App.2-BA_FA Cont 2011 OldCGAAP'!K36 -> 0 | L44: 0
A45: 1915 | B45: Office Furniture & Equipment (5 years) | E45: 0 | G45: 0 | J45: 0 | L45: 0
A46: 1920 | B46: Computer Equipment - Hardware | C46: =+'App.2-CA_OldCGAAP_DepExp_2010'!C46+'App.2-CA_OldCGAAP_DepExp_2010'!F46 -> 88918.9 | D46: 78636.02 | E46: 10282.88 | G46: 10282.88 | H46: 5 | I46: 0.2 | J46: 2056.576 | K46: =-'App.2-BA_FA Cont 2011 OldCGAAP'!K38 -> 2056.58 | L46: -0.004000000002
A47: 1920 | B47: Computer Equip.-Hardware(Post Mar. 22/04) | E47: 0 | G47: 0 | J47: 0 | L47: 0
A48: 1920 | B48: Computer Equip.-Hardware(Post Mar. 19/07) | E48: 0 | G48: 0 | J48: 0 | L48: 0
A49: 1930 | B49: Transportation Equipment - under 3 Tons | C49: =+'App.2-CA_OldCGAAP_DepExp_2010'!C49+'App.2-CA_OldCGAAP_DepExp_2010'!F49 -> 100904.77 | D49: =66163.05+32700.52 -> 98863.57 | E49: 2041.2 | G49: 2041.2 | H49: 5 | I49: 0.2 | J49: 408.24 | K49: 408.24 | L49: -5.684341886e-13
A50: 1930 | B50: Transportation Equipment - 3 Tons & Over | C50: =+'App.2-CA_OldCGAAP_DepExp_2010'!C50+'App.2-CA_OldCGAAP_DepExp_2010'!F50 -> 808501.16 | D50: 548607.59 | E50: 259893.57 | F50: 40204 | G50: 279995.57 | H50: 8 | I50: 0.125 | J50: 34999.44625 | K50: 34999.45 | L50: -0.003749999989
A51: 1935 | B51: Stores Equipment | C51: =+'App.2-CA_OldCGAAP_DepExp_2010'!C51+'App.2-CA_OldCGAAP_DepExp_2010'!F51 -> 3559.1 | D51: 3559.1 | E51: 0 | G51: 0 | J51: 0 | L51: 0
A52: 1940 | B52: Tools, Shop & Garage Equipment | C52: =+'App.2-CA_OldCGAAP_DepExp_2010'!C52+'App.2-CA_OldCGAAP_DepExp_2010'!F52 -> 186853.67 | D52: =154529.2+3848.09+8637 -> 167014.29 | E52: 19839.38 | G52: =E52+0.5*F52 -> 19839.38 | H52: 10 | I52: 0.1 | J52: 1983.938 | K52: =-'App.2-BA_FA Cont 2011 OldCGAAP'!K43 -> 1983.94 | L52: -0.001999999999
A53: 1945 | B53: Measurement & Testing Equipment | E53: 0 | G53: 0 | H53: 10 | I53: 0.1 | J53: 0 | L53: 0
A54: 1950 | B54: Power Operated Equipment | E54: 0 | G54: 0 | J54: 0 | L54: 0
A55: 1955 | B55: Communications Equipment | E55: 0 | G55: 0 | H55: 5 | I55: 0.2 | J55: 0 | L55: 0
A56: 1955 | B56: Communication Equipment (Smart Meters) | E56: 0 | G56: 0 | J56: 0 | L56: 0
A57: 1960 | B57: Miscellaneous Equipment | E57: 0 | G57: 0 | J57: 0 | L57: 0
A58: 1970 | B58: Load Management Controls Customer Premises | E58: =C58-D58 -> 0 | G58: 0 | H58: 10 | I58: =IF(H58=0,"",1/H58) -> 0.1 | J58: =IF(H58=0,0,G58/H58) -> 0 | L58: =IF(ISERROR(+J58-K58), "", +J58-K58) -> 0
A59: 1975 | B59: Load Management Controls Utility Premises | E59: 0 | G59: 0 | H59: 10 | I59: 0.1 | J59: 0 | L59: 0
A60: 1980 | B60: System Supervisor Equipment | E60: 0 | G60: 0 | H60: 15 | I60: 0.06666666667 | J60: 0 | L60: 0
A61: 1985 | B61: Miscellaneous Fixed Assets | E61: 0 | G61: 0 | J61: 0 | L61: 0
A62: 1990 | B62: Other Tangible Property | E62: =C62-D62 -> 0 | G62: 0 | I62: =IF(H62=0,"",1/H62) ->  | J62: =IF(H62=0,0,G62/H62) -> 0 | L62: =IF(ISERROR(+J62-K62), "", +J62-K62) -> 0
A63: 1995 | B63: Contributions & Grants | E63: 0 | G63: 0 | H63: 25 | I63: 0.04 | J63: 0 | L63: 0
A64: 1609 | B64: Other Tangible Property | E64: 0 | G64: 0 | J64: 0 | L64: 0
G65: 0
G66: 0
G67: 0
G68: 0
G69: 0
G70: 0
G71: 0
G72: 0
G73: 0
G74: 0
E75: 0 | G75: 0 | J75: 0 | L75: 0
B76: Total | C76: =SUM(C16:C75) -> 12711556.47 | D76: =SUM(D16:D75) -> 3914145.08 | E76: =SUM(E16:E75) -> 8797411.39 | F76: =SUM(F16:F75) -> 518283.65 | G76: =SUM(G16:G75) -> 9056553.215 | J76: =SUM(J16:J75) -> 396630.6314 | K76: =SUM(K16:K75) -> 396465.14 | L76: =SUM(L16:L75) -> 165.4913833
C78: =+'App.2-BA_FA Cont 2011 OldCGAAP'!E60 -> 12711556.47 | F78: =+'App.2-BA_FA Cont 2011 OldCGAAP'!F60 -> 518283.65 | K78: =-'App.2-BA_FA Cont 2011 OldCGAAP'!K60 -> 396465.14
C79: =+C76-C78 -> 0 | F79: =+F76-F78 -> 0 | K79: =+K76-K78 -> 0

Sheet App.2-CA_OldCGAAP_DepExp_2012
K1: File Number: | L1: =EBNUMBER -> EB-2016-0166
K2: Exhibit:
K3: Tab:
K4: Schedule:
K5: Page:
K7: Date:
A9: Appendix 2-CA
A10: Depreciation and Amortization Expense
B11: Assumes the applicant made capitalization and depreciation expense accounting policy changes under CGAAP effective January 1, 2013 and will adopt IFRS for financial reporting purposes effective January 1, 2015.
C13: Year | D13: 2012 | E13: Former CGAAP
A14: Account | B14: Description | C14: Opening Regulatory Gross PP&E as at Jan 1, 2012 | D14: Less Fully Depreciated | E14: Net for Depreciation | F14: Additions | G14: Total for Depreciation | H14: Years | I14: Depreciation Rate | J14: 2012 Depreciation Expense | K14: 2012 Depreciation Expense per Appendix 2-B Fixed Assets, Column K (l) | L14: Variance 2
C15: (a) | D15: (b) | E15: (c) | F15: (d) | G15: (e) = (c) + ½ x (d) 1 | H15: (f) | I15: (g) = 1 / (f) | J15: (h) = (e) / (f) | L15: (m) = (h) - (l)
A16: 1611 | B16: Computer Software (Formally known as Account 1925) | C16: =+'App.2-CA_OldCGAAP_DepExp_2011'!C16+'App.2-CA_OldCGAAP_DepExp_2011'!F16 -> 120704.76 | D16: =3348+110911.76 -> 114259.76 | E16: =C16-D16 -> 6445 | G16: =E16+0.5*F16 -> 6445 | H16: 5 | I16: =IF(H16=0,"",1/H16) -> 0.2 | J16: =IF(H16=0,0,G16/H16) -> 1289 | K16: =-'App.2-BA_FA Cont 2012 OldCGAAP'!K17 -> 1289 | L16: =IF(ISERROR(+J16-K16), "", +J16-K16) -> 0
A17: 1612 | B17: Land Rights (Formally known as Account 1906) | C17: =+'App.2-CA_OldCGAAP_DepExp_2011'!C17 -> 23980.67 | D17: =13885.9+1750 -> 15635.9 | E17: =C17-D17 -> 8344.77 | G17: =E17+0.5*F17 -> 8344.77 | H17: 20 | I17: 0.05 | J17: 417.2385 | K17: =-'App.2-BA_FA Cont 2012 OldCGAAP'!K18 -> 405.6 | L17: =IF(ISERROR(+J17-K17), "", +J17-K17) -> 11.6385
A18: 1612 | B18: Land Rights (Formally known as Account 1906) | E18: 0 | G18: 0 | H18: 25 | I18: 0.04 | J18: 0 | L18: 0
A19: 1805 | B19: Land | C19: =+'App.2-CA_OldCGAAP_DepExp_2011'!C19 -> 22895.33 | E19: 22895.33 | G19: 22895.33 | H19: 0 | J19: 0 | L19: 0
A20: 1808 | B20: Buildings - Equipment | E20: 0 | G20: 0 | J20: 0 | L20: 0
A21: 1808 | B21: Buildings - Equipment | E21: 0 | G21: 0 | J21: 0 | L21: 0
A22: 1808 | B22: Buildings - Equipment | E22: 0 | G22: 0 | J22: 0 | L22: 0
A23: 1808 | B23: Buildings - Major Repairs | E23: 0 | G23: 0 | J23: 0 | L23: 0
A24: 1808 | B24: Buildings - Major Repairs | E24: 0 | G24: 0 | H24: 25 | I24: 0.04 | J24: 0 | L24: 0
A25: 1808 | B25: Buildings - Brick, Stone, Concrete and Steel | C25: =+'App.2-CA_OldCGAAP_DepExp_2011'!C24+'App.2-CA_OldCGAAP_DepExp_2011'!F24 -> 197682.56 | D25: 13819.12 | E25: 183863.44 | G25: 183863.44 | H25: 50 | I25: 0.02 | J25: 3677.2688 | K25: =-'App.2-BA_FA Cont 2012 OldCGAAP'!K20 -> 3677.27 | L25: -0.0012
A26: 1808 | B26: Buildings - Other | C26: =+'App.2-CA_OldCGAAP_DepExp_2011'!C25 -> 4151.77 | E26: 4151.77 | G26: 4151.77 | H26: 25 | I26: 0.04 | J26: 166.0708 | L26: 166.0708
A27: 1810 | B27: Leasehold Improvements | E27: 0 | G27: 0 | J27: 0 | L27: 0
A28: 1815 | B28: Transformer Station Equipment >50 kV | E28: 0 | G28: 0 | J28: 0 | L28: 0
A29: 1820 | B29: Distribution Station Equipment <50 kV | C29: =+'App.2-CA_OldCGAAP_DepExp_2011'!C28 -> 1288197.03 | D29: 201648.59 | E29: 1086548.44 | G29: 1086548.44 | H29: 30 | I29: 0.03333333333 | J29: 36218.28133 | K29: =-'App.2-BA_FA Cont 2012 OldCGAAP'!K23 -> 36218.28 | L29: 0.001333333334
A30: 1825 | B30: Storage Battery Equipment | E30: 0 | G30: 0 | J30: 0 | L30: 0
A31: 1830 | B31: Poles, Towers & Fixtures | C31: =+'App.2-CA_OldCGAAP_DepExp_2011'!C30+'App.2-CA_OldCGAAP_DepExp_2011'!F30 -> 2322582.79 | D31: =481999+37565.75 -> 519564.75 | E31: 1803018.04 | F31: 161976.09 | G31: 1884006.085 | H31: 25 | I31: 0.04 | J31: 75360.2434 | K31: =-'App.2-BA_FA Cont 2012 OldCGAAP'!K25 -> 75360.24 | L31: 0.003399999987
A32: 1835 | B32: Overhead Conductors & Devices | C32: =+'App.2-CA_OldCGAAP_DepExp_2011'!C31+'App.2-CA_OldCGAAP_DepExp_2011'!F31 -> 3826390.37 | D32: =1046146.7+87653.7 -> 1133800.4 | E32: 2692589.97 | F32: 145097.59 | G32: 2765138.765 | H32: 25 | I32: 0.04 | J32: 110605.5506 | K32: =-'App.2-BA_FA Cont 2012 OldCGAAP'!K26 -> 110605.55 | L32: 0.0005999999848
A33: 1840 | B33: Underground Conduit | C33: =+'App.2-CA_OldCGAAP_DepExp_2011'!C32+'App.2-CA_OldCGAAP_DepExp_2011'!F32 -> 54570.4 | D33: 1257.25 | E33: 53313.15 | F33: 8500.42 | G33: 57563.36 | H33: 25 | I33: 0.04 | J33: 2302.5344 | K33: =-'App.2-BA_FA Cont 2012 OldCGAAP'!K27 -> 2302.53 | L33: 0.0044
A34: 1845 | B34: Underground Conductors & Devices | C34: =+'App.2-CA_OldCGAAP_DepExp_2011'!C33+'App.2-CA_OldCGAAP_DepExp_2011'!F33 -> 389514.18 | D34: =4739.35+8585.75 -> 13325.1 | E34: 376189.08 | F34: 23628.42 | G34: 388003.29 | H34: 25 | I34: 0.04 | J34: 15520.1316 | K34: =-'App.2-BA_FA Cont 2012 OldCGAAP'!K28 -> 15520.13 | L34: 0.001600000001
A35: 1850 | B35: Line Transformers | C35: =+'App.2-CA_OldCGAAP_DepExp_2011'!C34+'App.2-CA_OldCGAAP_DepExp_2011'!F34 -> 1605215.38 | D35: =554065.05+81943.2 -> 636008.25 | E35: 969207.13 | F35: 23827.94 | G35: 981121.1 | H35: 25 | I35: 0.04 | J35: 39244.844 | K35: =-'App.2-BA_FA Cont 2012 OldCGAAP'!K29 -> 39244.84 | L35: 0.004000000001
A36: 1855 | B36: Services (Overhead & Underground) | C36: =+'App.2-CA_OldCGAAP_DepExp_2011'!C35+'App.2-CA_OldCGAAP_DepExp_2011'!F35 -> 1519842.58 | D36: =470330.9+44920 -> 515250.9 | E36: 1004591.68 | F36: =15681.89+6895.26 -> 22577.15 | G36: 1015880.255 | H36: 25 | I36: 0.04 | J36: 40635.2102 | K36: =-'App.2-BA_FA Cont 2012 OldCGAAP'!K30 -> 40635.21 | L36: 0.0002000000022
A37: 1860 | B37: Meters | C37: =+'App.2-CA_OldCGAAP_DepExp_2011'!C36 -> 594329.39 | D37: 214688.89 | E37: 379640.5 | G37: 379640.5 | H37: 25 | I37: 0.04 | J37: 15185.62 | K37: =-'App.2-BA_FA Cont 2012 OldCGAAP'!K31 -> 15185.62 | L37: 0 | M37: only took 1/2 on the 2010 additions
A38: 1860 | B38: Meters (Smart Meters) | E38: 0 | G38: 0 | J38: 0 | L38: 0
A39: 1905 | B39: Land | E39: 0 | G39: 0 | H39: 0 | J39: 0 | L39: 0
A40: 1908 | B40: Buildings & Fixtures | E40: 0 | G40: 0 | J40: 0 | L40: 0
A41: 1908 | B41: Buildings & Fixtures | E41: 0 | G41: 0 | J41: 0 | L41: 0
A42: 1908 | B42: Buildings & Fixtures | E42: 0 | G42: 0 | J42: 0 | L42: 0
A43: 1908 | B43: Buildings & Fixtures | E43: 0 | G43: 0 | J43: 0 | L43: 0
A44: 1908 | B44: Buildings & Fixtures | E44: 0 | G44: 0 | J44: 0 | L44: 0
A45: 1908 | B45: Buildings & Fixtures | E45: 0 | G45: 0 | J45: 0 | L45: 0
A46: 1910 | B46: Leasehold Improvements | E46: 0 | G46: 0 | J46: 0 | L46: 0
A47: 1915 | B47: Office Furniture & Equipment (10 years) | C47: =+'App.2-CA_OldCGAAP_DepExp_2011'!C44 -> 30841.31 | D47: 30841.31 | E47: 0 | G47: 0 | H47: 10 | I47: 0.1 | J47: 0 | K47: =-'App.2-BA_FA Cont 2012 OldCGAAP'!K36 -> 0 | L47: 0
A48: 1915 | B48: Office Furniture & Equipment (5 years) | E48: 0 | G48: 0 | J48: 0 | L48: 0
A49: 1920 | B49: Computer Equipment - Hardware | C49: =+'App.2-CA_OldCGAAP_DepExp_2011'!C46 -> 88918.9 | D49: =78636.02+5834.68 -> 84470.7 | E49: 4448.2 | F49: 6705 | G49: 7800.7 | H49: 5 | I49: 0.2 | J49: 1560.14 | K49: =-'App.2-BA_FA Cont 2012 OldCGAAP'!K38 -> 1560.14 | L49: -3.637978807e-12
A50: 1920 | B50: Computer Equip.-Hardware(Post Mar. 22/04) | E50: 0 | G50: 0 | J50: 0 | L50: 0
A51: 1920 | B51: Computer Equip.-Hardware(Post Mar. 19/07) | E51: 0 | G51: 0 | H51: 5 | I51: 0.2 | J51: 0 | L51: 0
A52: 1930 | B52: Transportation Equipment - under 3 Tons | C52: =+'App.2-CA_OldCGAAP_DepExp_2011'!C49 -> 100904.77 | D52: =98863.57+2041.2 -> 100904.77 | E52: 0 | F52: 47264.18 | G52: 23632.09 | H52: 5 | I52: 0.2 | J52: 4726.418 | K52: 4726.42 | L52: -0.002
A53: 1930 | B53: Transportation Equipment - 3 Tons & Over | C53: =+'App.2-CA_OldCGAAP_DepExp_2011'!C50+'App.2-CA_OldCGAAP_DepExp_2011'!F50 -> 848705.16 | D53: 548607.59 | E53: 300097.57 | G53: 300097.57 | H53: 8 | I53: 0.125 | J53: 37512.19625 | K53: 37512.2 | L53: -0.003749999989
A54: 1935 | B54: Stores Equipment | C54: =+'App.2-CA_OldCGAAP_DepExp_2011'!C51 -> 3559.1 | D54: 3559.1 | E54: 0 | G54: 0 | H54: 10 | I54: 0.1 | J54: 0 | L54: 0
A55: 1940 | B55: Tools, Shop & Garage Equipment | C55: =+'App.2-CA_OldCGAAP_DepExp_2011'!C52 -> 186853.67 | D55: 167014.29 | E55: 19839.38 | G55: 19839.38 | H55: 10 | I55: 0.1 | J55: 1983.938 | K55: =-'App.2-BA_FA Cont 2012 OldCGAAP'!K43 -> 1983.94 | L55: -0.001999999999
A56: 1945 | B56: Measurement & Testing Equipment | E56: 0 | G56: 0 | J56: 0 | L56: 0
A57: 1950 | B57: Power Operated Equipment | E57: 0 | G57: 0 | J57: 0 | L57: 0
A58: 1955 | B58: Communications Equipment | E58: 0 | G58: 0 | H58: 5 | I58: 0.2 | J58: 0 | L58: 0
A59: 1955 | B59: Communication Equipment (Smart Meters) | E59: 0 | G59: 0 | J59: 0 | L59: 0
A60: 1960 | B60: Miscellaneous Equipment | E60: 0 | G60: 0 | J60: 0 | L60: 0
A61: 1970 | B61: Load Management Controls Customer Premises | E61: =C61-D61 -> 0 | G61: =E61+0.5*F61 -> 0 | H61: 10 | I61: =IF(H61=0,"",1/H61) -> 0.1 | J61: =IF(H61=0,0,G61/H61) -> 0 | L61: 0
A62: 1975 | B62: Load Management Controls Utility Premises | E62: 0 | G62: 0 | H62: 10 | I62: 0.1 | J62: 0 | L62: 0
A63: 1980 | B63: System Supervisor Equipment | E63: 0 | G63: 0 | H63: 15 | I63: 0.06666666667 | J63: 0 | L63: 0
A64: 1985 | B64: Miscellaneous Fixed Assets | E64: 0 | G64: 0 | J64: 0 | L64: 0
A65: 1990 | B65: Other Tangible Property | E65: =C65-D65 -> 0 | G65: =E65+0.5*F65 -> 0 | I65: =IF(H65=0,"",1/H65) ->  | J65: =IF(H65=0,0,G65/H65) -> 0 | L65: 0
A66: 1995 | B66: Contributions & Grants | E66: 0 | G66: 0 | H66: 25 | I66: 0.04 | J66: 0 | L66: 0
A67: 1609 | B67: Other Tangible Property | E67: 0 | F67: 0 | G67: 0 | J67: 0 | L67: 0
B79: Total | C79: =SUM(C16:C78) -> 13229840.12 | D79: =SUM(D16:D78) -> 4314656.67 | E79: =SUM(E16:E78) -> 8915183.45 | F79: =SUM(F16:F78) -> 439576.79 | G79: =SUM(G16:G78) -> 9134971.845 | J79: =SUM(J16:J78) -> 386404.6859 | K79: =SUM(K16:K78) -> 386226.97 | L79: =SUM(L16:L78) -> 177.7158833
C81: =+'App.2-BA_FA Cont 2012 OldCGAAP'!E60 -> 13229840.12 | F81: =+'App.2-BA_FA Cont 2012 OldCGAAP'!F60 -> 439576.79 | K81: =-'App.2-BA_FA Cont 2012 OldCGAAP'!K60 -> 386226.97
C82: =+C79-C81 -> 0 | F82: =+F79-F81 -> 0 | K82: =+K79-K81 -> 0

Sheet App.2-CA_OldCGAAP_DepExp_2013
K1: File Number: | L1: =EBNUMBER -> EB-2016-0166
K2: Exhibit:
K3: Tab:
K4: Schedule:
K5: Page:
K7: Date:
A9: Appendix 2-CA
A10: Depreciation and Amortization Expense
B11: Assumes the applicant made capitalization and depreciation expense accounting policy changes under CGAAP effective January 1, 2013 and will adopt IFRS for financial reporting purposes effective January 1, 2015.
C13: Year | D13: 2013 | E13: Former CGAAP
A14: Account | B14: Description | C14: Opening Regulatory Gross PP&E as at Jan 1, 2013 | D14: Less Fully Depreciated | E14: Net for Depreciation | F14: Additions | G14: Total for Depreciation | H14: Years | I14: Depreciation Rate | J14: 2013 Depreciation Expense | K14: 2013 Depreciation Expense - old CGAAP (l) | L14: Variance 2
C15: (a) | D15: (b) | E15: (c) | F15: (d) | G15: (e) = (c) + ½ x (d) 1 | H15: (f) | I15: (g) = 1 / (f) | J15: (h) = (e) / (f) | L15: (m) = (h) - (l)
A16: 1611 | B16: Computer Software (Formally known as Account 1925) | C16: =+'App.2-CA_OldCGAAP_DepExp_2012'!C16+'App.2-CA_OldCGAAP_DepExp_2012'!F16 -> 120704.76 | D16: 114259.76 | E16: =C16-D16 -> 6445 | G16: =E16+0.5*F16 -> 6445 | H16: 5 | I16: =IF(H16=0,"",1/H16) -> 0.2 | J16: =IF(H16=0,0,G16/H16) -> 1289 | K16: =-'App.2-BA_FA Cont 2013_OldCGAAP'!K17 -> 1289 | L16: =IF(ISERROR(+J16-K16), "", +J16-K16) -> 0
A17: 1612 | B17: Land Rights (Formally known as Account 1906) | C17: =+'App.2-CA_OldCGAAP_DepExp_2012'!C17+'App.2-CA_OldCGAAP_DepExp_2012'!F17 -> 23980.67 | D17: =15635.9+538.27 -> 16174.17 | E17: =C17-D17 -> 7806.5 | G17: =E17+0.5*F17 -> 7806.5 | H17: 20 | I17: 0.05 | J17: 390.325 | K17: =-'App.2-BA_FA Cont 2013_OldCGAAP'!K18 -> 390.33 | L17: =IF(ISERROR(+J17-K17), "", +J17-K17) -> -0.005
A18: 1612 | B18: Land Rights (Formally known as Account 1906) | E18: 0 | G18: 0 | J18: 0 | L18: =IF(ISERROR(+J18-K18), "", +J18-K18) -> 0
A19: 1805 | B19: Land | C19: =+'App.2-CA_OldCGAAP_DepExp_2012'!C19+'App.2-CA_OldCGAAP_DepExp_2012'!F19 -> 22895.33 | E19: 22895.33 | G19: 22895.33 | H19: 0 | J19: 0 | L19: 0
A20: 1808 | B20: Buildings - Equipment | E20: 0 | G20: 0 | J20: 0 | L20: 0
A21: 1808 | B21: Buildings - Equipment | E21: 0 | G21: 0 | J21: 0 | L21: 0
A22: 1808 | B22: Buildings - Equipment | E22: 0 | G22: 0 | J22: 0 | L22: 0
A23: 1808 | B23: Buildings - Major Repairs | E23: 0 | G23: 0 | J23: 0 | L23: 0
A24: 1808 | B24: Buildings - Major Repairs | E24: 0 | G24: 0 | J24: 0 | L24: 0
A25: 1808 | B25: Buildings - Brick, Stone, Concrete and Steel | C25: =+'App.2-CA_OldCGAAP_DepExp_2012'!C25+'App.2-CA_OldCGAAP_DepExp_2012'!F25 -> 197682.56 | D25: 13819.12 | E25: 183863.44 | G25: 183863.44 | H25: 50 | I25: 0.02 | J25: 3677.2688 | K25: =2895.83+781.44 -> 3677.27 | L25: -0.0012
A26: 1808 | B26: Buildings - Other | C26: =+'App.2-CA_OldCGAAP_DepExp_2012'!C26+'App.2-CA_OldCGAAP_DepExp_2012'!F26 -> 4151.77 | E26: 4151.77 | G26: 4151.77 | H26: 25 | I26: 0.04 | J26: 166.0708 | K26: 1674.77 | L26: -1508.6992 | M26: adj made for years missed
A27: 1810 | B27: Leasehold Improvements | E27: 0 | G27: 0 | J27: 0 | L27: 0
A28: 1815 | B28: Transformer Station Equipment >50 kV | E28: 0 | G28: 0 | J28: 0 | L28: 0
A29: 1820 | B29: Distribution Station Equipment <50 kV | C29: =+'App.2-CA_OldCGAAP_DepExp_2012'!C29+'App.2-CA_OldCGAAP_DepExp_2012'!F29 -> 1288197.03 | D29: 201648.59 | E29: 1086548.44 | G29: 1086548.44 | H29: 30 | I29: 0.03333333333 | J29: 36218.28133 | K29: 36218.28 | L29: 0.001333333334
A30: 1825 | B30: Storage Battery Equipment | E30: 0 | G30: 0 | J30: 0 | L30: 0
A31: 1830 | B31: Poles, Towers & Fixtures | C31: =+'App.2-CA_OldCGAAP_DepExp_2012'!C31+'App.2-CA_OldCGAAP_DepExp_2012'!F31 -> 2484558.88 | D31: =519564.75+46549.2 -> 566113.95 | E31: 1918444.93 | F31: 109812.52 | G31: 1973351.19 | H31: 25 | I31: 0.04 | J31: 78934.0476 | K31: 78934.05 | L31: -0.002400000012
A32: 1835 | B32: Overhead Conductors & Devices | C32: =+'App.2-CA_OldCGAAP_DepExp_2012'!C32+'App.2-CA_OldCGAAP_DepExp_2012'!F32 -> 3971487.96 | D32: =1133800.4+108615 -> 1242415.4 | E32: 2729072.56 | F32: 64843.03 | G32: 2761494.075 | H32: 25 | I32: 0.04 | J32: 110459.763 | K32: 110459.76 | L32: 0.002999999997
A33: 1840 | B33: Underground Conduit | C33: =+'App.2-CA_OldCGAAP_DepExp_2012'!C33+'App.2-CA_OldCGAAP_DepExp_2012'!F33 -> 63070.82 | D33: =1257.25+557.5 -> 1814.75 | E33: 61256.07 | F33: 4520.01 | G33: 63516.075 | H33: 25 | I33: 0.04 | J33: 2540.643 | K33: 2540.64 | L33: 0.003
A34: 1845 | B34: Underground Conductors & Devices | C34: =+'App.2-CA_OldCGAAP_DepExp_2012'!C34+'App.2-CA_OldCGAAP_DepExp_2012'!F34 -> 413142.6 | D34: =13325.1+5022 -> 18347.1 | E34: 394795.5 | F34: 85037 | G34: 437314 | H34: 25 | I34: 0.04 | J34: 17492.56 | K34: 17492.56 | L34: 0
A35: 1850 | B35: Line Transformers | C35: =+'App.2-CA_OldCGAAP_DepExp_2012'!C35+'App.2-CA_OldCGAAP_DepExp_2012'!F35 -> 1629043.32 | D35: =636008.25+99501 -> 735509.25 | E35: 893534.07 | F35: 41355.93 | G35: 914212.035 | H35: 25 | I35: 0.04 | J35: 36568.4814 | K35: 36568.48 | L35: 0.001399999986
A36: 1855 | B36: Services (Overhead & Underground) | C36: =+'App.2-CA_OldCGAAP_DepExp_2012'!C36+'App.2-CA_OldCGAAP_DepExp_2012'!F36 -> 1542419.73 | D36: =515250.9+53580.75 -> 568831.65 | E36: 973588.08 | F36: 34966.18 | G36: 991071.17 | H36: 25 | I36: 0.04 | J36: 39642.8468 | K36: 39642.85 | L36: -0.003199999999
A37: 1860 | B37: Meters | C37: =+'App.2-CA_OldCGAAP_DepExp_2012'!C37+'App.2-CA_OldCGAAP_DepExp_2012'!F37 -> 594329.39 | D37: 240829.39 | E37: 353500 | G37: 353500 | H37: 25 | I37: 0.04 | J37: 14140 | K37: 14140 | L37: 0
A38: 1860 | B38: Meters (Smart Meters) | E38: 0 | F38: 14490.6 | G38: 7245.3 | H38: 15 | I38: 0.06666666667 | J38: 483.02 | K38: 483.02 | L38: 5.684341886e-14
A39: 1905 | B39: Land | E39: 0 | G39: 0 | H39: 0 | J39: 0 | L39: 0
A40: 1908 | B40: Buildings & Fixtures | E40: 0 | G40: 0 | J40: 0 | L40: 0
A41: 1908 | B41: Buildings & Fixtures | E41: 0 | G41: 0 | J41: 0 | L41: 0
A42: 1908 | B42: Buildings & Fixtures | E42: 0 | G42: 0 | J42: 0 | L42: 0
A43: 1908 | B43: Buildings & Fixtures | E43: 0 | G43: 0 | J43: 0 | L43: 0
A44: 1908 | B44: Buildings & Fixtures | E44: 0 | G44: 0 | J44: 0 | L44: 0
A45: 1908 | B45: Buildings & Fixtures | E45: 0 | G45: 0 | J45: 0 | L45: 0
A46: 1910 | B46: Leasehold Improvements | E46: 0 | G46: 0 | J46: 0 | L46: 0
A47: 1915 | B47: Office Furniture & Equipment (10 years) | C47: =+'App.2-CA_OldCGAAP_DepExp_2012'!C47+'App.2-CA_OldCGAAP_DepExp_2012'!F47 -> 30841.31 | D47: 30841.31 | E47: 0 | G47: 0 | H47: 10 | I47: 0.1 | J47: 0 | L47: 0
A48: 1915 | B48: Office Furniture & Equipment (5 years) | E48: 0 | G48: 0 | J48: 0 | L48: 0
A49: 1920 | B49: Computer Equipment - Hardware | C49: =+'App.2-CA_OldCGAAP_DepExp_2012'!C49+'App.2-CA_OldCGAAP_DepExp_2012'!F49 -> 95623.9 | D49: 84470.7 | E49: 11153.2 | G49: 11153.2 | H49: 5 | I49: 0.2 | J49: 2230.64 | K49: 2230.64 | L49: -4.547473509e-13
A50: 1920 | B50: Computer Equip.-Hardware(Post Mar. 22/04) | E50: 0 | G50: 0 | J50: 0 | L50: 0
A51: 1920 | B51: Computer Equip.-Hardware(Post Mar. 19/07) | E51: 0 | G51: 0 | H51: 5 | I51: 0.2 | J51: 0 | L51: 0
A52: 1930 | B52: Transportation Equipment - under 3 Tons | C52: =+'App.2-CA_OldCGAAP_DepExp_2012'!C52+'App.2-CA_OldCGAAP_DepExp_2012'!F52 -> 148168.95 | D52: 100904.75 | E52: 47264.2 | F52: 2500 | G52: 48514.2 | H52: 5 | I52: 0.2 | J52: 9702.84 | K52: 9702.84 | L52: 1.818989404e-12
A53: 1930 | B53: Transportation Equipment - 3 Tons & Over | C53: =+'App.2-CA_OldCGAAP_DepExp_2012'!C53+'App.2-CA_OldCGAAP_DepExp_2012'!F53 -> 848705.16 | D53: 548609.16 | E53: 300096 | G53: 300096 | H53: 8 | I53: 0.125 | J53: 37512 | K53: 37512.2 | L53: -0.2
A54: 1935 | B54: Stores Equipment | C54: =+'App.2-CA_OldCGAAP_DepExp_2012'!C54+'App.2-CA_OldCGAAP_DepExp_2012'!F54 -> 3559.1 | D54: 3559.1 | E54: 0 | G54: 0 | H54: 10 | I54: 0.1 | J54: 0 | L54: 0
A55: 1940 | B55: Tools, Shop & Garage Equipment | C55: =+'App.2-CA_OldCGAAP_DepExp_2012'!C55+'App.2-CA_OldCGAAP_DepExp_2012'!F55 -> 186853.67 | D55: =167014.29+1593 -> 168607.29 | E55: 18246.38 | G55: 18246.38 | H55: 10 | I55: 0.1 | J55: 1824.638 | K55: 1824.64 | L55: -0.002
A56: 1945 | B56: Measurement & Testing Equipment | E56: 0 | G56: 0 | H56: 10 | I56: 0.1 | J56: 0 | L56: 0
A57: 1950 | B57: Power Operated Equipment | E57: 0 | G57: 0 | J57: 0 | L57: 0
A58: 1955 | B58: Communications Equipment | E58: 0 | G58: 0 | H58: 5 | I58: 0.2 | J58: 0 | L58: 0
A59: 1955 | B59: Communication Equipment (Smart Meters) | E59: 0 | G59: 0 | J59: 0 | L59: 0
A60: 1960 | B60: Miscellaneous Equipment | E60: 0 | G60: 0 | H60: 10 | I60: 0.1 | J60: 0 | L60: 0
A61: 1970 | B61: Load Management Controls Customer Premises | E61: =C61-D61 -> 0 | G61: =E61+0.5*F61 -> 0 | H61: 10 | I61: =IF(H61=0,"",1/H61) -> 0.1 | J61: =IF(H61=0,0,G61/H61) -> 0 | L61: 0
A62: 1975 | B62: Load Management Controls Utility Premises | E62: 0 | G62: 0 | H62: 10 | I62: 0.1 | J62: 0 | L62: 0
A63: 1980 | B63: System Supervisor Equipment | E63: 0 | G63: 0 | H63: 5 | I63: 0.2 | J63: 0 | L63: 0
A64: 1985 | B64: Miscellaneous Fixed Assets | E64: 0 | G64: 0 | J64: 0 | L64: 0
A65: 1990 | B65: Other Tangible Property | E65: =C65-D65 -> 0 | G65: =E65+0.5*F65 -> 0 | I65: =IF(H65=0,"",1/H65) ->  | J65: =IF(H65=0,0,G65/H65) -> 0 | L65: 0
A66: 1995 | B66: Contributions & Grants - O/H Conductor | E66: 0 | F66: -2000 | G66: -1000 | H66: 25 | I66: 0.04 | J66: -40 | K66: -40 | L66: 0
A67: 1995 | B67: Contributions & Grants - Poles | E67: =C67-D67 -> 0 | F67: -15100 | G67: =E67+0.5*F67 -> -7550 | H67: 25 | I67: =IF(H67=0,"",1/H67) -> 0.04 | J67: =IF(H67=0,0,G67/H67) -> -302 | K67: -302 | L67: =IF(ISERROR(+J67-K67), "", +J67-K67) -> 0
A68: 1995 | B68: Contributions & Grants - Transformers | E68: 0 | F68: -7500 | G68: -3750 | H68: 25 | I68: 0.04 | J68: -150 | K68: -150 | L68: 0
A69: 1609 | B69: Other Tangible Property | E69: 0 | G69: 0 | J69: 0 | L69: 0
B81: Total | C81: =SUM(C16:C80) -> 13669416.91 | D81: =SUM(D16:D80) -> 4656755.44 | E81: =SUM(E16:E80) -> 9012661.47 | F81: =SUM(F16:F80) -> 332925.27 | G81: =SUM(G16:G80) -> 9179124.105 | J81: =SUM(J16:J80) -> 392780.4257 | K81: =SUM(K16:K80) -> 394289.33 | L81: =SUM(L16:L80) -> -1508.904267
F83: One-time adjustment made to opening A/D for past year errors --------------------------_____ | K83: =-'App.2-BA_FA Cont 2013_OldCGAAP'!M62 -> -13479.49
F84: (Eg. 2012 #1940 - NBV - negative ($4,952 - over depreciated) | K84: =SUM(K81:K83) -> 380809.84
C86: =+'App.2-BA_FA Cont 2013 NewCGAAP'!E86 -> 13669416.91 | F86: =+'App.2-BA_FA Cont 2013 NewCGAAP'!F86 -> 332925.27 | K86: =-'App.2-BA_FA Cont 2013_OldCGAAP'!L69 -> 380809.72
C87: =+C81-C86 -> 0 | F87: =+F81-F86 -> 0 | K87: =+K84-K86 -> 0.12

Sheet App.2-CA_OldCGAAP_DepExp_2014
K1: File Number: | L1: =EBNUMBER -> EB-2016-0166
K2: Exhibit:
K3: Tab:
K4: Schedule:
K5: Page:
K7: Date:
A9: Appendix 2-CA
A10: Depreciation and Amortization Expense
B11: Assumes the applicant made capitalization and depreciation expense accounting policy changes under CGAAP effective January 1, 2013 and will adopt IFRS for financial reporting purposes effective January 1, 2015.
C13: Year | D13: 2014 | E13: Former CGAAP
A14: Account | B14: Description | C14: Opening Regulatory Gross PP&E as at Jan 1, 2014 | D14: Less Fully Depreciated | E14: Net for Depreciation | F14: Additions | G14: Total for Depreciation | H14: Years | I14: Depreciation Rate | J14: 2014 Depreciation Expense | K14: 2014 Depreciation Expense - old CGAAP (l) | L14: Variance 2
C15: (a) | D15: (b) | E15: (c) | F15: (d) | G15: (e) = (c) + ½ x (d) 1 | H15: (f) | I15: (g) = 1 / (f) | J15: (h) = (e) / (f) | L15: (m) = (h) - (l)
A16: 1611 | B16: Computer Software (Formally known as Account 1925) | C16: =+'App.2-CA_OldCGAAP_DepExp_2013'!C16+'App.2-CA_OldCGAAP_DepExp_2013'!F16 -> 120704.76 | D16: 114259.76 | E16: =C16-D16 -> 6445 | G16: =E16+0.5*F16 -> 6445 | H16: 5 | I16: =IF(H16=0,"",1/H16) -> 0.2 | J16: =IF(H16=0,0,G16/H16) -> 1289 | K16: =-'App.2-BA_FA Cont 2014_OldCGAAP'!K17 -> 1289 | L16: =IF(ISERROR(+J16-K16), "", +J16-K16) -> 0
A17: 1612 | B17: Land Rights (Formally known as Account 1906) | C17: =+'App.2-CA_OldCGAAP_DepExp_2013'!C17+'App.2-CA_OldCGAAP_DepExp_2013'!F17 -> 23980.67 | D17: =15635.9+538.27 -> 16174.17 | E17: =C17-D17 -> 7806.5 | G17: =E17+0.5*F17 -> 7806.5 | H17: 20 | I17: 0.05 | J17: 390.325 | K17: =-'App.2-BA_FA Cont 2014_OldCGAAP'!K18 -> 390.33 | L17: =IF(ISERROR(+J17-K17), "", +J17-K17) -> -0.005
A18: 1612 | B18: Land Rights (Formally known as Account 1906) | E18: 0 | G18: 0 | J18: 0 | K18: =-'App.2-BA_FA Cont 2014_OldCGAAP'!K19 -> 0 | L18: =IF(ISERROR(+J18-K18), "", +J18-K18) -> 0
A19: 1805 | B19: Land | C19: =+'App.2-CA_OldCGAAP_DepExp_2013'!C19+'App.2-CA_OldCGAAP_DepExp_2013'!F19 -> 22895.33 | E19: 22895.33 | G19: 22895.33 | H19: 0 | J19: 0 | L19: 0
A20: 1808 | B20: Buildings - Equipment | E20: 0 | G20: 0 | J20: 0 | L20: 0
A21: 1808 | B21: Buildings - Equipment | E21: 0 | G21: 0 | J21: 0 | L21: 0
A22: 1808 | B22: Buildings - Equipment | E22: 0 | G22: 0 | J22: 0 | L22: 0
A23: 1808 | B23: Buildings - Major Repairs | E23: 0 | G23: 0 | J23: 0 | L23: 0
A24: 1808 | B24: Buildings - Major Repairs | E24: 0 | G24: 0 | J24: 0 | L24: 0
A25: 1808 | B25: Buildings - Brick, Stone, Concrete and Steel | C25: =+'App.2-CA_OldCGAAP_DepExp_2013'!C25+'App.2-CA_OldCGAAP_DepExp_2013'!F25 -> 197682.56 | D25: 13819.12 | E25: 183863.44 | G25: 183863.44 | H25: 50 | I25: 0.02 | J25: 3677.2688 | K25: =-'App.2-BA_FA Cont 2014_OldCGAAP'!K20 -> 3677.27 | L25: -0.0012
A26: 1808 | B26: Buildings - Other | C26: =+'App.2-CA_OldCGAAP_DepExp_2013'!C26+'App.2-CA_OldCGAAP_DepExp_2013'!F26 -> 4151.77 | D26: 4151.77 | E26: 0 | G26: 0 | H26: 25 | I26: 0.04 | J26: 0 | K26: =-'App.2-BA_FA Cont 2014_OldCGAAP'!K21 -> 0 | L26: 0
A27: 1810 | B27: Leasehold Improvements | E27: 0 | G27: 0 | J27: 0 | K27: =-'App.2-BA_FA Cont 2014_OldCGAAP'!K22 -> 0 | L27: 0
A28: 1815 | B28: Transformer Station Equipment >50 kV | E28: 0 | G28: 0 | J28: 0 | L28: 0
A29: 1820 | B29: Distribution Station Equipment <50 kV | C29: =+'App.2-CA_OldCGAAP_DepExp_2013'!C29+'App.2-CA_OldCGAAP_DepExp_2013'!F29 -> 1288197.03 | D29: =201648.59+84960.04 -> 286608.63 | E29: 1001588.4 | G29: 1001588.4 | H29: 30 | I29: 0.03333333333 | J29: 33386.28 | K29: =-'App.2-BA_FA Cont 2014_OldCGAAP'!K23 -> 33386.28 | L29: 0
A30: 1825 | B30: Storage Battery Equipment | E30: 0 | G30: 0 | J30: 0 | K30: =-'App.2-BA_FA Cont 2014_OldCGAAP'!K24 -> 0 | L30: 0
A31: 1830 | B31: Poles, Towers & Fixtures | C31: =+'App.2-CA_OldCGAAP_DepExp_2013'!C31+'App.2-CA_OldCGAAP_DepExp_2013'!F31 -> 2594371.4 | D31: =519564.75+46549.2+56895.45 -> 623009.4 | E31: 1971362 | F31: 127370 | G31: 2035047 | H31: 25 | I31: 0.04 | J31: 81401.88 | K31: =-'App.2-BA_FA Cont 2014_OldCGAAP'!K25 -> 81401.88 | L31: 0
A32: 1835 | B32: Overhead Conductors & Devices | C32: =+'App.2-CA_OldCGAAP_DepExp_2013'!C32+'App.2-CA_OldCGAAP_DepExp_2013'!F32 -> 4036330.99 | D32: =1133800.4+108615+132755.59 -> 1375170.99 | E32: 2661160 | F32: 114905 | G32: 2718612.5 | H32: 25 | I32: 0.04 | J32: 108744.5 | K32: =-'App.2-BA_FA Cont 2014_OldCGAAP'!K26 -> 108744.5 | L32: -4.365574569e-11
A33: 1840 | B33: Underground Conduit | C33: =+'App.2-CA_OldCGAAP_DepExp_2013'!C33+'App.2-CA_OldCGAAP_DepExp_2013'!F33 -> 67590.83 | D33: =1257.25+557.5+1734.08 -> 3548.83 | E33: 64042 | F33: 10114 | G33: 69099 | H33: 25 | I33: 0.04 | J33: 2763.96 | K33: =-'App.2-BA_FA Cont 2014_OldCGAAP'!K27 -> 2763.96 | L33: 0
A34: 1845 | B34: Underground Conductors & Devices | C34: =+'App.2-CA_OldCGAAP_DepExp_2013'!C34+'App.2-CA_OldCGAAP_DepExp_2013'!F34 -> 498179.6 | D34: =13325.1+5022+15602.25 -> 33949.35 | E34: 464230.25 | F34: 24717 | G34: 476588.75 | H34: 25 | I34: 0.04 | J34: 19063.55 | K34: =-'App.2-BA_FA Cont 2014_OldCGAAP'!K28 -> 19063.55 | L34: 0
A35: 1850 | B35: Line Transformers | C35: =+'App.2-CA_OldCGAAP_DepExp_2013'!C35+'App.2-CA_OldCGAAP_DepExp_2013'!F35 -> 1670399.25 | D35: =636008.25+99501+100450.75 -> 835960 | E35: 834439.25 | F35: 28523 | G35: 848700.75 | H35: 25 | I35: 0.04 | J35: 33948.03 | K35: =-'App.2-BA_FA Cont 2014_OldCGAAP'!K29 -> 33948.03 | L35: -7.275957614e-12
A36: 1855 | B36: Services (Overhead & Underground) | C36: =+'App.2-CA_OldCGAAP_DepExp_2013'!C36+'App.2-CA_OldCGAAP_DepExp_2013'!F36 -> 1577385.91 | D36: =515250.9+53580.75+68996.26 -> 637827.91 | E36: 939558 | F36: 14548 | G36: 946832 | H36: 25 | I36: 0.04 | J36: 37873.28 | K36: =-'App.2-BA_FA Cont 2014_OldCGAAP'!K30 -> 37873.28 | L36: 0
A37: 1860 | B37: Meters | C37: =+'App.2-CA_OldCGAAP_DepExp_2013'!C37+'App.2-CA_OldCGAAP_DepExp_2013'!F37 -> 594329.39 | D37: 260134.89 | E37: 334194.5 | G37: 334194.5 | H37: 25 | I37: 0.04 | J37: 13367.78 | K37: =-'App.2-BA_FA Cont 2014_OldCGAAP'!K31 -> 13367.78 | L37: 0
A38: 1860 | B38: Meters (Smart Meters) | C38: =+'App.2-CA_OldCGAAP_DepExp_2013'!C38+'App.2-CA_OldCGAAP_DepExp_2013'!F38 -> 14490.6 | E38: 14490.6 | F38: 10278 | G38: 19629.6 | H38: 15 | I38: 0.06666666667 | J38: 1308.64 | K38: =-'App.2-BA_FA Cont 2014_OldCGAAP'!K32 -> 1308.66 | L38: -0.02
A39: 1905 | B39: Land | E39: 0 | G39: 0 | H39: 0 | J39: 0 | K39: =-'App.2-BA_FA Cont 2014_OldCGAAP'!K33 -> 0 | L39: 0
A40: 1908 | B40: Buildings & Fixtures | E40: 0 | G40: 0 | J40: 0 | K40: =-'App.2-BA_FA Cont 2014_OldCGAAP'!K34 -> 0 | L40: 0
A41: 1908 | B41: Buildings & Fixtures | E41: 0 | G41: 0 | J41: 0 | K41: =-'App.2-BA_FA Cont 2014_OldCGAAP'!K35 -> 0 | L41: 0
A42: 1908 | B42: Buildings & Fixtures | E42: 0 | G42: 0 | J42: 0 | L42: 0
A43: 1908 | B43: Buildings & Fixtures | E43: 0 | G43: 0 | J43: 0 | L43: 0
A44: 1908 | B44: Buildings & Fixtures | E44: 0 | G44: 0 | J44: 0 | L44: 0
A45: 1908 | B45: Buildings & Fixtures | E45: 0 | G45: 0 | J45: 0 | L45: 0
A46: 1910 | B46: Leasehold Improvements | E46: 0 | G46: 0 | J46: 0 | L46: 0
A47: 1915 | B47: Office Furniture & Equipment (10 years) | C47: =+'App.2-CA_OldCGAAP_DepExp_2013'!C47+'App.2-CA_OldCGAAP_DepExp_2013'!F47 -> 30841.31 | D47: 30841.31 | E47: 0 | G47: 0 | H47: 10 | I47: 0.1 | J47: 0 | L47: 0
A48: 1915 | B48: Office Furniture & Equipment (5 years) | E48: 0 | G48: 0 | J48: 0 | L48: 0
A49: 1920 | B49: Computer Equipment - Hardware | C49: =+'App.2-CA_OldCGAAP_DepExp_2013'!C49+'App.2-CA_OldCGAAP_DepExp_2013'!F49 -> 95623.9 | D49: 84470.7 | E49: 11153.2 | F49: 5437 | G49: 13871.7 | H49: 5 | I49: 0.2 | J49: 2774.34 | K49: =-'App.2-BA_FA Cont 2014_OldCGAAP'!K38 -> 2774.37 | L49: -0.03
A50: 1920 | B50: Computer Equip.-Hardware(Post Mar. 22/04) | E50: 0 | G50: 0 | J50: 0 | K50: =-'App.2-BA_FA Cont 2014_OldCGAAP'!K39 -> 0 | L50: 0
A51: 1920 | B51: Computer Equip.-Hardware(Post Mar. 19/07) | E51: 0 | G51: 0 | H51: 5 | I51: 0.2 | J51: 0 | K51: =-'App.2-BA_FA Cont 2014_OldCGAAP'!K40 -> 0 | L51: 0
A52: 1930 | B52: Transportation Equipment - under 3 Tons | C52: =+'App.2-CA_OldCGAAP_DepExp_2013'!C52+'App.2-CA_OldCGAAP_DepExp_2013'!F52 -> 150668.95 | D52: 100904.75 | E52: 49764.2 | F52: 21744 | G52: 60636.2 | H52: 5 | I52: 0.2 | J52: 12127.24 | K52: 12127.24 | L52: 1.818989404e-12
A53: 1930 | B53: Transportation Equipment - 3 Tons & Over | C53: =+'App.2-CA_OldCGAAP_DepExp_2013'!C53+'App.2-CA_OldCGAAP_DepExp_2013'!F53 -> 848705.16 | D53: 548609.16 | E53: 300096 | G53: 300096 | H53: 8 | I53: 0.125 | J53: 37512 | K53: 37512.2 | L53: -0.2
A54: 1935 | B54: Stores Equipment | C54: =+'App.2-CA_OldCGAAP_DepExp_2013'!C54+'App.2-CA_OldCGAAP_DepExp_2013'!F54 -> 3559.1 | D54: 3559.1 | E54: 0 | G54: 0 | H54: 10 | I54: 0.1 | J54: 0 | L54: 0
A55: 1940 | B55: Tools, Shop & Garage Equipment | C55: =+'App.2-CA_OldCGAAP_DepExp_2013'!C55+'App.2-CA_OldCGAAP_DepExp_2013'!F55 -> 186853.67 | D55: =167014.29+1593+2543.4 -> 171150.69 | E55: =C55-D55 -> 15702.98 | G55: =E55+0.5*F55 -> 15702.98 | H55: 10 | I55: =IF(H55=0,"",1/H55) -> 0.1 | J55: =IF(H55=0,0,G55/H55) -> 1570.298 | K55: =-'App.2-BA_FA Cont 2014_OldCGAAP'!K43 -> 1570.32 | L55: -0.022
A56: 1945 | B56: Measurement & Testing Equipment | E56: 0 | G56: 0 | H56: 10 | I56: 0.1 | J56: 0 | K56: =-'App.2-BA_FA Cont 2014_OldCGAAP'!K45 -> 0 | L56: 0
A57: 1950 | B57: Power Operated Equipment | E57: 0 | G57: 0 | J57: 0 | K57: =-'App.2-BA_FA Cont 2014_OldCGAAP'!K46 -> 0 | L57: 0
A58: 1955 | B58: Communications Equipment | E58: 0 | G58: 0 | H58: 5 | I58: 0.2 | J58: 0 | K58: =-'App.2-BA_FA Cont 2014_OldCGAAP'!K47 -> 0 | L58: 0
A59: 1955 | B59: Communication Equipment (Smart Meters) | E59: =C59-D59 -> 0 | G59: =E59+0.5*F59 -> 0 | I59: =IF(H59=0,"",1/H59) ->  | J59: =IF(H59=0,0,G59/H59) -> 0 | K59: =-'App.2-BA_FA Cont 2014_OldCGAAP'!K48 -> 0 | L59: 0
A60: 1960 | B60: Miscellaneous Equipment | E60: 0 | G60: 0 | H60: 10 | I60: 0.1 | J60: 0 | K60: =-'App.2-BA_FA Cont 2014_OldCGAAP'!K49 -> 0 | L60: 0
A61: 1970 | B61: Load Management Controls Customer Premises | E61: 0 | G61: 0 | H61: 10 | I61: 0.1 | J61: 0 | K61: =-'App.2-BA_FA Cont 2014_OldCGAAP'!K50 -> 0 | L61: 0
A62: 1975 | B62: Load Management Controls Utility Premises | E62: 0 | G62: 0 | H62: 10 | I62: 0.1 | J62: 0 | K62: =-'App.2-BA_FA Cont 2014_OldCGAAP'!K51 -> 0 | L62: 0
A63: 1980 | B63: System Supervisor Equipment | E63: 0 | G63: 0 | H63: 5 | I63: 0.2 | J63: 0 | K63: =-'App.2-BA_FA Cont 2014_OldCGAAP'!K52 -> 0 | L63: 0
A64: 1985 | B64: Miscellaneous Fixed Assets | E64: 0 | G64: 0 | I64: =IF(H64=0,"",1/H64) ->  | J64: =IF(H64=0,0,G64/H64) -> 0 | K64: =-'App.2-BA_FA Cont 2014_OldCGAAP'!K53 -> 0 | L64: 0
A65: 1990 | B65: Other Tangible Property | E65: 0 | G65: 0 | J65: 0 | L65: 0
A66: 1995 | B66: Contributions & Grants - O/H Conductor | C66: =+'App.2-CA_OldCGAAP_DepExp_2013'!C66+'App.2-CA_OldCGAAP_DepExp_2013'!F66 -> -2000 | E66: -2000 | G66: -2000 | H66: 25 | I66: 0.04 | J66: -80 | K66: =-'App.2-BA_FA Cont 2014_OldCGAAP'!K54 -> -80 | L66: 0
A67: 1995 | B67: Contributions & Grants - Poles | C67: =+'App.2-CA_OldCGAAP_DepExp_2013'!C67+'App.2-CA_OldCGAAP_DepExp_2013'!F67 -> -15100 | E67: -15100 | G67: -15100 | H67: 25 | I67: 0.04 | J67: -604 | K67: =-'App.2-BA_FA Cont 2014_OldCGAAP'!K55 -> -604 | L67: 0
A68: 1995 | B68: Contributions & Grants - Transformers | C68: =+'App.2-CA_OldCGAAP_DepExp_2013'!C68+'App.2-CA_OldCGAAP_DepExp_2013'!F68 -> -7500 | E68: -7500 | G68: -7500 | H68: 25 | I68: 0.04 | J68: -300 | K68: =-'App.2-BA_FA Cont 2014_OldCGAAP'!K56 -> -300 | L68: 0
A69: 1609 | B69: Other Tangible Property | E69: 0 | G69: 0 | J69: 0 | K69: =-'App.2-BA_FA Cont 2014_OldCGAAP'!K58 -> 0 | L69: 0
E70: 0 | G70: 0 | J70: 0 | L70: 0
E71: 0 | G71: 0 | J71: 0 | K71: =-'App.2-BA_FA Cont 2014_OldCGAAP'!K60 -> 0 | L71: 0
E72: 0 | G72: 0 | J72: 0 | K72: =-'App.2-BA_FA Cont 2014_OldCGAAP'!K61 -> 0 | L72: 0
G73: 0 | J73: 0 | L73: 0
B75: Total | C75: =SUM(C16:C74) -> 14002342.18 | D75: =SUM(D16:D74) -> 5144150.53 | E75: =SUM(E16:E74) -> 8858191.65 | F75: =SUM(F16:F74) -> 357636 | G75: =SUM(G16:G74) -> 9037009.65 | J75: =SUM(J16:J74) -> 390214.3718 | K75: =SUM(K16:K74) -> 390214.65 | L75: -0.2782
C80: 14002342 | F80: 357636 | K80: =-'App.2-BA_FA Cont 2014_OldCGAAP'!L69 -> 390214.65
C81: =+C75-C80 -> 0.1799999997 | F81: =+F75-F80 -> 0 | K81: =+K75-K80 -> 0

Sheet App.2-CA_OldCGAAP_DepExp_2015
K1: File Number: | L1: =EBNUMBER -> EB-2016-0166
K2: Exhibit:
K3: Tab:
K4: Schedule:
K5: Page:
K7: Date:
A9: Appendix 2-CA
A10: Depreciation and Amortization Expense
B11: Assumes the applicant made capitalization and depreciation expense accounting policy changes under CGAAP effective January 1, 2013 and will adopt IFRS for financial reporting purposes effective January 1, 2015.
C13: Year | D13: 2015 | E13: Former CGAAP
A14: Account | B14: Description | C14: Opening Regulatory Gross PP&E as at Jan 1, 2015 | D14: Less Fully Depreciated | E14: Net for Depreciation | F14: Additions | G14: Total for Depreciation | H14: Years | I14: Depreciation Rate | J14: 2015 Depreciation Expense | K14: 2015 Depreciation Expense - old CGAAP (l) | L14: Variance 2
C15: (a) | D15: (b) | E15: (c) | F15: (d) | G15: (e) = (c) + ½ x (d) 1 | H15: (f) | I15: (g) = 1 / (f) | J15: (h) = (e) / (f) | L15: (m) = (h) - (l)
A16: 1611 | B16: Computer Software (Formally known as Account 1925) | C16: =+'App.2-CA_OldCGAAP_DepExp_2014'!C16+'App.2-CA_OldCGAAP_DepExp_2014'!F16 -> 120704.76 | D16: =114259.76+3222.65 -> 117482.41 | E16: =C16-D16 -> 3222.35 | F16: 39417 | G16: =E16+0.5*F16 -> 22930.85 | H16: 5 | I16: =IF(H16=0,"",1/H16) -> 0.2 | J16: =IF(H16=0,0,G16/H16) -> 4586.17 | K16: =-'App.2-BA_FA Cont 2015_Old CGAAP'!K17 -> 4586.17 | L16: =IF(ISERROR(+J16-K16), "", +J16-K16) -> 9.094947018e-13
A17: 1612 | B17: Land Rights (Formally known as Account 1906) | C17: =+'App.2-CA_OldCGAAP_DepExp_2014'!C17+'App.2-CA_OldCGAAP_DepExp_2014'!F17 -> 23980.67 | D17: =15635.9+538.27 -> 16174.17 | E17: =C17-D17 -> 7806.5 | F17: 4321 | G17: =E17+0.5*F17 -> 9967 | H17: 20 | I17: 0.05 | J17: 498.35 | K17: =-'App.2-BA_FA Cont 2015_Old CGAAP'!K18 -> 498.35 | L17: =IF(ISERROR(+J17-K17), "", +J17-K17) -> -1.136868377e-13
A18: 1612 | B18: Land Rights (Formally known as Account 1906) | E18: 0 | G18: 0 | J18: 0 | L18: =IF(ISERROR(+J18-K18), "", +J18-K18) -> 0
A19: 1805 | B19: Land | C19: =+'App.2-CA_OldCGAAP_DepExp_2014'!C19+'App.2-CA_OldCGAAP_DepExp_2014'!F19 -> 22895.33 | E19: 22895.33 | G19: 22895.33 | H19: 0 | J19: 0 | L19: 0
A20: 1808 | B20: Buildings - Equipment | E20: 0 | G20: 0 | J20: 0 | L20: 0
A21: 1808 | B21: Buildings - Equipment | E21: 0 | G21: 0 | J21: 0 | L21: 0
A22: 1808 | B22: Buildings - Equipment | E22: 0 | G22: 0 | J22: 0 | L22: 0
A23: 1808 | B23: Buildings - Major Repairs | E23: 0 | G23: 0 | J23: 0 | L23: 0
A24: 1808 | B24: Buildings - Major Repairs | E24: 0 | G24: 0 | J24: 0 | L24: 0
A25: 1808 | B25: Buildings - Brick, Stone, Concrete and Steel | C25: =+'App.2-CA_OldCGAAP_DepExp_2014'!C25+'App.2-CA_OldCGAAP_DepExp_2014'!F25 -> 197682.56 | D25: 13819.12 | E25: 183863.44 | G25: 183863.44 | H25: 50 | I25: 0.02 | J25: 3677.2688 | K25: =-'App.2-BA_FA Cont 2015_Old CGAAP'!K20 -> 3677.27 | L25: -0.0012
A26: 1808 | B26: Buildings - Other | C26: =+'App.2-CA_OldCGAAP_DepExp_2014'!C26+'App.2-CA_OldCGAAP_DepExp_2014'!F26 -> 4151.77 | D26: 4151.77 | E26: 0 | G26: 0 | H26: 25 | I26: 0.04 | J26: 0 | K26: =-'App.2-BA_FA Cont 2015_Old CGAAP'!K21 -> 0 | L26: 0
A27: 1810 | B27: Leasehold Improvements | E27: 0 | G27: 0 | J27: 0 | K27: =-'App.2-BA_FA Cont 2015_Old CGAAP'!K22 -> 0 | L27: 0
A28: 1815 | B28: Transformer Station Equipment >50 kV | E28: 0 | G28: 0 | J28: 0 | L28: 0
A29: 1820 | B29: Distribution Station Equipment <50 kV | C29: =+'App.2-CA_OldCGAAP_DepExp_2014'!C29+'App.2-CA_OldCGAAP_DepExp_2014'!F29 -> 1288197.03 | D29: =201648.59+84960.04 -> 286608.63 | E29: 1001588.4 | G29: 1001588.4 | H29: 30 | I29: 0.03333333333 | J29: 33386.28 | K29: =-'App.2-BA_FA Cont 2015_Old CGAAP'!K23 -> 33386.28 | L29: 0
A30: 1825 | B30: Storage Battery Equipment | E30: 0 | G30: 0 | J30: 0 | K30: =-'App.2-BA_FA Cont 2015_Old CGAAP'!K24 -> 0 | L30: 0
A31: 1830 | B31: Poles, Towers & Fixtures | C31: =+'App.2-CA_OldCGAAP_DepExp_2014'!C31+'App.2-CA_OldCGAAP_DepExp_2014'!F31 -> 2721741.4 | D31: =519564.75+46549.2+56895.45+52522.25 -> 675531.65 | E31: 2046209.75 | F31: 182603 | G31: 2137511.25 | H31: 25 | I31: 0.04 | J31: 85500.45 | K31: =-'App.2-BA_FA Cont 2015_Old CGAAP'!K25 -> 85500.45 | L31: 0
A32: 1835 | B32: Overhead Conductors & Devices | C32: =+'App.2-CA_OldCGAAP_DepExp_2014'!C32+'App.2-CA_OldCGAAP_DepExp_2014'!F32 -> 4151235.99 | D32: =1133800.4+108615+132755.59+122552 -> 1497722.99 | E32: 2653513 | F32: 68146 | G32: 2687586 | H32: 25 | I32: 0.04 | J32: 107503.44 | K32: =-'App.2-BA_FA Cont 2015_Old CGAAP'!K26 -> 107503.44 | L32: -4.365574569e-11
A33: 1840 | B33: Underground Conduit | C33: =+'App.2-CA_OldCGAAP_DepExp_2014'!C33+'App.2-CA_OldCGAAP_DepExp_2014'!F33 -> 77704.83 | D33: =1257.25+557.5+1734.08+243 -> 3791.83 | E33: 73913 | G33: 73913 | H33: 25 | I33: 0.04 | J33: 2956.52 | K33: =-'App.2-BA_FA Cont 2015_Old CGAAP'!K27 -> 2956.51 | L33: 0.01
A34: 1845 | B34: Underground Conductors & Devices | C34: =+'App.2-CA_OldCGAAP_DepExp_2014'!C34+'App.2-CA_OldCGAAP_DepExp_2014'!F34 -> 522896.6 | D34: =13325.1+5022+15602.25+2189.25 -> 36138.6 | E34: 486758 | G34: 486758 | H34: 25 | I34: 0.04 | J34: 19470.32 | K34: =-'App.2-BA_FA Cont 2015_Old CGAAP'!K28 -> 19470.32 | L34: 0
A35: 1850 | B35: Line Transformers | C35: =+'App.2-CA_OldCGAAP_DepExp_2014'!C35+'App.2-CA_OldCGAAP_DepExp_2014'!F35 -> 1698922.25 | D35: =636008.25+99501+100450.75+54407.5 -> 890367.5 | E35: 808554.75 | F35: 62246 | G35: 839677.75 | H35: 25 | I35: 0.04 | J35: 33587.11 | K35: =-'App.2-BA_FA Cont 2015_Old CGAAP'!K29 -> 33587.11 | L35: -7.275957614e-12
A36: 1855 | B36: Services (Overhead & Underground) | C36: =+'App.2-CA_OldCGAAP_DepExp_2014'!C36+'App.2-CA_OldCGAAP_DepExp_2014'!F36 -> 1591933.91 | D36: =515250.9+53580.75+68996.26+59169.75 -> 696997.66 | E36: 894936.25 | F36: =3839+6568 -> 10407 | G36: 900139.75 | H36: 25 | I36: 0.04 | J36: 36005.59 | K36: =-'App.2-BA_FA Cont 2015_Old CGAAP'!K30 -> 36005.59 | L36: -7.275957614e-12
A37: 1860 | B37: Meters | C37: =+'App.2-CA_OldCGAAP_DepExp_2014'!C37+'App.2-CA_OldCGAAP_DepExp_2014'!F37 -> 594329.39 | D37: 274404.89 | E37: 319924.5 | G37: 319924.5 | H37: 25 | I37: 0.04 | J37: 12796.98 | K37: =-'App.2-BA_FA Cont 2015_Old CGAAP'!K31 -> 12796.98 | L37: 0
A38: 1860 | B38: Meters (Smart Meters) | C38: =+'App.2-CA_OldCGAAP_DepExp_2014'!C38+'App.2-CA_OldCGAAP_DepExp_2014'!F38 -> 24768.6 | E38: 24768.6 | F38: 1884 | G38: 25710.6 | H38: 15 | I38: 0.06666666667 | J38: 1714.04 | K38: =-'App.2-BA_FA Cont 2015_Old CGAAP'!K32 -> 1714.08 | L38: -0.04
A39: 1905 | B39: Land | E39: 0 | G39: 0 | H39: 0 | J39: 0 | K39: =-'App.2-BA_FA Cont 2015_Old CGAAP'!K33 -> 0 | L39: 0
A40: 1908 | B40: Buildings & Fixtures | E40: 0 | G40: 0 | J40: 0 | L40: 0
A41: 1908 | B41: Buildings & Fixtures | E41: 0 | G41: 0 | J41: 0 | L41: 0
A42: 1908 | B42: Buildings & Fixtures | E42: 0 | G42: 0 | J42: 0 | L42: 0
A43: 1908 | B43: Buildings & Fixtures | E43: 0 | G43: 0 | J43: 0 | L43: 0
A44: 1908 | B44: Buildings & Fixtures | E44: 0 | G44: 0 | J44: 0 | L44: 0
A45: 1908 | B45: Buildings & Fixtures | E45: 0 | G45: 0 | J45: 0 | L45: 0
A46: 1910 | B46: Leasehold Improvements | E46: 0 | F46: 116088 | G46: 58044 | H46: 10 | I46: 0.1 | J46: 5804.4 | K46: =-'App.2-BA_FA Cont 2015_Old CGAAP'!K35 -> 5804.41 | L46: -0.01
A47: 1915 | B47: Office Furniture & Equipment (10 years) | C47: =+'App.2-CA_OldCGAAP_DepExp_2014'!C47+'App.2-CA_OldCGAAP_DepExp_2014'!F47 -> 30841.31 | D47: 30841.31 | E47: 0 | F47: 21604 | G47: 10802 | H47: 10 | I47: 0.1 | J47: 1080.2 | K47: =-'App.2-BA_FA Cont 2015_Old CGAAP'!K36 -> 1080.22 | L47: -0.02
A48: 1915 | B48: Office Furniture & Equipment (5 years) | E48: 0 | G48: 0 | J48: 0 | K48: =-'App.2-BA_FA Cont 2015_Old CGAAP'!K37 -> 0 | L48: 0
A49: 1920 | B49: Computer Equipment - Hardware | C49: =+'App.2-CA_OldCGAAP_DepExp_2014'!C49+'App.2-CA_OldCGAAP_DepExp_2014'!F49 -> 101060.9 | D49: =84470.7+2223.85 -> 86694.55 | E49: 14366.35 | F49: 1918 | G49: 15325.35 | H49: 5 | I49: 0.2 | J49: 3065.07 | K49: =-'App.2-BA_FA Cont 2015_Old CGAAP'!K38 -> 3065.07 | L49: -1.818989404e-12
A50: 1920 | B50: Computer Equip.-Hardware(Post Mar. 22/04) | E50: 0 | G50: 0 | J50: 0 | K50: =-'App.2-BA_FA Cont 2015_Old CGAAP'!K39 -> 0 | L50: 0
A51: 1920 | B51: Computer Equip.-Hardware(Post Mar. 19/07) | E51: 0 | G51: 0 | H51: 5 | I51: 0.2 | J51: 0 | K51: =-'App.2-BA_FA Cont 2015_Old CGAAP'!K40 -> 0 | L51: 0
A52: 1930 | B52: Transportation Equipment - under 3 Tons | C52: =+'App.2-CA_OldCGAAP_DepExp_2014'!C52+'App.2-CA_OldCGAAP_DepExp_2014'!F52 -> 172412.95 | D52: 100904.75 | E52: 71508.2 | G52: 71508.2 | H52: 5 | I52: 0.2 | J52: =IF(H52=0,0,G52/H52) -> 14301.64 | K52: 14301.64 | L52: 3.637978807e-12
A53: 1930 | B53: Transportation Equipment - 3 Tons & Over | C53: =+'App.2-CA_OldCGAAP_DepExp_2014'!C53+'App.2-CA_OldCGAAP_DepExp_2014'!F53 -> 848705.16 | D53: 548609.16 | E53: 300096 | G53: 300096 | H53: 8 | I53: 0.125 | J53: 37512 | K53: 37512 | L53: 0
A54: 1935 | B54: Stores Equipment | C54: =+'App.2-CA_OldCGAAP_DepExp_2014'!C54+'App.2-CA_OldCGAAP_DepExp_2014'!F54 -> 3559.1 | D54: 3559.1 | E54: 0 | F54: 1731 | G54: 865.5 | H54: 10 | I54: 0.1 | J54: 86.55 | K54: =-'App.2-BA_FA Cont 2015_Old CGAAP'!K42 -> 86.57 | L54: -0.02
A55: 1940 | B55: Tools, Shop & Garage Equipment | C55: =+'App.2-CA_OldCGAAP_DepExp_2014'!C55+'App.2-CA_OldCGAAP_DepExp_2014'!F55 -> 186853.67 | D55: =167014.29+1593+2543.4+1858.58 -> 173009.27 | E55: =C55-D55 -> 13844.4 | F55: 625 | G55: =E55+0.5*F55 -> 14156.9 | H55: 10 | I55: =IF(H55=0,"",1/H55) -> 0.1 | J55: =IF(H55=0,0,G55/H55) -> 1415.69 | K55: =-'App.2-BA_FA Cont 2015_Old CGAAP'!K43 -> 1415.69 | L55: 2.273736754e-12
A56: 1945 | B56: Measurement & Testing Equipment | E56: 0 | G56: 0 | H56: 10 | I56: 0.1 | J56: 0 | K56: =-'App.2-BA_FA Cont 2015_Old CGAAP'!K45 -> 0 | L56: 0
A57: 1950 | B57: Power Operated Equipment | E57: 0 | G57: 0 | J57: 0 | K57: =-'App.2-BA_FA Cont 2015_Old CGAAP'!K46 -> 0 | L57: 0
A58: 1955 | B58: Communications Equipment | E58: 0 | G58: 0 | H58: 5 | I58: 0.2 | J58: 0 | K58: =-'App.2-BA_FA Cont 2015_Old CGAAP'!K47 -> 0 | L58: 0
A59: 1955 | B59: Communication Equipment (Smart Meters) | E59: =C59-D59 -> 0 | G59: =E59+0.5*F59 -> 0 | I59: =IF(H59=0,"",1/H59) ->  | J59: =IF(H59=0,0,G59/H59) -> 0 | K59: =-'App.2-BA_FA Cont 2015_Old CGAAP'!K48 -> 0 | L59: 0
A60: 1960 | B60: Miscellaneous Equipment | E60: 0 | G60: 0 | H60: 10 | I60: 0.1 | J60: 0 | K60: =-'App.2-BA_FA Cont 2015_Old CGAAP'!K49 -> 0 | L60: 0
A61: 1970 | B61: Load Management Controls Customer Premises | E61: 0 | G61: =E61+0.5*F61 -> 0 | H61: 10 | I61: 0.1 | J61: 0 | K61: =-'App.2-BA_FA Cont 2015_Old CGAAP'!K50 -> 0 | L61: 0
A62: 1975 | B62: Load Management Controls Utility Premises | E62: 0 | G62: 0 | H62: 10 | I62: 0.1 | J62: 0 | K62: =-'App.2-BA_FA Cont 2015_Old CGAAP'!K51 -> 0 | L62: 0
A63: 1980 | B63: System Supervisor Equipment | E63: 0 | G63: 0 | H63: 5 | I63: 0.2 | J63: 0 | K63: =-'App.2-BA_FA Cont 2015_Old CGAAP'!K52 -> 0 | L63: 0
A64: 1985 | B64: Miscellaneous Fixed Assets | E64: 0 | G64: 0 | J64: 0 | K64: =-'App.2-BA_FA Cont 2015_Old CGAAP'!K53 -> 0 | L64: 0
A65: 1990 | B65: Other Tangible Property | E65: 0 | G65: 0 | J65: 0 | K65: =-'App.2-BA_FA Cont 2015_Old CGAAP'!K54 -> 0 | L65: 0
A66: 1995 | B66: Contributions & Grants - O/H Conductor | C66: =+'App.2-CA_OldCGAAP_DepExp_2014'!C66+'App.2-CA_OldCGAAP_DepExp_2014'!F66 -> -2000 | E66: -2000 | G66: -2000 | H66: 25 | I66: 0.04 | J66: -80 | K66: -80 | L66: 0
A67: 1995 | B67: Contributions & Grants - Poles | C67: =+'App.2-CA_OldCGAAP_DepExp_2014'!C67+'App.2-CA_OldCGAAP_DepExp_2014'!F67 -> -15100 | E67: -15100 | F67: -4452 | G67: -17326 | H67: 25 | I67: 0.04 | J67: -693.04 | K67: =-604-89.04 -> -693.04 | L67: 0
A68: 1995 | B68: Contributions & Grants - Transformers | C68: =+'App.2-CA_OldCGAAP_DepExp_2014'!C68+'App.2-CA_OldCGAAP_DepExp_2014'!F68 -> -7500 | E68: -7500 | F68: -11930 | G68: -13465 | H68: 25 | I68: 0.04 | J68: -538.6 | K68: =-300-238.6 -> -538.6 | L68: 0
A69: 1995 | B69: Contributions & Grants - Meters | C69: =+'App.2-CA_OldCGAAP_DepExp_2014'!C69+'App.2-CA_OldCGAAP_DepExp_2014'!F69 -> 0 | E69: =C69-D69 -> 0 | F69: -1884 | G69: =E69+0.5*F69 -> -942 | H69: 15 | I69: =IF(H69=0,"",1/H69) -> 0.06666666667 | J69: =IF(H69=0,0,G69/H69) -> -62.8 | K69: -62.81 | L69: =IF(ISERROR(+J69-K69), "", +J69-K69) -> 0.01
A70: 1609 | B70: Other Tangible Property | E70: 0 | G70: 0 | J70: 0 | L70: 0
E71: 0 | G71: 0 | J71: 0 | L71: 0
E72: 0 | G72: 0 | J72: 0 | L72: 0
E73: 0 | G73: 0 | J73: 0 | L73: 0
G74: 0 | J74: 0 | K74: =-'App.2-BA_FA Cont 2015_Old CGAAP'!K63 -> 0 | L74: 0
B76: Total | C76: =SUM(C16:C75) -> 14359978.18 | D76: =SUM(D16:D75) -> 5456809.36 | E76: =SUM(E16:E75) -> 8903168.82 | F76: =SUM(F16:F75) -> 492724 | G76: =SUM(G16:G75) -> 9149530.82 | J76: =SUM(J16:J75) -> 403573.6288 | K76: =SUM(K16:K75) -> 403573.7 | L76: -0.07120000005
C81: 14359978 | F81: 492724 | K81: =-'App.2-BA_FA Cont 2015_Old CGAAP'!K64 -> 403573.9
C82: =+C76-C81 -> 0.1799999978 | F82: =+F76-F81 -> 0 | K82: =+K76-K81 -> -0.1999999999

Sheet App.2-CA_OldCGAAP_DepExp_2016
K1: File Number: | L1: =EBNUMBER -> EB-2016-0166
K2: Exhibit:
K3: Tab:
K4: Schedule:
K5: Page:
K7: Date:
A9: Appendix 2-CA
A10: Depreciation and Amortization Expense
B11: Assumes the applicant made capitalization and depreciation expense accounting policy changes under CGAAP effective January 1, 2013 and will adopt IFRS for financial reporting purposes effective January 1, 2015.
C13: Year | D13: 2016 | E13: Former CGAAP
A14: Account | B14: Description | C14: Opening Regulatory Gross PP&E as at Jan 1, 2016 | D14: Less Fully Depreciated | E14: Net for Depreciation | F14: Additions | G14: Total for Depreciation | H14: Years | I14: Depreciation Rate | J14: 2016 Depreciation Expense | K14: 2016 Depreciation Expense - old CGAAP (l) | L14: Variance 2
C15: (a) | D15: (b) | E15: (c) | F15: (d) | G15: (e) = (c) + ½ x (d) 1 | H15: (f) | I15: (g) = 1 / (f) | J15: (h) = (e) / (f) | L15: (m) = (h) - (l)
A16: 1611 | B16: Computer Software (Formally known as Account 1925) | C16: =+'App.2-CA_OldCGAAP_DepExp_2015'!C16+'App.2-CA_OldCGAAP_DepExp_2015'!F16 -> 160121.76 | D16: =114259.76+3222.65+3222.7 -> 120705.11 | E16: =C16-D16 -> 39416.65 | G16: =E16+0.5*F16 -> 39416.65 | H16: 5 | I16: =IF(H16=0,"",1/H16) -> 0.2 | J16: =IF(H16=0,0,G16/H16) -> 7883.33 | K16: =-'App.2-BA_FA Cont 2016_Old CGAAP'!K17 -> 7883.33 | L16: =IF(ISERROR(+J16-K16), "", +J16-K16) -> 4.547473509e-12
A17: 1612 | B17: Land Rights (Formally known as Account 1906) | C17: =+'App.2-CA_OldCGAAP_DepExp_2015'!C17+'App.2-CA_OldCGAAP_DepExp_2015'!F17 -> 28301.67 | D17: =15635.9+538.27 -> 16174.17 | E17: =C17-D17 -> 12127.5 | F17: 3000 | G17: =E17+0.5*F17 -> 13627.5 | H17: 20 | I17: 0.05 | J17: 681.375 | K17: =-'App.2-BA_FA Cont 2016_Old CGAAP'!K18 -> 681.36 | L17: =IF(ISERROR(+J17-K17), "", +J17-K17) -> 0.015
A18: 1612 | B18: Land Rights (Formally known as Account 1906) | E18: 0 | G18: 0 | J18: 0 | L18: =IF(ISERROR(+J18-K18), "", +J18-K18) -> 0
A19: 1805 | B19: Land | C19: =+'App.2-CA_OldCGAAP_DepExp_2015'!C19+'App.2-CA_OldCGAAP_DepExp_2015'!F19 -> 22895.33 | E19: 22895.33 | G19: 22895.33 | H19: 0 | J19: 0 | L19: 0
A20: 1808 | B20: Buildings - Equipment | E20: 0 | G20: 0 | J20: 0 | L20: 0
A21: 1808 | B21: Buildings - Equipment | E21: 0 | G21: 0 | J21: 0 | L21: 0
A22: 1808 | B22: Buildings - Equipment | E22: 0 | G22: 0 | J22: 0 | L22: 0
A23: 1808 | B23: Buildings - Major Repairs | E23: 0 | G23: 0 | J23: 0 | L23: 0
A24: 1808 | B24: Buildings - Major Repairs | E24: 0 | G24: 0 | J24: 0 | L24: 0
A25: 1808 | B25: Buildings - Brick, Stone, Concrete and Steel | C25: =+'App.2-CA_OldCGAAP_DepExp_2015'!C25+'App.2-CA_OldCGAAP_DepExp_2015'!F25 -> 197682.56 | D25: 158610.56 | E25: 39072 | G25: 39072 | H25: 50 | I25: 0.02 | J25: 781.44 | K25: =-'App.2-BA_FA Cont 2016_Old CGAAP'!K20 -> 781.44 | L25: 0
A26: 1808 | B26: Buildings - Other | C26: =+'App.2-CA_OldCGAAP_DepExp_2015'!C26+'App.2-CA_OldCGAAP_DepExp_2015'!F26 -> 4151.77 | D26: 4151.77 | E26: 0 | G26: 0 | H26: 25 | I26: 0.04 | J26: 0 | K26: =-'App.2-BA_FA Cont 2016_Old CGAAP'!K21 -> 0 | L26: 0
A27: 1810 | B27: Leasehold Improvements | E27: 0 | G27: 0 | J27: 0 | K27: =-'App.2-BA_FA Cont 2016_Old CGAAP'!K22 -> 0 | L27: 0
A28: 1815 | B28: Transformer Station Equipment >50 kV | E28: 0 | G28: 0 | J28: 0 | L28: 0
A29: 1820 | B29: Distribution Station Equipment <50 kV | C29: =+'App.2-CA_OldCGAAP_DepExp_2015'!C29+'App.2-CA_OldCGAAP_DepExp_2015'!F29 -> 1288197.03 | D29: =201648.59+84960.04 -> 286608.63 | E29: 1001588.4 | G29: 1001588.4 | H29: 30 | I29: 0.03333333333 | J29: 33386.28 | K29: =-'App.2-BA_FA Cont 2016_Old CGAAP'!K23 -> 33386.28 | L29: 0
A30: 1825 | B30: Storage Battery Equipment | E30: 0 | G30: 0 | J30: 0 | K30: =-'App.2-BA_FA Cont 2016_Old CGAAP'!K24 -> 0 | L30: 0
A31: 1830 | B31: Poles, Towers & Fixtures | C31: =+'App.2-CA_OldCGAAP_DepExp_2015'!C31+'App.2-CA_OldCGAAP_DepExp_2015'!F31 -> 2904344.4 | D31: =519564.75+46549.2+56895.45+52522.25+52284 -> 727815.65 | E31: 2176528.75 | F31: 172000 | G31: 2262528.75 | H31: 25 | I31: 0.04 | J31: 90501.15 | K31: =-'App.2-BA_FA Cont 2016_Old CGAAP'!K25 -> 90501.15 | L31: 0
A32: 1835 | B32: Overhead Conductors & Devices | C32: =+'App.2-CA_OldCGAAP_DepExp_2015'!C32+'App.2-CA_OldCGAAP_DepExp_2015'!F32 -> 4219381.99 | D32: =1133800.4+108615+132755.59+122552+121996.75 -> 1619719.74 | E32: 2599662.25 | F32: 83000 | G32: 2641162.25 | H32: 25 | I32: 0.04 | J32: 105646.49 | K32: =-'App.2-BA_FA Cont 2016_Old CGAAP'!K26 -> 105646.49 | L32: -4.365574569e-11
A33: 1840 | B33: Underground Conduit | C33: =+'App.2-CA_OldCGAAP_DepExp_2015'!C33+'App.2-CA_OldCGAAP_DepExp_2015'!F33 -> 77704.83 | D33: =1257.25+557.5+1734.08+243+504.25 -> 4296.08 | E33: 73408.75 | F33: 7400 | G33: 77108.75 | H33: 25 | I33: 0.04 | J33: 3084.35 | K33: =-'App.2-BA_FA Cont 2016_Old CGAAP'!K27 -> 3084.35 | L33: 0
A34: 1845 | B34: Underground Conductors & Devices | C34: =+'App.2-CA_OldCGAAP_DepExp_2015'!C34+'App.2-CA_OldCGAAP_DepExp_2015'!F34 -> 522896.6 | D34: =13325.1+5022+15602.25+2189.25+4536.5 -> 40675.1 | E34: 482221.5 | F34: 92600 | G34: 528521.5 | H34: 25 | I34: 0.04 | J34: 21140.86 | K34: =-'App.2-BA_FA Cont 2016_Old CGAAP'!K28 -> 21140.86 | L34: 0
A35: 1850 | B35: Line Transformers | C35: =+'App.2-CA_OldCGAAP_DepExp_2015'!C35+'App.2-CA_OldCGAAP_DepExp_2015'!F35 -> 1761168.25 | D35: =636008.25+99501+100450.75+54407.5+26196 -> 916563.5 | E35: 844604.75 | F35: 163000 | G35: 926104.75 | H35: 25 | I35: 0.04 | J35: 37044.19 | K35: =-'App.2-BA_FA Cont 2016_Old CGAAP'!K29 -> 37044.19 | L35: -1.455191523e-11
A36: 1855 | B36: Services (Overhead & Underground) | C36: =+'App.2-CA_OldCGAAP_DepExp_2015'!C36+'App.2-CA_OldCGAAP_DepExp_2015'!F36 -> 1602340.91 | D36: =515250.9+53580.75+68996.26+59169.75+59773.75 -> 756771.41 | E36: 845569.5 | F36: 16000 | G36: 853569.5 | H36: 25 | I36: 0.04 | J36: 34142.78 | K36: =-'App.2-BA_FA Cont 2016_Old CGAAP'!K30 -> 34142.78 | L36: 0
A37: 1860 | B37: Meters | C37: =+'App.2-CA_OldCGAAP_DepExp_2015'!C37+'App.2-CA_OldCGAAP_DepExp_2015'!F37 -> 594329.39 | D37: 301864.14 | E37: 292465.25 | G37: 292465.25 | H37: 25 | I37: 0.04 | J37: 11698.61 | K37: =-'App.2-BA_FA Cont 2016_Old CGAAP'!K31 -> 11698.61 | L37: 0
A38: 1860 | B38: Meters (Smart Meters) | C38: =+'App.2-CA_OldCGAAP_DepExp_2015'!C38+'App.2-CA_OldCGAAP_DepExp_2015'!F38 -> 26652.6 | E38: 26652.6 | F38: 10000 | G38: 31652.6 | H38: 15 | I38: 0.06666666667 | J38: 2110.173333 | K38: =-'App.2-BA_FA Cont 2016_Old CGAAP'!K32 -> 2110.22 | L38: -0.04666666667
A39: 1905 | B39: Land | E39: 0 | G39: 0 | H39: 0 | J39: 0 | K39: =-'App.2-BA_FA Cont 2016_Old CGAAP'!K33 -> 0 | L39: 0
A40: 1908 | B40: Buildings & Fixtures | E40: 0 | G40: 0 | J40: 0 | L40: 0
A41: 1908 | B41: Buildings & Fixtures | E41: 0 | G41: 0 | J41: 0 | L41: 0
A42: 1908 | B42: Buildings & Fixtures | E42: 0 | G42: 0 | J42: 0 | L42: 0
A43: 1908 | B43: Buildings & Fixtures | E43: 0 | G43: 0 | J43: 0 | L43: 0
A44: 1908 | B44: Buildings & Fixtures | E44: 0 | G44: 0 | J44: 0 | L44: 0
A45: 1908 | B45: Buildings & Fixtures | E45: 0 | G45: 0 | J45: 0 | L45: 0
A46: 1910 | B46: Leasehold Improvements | C46: =+'App.2-CA_OldCGAAP_DepExp_2015'!C46+'App.2-CA_OldCGAAP_DepExp_2015'!F46 -> 116088 | E46: 116088 | G46: 116088 | H46: 10 | I46: 0.1 | J46: 11608.8 | K46: 11608.8 | L46: 0
A47: 1910 | B47: Leasehold Improvements | E47: =C47-D47 -> 0 | F47: 10000 | G47: =E47+0.5*F47 -> 5000 | H47: 9 | I47: =IF(H47=0,"",1/H47) -> 0.1111111111 | J47: =IF(H47=0,0,G47/H47) -> 555.5555556 | K47: 555.56 | L47: =IF(ISERROR(+J47-K47), "", +J47-K47) -> -0.004444444444
A48: 1915 | B48: Office Furniture & Equipment (10 years) | C48: =+'App.2-CA_OldCGAAP_DepExp_2015'!C47+'App.2-CA_OldCGAAP_DepExp_2015'!F47 -> 52445.31 | D48: 30841.31 | E48: 21604 | G48: 21604 | H48: 10 | I48: 0.1 | J48: 2160.4 | K48: =-'App.2-BA_FA Cont 2016_Old CGAAP'!K36 -> 2160.44 | L48: -0.04
A49: 1915 | B49: Office Furniture & Equipment (5 years) | E49: 0 | G49: 0 | J49: 0 | K49: =-'App.2-BA_FA Cont 2016_Old CGAAP'!K37 -> 0 | L49: 0
A50: 1920 | B50: Computer Equipment - Hardware | C50: =+'App.2-CA_OldCGAAP_DepExp_2015'!C49+'App.2-CA_OldCGAAP_DepExp_2015'!F49 -> 102978.9 | D50: =84470.7+2223.85+2224.1 -> 88918.65 | E50: 14060.25 | F50: 3000 | G50: 15560.25 | H50: 5 | I50: 0.2 | J50: 3112.05 | K50: =-'App.2-BA_FA Cont 2016_Old CGAAP'!K38 -> 3112.05 | L50: -3.183231456e-12
A51: 1920 | B51: Computer Equip.-Hardware(Post Mar. 22/04) | E51: 0 | G51: 0 | J51: 0 | K51: =-'App.2-BA_FA Cont 2016_Old CGAAP'!K39 -> 0 | L51: 0
A52: 1920 | B52: Computer Equip.-Hardware(Post Mar. 19/07) | E52: 0 | G52: 0 | H52: 5 | I52: 0.2 | J52: 0 | K52: =-'App.2-BA_FA Cont 2016_Old CGAAP'!K40 -> 0 | L52: 0
A53: 1930 | B53: Transportation Equipment - under 3 Tons | C53: =+'App.2-CA_OldCGAAP_DepExp_2015'!C52+'App.2-CA_OldCGAAP_DepExp_2015'!F52 -> 172412.95 | D53: 100904.75 | E53: 71508.2 | G53: 71508.2 | H53: 5 | I53: 0.2 | J53: 14301.64 | K53: 14301.64 | L53: 3.637978807e-12
A54: 1930 | B54: Transportation Equipment - 3 Tons & Over | C54: =+'App.2-CA_OldCGAAP_DepExp_2015'!C53+'App.2-CA_OldCGAAP_DepExp_2015'!F53 -> 848705.16 | D54: 548609.16 | E54: 300096 | G54: 300096 | H54: 8 | I54: 0.125 | J54: 37512 | K54: 37512 | L54: 0
A55: 1935 | B55: Stores Equipment | C55: =+'App.2-CA_OldCGAAP_DepExp_2015'!C54+'App.2-CA_OldCGAAP_DepExp_2015'!F54 -> 5290.1 | D55: 3559.1 | E55: 1731 | G55: 1731 | H55: 10 | I55: 0.1 | J55: 173.1 | K55: =-'App.2-BA_FA Cont 2016_Old CGAAP'!K42 -> 173.13 | L55: -0.03
A56: 1940 | B56: Tools, Shop & Garage Equipment | C56: =+'App.2-CA_OldCGAAP_DepExp_2015'!C55+'App.2-CA_OldCGAAP_DepExp_2015'!F55 -> 187478.67 | D56: =167014.29+1593+2543.4+1858.58+2667 -> 175676.27 | E56: =C56-D56 -> 11802.4 | F56: 7500 | G56: =E56+0.5*F56 -> 15552.4 | H56: 10 | I56: =IF(H56=0,"",1/H56) -> 0.1 | J56: 1555.24 | K56: =-'App.2-BA_FA Cont 2016_Old CGAAP'!K43 -> 1555.24 | L56: 2.273736754e-12
A57: 1945 | B57: Measurement & Testing Equipment | E57: 0 | G57: 0 | H57: 10 | I57: 0.1 | J57: 0 | K57: =-'App.2-BA_FA Cont 2016_Old CGAAP'!K45 -> 0 | L57: 0
A58: 1950 | B58: Power Operated Equipment | E58: 0 | G58: 0 | J58: 0 | K58: =-'App.2-BA_FA Cont 2016_Old CGAAP'!K46 -> 0 | L58: 0
A59: 1955 | B59: Communications Equipment | E59: 0 | G59: 0 | H59: 5 | I59: 0.2 | J59: 0 | K59: =-'App.2-BA_FA Cont 2016_Old CGAAP'!K47 -> 0 | L59: 0
A60: 1955 | B60: Communication Equipment (Smart Meters) | E60: =C60-D60 -> 0 | G60: =E60+0.5*F60 -> 0 | I60: =IF(H60=0,"",1/H60) ->  | J60: =IF(H60=0,0,G60/H60) -> 0 | K60: =-'App.2-BA_FA Cont 2016_Old CGAAP'!K48 -> 0 | L60: 0
A61: 1960 | B61: Miscellaneous Equipment | E61: 0 | G61: 0 | H61: 10 | I61: 0.1 | J61: 0 | K61: =-'App.2-BA_FA Cont 2016_Old CGAAP'!K49 -> 0 | L61: 0
A62: 1970 | B62: Load Management Controls Customer Premises | E62: 0 | G62: =E62+0.5*F62 -> 0 | H62: 10 | I62: 0.1 | J62: 0 | K62: =-'App.2-BA_FA Cont 2016_Old CGAAP'!K50 -> 0 | L62: 0
A63: 1975 | B63: Load Management Controls Utility Premises | E63: 0 | G63: 0 | H63: 10 | I63: 0.1 | J63: 0 | K63: =-'App.2-BA_FA Cont 2016_Old CGAAP'!K51 -> 0 | L63: 0
A64: 1980 | B64: System Supervisor Equipment | E64: 0 | G64: 0 | H64: 5 | I64: 0.2 | J64: 0 | K64: =-'App.2-BA_FA Cont 2016_Old CGAAP'!K52 -> 0 | L64: 0
A65: 1985 | B65: Miscellaneous Fixed Assets | E65: 0 | G65: 0 | J65: 0 | K65: =-'App.2-BA_FA Cont 2016_Old CGAAP'!K53 -> 0 | L65: 0
A66: 1990 | B66: Other Tangible Property | E66: 0 | G66: 0 | J66: 0 | K66: =-'App.2-BA_FA Cont 2016_Old CGAAP'!K54 -> 0 | L66: 0
A67: 1995 | B67: Contributions & Grants - O/H Conductor | C67: =+'App.2-CA_OldCGAAP_DepExp_2015'!C66+'App.2-CA_OldCGAAP_DepExp_2015'!F66 -> -2000 | E67: -2000 | G67: -2000 | H67: 25 | I67: 0.04 | J67: -80 | K67: -80 | L67: 0
A68: 1995 | B68: Contributions & Grants - Poles | C68: =+'App.2-CA_OldCGAAP_DepExp_2015'!C67+'App.2-CA_OldCGAAP_DepExp_2015'!F67 -> -19552 | E68: -19552 | G68: -19552 | H68: 25 | I68: 0.04 | J68: -782.08 | K68: =-604-178.07 -> -782.07 | L68: -0.01
A69: 1995 | B69: Contributions & Grants - Transformers | C69: =+'App.2-CA_OldCGAAP_DepExp_2015'!C68+'App.2-CA_OldCGAAP_DepExp_2015'!F68 -> -19430 | E69: -19430 | F69: -20000 | G69: -29430 | H69: 25 | I69: 0.04 | J69: -1177.2 | K69: -1177.2 | L69: 0
A70: 1995 | B70: Contributions & Grants - Meters | C70: =+'App.2-CA_OldCGAAP_DepExp_2015'!C69+'App.2-CA_OldCGAAP_DepExp_2015'!F69 -> -1884 | E70: -1884 | G70: -1884 | H70: 15 | I70: 0.06666666667 | J70: -125.6 | K70: -125.61 | L70: 0.01
A71: 1609 | B71: Other Tangible Property | E71: 0 | G71: 0 | J71: 0 | L71: 0
E72: 0 | G72: 0 | J72: 0 | L72: 0
E73: 0 | G73: 0 | J73: 0 | L73: 0
E74: 0 | G74: 0 | J74: 0 | L74: 0
G75: 0 | J75: 0 | K75: =-'App.2-BA_FA Cont 2016_Old CGAAP'!K63 -> 0 | L75: 0
B77: Total | C77: =SUM(C16:C76) -> 14852702.18 | D77: =SUM(D16:D76) -> 5902465.1 | E77: =SUM(E16:E76) -> 8950237.08 | F77: =SUM(F16:F76) -> 547500 | G77: =SUM(G16:G76) -> 9223987.08 | J77: =SUM(J16:J76) -> 416914.9339 | K77: =SUM(K16:K76) -> 416915.04 | L77: -0.1061111112
C82: =+'App.2-BA_FA Cont 2016_Old CGAAP'!E62 -> 14852702.44 | F82: =+'App.2-BA_FA Cont 2016_Old CGAAP'!F62 -> 547500 | K82: =-'App.2-BA_FA Cont 2016_Old CGAAP'!K64 -> 416915.21
C83: =+C77-C82 -> -0.2600000016 | F83: =+F77-F82 -> 0 | K83: =+K77-K82 -> -0.17

Sheet App.2-CA_OldCGAAP_DepExp_2017
K1: File Number: | L1: =EBNUMBER -> EB-2016-0166
K2: Exhibit:
K3: Tab:
K4: Schedule:
K5: Page:
K7: Date:
A9: Appendix 2-CA
A10: Depreciation and Amortization Expense
B11: Assumes the applicant made capitalization and depreciation expense accounting policy changes under CGAAP effective January 1, 2013 and will adopt IFRS for financial reporting purposes effective January 1, 2015.
C13: Year | D13: 2017 | E13: Former CGAAP
A14: Account | B14: Description | C14: Opening Regulatory Gross PP&E as at Jan 1, 2017 | D14: Less Fully Depreciated | E14: Net for Depreciation | F14: Additions | G14: Total for Depreciation | H14: Years | I14: Depreciation Rate | J14: 2017 Depreciation Expense | K14: 2017 Depreciation Expense - old CGAAP (l) | L14: Variance 2
C15: (a) | D15: (b) | E15: (c) | F15: (d) | G15: (e) = (c) + ½ x (d) 1 | H15: (f) | I15: (g) = 1 / (f) | J15: (h) = (e) / (f) | L15: (m) = (h) - (l)
A16: 1611 | B16: Computer Software (Formally known as Account 1925) | C16: =+'App.2-CA_OldCGAAP_DepExp_2016'!C16+'App.2-CA_OldCGAAP_DepExp_2016'!F16 -> 160121.76 | D16: =114259.76+3222.65+3222.7 -> 120705.11 | E16: =C16-D16 -> 39416.65 | G16: =E16+0.5*F16 -> 39416.65 | H16: 5 | I16: =IF(H16=0,"",1/H16) -> 0.2 | J16: =IF(H16=0,0,G16/H16) -> 7883.33 | K16: =-'App.2-BA_FA Cont 2017_Old CGAAP'!K17 -> 7883.33 | L16: =IF(ISERROR(+J16-K16), "", +J16-K16) -> 4.547473509e-12
A17: 1612 | B17: Land Rights (Formally known as Account 1906) | C17: =+'App.2-CA_OldCGAAP_DepExp_2016'!C17+'App.2-CA_OldCGAAP_DepExp_2016'!F17 -> 31301.67 | D17: =15635.9+538.27+1200 -> 17374.17 | E17: =C17-D17 -> 13927.5 | G17: =E17+0.5*F17 -> 13927.5 | H17: 20 | I17: 0.05 | J17: 696.375 | K17: =-'App.2-BA_FA Cont 2017_Old CGAAP'!K18 -> 696.36 | L17: =IF(ISERROR(+J17-K17), "", +J17-K17) -> 0.015
A18: 1612 | B18: Land Rights (Formally known as Account 1906) | E18: 0 | G18: 0 | J18: 0 | L18: =IF(ISERROR(+J18-K18), "", +J18-K18) -> 0
A19: 1805 | B19: Land | C19: =+'App.2-CA_OldCGAAP_DepExp_2016'!C19+'App.2-CA_OldCGAAP_DepExp_2016'!F19 -> 22895.33 | E19: 22895.33 | G19: 22895.33 | H19: 0 | J19: 0 | L19: 0
A20: 1808 | B20: Buildings - Equipment | E20: 0 | G20: 0 | J20: 0 | L20: 0
A21: 1808 | B21: Buildings - Equipment | E21: 0 | G21: 0 | J21: 0 | L21: 0
A22: 1808 | B22: Buildings - Equipment | E22: 0 | G22: 0 | J22: 0 | L22: 0
A23: 1808 | B23: Buildings - Major Repairs | E23: 0 | G23: 0 | J23: 0 | L23: 0
A24: 1808 | B24: Buildings - Major Repairs | E24: 0 | G24: 0 | J24: 0 | L24: 0
A25: 1808 | B25: Buildings - Brick, Stone, Concrete and Steel | C25: =+'App.2-CA_OldCGAAP_DepExp_2016'!C25+'App.2-CA_OldCGAAP_DepExp_2016'!F25-157537 -> 40145.56 | D25: 1073.5 | E25: 39072.06 | G25: 39072.06 | H25: 50 | I25: 0.02 | J25: 781.4412 | K25: =-'App.2-BA_FA Cont 2017_Old CGAAP'!K20 -> 781.44 | L25: 0.0012
A26: 1808 | B26: Buildings - Other | C26: =+'App.2-CA_OldCGAAP_DepExp_2016'!C26+'App.2-CA_OldCGAAP_DepExp_2016'!F26 -> 4151.77 | D26: 4151.77 | E26: 0 | G26: 0 | H26: 25 | I26: 0.04 | J26: 0 | K26: =-'App.2-BA_FA Cont 2017_Old CGAAP'!K21 -> 0 | L26: 0
A27: 1810 | B27: Leasehold Improvements | E27: 0 | G27: 0 | J27: 0 | K27: =-'App.2-BA_FA Cont 2017_Old CGAAP'!K22 -> 0 | L27: 0
A28: 1815 | B28: Transformer Station Equipment >50 kV | E28: 0 | G28: 0 | J28: 0 | L28: 0
A29: 1820 | B29: Distribution Station Equipment <50 kV | C29: =+'App.2-CA_OldCGAAP_DepExp_2016'!C29+'App.2-CA_OldCGAAP_DepExp_2016'!F29 -> 1288197.03 | D29: =201648.59+84960.04 -> 286608.63 | E29: 1001588.4 | F29: 300000 | G29: 1151588.4 | H29: 30 | I29: 0.03333333333 | J29: 38386.28 | K29: =-'App.2-BA_FA Cont 2017_Old CGAAP'!K23 -> 38386.28 | L29: 0
A30: 1825 | B30: Storage Battery Equipment | E30: 0 | G30: 0 | J30: 0 | K30: =-'App.2-BA_FA Cont 2017_Old CGAAP'!K24 -> 0 | L30: 0
A31: 1830 | B31: Poles, Towers & Fixtures | C31: =+'App.2-CA_OldCGAAP_DepExp_2016'!C31+'App.2-CA_OldCGAAP_DepExp_2016'!F31 -> 3076344.4 | D31: =519564.75+46549.2+56895.45+52522.25+52284+61027.25 -> 788842.9 | E31: 2287501.5 | F31: 190000 | G31: 2382501.5 | H31: 25 | I31: 0.04 | J31: 95300.06 | K31: =-'App.2-BA_FA Cont 2017_Old CGAAP'!K25 -> 95300.06 | L31: 0
A32: 1835 | B32: Overhead Conductors & Devices | C32: =+'App.2-CA_OldCGAAP_DepExp_2016'!C32+'App.2-CA_OldCGAAP_DepExp_2016'!F32 -> 4302381.99 | D32: =1133800.4+108615+132755.59+122552+121996.75+142396.75 -> 1762116.49 | E32: 2540265.5 | F32: 85000 | G32: 2582765.5 | H32: 25 | I32: 0.04 | J32: 103310.62 | K32: =-'App.2-BA_FA Cont 2017_Old CGAAP'!K26 -> 103310.62 | L32: -2.910383046e-11
A33: 1840 | B33: Underground Conduit | C33: =+'App.2-CA_OldCGAAP_DepExp_2016'!C33+'App.2-CA_OldCGAAP_DepExp_2016'!F33 -> 85104.83 | D33: =1257.25+557.5+1734.08+243+504.25+944.5 -> 5240.58 | E33: 79864.25 | G33: 79864.25 | H33: 25 | I33: 0.04 | J33: 3194.57 | K33: =-'App.2-BA_FA Cont 2017_Old CGAAP'!K27 -> 3194.57 | L33: 0
A34: 1845 | B34: Underground Conductors & Devices | C34: =+'App.2-CA_OldCGAAP_DepExp_2016'!C34+'App.2-CA_OldCGAAP_DepExp_2016'!F34 -> 615496.6 | D34: =13325.1+5022+15602.25+2189.25+4536.5+8500.25 -> 49175.35 | E34: 566321.25 | F34: 10000 | G34: 571321.25 | H34: 25 | I34: 0.04 | J34: 22852.85 | K34: =-'App.2-BA_FA Cont 2017_Old CGAAP'!K28 -> 22852.85 | L34: 0
A35: 1850 | B35: Line Transformers | C35: =+'App.2-CA_OldCGAAP_DepExp_2016'!C35+'App.2-CA_OldCGAAP_DepExp_2016'!F35 -> 1924168.25 | D35: =636008.25+99501+100450.75+54407.5+26196+37217.25 -> 953780.75 | E35: 970387.5 | F35: 40000 | G35: 990387.5 | H35: 25 | I35: 0.04 | J35: 39615.5 | K35: =-'App.2-BA_FA Cont 2017_Old CGAAP'!K29 -> 39615.5 | L35: -7.275957614e-12
A36: 1855 | B36: Services (Overhead & Underground) | C36: =+'App.2-CA_OldCGAAP_DepExp_2016'!C36+'App.2-CA_OldCGAAP_DepExp_2016'!F36 -> 1618340.91 | D36: =515250.9+53580.75+68996.26+59169.75+59773.75+70956.25 -> 827727.66 | E36: 790613.25 | F36: 15000 | G36: 798113.25 | H36: 25 | I36: 0.04 | J36: 31924.53 | K36: =-'App.2-BA_FA Cont 2017_Old CGAAP'!K30 -> 31924.53 | L36: -3.637978807e-12
A37: 1860 | B37: Meters | C37: =+'App.2-CA_OldCGAAP_DepExp_2016'!C37+'App.2-CA_OldCGAAP_DepExp_2016'!F37-557745.9 -> 36583.49 | E37: 36583.49 | G37: 36583.49 | H37: 25 | I37: 0.04 | J37: 1463.3396 | K37: =-'App.2-BA_FA Cont 2017_Old CGAAP'!K31 -> 1462.9 | L37: 0.4396
A38: 1860 | B38: Meters (Smart Meters) | C38: =+'App.2-CA_OldCGAAP_DepExp_2016'!C38+'App.2-CA_OldCGAAP_DepExp_2016'!F38 -> 36652.6 | E38: 36652.6 | F38: 10000 | G38: 41652.6 | H38: 15 | I38: 0.06666666667 | J38: 2776.84 | K38: =-'App.2-BA_FA Cont 2017_Old CGAAP'!K32 -> 2776.89 | L38: -0.05
A39: 1860 | B39: Smart Meter - addition | C39: 558932 | E39: 558932 | G39: 558932 | H39: 15 | I39: 0.06666666667 | J39: 37262.13333 | K39: 37262.13 | L39: 0.003333333334
A40: 1905 | B40: Land | E40: 0 | G40: 0 | H40: 0 | J40: 0 | K40: =-'App.2-BA_FA Cont 2017_Old CGAAP'!K34 -> 0 | L40: 0
A41: 1908 | B41: Buildings & Fixtures | E41: 0 | G41: 0 | J41: 0 | L41: 0
A42: 1908 | B42: Buildings & Fixtures | E42: 0 | G42: 0 | J42: 0 | L42: 0
A43: 1908 | B43: Buildings & Fixtures | E43: 0 | G43: 0 | J43: 0 | L43: 0
A44: 1908 | B44: Buildings & Fixtures | E44: 0 | G44: 0 | J44: 0 | L44: 0
A45: 1908 | B45: Buildings & Fixtures | E45: 0 | G45: 0 | J45: 0 | L45: 0
A46: 1908 | B46: Buildings & Fixtures | E46: 0 | G46: 0 | J46: 0 | L46: 0
A47: 1910 | B47: Leasehold Improvements | C47: =+'App.2-CA_OldCGAAP_DepExp_2016'!C46+'App.2-CA_OldCGAAP_DepExp_2016'!F46 -> 116088 | E47: 116088 | G47: 116088 | H47: 10 | I47: 0.1 | J47: 11608.8 | K47: 11608.8 | L47: 0
A48: 1910 | B48: Leasehold Improvements | C48: =+'App.2-CA_OldCGAAP_DepExp_2016'!C47+'App.2-CA_OldCGAAP_DepExp_2016'!F47 -> 10000 | E48: 10000 | G48: 10000 | H48: 9 | I48: 0.1111111111 | J48: 1111.111111 | K48: 1111.11 | L48: 0.001111111111
A49: 1915 | B49: Office Furniture & Equipment (10 years) | C49: =+'App.2-CA_OldCGAAP_DepExp_2016'!C48+'App.2-CA_OldCGAAP_DepExp_2016'!F48 -> 52445.31 | D49: 30841.31 | E49: 21604 | G49: 21604 | H49: 10 | I49: 0.1 | J49: 2160.4 | K49: =-'App.2-BA_FA Cont 2017_Old CGAAP'!K37 -> 2160.44 | L49: -0.04
A50: 1915 | B50: Office Furniture & Equipment (5 years) | C50: =+'App.2-CA_OldCGAAP_DepExp_2016'!C49+'App.2-CA_OldCGAAP_DepExp_2016'!F49 -> 0 | E50: 0 | G50: 0 | J50: 0 | K50: =-'App.2-BA_FA Cont 2017_Old CGAAP'!K38 -> 0 | L50: 0
A51: 1920 | B51: Computer Equipment - Hardware | C51: =+'App.2-CA_OldCGAAP_DepExp_2016'!C50+'App.2-CA_OldCGAAP_DepExp_2016'!F50 -> 105978.9 | D51: =84470.7+2223.85+2224.1+3352.5 -> 92271.15 | E51: 13707.75 | F51: 3000 | G51: 15207.75 | H51: 5 | I51: 0.2 | J51: 3041.55 | K51: =-'App.2-BA_FA Cont 2017_Old CGAAP'!K39 -> 3041.55 | L51: -3.183231456e-12
A52: 1920 | B52: Computer Equip.-Hardware(Post Mar. 22/04) | C52: =+'App.2-CA_OldCGAAP_DepExp_2016'!C51+'App.2-CA_OldCGAAP_DepExp_2016'!F51 -> 0 | E52: 0 | G52: 0 | J52: 0 | K52: =-'App.2-BA_FA Cont 2017_Old CGAAP'!K40 -> 0 | L52: 0
A53: 1920 | B53: Computer Equip.-Hardware(Post Mar. 19/07) | C53: =+'App.2-CA_OldCGAAP_DepExp_2016'!C52+'App.2-CA_OldCGAAP_DepExp_2016'!F52 -> 0 | E53: 0 | G53: 0 | H53: 5 | I53: 0.2 | J53: 0 | K53: =-'App.2-BA_FA Cont 2017_Old CGAAP'!K41 -> 0 | L53: 0
A54: 1930 | B54: Transportation Equipment - under 3 Tons | C54: =+'App.2-CA_OldCGAAP_DepExp_2016'!C53+'App.2-CA_OldCGAAP_DepExp_2016'!F53 -> 172412.95 | D54: 124536.95 | E54: 47876 | G54: 47876 | H54: 5 | I54: 0.2 | J54: 9575.2 | K54: 9575.2 | L54: 1.818989404e-12
A55: 1930 | B55: Transportation Equipment - 3 Tons & Over | C55: =+'App.2-CA_OldCGAAP_DepExp_2016'!C54+'App.2-CA_OldCGAAP_DepExp_2016'!F54 -> 848705.16 | D55: 808501.16 | E55: 40204 | G55: 40204 | H55: 8 | I55: 0.125 | J55: 5025.5 | K55: 5025.5 | L55: 0
A56: 1935 | B56: Stores Equipment | C56: =+'App.2-CA_OldCGAAP_DepExp_2016'!C55+'App.2-CA_OldCGAAP_DepExp_2016'!F55 -> 5290.1 | D56: 3559.1 | E56: 1731 | G56: 1731 | H56: 10 | I56: 0.1 | J56: 173.1 | K56: =-'App.2-BA_FA Cont 2017_Old CGAAP'!K43 -> 173.13 | L56: -0.03
A57: 1940 | B57: Tools, Shop & Garage Equipment | C57: =+'App.2-CA_OldCGAAP_DepExp_2016'!C56+'App.2-CA_OldCGAAP_DepExp_2016'!F56 -> 194978.67 | D57: =167014.29+1593+2543.4+1858.58+2667 -> 175676.27 | E57: =C57-D57 -> 19302.4 | F57: 7500 | G57: =E57+0.5*F57 -> 23052.4 | H57: 10 | I57: =IF(H57=0,"",1/H57) -> 0.1 | J57: =IF(H57=0,0,G57/H57) -> 2305.24 | K57: =-'App.2-BA_FA Cont 2017_Old CGAAP'!K44 -> 2305.24 | L57: 2.728484105e-12
A58: 1945 | B58: Measurement & Testing Equipment | C58: =+'App.2-CA_OldCGAAP_DepExp_2016'!C57+'App.2-CA_OldCGAAP_DepExp_2016'!F57 -> 0 | E58: 0 | G58: 0 | H58: 10 | I58: 0.1 | J58: 0 | K58: =-'App.2-BA_FA Cont 2017_Old CGAAP'!K46 -> 0 | L58: 0
A59: 1950 | B59: Power Operated Equipment | C59: =+'App.2-CA_OldCGAAP_DepExp_2016'!C58+'App.2-CA_OldCGAAP_DepExp_2016'!F58 -> 0 | E59: 0 | G59: 0 | J59: 0 | K59: =-'App.2-BA_FA Cont 2017_Old CGAAP'!K47 -> 0 | L59: 0
A60: 1955 | B60: Communications Equipment | C60: =+'App.2-CA_OldCGAAP_DepExp_2016'!C59+'App.2-CA_OldCGAAP_DepExp_2016'!F59 -> 0 | E60: 0 | G60: 0 | H60: 5 | I60: 0.2 | J60: 0 | K60: =-'App.2-BA_FA Cont 2017_Old CGAAP'!K48 -> 0 | L60: 0
A61: 1955 | B61: Communication Equipment (Smart Meters) | C61: =+'App.2-CA_OldCGAAP_DepExp_2016'!C60+'App.2-CA_OldCGAAP_DepExp_2016'!F60 -> 0 | E61: =C61-D61 -> 0 | G61: =E61+0.5*F61 -> 0 | I61: =IF(H61=0,"",1/H61) ->  | J61: =IF(H61=0,0,G61/H61) -> 0 | K61: =-'App.2-BA_FA Cont 2017_Old CGAAP'!K49 -> 0 | L61: 0
A62: 1960 | B62: Miscellaneous Equipment | C62: =+'App.2-CA_OldCGAAP_DepExp_2016'!C61+'App.2-CA_OldCGAAP_DepExp_2016'!F61 -> 0 | E62: 0 | G62: 0 | H62: 10 | I62: 0.1 | J62: 0 | K62: =-'App.2-BA_FA Cont 2017_Old CGAAP'!K50 -> 0 | L62: 0
A63: 1970 | B63: Load Management Controls Customer Premises | C63: =+'App.2-CA_OldCGAAP_DepExp_2016'!C62+'App.2-CA_OldCGAAP_DepExp_2016'!F62 -> 0 | E63: 0 | G63: =E63+0.5*F63 -> 0 | H63: 10 | I63: 0.1 | J63: 0 | K63: =-'App.2-BA_FA Cont 2017_Old CGAAP'!K51 -> 0 | L63: 0
A64: 1975 | B64: Load Management Controls Utility Premises | C64: =+'App.2-CA_OldCGAAP_DepExp_2016'!C63+'App.2-CA_OldCGAAP_DepExp_2016'!F63 -> 0 | E64: 0 | G64: 0 | H64: 10 | I64: 0.1 | J64: 0 | L64: 0
A65: 1980 | B65: System Supervisor Equipment | C65: =+'App.2-CA_OldCGAAP_DepExp_2016'!C64+'App.2-CA_OldCGAAP_DepExp_2016'!F64 -> 0 | E65: 0 | F65: 100000 | G65: 50000 | H65: 20 | I65: 0.05 | J65: 2500 | K65: =-'App.2-BA_FA Cont 2017_Old CGAAP'!K52 -> 2500 | L65: 0
A66: 1985 | B66: Miscellaneous Fixed Assets | C66: =+'App.2-CA_OldCGAAP_DepExp_2016'!C65+'App.2-CA_OldCGAAP_DepExp_2016'!F65 -> 0 | E66: 0 | G66: 0 | J66: 0 | K66: =-'App.2-BA_FA Cont 2017_Old CGAAP'!K54 -> 0 | L66: 0
A67: 1990 | B67: Other Tangible Property | C67: =+'App.2-CA_OldCGAAP_DepExp_2016'!C66+'App.2-CA_OldCGAAP_DepExp_2016'!F66 -> 0 | E67: 0 | G67: 0 | J67: 0 | K67: =-'App.2-BA_FA Cont 2017_Old CGAAP'!K55 -> 0 | L67: 0
A68: 1995 | B68: Contributions & Grants - O/H Conductor | C68: =+'App.2-CA_OldCGAAP_DepExp_2016'!C67+'App.2-CA_OldCGAAP_DepExp_2016'!F67 -> -2000 | E68: -2000 | G68: -2000 | H68: 25 | I68: 0.04 | J68: -80 | K68: -80 | L68: 0
A69: 1995 | B69: Contributions & Grants - Poles | C69: =+'App.2-CA_OldCGAAP_DepExp_2016'!C68+'App.2-CA_OldCGAAP_DepExp_2016'!F68 -> -19552 | E69: -19552 | G69: -19552 | H69: 25 | I69: 0.04 | J69: -782.08 | K69: =-604-178.07 -> -782.07 | L69: -0.01
A70: 1995 | B70: Contributions & Grants - Transformers | C70: =+'App.2-CA_OldCGAAP_DepExp_2016'!C69+'App.2-CA_OldCGAAP_DepExp_2016'!F69 -> -39430 | E70: -39430 | F70: -20000 | G70: -49430 | H70: 25 | I70: 0.04 | J70: -1977.2 | K70: -1977.2 | L70: 0
A71: 1995 | B71: Contributions & Grants - Meters | C71: =+'App.2-CA_OldCGAAP_DepExp_2016'!C70+'App.2-CA_OldCGAAP_DepExp_2016'!F70 -> -1884 | E71: -1884 | G71: -1884 | H71: 15 | I71: 0.06666666667 | J71: -125.6 | K71: -125.61 | L71: 0.01
A72: 1609 | B72: Other Tangible Property | C72: =+'App.2-CA_OldCGAAP_DepExp_2016'!C71+'App.2-CA_OldCGAAP_DepExp_2016'!F71 -> 0 | E72: 0 | G72: 0 | J72: 0 | L72: 0
C73: =+'App.2-CA_OldCGAAP_DepExp_2016'!C72+'App.2-CA_OldCGAAP_DepExp_2016'!F72 -> 0 | E73: 0 | G73: 0 | J73: 0 | L73: 0
C74: =+'App.2-CA_OldCGAAP_DepExp_2016'!C73+'App.2-CA_OldCGAAP_DepExp_2016'!F73 -> 0 | E74: 0 | G74: 0 | J74: 0 | L74: 0
C75: =+'App.2-CA_OldCGAAP_DepExp_2016'!C74+'App.2-CA_OldCGAAP_DepExp_2016'!F74 -> 0 | E75: 0 | G75: 0 | J75: 0 | L75: 0
G76: 0 | J76: 0 | K76: =-'App.2-BA_FA Cont 2017_Old CGAAP'!K64 -> 0 | L76: 0
B78: Total | C78: =SUM(C16:C77) -> 15243851.28 | D78: =SUM(D16:D77) -> 6052182.85 | E78: =SUM(E16:E77) -> 9191668.43 | F78: =SUM(F16:F77) -> 740500 | G78: =SUM(G16:G77) -> 9561918.43 | J78: =SUM(J16:J77) -> 419983.8902 | K78: =SUM(K16:K77) -> 419983.55 | L78: 0.3402444444
C83: =+'App.2-BA_FA Cont 2017_Old CGAAP'!E63 -> 15243851 | F83: =+'App.2-BA_FA Cont 2017_Old CGAAP'!F63 -> 740500 | K83: =-'App.2-BA_FA Cont 2017_Old CGAAP'!K65 -> 419983.56
C84: =+C78-C83 -> 0.2799999975 | F84: =+F78-F83 -> 0 | K84: =+K78-K83 -> -0.01000000001

Sheet Appendix 2-BB Service Life
M1: File Number: | O1: 0
M2: Exhibit:
M3: Tab:
M4: Schedule:
M5: Page:
M7: Date:
A9: Appendix 2-BB
A10: Service Life Comparison
A11: Table F-1 from Kinetrics Report1
C15: Asset Details | F15: Useful Life | J15: USoA Account Number | K15: USoA Account Description | L15: Current | N15: Proposed | P15: Outside Range of Min, Max TUL?
A16: Parent* | B16: # | C16: Category| Component | Type | F16: MIN UL | G16: TUL | H16: MAX UL | L16: Years | M16: Rate | N16: Years | O16: Rate | P16: Below Min TUL | Q16: Above Max TUL
A17: OH | B17: 1 | C17: Fully Dressed Wood Poles | D17: Overall | F17: 35 | G17: 45 | H17: 75 | J17: 1830 | K17: Poles, Towers & Fixtures | L17: 25 | M17: =IF(ISERROR(1/L17), "", 1/L17) -> 0.04 | N17: 45 | O17: =IF(ISERROR(1/N17), "", 1/N17) -> 0.02222222222 | P17: =IF(ISBLANK(N17),"",IF(N17<F17,"Yes","No")) -> No | Q17: =IF(ISBLANK(N17),"",IF(N17>H17,"Yes","No")) -> No
D18: Cross Arm | E18: Wood | F18: 20 | G18: 40 | H18: 55 | M18: =IF(ISERROR(1/L18), "", 1/L18) ->  | O18: =IF(ISERROR(1/N18), "", 1/N18) ->  | P18: =IF(ISBLANK(N18),"",IF(N18<F18,"Yes","No")) ->  | Q18: =IF(ISBLANK(N18),"",IF(N18>H18,"Yes","No")) -> 
E19: Steel | F19: 30 | G19: 70 | H19: 95
B20: 2 | C20: Fully Dressed Concrete Poles | D20: Overall | F20: 50 | G20: 60 | H20: 80
D21: Cross Arm | E21: Wood | F21: 20 | G21: 40 | H21: 55
E22: Steel | F22: 30 | G22: 70 | H22: 95
B23: 3 | C23: Fully Dressed Steel Poles | D23: Overall | F23: 60 | G23: 60 | H23: 80
D24: Cross Arm | E24: Wood | F24: 20 | G24: 40 | H24: 55
E25: Steel | F25: 30 | G25: 70 | H25: 95
B26: 4 | C26: OH Line Switch | F26: 30 | G26: 45 | H26: 55
B27: 5 | C27: OH Line Switch Motor | F27: 15 | G27: 25 | H27: 25
B28: 6 | C28: OH Line Switch RTU | F28: 15 | G28: 20 | H28: 20
B29: 7 | C29: OH Integral Switches | F29: 35 | G29: 45 | H29: 60
B30: 8 | C30: OH Conductors | F30: 50 | G30: 60 | H30: 75 | J30: 1835 | K30: O/H Conductor and Devices | L30: 25 | M30: 0.04 | N30: 60 | O30: 0.01666666667 | P30: No | Q30: No
B31: 9 | C31: OH Transformers & Voltage Regulators | F31: 30 | G31: 40 | H31: 60 | J31: 1850 | K31: Line Transformers | L31: 25 | M31: 0.04 | N31: 40 | O31: 0.025 | P31: No | Q31: No
B32: 10 | C32: OH Shunt Capacitor Banks | F32: 25 | G32: 30 | H32: 40
B33: 11 | C33: Reclosers | F33: 25 | G33: 40 | H33: 55
A34: TS & MS | B34: 12 | C34: Power Transformers | D34: Overall | F34: 30 | G34: 45 | H34: 60 | J34: 1820 | K34: Distribution Station Equipment | L34: 30 | M34: 0.03333333333 | N34: 40 | O34: 0.025 | P34: No | Q34: No
D35: Bushing | F35: 10 | G35: 20 | H35: 30
D36: Tap Changer | F36: 20 | G36: 30 | H36: 60
B37: 13 | C37: Station Service Transformer | F37: 30 | G37: 45 | H37: 55
B38: 14 | C38: Station Grounding Transformer | F38: 30 | G38: 40 | H38: 40
B39: 15 | C39: Station DC System | D39: Overall | F39: 10 | G39: 20 | H39: 30
D40: Battery Bank | F40: 10 | G40: 15 | H40: 15
D41: Charger | F41: 20 | G41: 20 | H41: 30
B42: 16 | C42: Station Metal Clad Switchgear | D42: Overall | F42: 30 | G42: 40 | H42: 60
D43: Removable Breaker | F43: 25 | G43: 40 | H43: 60
B44: 17 | C44: Station Independent Breakers | F44: 35 | G44: 45 | H44: 65
B45: 18 | C45: Station Switch | F45: 30 | G45: 50 | H45: 60
B46: 19 | C46: Electromechanical Relays | F46: 25 | G46: 35 | H46: 50
B47: 20 | C47: Solid State Relays | F47: 10 | G47: 30 | H47: 45
B48: 21 | C48: Digital & Numeric Relays | F48: 15 | G48: 20 | H48: 20
B49: 22 | C49: Rigid Busbars | F49: 30 | G49: 55 | H49: 60
B50: 23 | C50: Steel Structure | F50: 35 | G50: 50 | H50: 90
A51: UG | B51: 24 | C51: Primary Paper Insulated Lead Covered (PILC) Cables | F51: 60 | G51: 65 | H51: 75
B52: 25 | C52: Primary Ethylene-Propylene Rubber (EPR) Cables | F52: 20 | G52: 25 | H52: 25
B53: 26 | C53: Primary Non-Tree Retardant (TR) Cross Linked Polyethylene (XLPE) Cables Direct Buried | F53: 20 | G53: 25 | H53: 30
B54: 27 | C54: Primary Non-TR XLPE Cables in Duct | F54: 20 | G54: 25 | H54: 30
B55: 29 | C55: Primary TR XLPE Cables in Duct | F55: 35 | G55: 40 | H55: 55 | J55: 1845 | K55: UG Conductors and Devices | L55: 25 | M55: 0.04 | N55: 50 | O55: 0.02 | P55: No | Q55: No
B56: 30 | C56: Secondary PILC Cables | F56: 70 | G56: 75 | H56: 80
B57: 31 | C57: Secondary Cables Direct Buried | F57: 25 | G57: 35 | H57: 40
B58: 32 | C58: Secondary Cables in Duct | F58: 35 | G58: 35 | H58: 60
B59: 33 | C59: Network Tranformers | D59: Overall | F59: 20 | G59: 35 | H59: 50
D60: Protector | F60: 20 | G60: 35 | H60: 40
B61: 34 | C61: Pad-Mounted Transformers | F61: 25 | G61: 40 | H61: 45
B62: 35 | C62: Submersible/Vault Transformers | F62: 25 | G62: 35 | H62: 45
B63: 36 | C63: UG Foundation | F63: 35 | G63: 55 | H63: 70
B64: 37 | C64: UG Vaults | D64: Overall | F64: 40 | G64: 60 | H64: 80
D65: Roof | F65: 20 | G65: 30 | H65: 45
B66: 38 | C66: UG Vault Switches | F66: 20 | G66: 35 | H66: 50
B67: 39 | C67: Pad-Mounted Switchgear | F67: 20 | G67: 30 | H67: 45
B68: 40 | C68: Ducts | F68: 30 | G68: 50 | H68: 85 | J68: 1840 | K68: UG Conduit | L68: 25 | M68: 0.04 | N68: 50 | O68: 0.02 | P68: No | Q68: No
B69: 41 | C69: Concrete Encased Duct Banks | F69: 35 | G69: 55 | H69: 80
B70: 42 | C70: Cable Chambers | F70: 50 | G70: 60 | H70: 80
A71: S | B71: 43 | C71: Remote SCADA | F71: 15 | G71: 20 | H71: 30
A74: Table F-2 from Kinetrics Report1
C76: Asset Details | F76: Useful Life Range | J76: USoA Account Number | K76: USoA Account Description | L76: Current | N76: Proposed | P76: Outside Range of Min, Max TUL?
B77: # | C77: Category| Component | Type | L77: Years | M77: Rate | N77: Years | O77: Rate | P77: Below Min Range | Q77: Above Max Range
B78: 1 | C78: Office Equipment | F78: 5 | G78: 15 | J78: 1915 | K78: Office Furniture and Equipment | L78: 10 | M78: =IF(ISERROR(1/L78), "", 1/L78) -> 0.1 | N78: 10 | O78: =IF(ISERROR(1/N78), "", 1/N78) -> 0.1 | P78: =IF(ISBLANK(N78),"",IF(N78<F78,"Yes","No")) -> No | Q78: =IF(ISBLANK(N78),"",IF(N78>G78,"Yes","No")) -> No
B79: 2 | C79: Vehicles | D79: Trucks & Buckets | F79: 5 | G79: 15 | J79: 1930 | K79: Transportation Equipment - Trucks/Buckets | L79: 8 | M79: =IF(ISERROR(1/L79), "", 1/L79) -> 0.125 | N79: 8 | O79: =IF(ISERROR(1/N79), "", 1/N79) -> 0.125 | P79: =IF(ISBLANK(N79),"",IF(N79<F79,"Yes","No")) -> No | Q79: =IF(ISBLANK(N79),"",IF(N79>G79,"Yes","No")) -> No
D80: Trailers | F80: 5 | G80: 20 | J80: 1930 | K80: Transportation Equipment - Trailers | L80: 8 | M80: 0.125 | N80: 8 | O80: 0.125 | P80: No | Q80: No
D81: Vans | F81: 5 | G81: 10 | J81: 1930 | K81: Transportation Equipment - Pickup/Cars | L81: 5 | M81: 0.2 | N81: 5 | O81: 0.2 | P81: No | Q81: No
B82: 3 | C82: Administrative Buildings | F82: 50 | G82: 75 | J82: 1808 | K82: Buildings - Office | L82: 50 | M82: 0.02 | N82: 50 | O82: 0.02 | P82: No | Q82: No
B83: 4 | C83: Leasehold Improvements | F83: Lease dependent
B84: 5 | C84: Station Buildings | D84: Station Buildings | F84: 50 | G84: 75 | J84: 1808 | K84: Brick Building at MS #1 | L84: 50 | M84: 0.02 | N84: 50 | O84: 0.02 | P84: No | Q84: No
D85: Parking | F85: 25 | G85: 30
D86: Fence | F86: 25 | G86: 60
D87: Roof | F87: 20 | G87: 30
B88: 6 | C88: Computer Equipment | D88: Hardware | F88: 3 | G88: 5 | J88: 1920 | K88: Computer Hardware | L88: 5 | M88: =IF(ISERROR(1/L88), "", 1/L88) -> 0.2 | N88: 5 | O88: 0.2 | P88: No | Q88: No
D89: Software | F89: 2 | G89: 5 | J89: 1925 | K89: Computer Software | L89: 5 | M89: 0.2 | N89: 5 | O89: 0.2 | P89: No | Q89: No
B90: 7 | C90: Equipment | D90: Power Operated | F90: 5 | G90: 10
D91: Stores | F91: 5 | G91: 10 | J91: 1935 | K91: Stores Equipment | L91: 10 | M91: 0.1 | N91: 10 | O91: 0.1 | P91: No | Q91: No
D92: Tools, Shop, Garage Equipment | F92: 5 | G92: 10 | J92: 1940 | K92: Tools, Shop, Garage Equipment | L92: 10 | M92: 0.1 | N92: 10 | O92: 0.1 | P92: No | Q92: No
D93: Measurement & Testing Equipment | F93: 5 | G93: 10
B94: 8 | C94: Communication | D94: Towers | F94: 60 | G94: 70
D95: Wireless | F95: 2 | G95: 10
B96: 9 | C96: Residential Energy Meters | F96: 25 | G96: 35 | J96: 1860 | K96: Stranded Meters | L96: 25 | M96: 0.04 | N96: 25 | O96: 0.04 | P96: No | Q96: No
B97: 10 | C97: Industrial/Commercial Energy Meters | F97: 25 | G97: 35 | J97: 1860 | K97: Industrial/Commercial Energy Meters | L97: 25 | M97: 0.04 | N97: 25 | O97: 0.04 | P97: No | Q97: No
B98: 11 | C98: Wholesale Energy Meters | F98: 15 | G98: 30 | L98: 25
B99: 12 | C99: Current & Potential Transformer (CT & PT) | F99: 35 | G99: 50
B100: 13 | C100: Smart Meters | F100: 5 | G100: 15 | J100: 1860 | K100: Smart Meters | L100: 15 | M100: 0.06666666667 | N100: 15 | O100: 0.06666666667 | P100: No | Q100: No
B101: 14 | C101: Repeaters - Smart Metering | F101: 10 | G101: 15
B102: 15 | C102: Data Collectors - Smart Metering | F102: 15 | G102: 20
A105: * TS & MS = Transformer and Municipal Stations UG = Underground Systems S = Monitoring and Control Systems
A107: Note 1: | B107: Tables F-1 and F-2 above are to be used as a reference in order to complete columns J, K, L and N.
B108: See pages 17-19 of Kinetrics Report

Sheet App.2-BA_FA Cont 2013 NewCGAAP
N1: File Number: | O1: =EBNUMBER -> EB-2016-0166
N2: Exhibit:
N3: Tab:
N4: Schedule:
N5: Page:
N7: Date:
B9: Appendix 2-BA
B10: Fixed Asset Continuity Schedule
F12: Accounting Standard | G12: CGAAP | H12: New CGAAP
F13: Year | G13: 2013
A15: RHI | B15: OEB | E15: Cost | L15: Accumulated Depreciation
A16: CCA Class | B16: CCA Class | C16: OEB | D16: Description | E16: Opening Balance | F16: Additions | G16: Disposals | H16: Closing Balance | J16: Opening Balance | K16: ADJ to Opening Balance | L16: Additions | M16: Disposals | N16: Closing Balance | O16: Net Book Value
A17: 12 | B17: 12 | C17: 1611 | D17: Computer Software (Formally known as Account 1925) | E17: =+'App.2-BA_FA Cont 2012 OldCGAAP'!H17 -> 120704.76 | H17: =E17+F17+G17 -> 120704.76 | J17: =+'App.2-BA_FA Cont 2012 OldCGAAP'!M17 -> -117482.26 | L17: -1289 | N17: =SUM(J17:M17) -> -118771.26 | O17: =H17+N17 -> 1933.5
A18: CEC | B18: CEC | C18: 1612 | D18: Land Rights (Formally known as Account 1906) | E18: =+'App.2-BA_FA Cont 2012 OldCGAAP'!H18 -> 23980.67 | H18: =E18+F18+G18 -> 23980.67 | J18: =+'App.2-BA_FA Cont 2012 OldCGAAP'!M18 -> -17963 | L18: -390.33 | N18: =SUM(J18:M18) -> -18353.33 | O18: 5627.34
A19: N/A | B19: N/A | C19: 1805 | D19: Land | E19: =+'App.2-BA_FA Cont 2012 OldCGAAP'!H19 -> 22895.33 | H19: =E19+F19+G19 -> 22895.33 | J19: ='App.2-BA_FA Cont 2013 OldCGAAP'!L19 -> 0 | N19: 0 | O19: 22895.33
A20: 1 | B20: 47 | C20: 1808 | D20: Buildings - Brick | E20: 157537.54 | H20: =E20+F20+G20 -> 157537.54 | J20: -76900.32 | L20: -2895.83 | N20: -79796.15 | O20: 77741.39
A21: 1 | B21: 47 | C21: 1808 | D21: Buildings - Other | E21: 40145.02 | H21: =E21+F21+G21 -> 40145.02 | J21: -11924.16 | L21: -781.44 | N21: -12705.6 | O21: 27439.42
A22: 1 | B22: 47 | C22: 1808 | D22: Building - Opeongo Rd | E22: 4151.77 | H22: =E22+F22+G22 -> 4151.77 | J22: -2477 | L22: -1674.77 | N22: -4151.77 | O22: 0
B23: 13 | C23: 1810 | D23: Leasehold Improvements | E23: =+'App.2-BA_FA Cont 2012 OldCGAAP'!H21 -> 0 | H23: 0 | J23: ='App.2-BA_FA Cont 2013 OldCGAAP'!L21 -> 0 | N23: 0 | O23: 0
B24: 47 | C24: 1815 | D24: Transformer Station Equipment >50 kV | E24: =+'App.2-BA_FA Cont 2012 OldCGAAP'!H22 -> 0 | H24: 0 | J24: ='App.2-BA_FA Cont 2013 OldCGAAP'!L22 -> 0 | N24: 0 | O24: 0
A25: 1/47 | B25: 47 | C25: 1820 | D25: Transmission Lines | E25: 9091.88 | H25: =E25+F25+G25 -> 9091.88 | J25: -9091.88 | N25: -9091.88 | O25: 0
A26: 1/47 | B26: 47 | C26: 1820 | D26: Dist Stn Eq <50 kV MS 1 - Bldg & Infrastructure | E26: 9863.43 | H26: 9863.43 | J26: -5793.5 | L26: -162.8 | N26: -5956.3 | O26: 3907.13
A27: 1/47 | B27: 47 | C27: 1820 | D27: Dist Stn Eq <50 kV MS 1 - Equipment | E27: 114067.71 | H27: =E27+F27+G27 -> 114067.71 | J27: -67000.18 | L27: -1637.13 | N27: -68637.31 | O27: 45430.4
A28: 1/47 | B28: 47 | C28: 1820 | D28: Dist Stn Eq <50 kV MS 1 - Transformers | E28: 105679.57 | H28: 105679.57 | J28: -62073.22 | L28: -1362.7 | N28: -63435.92 | O28: 42243.65
A29: 1/47 | B29: 47 | C29: 1820 | D29: Dist Stn Eq <50 kV MS 2 - Bldg & Infrastructure | E29: 23105.2 | H29: 23105.2 | J29: -8927.75 | L29: -567.1 | N29: -9494.85 | O29: 13610.35
A30: 1/47 | B30: 47 | C30: 1820 | D30: Dist Stn Eq <50 kV MS 2 - Electrics Equipment | E30: 14283.22 | H30: =E30+F30+G30 -> 14283.22 | J30: -5518.98 | L30: -350.57 | N30: -5869.55 | O30: 8413.67
A31: 1/47 | B31: 47 | C31: 1820 | D31: Dist Stn Eq <50 kV MS 2 - Equipment | E31: 171398.59 | H31: =E31+F31+G31 -> 171398.59 | J31: -66227.7 | L31: -4206.84 | N31: -70434.54 | O31: 100964.05
A32: 1/47 | B32: 47 | C32: 1820 | D32: Dist Stn Eq <50 kV MS 2 - Transformers | E32: 119250.57 | H32: 119250.57 | J32: -46077.93 | L32: -1925.6 | N32: -48003.53 | O32: 71247.04
A33: 1/47 | B33: 47 | C33: 1820 | D33: Dist Stn Eq <50 kV MS 3 - Bldg & Infrastructure | E33: 4400.92 | H33: 4400.92 | J33: -1931.83 | L33: -98.76 | N33: -2030.59 | O33: 2370.33
A34: 1/47 | B34: 47 | C34: 1820 | D34: Dist Stn Eq <50 kV MS 3 - Equipment | E34: 263355.69 | H34: 263355.69 | J34: -115602.93 | L34: -4251.88 | N34: -119854.81 | O34: 143500.88
A35: 1/47 | B35: 47 | C35: 1820 | D35: Dist Stn Eq <50 kV MS 3 - Transformers | E35: 92793.31 | H35: 92793.31 | J35: -40732.66 | L35: -1859.31 | N35: -42591.97 | O35: 50201.34
A36: 1/47 | B36: 47 | C36: 1820 | D36: Dist Stn Eq <50 kV MS 4 - Bldg & Infrastructure | E36: 8453.24 | H36: =E36+F36+G36 -> 8453.24 | J36: -8211.3 | L36: -9.68 | N36: -8220.98 | O36: 232.26
A37: 1/47 | B37: 47 | C37: 1820 | D37: Dist Stn Eq <50 kV MS 4 - Misc Bldg Infrastructure | E37: 1438.85 | H37: 1438.85 | J37: -1397.67 | L37: -1.65 | N37: -1399.32 | O37: 39.53
A38: 1/47 | B38: 47 | C38: 1820 | D38: Dist Stn Eq <50 kV MS 4 - Electrics Equip | E38: 4265.16 | H38: 4265.16 | J38: -4143.09 | L38: -4.88 | N38: -4147.97 | O38: 117.19
A39: 1/47 | B39: 47 | C39: 1820 | D39: Dist Stn Eq <50 kV MS 4 - Equipment | E39: 48818.13 | H39: =E39+F39+G39 -> 48818.13 | J39: -47420.88 | L39: -55.89 | N39: -47476.77 | O39: 1341.36
A40: 1/47 | B40: 47 | C40: 1820 | D40: Dist Stn Eq <50 kV MS 4 - Transformers | E40: 35971.25 | H40: 35971.25 | J40: -34941.7 | L40: -41.18 | N40: -34982.88 | O40: 988.37
A41: 1/47 | B41: 47 | C41: 1820 | D41: Dist Stn Eq <50 kV MS 5 - Bldg & Infrastructure | E41: 22167.26 | H41: 22167.26 | J41: -16985.99 | L41: -207.25 | N41: -17193.24 | O41: 4974.02
A42: 1/47 | B42: 47 | C42: 1820 | D42: Dist Stn Eq <50 kV MS 5 - Misc Bldg Infrastructure | E42: 3036.61 | H42: 3036.61 | J42: -2326.85 | L42: -28.39 | N42: -2355.24 | O42: 681.37
A43: 1/47 | B43: 47 | C43: 1820 | D43: Dist Stn Eq <50 kV MS 5 - Electrics Equip | E43: 15083.86 | H43: 15083.86 | J43: -11558.23 | L43: -141.03 | N43: -11699.26 | O43: 3384.6
A44: 1/47 | B44: 47 | C44: 1820 | D44: Dist Stn Eq <50 kV MS 5 - Equipment | E44: 132598.67 | H44: =E44+F44+G44 -> 132598.67 | J44: -101605.71 | L44: -1239.72 | N44: -102845.43 | O44: 29753.24
A45: 1/47 | B45: 47 | C45: 1820 | D45: Dist Stn Eq <50 kV MS 5 - Transformers | E45: 89073.91 | H45: 89073.91 | J45: -68254.22 | L45: -832.79 | N45: -69087.01 | O45: 19986.9
B46: 47 | C46: 1825 | D46: Storage Battery Equipment | E46: =+'App.2-BA_FA Cont 2012 OldCGAAP'!H24 -> 0 | H46: 0 | J46: ='App.2-BA_FA Cont 2013 OldCGAAP'!L25 -> 0 | N46: 0 | O46: 0
A47: 1/47 | B47: 47 | C47: 1830 | D47: Poles, Towers & Fixtures | E47: =+'App.2-BA_FA Cont 2012 OldCGAAP'!H25 -> 2484558.88 | F47: 109812.52 | G47: -23328.51 | H47: 2571042.89 | J47: =+'App.2-BA_FA Cont 2012 OldCGAAP'!M25 -> -1278538.48 | K47: -34510.5 | L47: -38359.82 | M47: 19273 | N47: -1332135.8 | O47: 1238907.09
A48: 1/47 | B48: 47 | C48: 1835 | D48: Overhead Conductors & Devices | E48: =+'App.2-BA_FA Cont 2012 OldCGAAP'!H26 -> 3971487.96 | F48: 64843.03 | G48: -8124 | H48: 4028206.99 | J48: =+'App.2-BA_FA Cont 2012 OldCGAAP'!M26 -> -2588500.01 | K48: -2013.58 | L48: -32769.57 | M48: 7718 | N48: -2615565.16 | O48: 1412641.83
A49: 1/47 | B49: 47 | C49: 1840 | D49: Underground Conduit | E49: =+'App.2-BA_FA Cont 2012 OldCGAAP'!H27 -> 63070.82 | F49: 4520.01 | H49: 67590.83 | J49: =+'App.2-BA_FA Cont 2012 OldCGAAP'!M27 -> -22264.93 | K49: 571.39 | L49: -1090.23 | N49: -22783.77 | O49: =H49+N49 -> 44807.06
A50: 1/47 | B50: 47 | C50: 1845 | D50: Underground Conductors & Devices | E50: =+'App.2-BA_FA Cont 2012 OldCGAAP'!H28 -> 413142.6 | F50: 85037 | H50: 498179.6 | J50: =+'App.2-BA_FA Cont 2012 OldCGAAP'!M28 -> -171758.66 | K50: 3156.83 | L50: -7362 | N50: -175963.83 | O50: 322215.77
A51: 1/47 | B51: 47 | C51: 1850 | D51: Line Transformers | E51: =+'App.2-BA_FA Cont 2012 OldCGAAP'!H29 -> 1629043.32 | F51: 41355.93 | G51: -7160 | H51: 1663239.25 | J51: =+'App.2-BA_FA Cont 2012 OldCGAAP'!M29 -> -1207342.59 | L51: -18280.4 | M51: 6966 | N51: -1218656.99 | O51: 444582.26
A52: 1/47 | B52: 47 | C52: 1855 | D52: Sevices - Overhead | E52: 1412807.52 | F52: 19345.57 | G52: -8380 | H52: 1423773.09 | J52: -1143020.61 | K52: 33519.93 | L52: -11328.16 | M52: 6581 | N52: -1114247.84 | O52: 309525.25
A53: 1/47 | B53: 47 | C53: 1855 | D53: Services - Underground | E53: 129612.21 | F53: 15620.61 | G53: 0 | H53: =E53+F53+G53 -> 145232.82 | J53: -56009.3 | K53: -3727.91 | L53: -3075.04 | N53: -62812.25 | O53: 82420.57
A54: 1/47 | B54: 47 | C54: 1860 | D54: Meters | E54: =+'App.2-BA_FA Cont 2012 OldCGAAP'!H31 -> 594329.39 | H54: 594329.39 | J54: =+'App.2-BA_FA Cont 2012 OldCGAAP'!M31 -> -470161.64 | K54: 406.92 | L54: -14139.78 | N54: -483894.5 | O54: 110434.89
A55: 47 | B55: 47 | C55: 1860 | D55: Meters (Smart Meters) | E55: =+'App.2-BA_FA Cont 2012 OldCGAAP'!H32 -> 0 | F55: 14490.6 | H55: 14490.6 | J55: ='App.2-BA_FA Cont 2013 OldCGAAP'!L33 -> 0 | L55: -483.02 | N55: -483.02 | O55: 14007.58
B56: N/A | C56: 1905 | D56: Land | E56: =+'App.2-BA_FA Cont 2012 OldCGAAP'!H33 -> 0 | H56: 0 | J56: ='App.2-BA_FA Cont 2013 OldCGAAP'!L34 -> 0 | N56: 0 | O56: 0
B57: 47 | C57: 1908 | D57: Buildings & Fixtures | E57: =+'App.2-BA_FA Cont 2012 OldCGAAP'!H34 -> 0 | H57: 0 | J57: ='App.2-BA_FA Cont 2013 OldCGAAP'!L35 -> 0 | N57: 0 | O57: 0
B58: 13 | C58: 1910 | D58: Leasehold Improvements | E58: =+'App.2-BA_FA Cont 2012 OldCGAAP'!H35 -> 0 | H58: 0 | J58: ='App.2-BA_FA Cont 2013 OldCGAAP'!L36 -> 0 | N58: 0 | O58: 0
A59: 8 | B59: 8 | C59: 1915 | D59: Office Furniture & Equipment (10 years) | E59: =+'App.2-BA_FA Cont 2012 OldCGAAP'!H36 -> 30841.31 | H59: 30841.31 | J59: =+'App.2-BA_FA Cont 2012 OldCGAAP'!M36 -> -31044.59 | K59: 203.28 | N59: -30841.31 | O59: 0
B60: 8 | C60: 1915 | D60: Office Furniture & Equipment (5 years) | E60: =+'App.2-BA_FA Cont 2012 OldCGAAP'!H37 -> 0 | H60: 0 | J60: ='App.2-BA_FA Cont 2013 OldCGAAP'!L38 -> 0 | N60: 0 | O60: 0
A61: 10 | B61: 10 | C61: 1920 | D61: Computer Equipment - Hardware | E61: =+'App.2-BA_FA Cont 2012 OldCGAAP'!H38 -> 95623.9 | H61: 95623.9 | J61: ='App.2-BA_FA Cont 2013 OldCGAAP'!L39 -> -91279.84 | K61: 3914.54 | L61: -2230.64 | N61: -89595.94 | O61: 6027.96
B62: 45 | C62: 1920 | D62: Computer Equip.-Hardware(Post Mar. 22/04) | E62: =+'App.2-BA_FA Cont 2012 OldCGAAP'!H39 -> 0 | H62: 0 | J62: ='App.2-BA_FA Cont 2013 OldCGAAP'!L40 -> 0 | N62: 0 | O62: 0
B63: 45.1 | C63: 1920 | D63: Computer Equip.-Hardware(Post Mar. 19/07) | E63: =+'App.2-BA_FA Cont 2012 OldCGAAP'!H40 -> 0 | H63: 0 | J63: =+'App.2-BA_FA Cont 2012 OldCGAAP'!M40 -> 0 | N63: 0 | O63: 0
A64: 10 | B64: 10 | C64: 1930 | D64: Transportation Equipment >3 ton | E64: 860720.91 | H64: 860720.91 | J64: =-698108.4+7.93 -> -698100.47 | K64: -7.93 | L64: -37512.2 | N64: -735620.6 | O64: 125100.31
A65: 10 | B65: 10 | C65: 1930 | D65: Transportation Equipment <3 ton | E65: 136153.2 | F65: 2500 | H65: =E65+F65+G65 -> 138653.2 | J65: -93615.44 | L65: -9702.84 | N65: -103318.28 | O65: 35334.92
A66: 8 | B66: 8 | C66: 1935 | D66: Stores Equipment | E66: =+'App.2-BA_FA Cont 2012 OldCGAAP'!H42 -> 3559.1 | H66: 3559.1 | J66: =+'App.2-BA_FA Cont 2012 OldCGAAP'!M42 -> -3559.1 | N66: -3559.1 | O66: 0
A67: 8 | B67: 8 | C67: 1940 | D67: Tools, Shop & Garage Equipment | E67: =+'App.2-BA_FA Cont 2012 OldCGAAP'!H43 -> 186853.67 | H67: 186853.67 | J67: =+'App.2-BA_FA Cont 2012 OldCGAAP'!M43 -> -191805.34 | K67: 11966.52 | L67: -1824.64 | N67: -181663.46 | O67: 5190.21
B68: 8 | C68: 1945 | D68: Measurement & Testing Equipment | E68: =+'App.2-BA_FA Cont 2012 OldCGAAP'!H44 -> 0 | H68: 0 | J68: =+'App.2-BA_FA Cont 2012 OldCGAAP'!M44 -> 0 | N68: 0 | O68: 0
B69: 8 | C69: 1950 | D69: Power Operated Equipment | E69: =+'App.2-BA_FA Cont 2012 OldCGAAP'!H45 -> 0 | H69: 0 | J69: ='App.2-BA_FA Cont 2013 OldCGAAP'!L46 -> 0 | N69: 0 | O69: 0
B70: 8 | C70: 1955 | D70: Communications Equipment | E70: =+'App.2-BA_FA Cont 2012 OldCGAAP'!H46 -> 0 | H70: 0 | J70: =+'App.2-BA_FA Cont 2012 OldCGAAP'!M46 -> 0 | N70: 0 | O70: 0
B71: 8 | C71: 1955 | D71: Communication Equipment (Smart Meters) | E71: =+'App.2-BA_FA Cont 2012 OldCGAAP'!H47 -> 0 | H71: 0 | J71: ='App.2-BA_FA Cont 2013 OldCGAAP'!L48 -> 0 | N71: 0 | O71: 0
B72: 8 | C72: 1960 | D72: Miscellaneous Equipment | E72: =+'App.2-BA_FA Cont 2012 OldCGAAP'!H48 -> 0 | H72: 0 | J72: =+'App.2-BA_FA Cont 2012 OldCGAAP'!M48 -> 0 | N72: 0 | O72: 0
B73: 47 | C73: 1970 | D73: Load Management Controls Customer Premises | E73: =+'App.2-BA_FA Cont 2012 OldCGAAP'!H49 -> 0 | H73: 0 | J73: =+'App.2-BA_FA Cont 2012 OldCGAAP'!M49 -> 0 | N73: 0 | O73: 0
B74: 47 | C74: 1975 | D74: Load Management Controls Utility Premises | E74: =+'App.2-BA_FA Cont 2012 OldCGAAP'!H50 -> 0 | H74: 0 | J74: =+'App.2-BA_FA Cont 2012 OldCGAAP'!M50 -> 0 | N74: 0 | O74: 0
B75: 47 | C75: 1980 | D75: System Supervisor Equipment | E75: =+'App.2-BA_FA Cont 2012 OldCGAAP'!H51 -> 0 | H75: 0 | J75: =+'App.2-BA_FA Cont 2012 OldCGAAP'!M51 -> 0 | N75: 0 | O75: 0
B76: 47 | C76: 1985 | D76: Miscellaneous Fixed Assets | E76: =+'App.2-BA_FA Cont 2012 OldCGAAP'!H52 -> 0 | H76: 0 | J76: =+'App.2-BA_FA Cont 2012 OldCGAAP'!M52 -> 0 | N76: 0 | O76: 0
B77: 47 | C77: 1990 | D77: Other Tangible Property | E77: =+'App.2-BA_FA Cont 2012 OldCGAAP'!H53 -> 0 | H77: 0 | J77: =+'App.2-BA_FA Cont 2012 OldCGAAP'!M53 -> 0 | N77: 0 | O77: 0
C78: 1995 | D78: Contributions & Grants - O/H Conductor | E78: =+'App.2-BA_FA Cont 2012 OldCGAAP'!H54 -> 0 | F78: -2000 | H78: -2000 | J78: =+'App.2-BA_FA Cont 2012 OldCGAAP'!M54 -> 0 | L78: 16.67 | N78: 16.67 | O78: -1983.33
C79: 1995 | D79: Contributions & Grants - Poles | E79: =+'App.2-BA_FA Cont 2012 OldCGAAP'!H55 -> 0 | F79: -15100 | H79: =E79+F79+G79 -> -15100 | J79: =+'App.2-BA_FA Cont 2012 OldCGAAP'!M55 -> 0 | L79: 167.78 | N79: 167.78 | O79: -14932.22
C80: 1995 | D80: Contributions & Grants - Transformers | E80: =+'App.2-BA_FA Cont 2012 OldCGAAP'!H56 -> 0 | F80: -7500 | H80: -7500 | J80: =+'App.2-BA_FA Cont 2012 OldCGAAP'!M56 -> 0 | L80: 93.75 | N80: 93.75 | O80: -7406.25
C81: 2440 | D81: Deferred Revenue5 | E81: =+'App.2-BA_FA Cont 2012 OldCGAAP'!H55 -> 0 | J81: =+'App.2-BA_FA Cont 2012 OldCGAAP'!M55 -> 0 | N81: 0
H82: 0 | N82: =SUM(J82:M82) -> 0 | O82: =H82+N82 -> 0
D83: Sub-Total | E83: =SUM(E17:E82) -> 13669416.91 | F83: =SUM(F17:F82) -> 332925.27 | G83: =SUM(G17:G82) -> -46992.51 | H83: =SUM(H17:H82) -> 13955349.67 | J83: =SUM(J17:J82) -> -8999571.94 | K83: 13479.49 | L83: -203896.66 | M83: 40538 | N83: -9149451.11 | O83: 4805898.56
D84: Less Socialized Renewable Energy Generation Investments (input as negative) | H84: =E84+F84+G84 -> 0 | N84: =J84+L84+M84 -> 0 | O84: =H84+N84 -> 0
D85: Less Other Non Rate-Regulated Utility Assets (input as negative) | H85: 0 | N85: =J85+L85+M85 -> 0 | O85: =H85+N85 -> 0
D86: Total PP&E | E86: =SUM(E83:E85) -> 13669416.91 | F86: =SUM(F83:F85) -> 332925.27 | G86: -46992.51 | H86: 13955349.67 | J86: =SUM(J83:J85) -> -8999571.94 | K86: 13479.49 | L86: -203896.66 | M86: 40538 | N86: -9149451.11 | O86: =SUM(O83:O85) -> 4805898.56
D87: Depreciation Expense adj. from gain or loss on the retirement of assets (pool of like assets), if applicable6
D88: Total | L88: =SUM(K86:L86) -> -190417.17
J90: Less: Fully Allocated Depreciation
B91: 10 | D91: Transportation | J91: Transportation
B92: 8 | D92: Stores Equipment | J92: Stores Equipment
J93: Net Depreciation | M93: =L88-M91-M92 -> -190417.17
B95: Originally hydro distribution assets were added to Class 1 for tax purposes. This was changed a few years ago and all new additions are now in Class 47.
B97: Notes:
B99: 1 | C99: Tables in the format outlined above covering all fixed asset accounts should be submitted for the Test Year, Bridge Year and all relevant historical years. At a minimum , the applicant must provide data for the earlier of: 1) all historical years back to its last rebasing; or 2) at least three years of historical actuals, in addition to Bridge Year and Test Year forecasts.
B102: 2 | C102: The "CCA Class" for fixed assets should agree with the CCA Class used for tax purposes in Tax Returns. Fixed Assets sub-components may be used where the underlying asset components are classified under multiple CCA Classes for tax purposes. If an applicant uses any different classes from those shown in the table, an explanation should be provided. (also see note 3 below).
B105: 3 | C105: The table may need to be customized for a utility's asset categories or for any new asset accounts announced or authorized by the Board.
B107: 4 | C107: The additions column (E) must not include construction work in progress (CWIP).
B109: 5 | C109: Effective on the date of IFRS adoption, customer contributions will no longer be recorded in Account 1995 Contributions & Grants, but will be recorded in Account 2440, Deferred Revenues.
B111: 6 | C111: Where a distributor for general financial reporting purposes under IFRS has accounted for the amount of gain or loss on the retirement of assets in a pool of like assets as a charge or credit to income, for reporting and rate application filings the distributor shall reclassify such gains and losses as depreciation expense, and disclose the amount separately.

Sheet App.2-BA_FA Cont 2014 NewCGAAP
M1: File Number: | N1: =EBNUMBER -> EB-2016-0166
M2: Exhibit:
M3: Tab:
M4: Schedule:
M5: Page:
M7: Date:
B9: Appendix 2-BA
B10: Fixed Asset Continuity Schedule
F12: Accounting Standard | G12: CGAAP | H12: New CGAAP
F13: Year | G13: 2014
A15: RHI | B15: OEB | E15: Cost | K15: Accumulated Depreciation
A16: CCA Class | B16: CCA Class | C16: OEB | D16: Description | E16: Opening Balance | F16: Additions | G16: Disposals | H16: Closing Balance | J16: Opening Balance with ADJ | K16: Additions | L16: Disposals | M16: Closing Balance | N16: Net Book Value
A17: 12 | B17: 12 | C17: 1611 | D17: Computer Software (Formally known as Account 1925) | E17: =+'App.2-BA_FA Cont 2013 NewCGAAP'!H17 -> 120704.76 | H17: =E17+F17+G17 -> 120704.76 | J17: =+'App.2-BA_FA Cont 2013 NewCGAAP'!N17 -> -118771.26 | K17: -1289 | M17: =SUM(J17:L17) -> -120060.26 | N17: =H17+M17 -> 644.5
A18: CEC | B18: CEC | C18: 1612 | D18: Land Rights (Formally known as Account 1906) | E18: =+'App.2-BA_FA Cont 2013 NewCGAAP'!H18 -> 23980.67 | H18: =E18+F18+G18 -> 23980.67 | I18: =+'App.2-BA_FA Cont 2013 NewCGAAP'!M18 -> 0 | J18: =+'App.2-BA_FA Cont 2013 NewCGAAP'!N18 -> -18353.33 | K18: -390.33 | M18: -18743.66 | N18: 5237.01
A19: N/A | B19: N/A | C19: 1805 | D19: Land | E19: =+'App.2-BA_FA Cont 2013 NewCGAAP'!H19 -> 22895.33 | H19: =E19+F19+G19 -> 22895.33 | I19: =+'App.2-BA_FA Cont 2013 NewCGAAP'!M19 -> 0 | J19: =+'App.2-BA_FA Cont 2013 NewCGAAP'!N19 -> 0 | M19: 0 | N19: 22895.33
A20: 1 | B20: 47 | C20: 1808 | D20: Buildings - Brick | E20: =+'App.2-BA_FA Cont 2013 NewCGAAP'!H20 -> 157537.54 | H20: =E20+F20+G20 -> 157537.54 | I20: =+'App.2-BA_FA Cont 2013 NewCGAAP'!M20 -> 0 | J20: =+'App.2-BA_FA Cont 2013 NewCGAAP'!N20 -> -79796.15 | K20: -2895.83 | M20: -82691.98 | N20: 74845.56
A21: 1 | B21: 47 | C21: 1808 | D21: Buildings - Other | E21: =+'App.2-BA_FA Cont 2013 NewCGAAP'!H21 -> 40145.02 | H21: 40145.02 | I21: =+'App.2-BA_FA Cont 2013 NewCGAAP'!M21 -> 0 | J21: =+'App.2-BA_FA Cont 2013 NewCGAAP'!N21 -> -12705.6 | K21: -781.44 | M21: -13487.04 | N21: 26657.98
A22: 1 | B22: 47 | C22: 1808 | D22: Building - Opeongo Rd | E22: =+'App.2-BA_FA Cont 2013 NewCGAAP'!H22 -> 4151.77 | H22: 4151.77 | I22: =+'App.2-BA_FA Cont 2013 NewCGAAP'!M22 -> 0 | J22: =+'App.2-BA_FA Cont 2013 NewCGAAP'!N22 -> -4151.77 | M22: -4151.77 | N22: 0
B23: 13 | C23: 1810 | D23: Leasehold Improvements | E23: =+'App.2-BA_FA Cont 2013 NewCGAAP'!H23 -> 0 | H23: 0 | I23: =+'App.2-BA_FA Cont 2013 NewCGAAP'!M23 -> 0 | J23: =+'App.2-BA_FA Cont 2013 NewCGAAP'!N23 -> 0 | M23: 0 | N23: 0
B24: 47 | C24: 1815 | D24: Transformer Station Equipment >50 kV | E24: =+'App.2-BA_FA Cont 2013 NewCGAAP'!H24 -> 0 | H24: 0 | I24: =+'App.2-BA_FA Cont 2013 NewCGAAP'!M24 -> 0 | J24: =+'App.2-BA_FA Cont 2013 NewCGAAP'!N24 -> 0 | M24: 0 | N24: 0
A25: 1/47 | B25: 47 | C25: 1820 | D25: Transmission Lines | E25: =+'App.2-BA_FA Cont 2013 NewCGAAP'!H25 -> 9091.88 | H25: 9091.88 | I25: =+'App.2-BA_FA Cont 2013 NewCGAAP'!M25 -> 0 | J25: =+'App.2-BA_FA Cont 2013 NewCGAAP'!N25 -> -9091.88 | M25: -9091.88 | N25: 0
A26: 1/47 | B26: 47 | C26: 1820 | D26: Dist Stn Eq <50 kV MS 1 - Bldg & Infrastructure | E26: =+'App.2-BA_FA Cont 2013 NewCGAAP'!H26 -> 9863.43 | H26: 9863.43 | I26: =+'App.2-BA_FA Cont 2013 NewCGAAP'!M26 -> 0 | J26: =+'App.2-BA_FA Cont 2013 NewCGAAP'!N26 -> -5956.3 | K26: -162.8 | M26: -6119.1 | N26: 3744.33
A27: 1/47 | B27: 47 | C27: 1820 | D27: Dist Stn Eq <50 kV MS 1 - Equipment | E27: =+'App.2-BA_FA Cont 2013 NewCGAAP'!H27 -> 114067.71 | H27: 114067.71 | I27: =+'App.2-BA_FA Cont 2013 NewCGAAP'!M27 -> 0 | J27: =+'App.2-BA_FA Cont 2013 NewCGAAP'!N27 -> -68637.31 | K27: -1637.13 | M27: -70274.44 | N27: 43793.27
A28: 1/47 | B28: 47 | C28: 1820 | D28: Dist Stn Eq <50 kV MS 1 - Transformers | E28: =+'App.2-BA_FA Cont 2013 NewCGAAP'!H28 -> 105679.57 | H28: 105679.57 | I28: =+'App.2-BA_FA Cont 2013 NewCGAAP'!M28 -> 0 | J28: =+'App.2-BA_FA Cont 2013 NewCGAAP'!N28 -> -63435.92 | K28: -1362.7 | M28: -64798.62 | N28: 40880.95
A29: 1/47 | B29: 47 | C29: 1820 | D29: Dist Stn Eq <50 kV MS 2 - Bldg & Infrastructure | E29: =+'App.2-BA_FA Cont 2013 NewCGAAP'!H29 -> 23105.2 | H29: 23105.2 | I29: =+'App.2-BA_FA Cont 2013 NewCGAAP'!M29 -> 0 | J29: =+'App.2-BA_FA Cont 2013 NewCGAAP'!N29 -> -9494.85 | K29: -567.1 | M29: -10061.95 | N29: 13043.25
A30: 1/47 | B30: 47 | C30: 1820 | D30: Dist Stn Eq <50 kV MS 2 - Electrics Equipment | E30: =+'App.2-BA_FA Cont 2013 NewCGAAP'!H30 -> 14283.22 | H30: 14283.22 | I30: =+'App.2-BA_FA Cont 2013 NewCGAAP'!M30 -> 0 | J30: =+'App.2-BA_FA Cont 2013 NewCGAAP'!N30 -> -5869.55 | K30: -350.57 | M30: -6220.12 | N30: 8063.1
A31: 1/47 | B31: 47 | C31: 1820 | D31: Dist Stn Eq <50 kV MS 2 - Equipment | E31: =+'App.2-BA_FA Cont 2013 NewCGAAP'!H31 -> 171398.59 | H31: 171398.59 | I31: =+'App.2-BA_FA Cont 2013 NewCGAAP'!M31 -> 0 | J31: =+'App.2-BA_FA Cont 2013 NewCGAAP'!N31 -> -70434.54 | K31: -4206.84 | M31: -74641.38 | N31: 96757.21
A32: 1/47 | B32: 47 | C32: 1820 | D32: Dist Stn Eq <50 kV MS 2 - Transformers | E32: =+'App.2-BA_FA Cont 2013 NewCGAAP'!H32 -> 119250.57 | H32: 119250.57 | I32: =+'App.2-BA_FA Cont 2013 NewCGAAP'!M32 -> 0 | J32: =+'App.2-BA_FA Cont 2013 NewCGAAP'!N32 -> -48003.53 | K32: -1925.6 | M32: -49929.13 | N32: 69321.44
A33: 1/47 | B33: 47 | C33: 1820 | D33: Dist Stn Eq <50 kV MS 3 - Bldg & Infrastructure | E33: =+'App.2-BA_FA Cont 2013 NewCGAAP'!H33 -> 4400.92 | H33: 4400.92 | I33: =+'App.2-BA_FA Cont 2013 NewCGAAP'!M33 -> 0 | J33: =+'App.2-BA_FA Cont 2013 NewCGAAP'!N33 -> -2030.59 | K33: -98.76 | M33: -2129.35 | N33: 2271.57
A34: 1/47 | B34: 47 | C34: 1820 | D34: Dist Stn Eq <50 kV MS 3 - Equipment | E34: =+'App.2-BA_FA Cont 2013 NewCGAAP'!H34 -> 263355.69 | H34: 263355.69 | I34: =+'App.2-BA_FA Cont 2013 NewCGAAP'!M34 -> 0 | J34: =+'App.2-BA_FA Cont 2013 NewCGAAP'!N34 -> -119854.81 | K34: -4251.88 | M34: -124106.69 | N34: 139249
A35: 1/47 | B35: 47 | C35: 1820 | D35: Dist Stn Eq <50 kV MS 3 - Transformers | E35: =+'App.2-BA_FA Cont 2013 NewCGAAP'!H35 -> 92793.31 | H35: 92793.31 | I35: =+'App.2-BA_FA Cont 2013 NewCGAAP'!M35 -> 0 | J35: =+'App.2-BA_FA Cont 2013 NewCGAAP'!N35 -> -42591.97 | K35: -1859.31 | M35: -44451.28 | N35: 48342.03
A36: 1/47 | B36: 47 | C36: 1820 | D36: Dist Stn Eq <50 kV MS 4 - Bldg & Infrastructure | E36: =+'App.2-BA_FA Cont 2013 NewCGAAP'!H36 -> 8453.24 | H36: 8453.24 | I36: =+'App.2-BA_FA Cont 2013 NewCGAAP'!M36 -> 0 | J36: =+'App.2-BA_FA Cont 2013 NewCGAAP'!N36 -> -8220.98 | K36: -9.68 | M36: -8230.66 | N36: 222.58
A37: 1/47 | B37: 47 | C37: 1820 | D37: Dist Stn Eq <50 kV MS 4 - Misc Bldg Infrastructure | E37: =+'App.2-BA_FA Cont 2013 NewCGAAP'!H37 -> 1438.85 | H37: 1438.85 | I37: =+'App.2-BA_FA Cont 2013 NewCGAAP'!M37 -> 0 | J37: =+'App.2-BA_FA Cont 2013 NewCGAAP'!N37 -> -1399.32 | K37: -1.65 | M37: -1400.97 | N37: 37.88
A38: 1/47 | B38: 47 | C38: 1820 | D38: Dist Stn Eq <50 kV MS 4 - Electrics Equip | E38: =+'App.2-BA_FA Cont 2013 NewCGAAP'!H38 -> 4265.16 | H38: 4265.16 | I38: =+'App.2-BA_FA Cont 2013 NewCGAAP'!M38 -> 0 | J38: =+'App.2-BA_FA Cont 2013 NewCGAAP'!N38 -> -4147.97 | K38: -4.88 | M38: -4152.85 | N38: 112.31
A39: 1/47 | B39: 47 | C39: 1820 | D39: Dist Stn Eq <50 kV MS 4 - Equipment | E39: =+'App.2-BA_FA Cont 2013 NewCGAAP'!H39 -> 48818.13 | H39: 48818.13 | I39: =+'App.2-BA_FA Cont 2013 NewCGAAP'!M39 -> 0 | J39: =+'App.2-BA_FA Cont 2013 NewCGAAP'!N39 -> -47476.77 | K39: -55.89 | M39: -47532.66 | N39: 1285.47
A40: 1/47 | B40: 47 | C40: 1820 | D40: Dist Stn Eq <50 kV MS 4 - Transformers | E40: =+'App.2-BA_FA Cont 2013 NewCGAAP'!H40 -> 35971.25 | H40: 35971.25 | I40: =+'App.2-BA_FA Cont 2013 NewCGAAP'!M40 -> 0 | J40: =+'App.2-BA_FA Cont 2013 NewCGAAP'!N40 -> -34982.88 | K40: -41.88 | M40: -35024.76 | N40: 946.49
A41: 1/47 | B41: 47 | C41: 1820 | D41: Dist Stn Eq <50 kV MS 5 - Bldg & Infrastructure | E41: =+'App.2-BA_FA Cont 2013 NewCGAAP'!H41 -> 22167.26 | H41: 22167.26 | I41: =+'App.2-BA_FA Cont 2013 NewCGAAP'!M41 -> 0 | J41: =+'App.2-BA_FA Cont 2013 NewCGAAP'!N41 -> -17193.24 | K41: -207.25 | M41: -17400.49 | N41: 4766.77
A42: 1/47 | B42: 47 | C42: 1820 | D42: Dist Stn Eq <50 kV MS 5 - Misc Bldg Infrastructure | E42: =+'App.2-BA_FA Cont 2013 NewCGAAP'!H42 -> 3036.61 | H42: 3036.61 | I42: =+'App.2-BA_FA Cont 2013 NewCGAAP'!M42 -> 0 | J42: =+'App.2-BA_FA Cont 2013 NewCGAAP'!N42 -> -2355.24 | K42: -28.39 | M42: -2383.63 | N42: 652.98
A43: 1/47 | B43: 47 | C43: 1820 | D43: Dist Stn Eq <50 kV MS 5 - Electrics Equip | E43: =+'App.2-BA_FA Cont 2013 NewCGAAP'!H43 -> 15083.86 | H43: 15083.86 | I43: =+'App.2-BA_FA Cont 2013 NewCGAAP'!M43 -> 0 | J43: =+'App.2-BA_FA Cont 2013 NewCGAAP'!N43 -> -11699.26 | K43: -141.03 | M43: -11840.29 | N43: 3243.57
A44: 1/47 | B44: 47 | C44: 1820 | D44: Dist Stn Eq <50 kV MS 5 - Equipment | E44: =+'App.2-BA_FA Cont 2013 NewCGAAP'!H44 -> 132598.67 | H44: 132598.67 | I44: =+'App.2-BA_FA Cont 2013 NewCGAAP'!M44 -> 0 | J44: =+'App.2-BA_FA Cont 2013 NewCGAAP'!N44 -> -102845.43 | K44: -1239.72 | M44: -104085.15 | N44: 28513.52
A45: 1/47 | B45: 47 | C45: 1820 | D45: Dist Stn Eq <50 kV MS 5 - Transformers | E45: =+'App.2-BA_FA Cont 2013 NewCGAAP'!H45 -> 89073.91 | H45: 89073.91 | I45: =+'App.2-BA_FA Cont 2013 NewCGAAP'!M45 -> 0 | J45: =+'App.2-BA_FA Cont 2013 NewCGAAP'!N45 -> -69087.01 | K45: -832.79 | M45: -69919.8 | N45: 19154.11
B46: 47 | C46: 1825 | D46: Storage Battery Equipment | E46: =+'App.2-BA_FA Cont 2013 NewCGAAP'!H46 -> 0 | H46: 0 | I46: =+'App.2-BA_FA Cont 2013 NewCGAAP'!M46 -> 0 | J46: =+'App.2-BA_FA Cont 2013 NewCGAAP'!N46 -> 0 | M46: 0 | N46: 0
A47: 1/47 | B47: 47 | C47: 1830 | D47: Poles, Towers & Fixtures | E47: =+'App.2-BA_FA Cont 2013 NewCGAAP'!H47 -> 2571042.89 | F47: 127369.87 | G47: -30939 | H47: 2667473.76 | I47: =+'App.2-BA_FA Cont 2013 NewCGAAP'!M47 -> 19273 | J47: =+'App.2-BA_FA Cont 2013 NewCGAAP'!N47 -> -1332135.8 | K47: -40716.78 | L47: 22622 | M47: -1350230.58 | N47: 1317243.18
A48: 1/47 | B48: 47 | C48: 1835 | D48: Overhead Conductors & Devices | E48: =+'App.2-BA_FA Cont 2013 NewCGAAP'!H48 -> 4028206.99 | F48: 114905.11 | G48: -15028 | H48: 4128084.1 | I48: =+'App.2-BA_FA Cont 2013 NewCGAAP'!M48 -> 7718 | J48: =+'App.2-BA_FA Cont 2013 NewCGAAP'!N48 -> -2615565.16 | K48: -34120.59 | L48: 9467 | M48: -2640218.75 | N48: 1487865.35
A49: 1/47 | B49: 47 | C49: 1840 | D49: Underground Conduit | E49: =+'App.2-BA_FA Cont 2013 NewCGAAP'!H49 -> 67590.83 | F49: 10114.08 | H49: 77704.91 | I49: =+'App.2-BA_FA Cont 2013 NewCGAAP'!M49 -> 0 | J49: =+'App.2-BA_FA Cont 2013 NewCGAAP'!N49 -> -22783.77 | K49: -1236.57 | M49: =SUM(J49:L49) -> -24020.34 | N49: =H49+M49 -> 53684.57
A50: 1/47 | B50: 47 | C50: 1845 | D50: Underground Conductors & Devices | E50: =+'App.2-BA_FA Cont 2013 NewCGAAP'!H50 -> 498179.6 | F50: 24716.71 | H50: 522896.31 | I50: =+'App.2-BA_FA Cont 2013 NewCGAAP'!M50 -> 0 | J50: =+'App.2-BA_FA Cont 2013 NewCGAAP'!N50 -> -175963.83 | K50: -8460 | M50: -184423.83 | N50: 338472.48
A51: 1/47 | B51: 47 | C51: 1850 | D51: Line Transformers | E51: =+'App.2-BA_FA Cont 2013 NewCGAAP'!H51 -> 1663239.25 | F51: 28522.73 | G51: -5446.08 | H51: 1686315.9 | I51: =+'App.2-BA_FA Cont 2013 NewCGAAP'!M51 -> 6966 | J51: =+'App.2-BA_FA Cont 2013 NewCGAAP'!N51 -> -1218656.99 | K51: -19034.94 | L51: 5218.39 | M51: -1232473.54 | N51: 453842.36
A52: 1/47 | B52: 47 | C52: 1855 | D52: Sevices - Overhead | E52: =+'App.2-BA_FA Cont 2013 NewCGAAP'!H52 -> 1423773.09 | F52: 9808.34 | G52: -8380.23 | H52: 1425201.2 | I52: =+'App.2-BA_FA Cont 2013 NewCGAAP'!M52 -> 6581 | J52: =+'App.2-BA_FA Cont 2013 NewCGAAP'!N52 -> -1114247.84 | K52: -11504.48 | L52: 6647.76 | M52: -1119104.56 | N52: 306096.64
A53: 1/47 | B53: 47 | C53: 1855 | D53: Services - Underground | E53: =+'App.2-BA_FA Cont 2013 NewCGAAP'!H53 -> 145232.82 | F53: 4739.37 | H53: 149972.19 | I53: =+'App.2-BA_FA Cont 2013 NewCGAAP'!M53 -> 0 | J53: =+'App.2-BA_FA Cont 2013 NewCGAAP'!N53 -> -62812.25 | K53: -3329.53 | M53: -66141.78 | N53: 83830.41
A54: 1/47 | B54: 47 | C54: 1860 | D54: Meters | E54: =+'App.2-BA_FA Cont 2013 NewCGAAP'!H54 -> 594329.39 | H54: 594329.39 | I54: =+'App.2-BA_FA Cont 2013 NewCGAAP'!M54 -> 0 | J54: =+'App.2-BA_FA Cont 2013 NewCGAAP'!N54 -> -483894.5 | K54: -13367.78 | M54: -497262.28 | N54: 97067.11
A55: 47 | B55: 47 | C55: 1860 | D55: Meters (Smart Meters) | E55: =+'App.2-BA_FA Cont 2013 NewCGAAP'!H55 -> 14490.6 | F55: 10278.4 | H55: 24769 | I55: =+'App.2-BA_FA Cont 2013 NewCGAAP'!M55 -> 0 | J55: =+'App.2-BA_FA Cont 2013 NewCGAAP'!N55 -> -483.02 | K55: -1308.66 | M55: -1791.68 | N55: 22977.32
B56: N/A | C56: 1905 | D56: Land | E56: =+'App.2-BA_FA Cont 2013 NewCGAAP'!H56 -> 0 | H56: 0 | I56: =+'App.2-BA_FA Cont 2013 NewCGAAP'!M56 -> 0 | J56: =+'App.2-BA_FA Cont 2013 NewCGAAP'!N56 -> 0 | M56: 0 | N56: 0
B57: 47 | C57: 1908 | D57: Buildings & Fixtures | E57: =+'App.2-BA_FA Cont 2013 NewCGAAP'!H57 -> 0 | H57: 0 | I57: =+'App.2-BA_FA Cont 2013 NewCGAAP'!M57 -> 0 | J57: =+'App.2-BA_FA Cont 2013 NewCGAAP'!N57 -> 0 | M57: 0 | N57: 0
B58: 13 | C58: 1910 | D58: Leasehold Improvements | E58: =+'App.2-BA_FA Cont 2013 NewCGAAP'!H58 -> 0 | H58: 0 | I58: =+'App.2-BA_FA Cont 2013 NewCGAAP'!M58 -> 0 | J58: =+'App.2-BA_FA Cont 2013 NewCGAAP'!N58 -> 0 | M58: 0 | N58: 0
A59: 8 | B59: 8 | C59: 1915 | D59: Office Furniture & Equipment (10 years) | E59: =+'App.2-BA_FA Cont 2013 NewCGAAP'!H59 -> 30841.31 | H59: 30841.31 | I59: =+'App.2-BA_FA Cont 2013 NewCGAAP'!M59 -> 0 | J59: =+'App.2-BA_FA Cont 2013 NewCGAAP'!N59 -> -30841.31 | M59: -30841.31 | N59: 0
B60: 8 | C60: 1915 | D60: Office Furniture & Equipment (5 years) | E60: =+'App.2-BA_FA Cont 2013 NewCGAAP'!H60 -> 0 | H60: 0 | I60: =+'App.2-BA_FA Cont 2013 NewCGAAP'!M60 -> 0 | J60: =+'App.2-BA_FA Cont 2013 NewCGAAP'!N60 -> 0 | M60: 0 | N60: 0
A61: 10 | B61: 10 | C61: 1920 | D61: Computer Equipment - Hardware | E61: =+'App.2-BA_FA Cont 2013 NewCGAAP'!H61 -> 95623.9 | F61: 5437.25 | H61: 101061.15 | I61: =+'App.2-BA_FA Cont 2013 NewCGAAP'!M61 -> 0 | J61: =+'App.2-BA_FA Cont 2013 NewCGAAP'!N61 -> -89595.94 | K61: -2774.37 | M61: -92370.31 | N61: 8690.84
B62: 45 | C62: 1920 | D62: Computer Equip.-Hardware(Post Mar. 22/04) | E62: =+'App.2-BA_FA Cont 2013 NewCGAAP'!H62 -> 0 | H62: 0 | I62: =+'App.2-BA_FA Cont 2013 NewCGAAP'!M62 -> 0 | J62: =+'App.2-BA_FA Cont 2013 NewCGAAP'!N62 -> 0 | M62: 0 | N62: 0
B63: 45.1 | C63: 1920 | D63: Computer Equip.-Hardware(Post Mar. 19/07) | E63: =+'App.2-BA_FA Cont 2013 NewCGAAP'!H63 -> 0 | H63: 0 | I63: =+'App.2-BA_FA Cont 2013 NewCGAAP'!M63 -> 0 | J63: =+'App.2-BA_FA Cont 2013 NewCGAAP'!N63 -> 0 | M63: 0 | N63: 0
A64: 10 | B64: 10 | C64: 1930 | D64: Transportation Equipment >3 ton | E64: =+'App.2-BA_FA Cont 2013 NewCGAAP'!H64 -> 860720.91 | H64: 860720.91 | I64: =+'App.2-BA_FA Cont 2013 NewCGAAP'!M64 -> 0 | J64: =+'App.2-BA_FA Cont 2013 NewCGAAP'!N64 -> -735620.6 | K64: -37512.2 | M64: -773132.8 | N64: 87588.11
A65: 10 | B65: 10 | C65: 1930 | D65: Transportation Equipment <3 ton | E65: =+'App.2-BA_FA Cont 2013 NewCGAAP'!H65 -> 138653.2 | F65: 21744 | H65: 160397.2 | I65: =+'App.2-BA_FA Cont 2013 NewCGAAP'!M65 -> 0 | J65: =+'App.2-BA_FA Cont 2013 NewCGAAP'!N65 -> -103318.28 | K65: -12127.24 | M65: -115445.52 | N65: 44951.68
A66: 8 | B66: 8 | C66: 1935 | D66: Stores Equipment | E66: =+'App.2-BA_FA Cont 2013 NewCGAAP'!H66 -> 3559.1 | H66: 3559.1 | I66: =+'App.2-BA_FA Cont 2013 NewCGAAP'!M66 -> 0 | J66: =+'App.2-BA_FA Cont 2013 NewCGAAP'!N66 -> -3559.1 | M66: -3559.1 | N66: 0
A67: 8 | B67: 8 | C67: 1940 | D67: Tools, Shop & Garage Equipment | E67: =+'App.2-BA_FA Cont 2013 NewCGAAP'!H67 -> 186853.67 | H67: 186853.67 | I67: =+'App.2-BA_FA Cont 2013 NewCGAAP'!M67 -> 0 | J67: =+'App.2-BA_FA Cont 2013 NewCGAAP'!N67 -> -181663.46 | K67: -1570.32 | M67: -183233.78 | N67: 3619.89
B68: 8 | C68: 1945 | D68: Measurement & Testing Equipment | E68: =+'App.2-BA_FA Cont 2013 NewCGAAP'!H68 -> 0 | H68: 0 | I68: =+'App.2-BA_FA Cont 2013 NewCGAAP'!M68 -> 0 | J68: =+'App.2-BA_FA Cont 2013 NewCGAAP'!N68 -> 0 | M68: 0 | N68: 0
B69: 8 | C69: 1950 | D69: Power Operated Equipment | E69: =+'App.2-BA_FA Cont 2013 NewCGAAP'!H69 -> 0 | H69: 0 | I69: =+'App.2-BA_FA Cont 2013 NewCGAAP'!M69 -> 0 | J69: =+'App.2-BA_FA Cont 2013 NewCGAAP'!N69 -> 0 | M69: 0 | N69: 0
B70: 8 | C70: 1955 | D70: Communications Equipment | E70: =+'App.2-BA_FA Cont 2013 NewCGAAP'!H70 -> 0 | H70: 0 | I70: =+'App.2-BA_FA Cont 2013 NewCGAAP'!M70 -> 0 | J70: =+'App.2-BA_FA Cont 2013 NewCGAAP'!N70 -> 0 | M70: 0 | N70: 0
B71: 8 | C71: 1955 | D71: Communication Equipment (Smart Meters) | E71: =+'App.2-BA_FA Cont 2013 NewCGAAP'!H71 -> 0 | H71: 0 | I71: =+'App.2-BA_FA Cont 2013 NewCGAAP'!M71 -> 0 | J71: =+'App.2-BA_FA Cont 2013 NewCGAAP'!N71 -> 0 | M71: 0 | N71: 0
B72: 8 | C72: 1960 | D72: Miscellaneous Equipment | E72: =+'App.2-BA_FA Cont 2013 NewCGAAP'!H72 -> 0 | H72: 0 | I72: =+'App.2-BA_FA Cont 2013 NewCGAAP'!M72 -> 0 | J72: =+'App.2-BA_FA Cont 2013 NewCGAAP'!N72 -> 0 | M72: 0 | N72: 0
B73: 47 | C73: 1970 | D73: Load Management Controls Customer Premises | E73: =+'App.2-BA_FA Cont 2013 NewCGAAP'!H73 -> 0 | H73: 0 | I73: =+'App.2-BA_FA Cont 2013 NewCGAAP'!M73 -> 0 | J73: =+'App.2-BA_FA Cont 2013 NewCGAAP'!N73 -> 0 | M73: 0 | N73: 0
B74: 47 | C74: 1975 | D74: Load Management Controls Utility Premises | E74: =+'App.2-BA_FA Cont 2013 NewCGAAP'!H74 -> 0 | H74: 0 | I74: =+'App.2-BA_FA Cont 2013 NewCGAAP'!M74 -> 0 | J74: =+'App.2-BA_FA Cont 2013 NewCGAAP'!N74 -> 0 | M74: 0 | N74: 0
B75: 47 | C75: 1980 | D75: System Supervisor Equipment | E75: =+'App.2-BA_FA Cont 2013 NewCGAAP'!H75 -> 0 | H75: 0 | I75: =+'App.2-BA_FA Cont 2013 NewCGAAP'!M75 -> 0 | J75: =+'App.2-BA_FA Cont 2013 NewCGAAP'!N75 -> 0 | M75: 0 | N75: 0
B76: 47 | C76: 1985 | D76: Miscellaneous Fixed Assets | E76: =+'App.2-BA_FA Cont 2013 NewCGAAP'!H76 -> 0 | H76: 0 | I76: =+'App.2-BA_FA Cont 2013 NewCGAAP'!M76 -> 0 | J76: =+'App.2-BA_FA Cont 2013 NewCGAAP'!N76 -> 0 | M76: 0 | N76: 0
B77: 47 | C77: 1990 | D77: Other Tangible Property | E77: =+'App.2-BA_FA Cont 2013 NewCGAAP'!H77 -> 0 | H77: 0 | I77: =+'App.2-BA_FA Cont 2013 NewCGAAP'!M77 -> 0 | J77: =+'App.2-BA_FA Cont 2013 NewCGAAP'!N77 -> 0 | M77: 0 | N77: 0
C78: 1995 | D78: Contributions & Grants - O/H Conductor | E78: =+'App.2-BA_FA Cont 2013 NewCGAAP'!H78 -> -2000 | H78: -2000 | I78: =+'App.2-BA_FA Cont 2013 NewCGAAP'!M78 -> 0 | J78: =+'App.2-BA_FA Cont 2013 NewCGAAP'!N78 -> 16.67 | K78: 33.33 | M78: 50 | N78: -1950
C79: 1995 | D79: Contributions & Grants - Poles | E79: =+'App.2-BA_FA Cont 2013 NewCGAAP'!H79 -> -15100 | H79: -15100 | I79: =+'App.2-BA_FA Cont 2013 NewCGAAP'!M79 -> 0 | J79: =+'App.2-BA_FA Cont 2013 NewCGAAP'!N79 -> 167.78 | K79: 335.56 | M79: 503.34 | N79: -14596.66
C80: 1995 | D80: Contributions & Grants - Transformers | E80: =+'App.2-BA_FA Cont 2013 NewCGAAP'!H80 -> -7500 | H80: -7500 | I80: =+'App.2-BA_FA Cont 2013 NewCGAAP'!M80 -> 0 | J80: =+'App.2-BA_FA Cont 2013 NewCGAAP'!N80 -> 93.75 | K80: 187.5 | M80: 281.25 | N80: -7218.75
C81: 2440 | D81: Deferred Revenue5 | E81: =+'App.2-BA_FA Cont 2013 NewCGAAP'!H81 -> 0 | I81: =+'App.2-BA_FA Cont 2013 NewCGAAP'!M81 -> 0 | J81: =+'App.2-BA_FA Cont 2013 NewCGAAP'!N81 -> 0 | M81: =SUM(J81:L81) -> 0
H82: 0 | M82: 0 | N82: =H82+M82 -> 0
D83: Sub-Total | E83: =SUM(E17:E82) -> 13955349.67 | F83: =SUM(F17:F82) -> 357635.86 | G83: =SUM(G17:G82) -> -59793.31 | H83: =SUM(H17:H82) -> 14253192.22 | J83: =SUM(J17:J82) -> -9149451.11 | K83: =SUM(K17:K82) -> -210849.52 | L83: =SUM(L17:L82) -> 43955.15 | M83: =SUM(M17:M82) -> -9316345.48 | N83: =SUM(N17:N82) -> 4936846.74
D84: Less Socialized Renewable Energy Generation Investments (input as negative) | H84: =E84+F84+G84 -> 0 | M84: =J84+K84+L84 -> 0 | N84: =H84+M84 -> 0
D85: Less Other Non Rate-Regulated Utility Assets (input as negative) | H85: 0 | M85: =J85+K85+L85 -> 0 | N85: =H85+M85 -> 0
D86: Total PP&E | E86: =SUM(E83:E85) -> 13955349.67 | F86: =SUM(F83:F85) -> 357635.86 | G86: -59793.31 | H86: 14253192.22 | J86: =SUM(J83:J85) -> -9149451.11 | K86: -210849.52 | L86: 43955.15 | M86: -9316345.48 | N86: =SUM(N83:N85) -> 4936846.74
D87: Depreciation Expense adj. from gain or loss on the retirement of assets (pool of like assets), if applicable6
D88: Total | K88: =SUM(K86:K86) -> -210849.52
J90: Less: Fully Allocated Depreciation
B91: 10 | D91: Transportation | J91: Transportation
B92: 8 | D92: Stores Equipment | J92: Stores Equipment
J93: Net Depreciation | L93: =K88-L91-L92 -> -210849.52
B95: Originally hydro distribution assets were added to Class 1 for tax purposes. This was changed a few years ago and all new additions are now in Class 47.
B97: Notes:
B99: 1 | C99: Tables in the format outlined above covering all fixed asset accounts should be submitted for the Test Year, Bridge Year and all relevant historical years. At a minimum , the applicant must provide data for the earlier of: 1) all historical years back to its last rebasing; or 2) at least three years of historical actuals, in addition to Bridge Year and Test Year forecasts.
B102: 2 | C102: The "CCA Class" for fixed assets should agree with the CCA Class used for tax purposes in Tax Returns. Fixed Assets sub-components may be used where the underlying asset components are classified under multiple CCA Classes for tax purposes. If an applicant uses any different classes from those shown in the table, an explanation should be provided. (also see note 3 below).
B105: 3 | C105: The table may need to be customized for a utility's asset categories or for any new asset accounts announced or authorized by the Board.
B107: 4 | C107: The additions column (E) must not include construction work in progress (CWIP).
B109: 5 | C109: Effective on the date of IFRS adoption, customer contributions will no longer be recorded in Account 1995 Contributions & Grants, but will be recorded in Account 2440, Deferred Revenues.
B111: 6 | C111: Where a distributor for general financial reporting purposes under IFRS has accounted for the amount of gain or loss on the retirement of assets in a pool of like assets as a charge or credit to income, for reporting and rate application filings the distributor shall reclassify such gains and losses as depreciation expense, and disclose the amount separately.

Sheet App.2-BA_FA Cont 2015 NewCGAAP
N1: File Number: | O1: =EBNUMBER -> EB-2016-0166
N2: Exhibit:
N3: Tab:
N4: Schedule:
N5: Page:
N7: Date:
B9: Appendix 2-BA
B10: Fixed Asset Continuity Schedule
F12: Accounting Standard | G12: CGAAP | H12: New CGAAP
F13: Year | G13: 2015
A15: RHI | B15: OEB | E15: Cost | K15: Accumulated Depreciation
A16: CCA Class | B16: CCA Class | C16: OEB | D16: Description | E16: Opening Balance | F16: Additions | G16: Disposals | H16: Closing Balance | J16: Opening Balance | K16: Additions | L16: Disposals | M16: Adj | N16: Closing Balance | O16: Net Book Value
A17: 12 | B17: 12 | C17: 1611 | D17: Computer Software (Formally known as Account 1925) | E17: =+'App.2-BA_FA Cont 2014 NewCGAAP'!H17 -> 120704.76 | F17: 39416.67 | H17: =E17+F17+G17 -> 160121.43 | J17: =+'App.2-BA_FA Cont 2014 NewCGAAP'!M17 -> -120060.26 | K17: -4586.17 | N17: =SUM(J17:M17) -> -124646.43 | O17: =H17+N17 -> 35475
A18: CEC | B18: CEC | C18: 1612 | D18: Land Rights (Formally known as Account 1906) | E18: =+'App.2-BA_FA Cont 2014 NewCGAAP'!H18 -> 23980.67 | F18: 4320.68 | H18: =E18+F18+G18 -> 28301.35 | I18: =+'App.2-BA_FA Cont 2013 NewCGAAP'!M18 -> 0 | J18: =+'App.2-BA_FA Cont 2014 NewCGAAP'!M18 -> -18743.66 | K18: -498.35 | N18: -19242.01 | O18: 9059.34
A19: N/A | B19: N/A | C19: 1805 | D19: Land | E19: =+'App.2-BA_FA Cont 2014 NewCGAAP'!H19 -> 22895.33 | H19: =E19+F19+G19 -> 22895.33 | I19: =+'App.2-BA_FA Cont 2013 NewCGAAP'!M19 -> 0 | J19: =+'App.2-BA_FA Cont 2014 NewCGAAP'!M19 -> 0 | N19: 0 | O19: 22895.33
A20: 1 | B20: 47 | C20: 1808 | D20: Buildings - Brick | E20: =+'App.2-BA_FA Cont 2014 NewCGAAP'!H20 -> 157537.54 | H20: =E20+F20+G20 -> 157537.54 | I20: =+'App.2-BA_FA Cont 2013 NewCGAAP'!M20 -> 0 | J20: =+'App.2-BA_FA Cont 2014 NewCGAAP'!M20 -> -82691.98 | K20: -2895.83 | N20: -85587.81 | O20: 71949.73
A21: 1 | B21: 47 | C21: 1808 | D21: Buildings - Other | E21: =+'App.2-BA_FA Cont 2014 NewCGAAP'!H21 -> 40145.02 | H21: 40145.02 | I21: =+'App.2-BA_FA Cont 2013 NewCGAAP'!M21 -> 0 | J21: =+'App.2-BA_FA Cont 2014 NewCGAAP'!M21 -> -13487.04 | K21: -781.44 | N21: -14268.48 | O21: 25876.54
A22: 1 | B22: 47 | C22: 1808 | D22: Building - Opeongo Rd | E22: =+'App.2-BA_FA Cont 2014 NewCGAAP'!H22 -> 4151.77 | H22: 4151.77 | I22: =+'App.2-BA_FA Cont 2013 NewCGAAP'!M22 -> 0 | J22: =+'App.2-BA_FA Cont 2014 NewCGAAP'!M22 -> -4151.77 | N22: -4151.77 | O22: 0
B23: 13 | C23: 1810 | D23: Leasehold Improvements | E23: =+'App.2-BA_FA Cont 2014 NewCGAAP'!H23 -> 0 | H23: 0 | I23: =+'App.2-BA_FA Cont 2013 NewCGAAP'!M23 -> 0 | J23: =+'App.2-BA_FA Cont 2014 NewCGAAP'!M23 -> 0 | N23: 0 | O23: 0
B24: 47 | C24: 1815 | D24: Transformer Station Equipment >50 kV | E24: =+'App.2-BA_FA Cont 2014 NewCGAAP'!H24 -> 0 | H24: 0 | I24: =+'App.2-BA_FA Cont 2013 NewCGAAP'!M24 -> 0 | J24: =+'App.2-BA_FA Cont 2014 NewCGAAP'!M24 -> 0 | N24: 0 | O24: 0
A25: 1/47 | B25: 47 | C25: 1820 | D25: Transmission Lines | E25: =+'App.2-BA_FA Cont 2014 NewCGAAP'!H25 -> 9091.88 | H25: 9091.88 | I25: =+'App.2-BA_FA Cont 2013 NewCGAAP'!M25 -> 0 | J25: =+'App.2-BA_FA Cont 2014 NewCGAAP'!M25 -> -9091.88 | N25: -9091.88 | O25: 0
A26: 1/47 | B26: 47 | C26: 1820 | D26: Dist Stn Eq <50 kV MS 1 - Bldg & Infrastructure | E26: =+'App.2-BA_FA Cont 2014 NewCGAAP'!H26 -> 9863.43 | H26: 9863.43 | I26: =+'App.2-BA_FA Cont 2013 NewCGAAP'!M26 -> 0 | J26: =+'App.2-BA_FA Cont 2014 NewCGAAP'!M26 -> -6119.1 | K26: -156.29 | M26: 6.56 | N26: -6268.83 | O26: 3594.6
A27: 1/47 | B27: 47 | C27: 1820 | D27: Dist Stn Eq <50 kV MS 1 - Equipment | E27: =+'App.2-BA_FA Cont 2014 NewCGAAP'!H27 -> 114067.71 | H27: 114067.71 | I27: =+'App.2-BA_FA Cont 2013 NewCGAAP'!M27 -> 0 | J27: =+'App.2-BA_FA Cont 2014 NewCGAAP'!M27 -> -70274.44 | K27: -1580.19 | M27: 57.03 | N27: -71797.6 | O27: 42270.11
A28: 1/47 | B28: 47 | C28: 1820 | D28: Dist Stn Eq <50 kV MS 1 - Transformers | E28: =+'App.2-BA_FA Cont 2014 NewCGAAP'!H28 -> 105679.57 | H28: 105679.57 | I28: =+'App.2-BA_FA Cont 2013 NewCGAAP'!M28 -> 0 | J28: =+'App.2-BA_FA Cont 2014 NewCGAAP'!M28 -> -64798.62 | K28: -1320.11 | M28: 42.42 | N28: -66076.31 | O28: 39603.26
A29: 1/47 | B29: 47 | C29: 1820 | D29: Dist Stn Eq <50 kV MS 2 - Bldg & Infrastructure | E29: =+'App.2-BA_FA Cont 2014 NewCGAAP'!H29 -> 23105.2 | H29: 23105.2 | I29: =+'App.2-BA_FA Cont 2013 NewCGAAP'!M29 -> 0 | J29: =+'App.2-BA_FA Cont 2014 NewCGAAP'!M29 -> -10061.95 | K29: -544.41 | M29: 23 | N29: -10583.36 | O29: 12521.84
A30: 1/47 | B30: 47 | C30: 1820 | D30: Dist Stn Eq <50 kV MS 2 - Electrics Equipment | E30: =+'App.2-BA_FA Cont 2014 NewCGAAP'!H30 -> 14283.22 | H30: 14283.22 | I30: =+'App.2-BA_FA Cont 2013 NewCGAAP'!M30 -> 0 | J30: =+'App.2-BA_FA Cont 2014 NewCGAAP'!M30 -> -6220.12 | K30: -336.55 | M30: 13.98 | N30: -6542.69 | O30: 7740.53
A31: 1/47 | B31: 47 | C31: 1820 | D31: Dist Stn Eq <50 kV MS 2 - Equipment | E31: =+'App.2-BA_FA Cont 2014 NewCGAAP'!H31 -> 171398.59 | H31: 171398.59 | I31: =+'App.2-BA_FA Cont 2013 NewCGAAP'!M31 -> 0 | J31: =+'App.2-BA_FA Cont 2014 NewCGAAP'!M31 -> -74641.38 | K31: -4038.56 | M31: 167.93 | N31: -78512.01 | O31: 92886.58
A32: 1/47 | B32: 47 | C32: 1820 | D32: Dist Stn Eq <50 kV MS 2 - Transformers | E32: =+'App.2-BA_FA Cont 2014 NewCGAAP'!H32 -> 119250.57 | H32: 119250.57 | I32: =+'App.2-BA_FA Cont 2013 NewCGAAP'!M32 -> 0 | J32: =+'App.2-BA_FA Cont 2014 NewCGAAP'!M32 -> -49929.13 | K32: -1874.92 | M32: 50.5 | N32: -51753.55 | O32: 67497.02
A33: 1/47 | B33: 47 | C33: 1820 | D33: Dist Stn Eq <50 kV MS 3 - Bldg & Infrastructure | E33: =+'App.2-BA_FA Cont 2014 NewCGAAP'!H33 -> 4400.92 | H33: 4400.92 | I33: =+'App.2-BA_FA Cont 2013 NewCGAAP'!M33 -> 0 | J33: =+'App.2-BA_FA Cont 2014 NewCGAAP'!M33 -> -2129.35 | K33: -94.81 | M33: 3.7 | N33: -2220.46 | O33: 2180.46
A34: 1/47 | B34: 47 | C34: 1820 | D34: Dist Stn Eq <50 kV MS 3 - Equipment | E34: =+'App.2-BA_FA Cont 2014 NewCGAAP'!H34 -> 263355.69 | H34: 263355.69 | I34: =+'App.2-BA_FA Cont 2013 NewCGAAP'!M34 -> 0 | J34: =+'App.2-BA_FA Cont 2014 NewCGAAP'!M34 -> -124106.69 | K34: -4129.52 | M34: 122.84 | N34: -128113.37 | O34: 135242.32
A35: 1/47 | B35: 47 | C35: 1820 | D35: Dist Stn Eq <50 kV MS 3 - Transformers | E35: =+'App.2-BA_FA Cont 2014 NewCGAAP'!H35 -> 92793.31 | H35: 92793.31 | I35: =+'App.2-BA_FA Cont 2013 NewCGAAP'!M35 -> 0 | J35: =+'App.2-BA_FA Cont 2014 NewCGAAP'!M35 -> -44451.28 | K35: -1792.9 | M35: =66.53 -> 66.53 | N35: -46177.65 | O35: 46615.66
A36: 1/47 | B36: 47 | C36: 1820 | D36: Dist Stn Eq <50 kV MS 4 - Bldg & Infrastructure | E36: =+'App.2-BA_FA Cont 2014 NewCGAAP'!H36 -> 8453.24 | H36: 8453.24 | I36: =+'App.2-BA_FA Cont 2013 NewCGAAP'!M36 -> 0 | J36: =+'App.2-BA_FA Cont 2014 NewCGAAP'!M36 -> -8230.66 | K36: -9.29 | M36: 0.57 | N36: -8239.38 | O36: 213.86
A37: 1/47 | B37: 47 | C37: 1820 | D37: Dist Stn Eq <50 kV MS 4 - Misc Bldg Infrastructure | E37: =+'App.2-BA_FA Cont 2014 NewCGAAP'!H37 -> 1438.85 | H37: 1438.85 | I37: =+'App.2-BA_FA Cont 2013 NewCGAAP'!M37 -> 0 | J37: =+'App.2-BA_FA Cont 2014 NewCGAAP'!M37 -> -1400.97 | K37: -1.58 | M37: 0.65 | N37: -1401.9 | O37: 36.95
A38: 1/47 | B38: 47 | C38: 1820 | D38: Dist Stn Eq <50 kV MS 4 - Electrics Equip | E38: =+'App.2-BA_FA Cont 2014 NewCGAAP'!H38 -> 4265.16 | H38: 4265.16 | I38: =+'App.2-BA_FA Cont 2013 NewCGAAP'!M38 -> 0 | J38: =+'App.2-BA_FA Cont 2014 NewCGAAP'!M38 -> -4152.85 | K38: -4.69 | N38: -4157.54 | O38: 107.62
A39: 1/47 | B39: 47 | C39: 1820 | D39: Dist Stn Eq <50 kV MS 4 - Equipment | E39: =+'App.2-BA_FA Cont 2014 NewCGAAP'!H39 -> 48818.13 | H39: 48818.13 | I39: =+'App.2-BA_FA Cont 2013 NewCGAAP'!M39 -> 0 | J39: =+'App.2-BA_FA Cont 2014 NewCGAAP'!M39 -> -47532.66 | K39: -53.65 | M39: 1.7 | N39: -47584.61 | O39: 1233.52
A40: 1/47 | B40: 47 | C40: 1820 | D40: Dist Stn Eq <50 kV MS 4 - Transformers | E40: =+'App.2-BA_FA Cont 2014 NewCGAAP'!H40 -> 35971.25 | H40: 35971.25 | I40: =+'App.2-BA_FA Cont 2013 NewCGAAP'!M40 -> 0 | J40: =+'App.2-BA_FA Cont 2014 NewCGAAP'!M40 -> -35024.76 | K40: -39.53 | M40: 1.61 | N40: -35062.68 | O40: 908.57
A41: 1/47 | B41: 47 | C41: 1820 | D41: Dist Stn Eq <50 kV MS 5 - Bldg & Infrastructure | E41: =+'App.2-BA_FA Cont 2014 NewCGAAP'!H41 -> 22167.26 | H41: 22167.26 | I41: =+'App.2-BA_FA Cont 2013 NewCGAAP'!M41 -> 0 | J41: =+'App.2-BA_FA Cont 2014 NewCGAAP'!M41 -> -17400.49 | K41: -198.96 | M41: 8.09 | N41: -17591.36 | O41: 4575.9
A42: 1/47 | B42: 47 | C42: 1820 | D42: Dist Stn Eq <50 kV MS 5 - Misc Bldg Infrastructure | E42: =+'App.2-BA_FA Cont 2014 NewCGAAP'!H42 -> 3036.61 | H42: 3036.61 | I42: =+'App.2-BA_FA Cont 2013 NewCGAAP'!M42 -> 0 | J42: =+'App.2-BA_FA Cont 2014 NewCGAAP'!M42 -> -2383.63 | K42: -27.25 | M42: 1 | N42: -2409.88 | O42: 626.73
A43: 1/47 | B43: 47 | C43: 1820 | D43: Dist Stn Eq <50 kV MS 5 - Electrics Equip | E43: =+'App.2-BA_FA Cont 2014 NewCGAAP'!H43 -> 15083.86 | H43: 15083.86 | I43: =+'App.2-BA_FA Cont 2013 NewCGAAP'!M43 -> 0 | J43: =+'App.2-BA_FA Cont 2014 NewCGAAP'!M43 -> -11840.29 | K43: -135.38 | M43: 5.83 | N43: -11969.84 | O43: 3114.02
A44: 1/47 | B44: 47 | C44: 1820 | D44: Dist Stn Eq <50 kV MS 5 - Equipment | E44: =+'App.2-BA_FA Cont 2014 NewCGAAP'!H44 -> 132598.67 | H44: 132598.67 | I44: =+'App.2-BA_FA Cont 2013 NewCGAAP'!M44 -> 0 | J44: =+'App.2-BA_FA Cont 2014 NewCGAAP'!M44 -> -104085.15 | K44: -1190.13 | M44: 49.98 | N44: -105225.3 | O44: 27373.37
A45: 1/47 | B45: 47 | C45: 1820 | D45: Dist Stn Eq <50 kV MS 5 - Transformers | E45: =+'App.2-BA_FA Cont 2014 NewCGAAP'!H45 -> 89073.91 | H45: 89073.91 | I45: =+'App.2-BA_FA Cont 2013 NewCGAAP'!M45 -> 0 | J45: =+'App.2-BA_FA Cont 2014 NewCGAAP'!M45 -> -69919.8 | K45: -799.48 | M45: 32.96 | N45: -70686.32 | O45: 18387.59
B46: 47 | C46: 1825 | D46: Storage Battery Equipment | E46: =+'App.2-BA_FA Cont 2014 NewCGAAP'!H46 -> 0 | H46: 0 | I46: =+'App.2-BA_FA Cont 2013 NewCGAAP'!M46 -> 0 | J46: =+'App.2-BA_FA Cont 2014 NewCGAAP'!M46 -> 0 | N46: 0 | O46: 0
A47: 1/47 | B47: 47 | C47: 1830 | D47: Poles, Towers & Fixtures | E47: =+'App.2-BA_FA Cont 2014 NewCGAAP'!H47 -> 2667473.76 | F47: 182603.16 | G47: -8564 | H47: 2841512.92 | I47: =+'App.2-BA_FA Cont 2013 NewCGAAP'!M47 -> 19273 | J47: =+'App.2-BA_FA Cont 2014 NewCGAAP'!M47 -> -1350230.58 | K47: -42349.1 | L47: 340 | M47: 1770 | N47: -1390469.68 | O47: 1451043.24
A48: 1/47 | B48: 47 | C48: 1835 | D48: Overhead Conductors & Devices | E48: =+'App.2-BA_FA Cont 2014 NewCGAAP'!H48 -> 4128084.1 | F48: 68145.86 | G48: -207.16 | H48: 4196022.8 | I48: =+'App.2-BA_FA Cont 2013 NewCGAAP'!M48 -> 7718 | J48: =+'App.2-BA_FA Cont 2014 NewCGAAP'!M48 -> -2640218.75 | K48: -35320.19 | L48: 9.42 | M48: 87.21 | N48: -2675442.31 | O48: 1520580.49
A49: 1/47 | B49: 47 | C49: 1840 | D49: Underground Conduit | E49: =+'App.2-BA_FA Cont 2014 NewCGAAP'!H49 -> 77704.91 | H49: 77704.91 | I49: =+'App.2-BA_FA Cont 2013 NewCGAAP'!M49 -> 0 | J49: =+'App.2-BA_FA Cont 2014 NewCGAAP'!M49 -> -24020.34 | K49: -1310.63 | M49: 25.37 | N49: -25305.6 | O49: =H49+N49 -> 52399.31
A50: 1/47 | B50: 47 | C50: 1845 | D50: Underground Conductors & Devices | E50: =+'App.2-BA_FA Cont 2014 NewCGAAP'!H50 -> 522896.31 | H50: 522896.31 | I50: =+'App.2-BA_FA Cont 2013 NewCGAAP'!M50 -> 0 | J50: =+'App.2-BA_FA Cont 2014 NewCGAAP'!M50 -> -184423.83 | K50: -8496.08 | M50: 205.86 | N50: -192714.05 | O50: 330182.26
A51: 1/47 | B51: 47 | C51: 1850 | D51: Line Transformers | E51: =+'App.2-BA_FA Cont 2014 NewCGAAP'!H51 -> 1686315.9 | F51: 62246.07 | G51: -1363.76 | H51: 1747198.21 | I51: =+'App.2-BA_FA Cont 2013 NewCGAAP'!M51 -> 6966 | J51: =+'App.2-BA_FA Cont 2014 NewCGAAP'!M51 -> -1232473.54 | K51: -18807 | L51: 90.19 | M51: 1300.79 | N51: -1249889.56 | O51: 497308.65
A52: 1/47 | B52: 47 | C52: 1855 | D52: Sevices - Overhead | E52: =+'App.2-BA_FA Cont 2014 NewCGAAP'!H52 -> 1425201.2 | F52: 3838.97 | G52: -815.28 | H52: 1428224.89 | I52: =+'App.2-BA_FA Cont 2013 NewCGAAP'!M52 -> 6581 | J52: =+'App.2-BA_FA Cont 2014 NewCGAAP'!M52 -> -1119104.56 | K52: -11174.2 | L52: 30.01 | M52: 477.86 | N52: -1129770.89 | O52: 298454
A53: 1/47 | B53: 47 | C53: 1855 | D53: Services - Underground | E53: =+'App.2-BA_FA Cont 2014 NewCGAAP'!H53 -> 149972.19 | F53: 6567.96 | G53: -656 | H53: 155884.15 | I53: =+'App.2-BA_FA Cont 2013 NewCGAAP'!M53 -> 0 | J53: =+'App.2-BA_FA Cont 2014 NewCGAAP'!M53 -> -66141.78 | K53: -3267.88 | L53: 30 | M53: 170.97 | N53: -69208.69 | O53: 86675.46
A54: 1/47 | B54: 47 | C54: 1860 | D54: Meters | E54: =+'App.2-BA_FA Cont 2014 NewCGAAP'!H54 -> 594329.39 | H54: 594329.39 | I54: =+'App.2-BA_FA Cont 2013 NewCGAAP'!M54 -> 0 | J54: =+'App.2-BA_FA Cont 2014 NewCGAAP'!M54 -> -497262.28 | K54: -12796.98 | N54: -510059.26 | O54: 84270.13
A55: 47 | B55: 47 | C55: 1860 | D55: Meters (Smart Meters) | E55: =+'App.2-BA_FA Cont 2014 NewCGAAP'!H55 -> 24769 | F55: 1884.18 | H55: 26653.18 | I55: =+'App.2-BA_FA Cont 2013 NewCGAAP'!M55 -> 0 | J55: =+'App.2-BA_FA Cont 2014 NewCGAAP'!M55 -> -1791.68 | K55: -1714.08 | N55: -3505.76 | O55: 23147.42
B56: N/A | C56: 1905 | D56: Land | E56: =+'App.2-BA_FA Cont 2014 NewCGAAP'!H56 -> 0 | H56: 0 | I56: =+'App.2-BA_FA Cont 2013 NewCGAAP'!M56 -> 0 | J56: =+'App.2-BA_FA Cont 2014 NewCGAAP'!M56 -> 0 | N56: 0 | O56: 0
B57: 47 | C57: 1908 | D57: Buildings & Fixtures | E57: =+'App.2-BA_FA Cont 2014 NewCGAAP'!H57 -> 0 | H57: 0 | I57: =+'App.2-BA_FA Cont 2013 NewCGAAP'!M57 -> 0 | J57: =+'App.2-BA_FA Cont 2014 NewCGAAP'!M57 -> 0 | N57: 0 | O57: 0
B58: 13 | C58: 1910 | D58: Leasehold Improvements | E58: =+'App.2-BA_FA Cont 2014 NewCGAAP'!H58 -> 0 | F58: 116088.07 | H58: 116088.07 | I58: =+'App.2-BA_FA Cont 2013 NewCGAAP'!M58 -> 0 | J58: =+'App.2-BA_FA Cont 2014 NewCGAAP'!M58 -> 0 | K58: -5804.41 | N58: -5804.41 | O58: 110283.66
A59: 8 | B59: 8 | C59: 1915 | D59: Office Furniture & Equipment (10 years) | E59: =+'App.2-BA_FA Cont 2014 NewCGAAP'!H59 -> 30841.31 | F59: 21604.43 | H59: 52445.74 | I59: =+'App.2-BA_FA Cont 2013 NewCGAAP'!M59 -> 0 | J59: =+'App.2-BA_FA Cont 2014 NewCGAAP'!M59 -> -30841.31 | K59: -1080.22 | N59: -31921.53 | O59: 20524.21
B60: 8 | C60: 1915 | D60: Office Furniture & Equipment (5 years) | E60: =+'App.2-BA_FA Cont 2014 NewCGAAP'!H60 -> 0 | H60: 0 | I60: =+'App.2-BA_FA Cont 2013 NewCGAAP'!M60 -> 0 | J60: =+'App.2-BA_FA Cont 2014 NewCGAAP'!M60 -> 0 | N60: 0 | O60: 0
A61: 10 | B61: 10 | C61: 1920 | D61: Computer Equipment - Hardware | E61: =+'App.2-BA_FA Cont 2014 NewCGAAP'!H61 -> 101061.15 | F61: 1917.99 | H61: 102979.14 | I61: =+'App.2-BA_FA Cont 2013 NewCGAAP'!M61 -> 0 | J61: =+'App.2-BA_FA Cont 2014 NewCGAAP'!M61 -> -92370.31 | K61: -3065.07 | N61: -95435.38 | O61: 7543.76
B62: 45 | C62: 1920 | D62: Computer Equip.-Hardware(Post Mar. 22/04) | E62: =+'App.2-BA_FA Cont 2014 NewCGAAP'!H62 -> 0 | H62: 0 | I62: =+'App.2-BA_FA Cont 2013 NewCGAAP'!M62 -> 0 | J62: =+'App.2-BA_FA Cont 2014 NewCGAAP'!M62 -> 0 | N62: 0 | O62: 0
B63: 45.1 | C63: 1920 | D63: Computer Equip.-Hardware(Post Mar. 19/07) | E63: =+'App.2-BA_FA Cont 2014 NewCGAAP'!H63 -> 0 | H63: 0 | I63: =+'App.2-BA_FA Cont 2013 NewCGAAP'!M63 -> 0 | J63: =+'App.2-BA_FA Cont 2014 NewCGAAP'!M63 -> 0 | N63: 0 | O63: 0
A64: 10 | B64: 10 | C64: 1930 | D64: Transportation Equipment >3 ton | E64: =+'App.2-BA_FA Cont 2014 NewCGAAP'!H64 -> 860720.91 | H64: 860720.91 | I64: =+'App.2-BA_FA Cont 2013 NewCGAAP'!M64 -> 0 | J64: =+'App.2-BA_FA Cont 2014 NewCGAAP'!M64 -> -773132.8 | K64: -37512.2 | N64: -810645 | O64: 50075.91
A65: 10 | B65: 10 | C65: 1930 | D65: Transportation Equipment <3 ton | E65: =+'App.2-BA_FA Cont 2014 NewCGAAP'!H65 -> 160397.2 | H65: 160397.2 | I65: =+'App.2-BA_FA Cont 2013 NewCGAAP'!M65 -> 0 | J65: =+'App.2-BA_FA Cont 2014 NewCGAAP'!M65 -> -115445.52 | K65: -14301.64 | N65: -129747.16 | O65: 30650.04
A66: 8 | B66: 8 | C66: 1935 | D66: Stores Equipment | E66: =+'App.2-BA_FA Cont 2014 NewCGAAP'!H66 -> 3559.1 | F66: 1731.25 | H66: 5290.35 | I66: =+'App.2-BA_FA Cont 2013 NewCGAAP'!M66 -> 0 | J66: =+'App.2-BA_FA Cont 2014 NewCGAAP'!M66 -> -3559.1 | K66: -86.57 | N66: -3645.67 | O66: 1644.68
A67: 8 | B67: 8 | C67: 1940 | D67: Tools, Shop & Garage Equipment | E67: =+'App.2-BA_FA Cont 2014 NewCGAAP'!H67 -> 186853.67 | F67: 625.08 | H67: 187478.75 | I67: =+'App.2-BA_FA Cont 2013 NewCGAAP'!M67 -> 0 | J67: =+'App.2-BA_FA Cont 2014 NewCGAAP'!M67 -> -183233.78 | K67: -1415.69 | N67: -184649.47 | O67: 2829.28
B68: 8 | C68: 1945 | D68: Measurement & Testing Equipment | E68: =+'App.2-BA_FA Cont 2014 NewCGAAP'!H68 -> 0 | H68: 0 | I68: =+'App.2-BA_FA Cont 2013 NewCGAAP'!M68 -> 0 | J68: =+'App.2-BA_FA Cont 2014 NewCGAAP'!M68 -> 0 | N68: 0 | O68: 0
B69: 8 | C69: 1950 | D69: Power Operated Equipment | E69: =+'App.2-BA_FA Cont 2014 NewCGAAP'!H69 -> 0 | H69: 0 | I69: =+'App.2-BA_FA Cont 2013 NewCGAAP'!M69 -> 0 | J69: =+'App.2-BA_FA Cont 2014 NewCGAAP'!M69 -> 0 | N69: 0 | O69: 0
B70: 8 | C70: 1955 | D70: Communications Equipment | E70: =+'App.2-BA_FA Cont 2014 NewCGAAP'!H70 -> 0 | H70: 0 | I70: =+'App.2-BA_FA Cont 2013 NewCGAAP'!M70 -> 0 | J70: =+'App.2-BA_FA Cont 2014 NewCGAAP'!M70 -> 0 | N70: 0 | O70: 0
B71: 8 | C71: 1955 | D71: Communication Equipment (Smart Meters) | E71: =+'App.2-BA_FA Cont 2014 NewCGAAP'!H71 -> 0 | H71: 0 | I71: =+'App.2-BA_FA Cont 2013 NewCGAAP'!M71 -> 0 | J71: =+'App.2-BA_FA Cont 2014 NewCGAAP'!M71 -> 0 | N71: 0 | O71: 0
B72: 8 | C72: 1960 | D72: Miscellaneous Equipment | E72: =+'App.2-BA_FA Cont 2014 NewCGAAP'!H72 -> 0 | H72: 0 | I72: =+'App.2-BA_FA Cont 2013 NewCGAAP'!M72 -> 0 | J72: =+'App.2-BA_FA Cont 2014 NewCGAAP'!M72 -> 0 | N72: 0 | O72: 0
B73: 47 | C73: 1970 | D73: Load Management Controls Customer Premises | E73: =+'App.2-BA_FA Cont 2014 NewCGAAP'!H73 -> 0 | H73: 0 | I73: =+'App.2-BA_FA Cont 2013 NewCGAAP'!M73 -> 0 | J73: =+'App.2-BA_FA Cont 2014 NewCGAAP'!M73 -> 0 | N73: 0 | O73: 0
B74: 47 | C74: 1975 | D74: Load Management Controls Utility Premises | E74: =+'App.2-BA_FA Cont 2014 NewCGAAP'!H74 -> 0 | H74: 0 | I74: =+'App.2-BA_FA Cont 2013 NewCGAAP'!M74 -> 0 | J74: =+'App.2-BA_FA Cont 2014 NewCGAAP'!M74 -> 0 | N74: 0 | O74: 0
B75: 47 | C75: 1980 | D75: System Supervisor Equipment | E75: =+'App.2-BA_FA Cont 2014 NewCGAAP'!H75 -> 0 | H75: 0 | I75: =+'App.2-BA_FA Cont 2013 NewCGAAP'!M75 -> 0 | J75: =+'App.2-BA_FA Cont 2014 NewCGAAP'!M75 -> 0 | N75: 0 | O75: 0
B76: 47 | C76: 1985 | D76: Miscellaneous Fixed Assets | E76: =+'App.2-BA_FA Cont 2014 NewCGAAP'!H76 -> 0 | H76: 0 | I76: =+'App.2-BA_FA Cont 2013 NewCGAAP'!M76 -> 0 | J76: =+'App.2-BA_FA Cont 2014 NewCGAAP'!M76 -> 0 | N76: 0 | O76: 0
B77: 47 | C77: 1990 | D77: Other Tangible Property | E77: =+'App.2-BA_FA Cont 2014 NewCGAAP'!H77 -> 0 | H77: 0 | I77: =+'App.2-BA_FA Cont 2013 NewCGAAP'!M77 -> 0 | J77: =+'App.2-BA_FA Cont 2014 NewCGAAP'!M77 -> 0 | N77: 0 | O77: 0
C78: 2440 | D78: Contributions & Grants - O/H Conductor | E78: =+'App.2-BA_FA Cont 2014 NewCGAAP'!H78 -> -2000 | H78: -2000 | I78: =+'App.2-BA_FA Cont 2013 NewCGAAP'!M78 -> 0 | J78: =+'App.2-BA_FA Cont 2014 NewCGAAP'!M78 -> 50 | K78: 33 | N78: 83 | O78: -1917
C79: 2440 | D79: Contributions & Grants - Poles | E79: =+'App.2-BA_FA Cont 2014 NewCGAAP'!H79 -> -15100 | F79: -4451.7 | H79: -19551.7 | I79: =+'App.2-BA_FA Cont 2013 NewCGAAP'!M79 -> 0 | J79: =+'App.2-BA_FA Cont 2014 NewCGAAP'!M79 -> 503.34 | K79: 385.03 | N79: 888.37 | O79: -18663.33
C80: 2440 | D80: Contributions & Grants - Transformers | E80: =+'App.2-BA_FA Cont 2014 NewCGAAP'!H80 -> -7500 | F80: -11930.09 | H80: -19430.09 | I80: =+'App.2-BA_FA Cont 2013 NewCGAAP'!M80 -> 0 | J80: =+'App.2-BA_FA Cont 2014 NewCGAAP'!M80 -> 281.25 | K80: 336.63 | N80: 617.88 | O80: -18812.21
C81: 2440 | D81: Contributions & Grants - Meters | E81: =+'App.2-BA_FA Cont 2014 NewCGAAP'!H81 -> 0 | F81: -1884.18 | H81: =E81+F81+G81 -> -1884.18 | I81: =+'App.2-BA_FA Cont 2013 NewCGAAP'!M81 -> 0 | J81: =+'App.2-BA_FA Cont 2014 NewCGAAP'!M81 -> 0 | K81: 62.81 | N81: =SUM(J81:M81) -> 62.81 | O81: =H81+N81 -> -1821.37
C82: 2440 | D82: Deferred Revenue5 | E82: =+'App.2-BA_FA Cont 2014 NewCGAAP'!H81 -> 0 | I82: =+'App.2-BA_FA Cont 2013 NewCGAAP'!M81 -> 0 | J82: =+'App.2-BA_FA Cont 2014 NewCGAAP'!M82 -> 0 | N82: 0
H83: 0 | N83: 0 | O83: =H83+N83 -> 0
D84: Sub-Total | E84: =SUM(E17:E83) -> 14253192.22 | F84: =SUM(F17:F83) -> 492724.4 | G84: =SUM(G17:G83) -> -11606.2 | H84: =SUM(H17:H83) -> 14734310.42 | J84: =SUM(J17:J83) -> -9316345.48 | K84: -224774.46 | L84: 499.62 | M84: 4694.94 | N84: -9535925.38 | O84: 5198385.04
D85: Less Socialized Renewable Energy Generation Investments (input as negative) | H85: =E85+F85+G85 -> 0 | N85: =J85+K85+L85 -> 0 | O85: =H85+N85 -> 0
